{"text_format":"3","workbook":"xlsx","n_sheets":18,"sheets":["Instructions","Enter Data Msg","Edit Narrative","Select STRs","Select NPIs","Status Form Print","Status Form","CNPIs Employment","CNPIs Education","CNPIs Infrastructure Asset","CNPIs Housing","CNPIs Health and Social","CNPIs G2 Civic Engagement","CNPIs G3 Civic Engagement","CNPIs List","Strategies List","XML Export Map","Lookups"],"not_rendered":{"images":1,"macros":1,"defined_names":884},"read":"whole","date_system":"1900"}

{"sheet":"Instructions","index":0,"n_rows":17,"n_cols":3,"rows_kept":17,"merged":[[4,1,4,3],[6,1,6,3],[8,1,8,3],[10,1,10,3],[11,1,11,3],[12,1,12,3],[14,1,14,3],[16,1,16,3]]}
[]
[null,null,"Instructional Notes"]
[null,null,"Module 3 - Community Level"]
[]
[null,"Module 3, Section A: Community Initiative Status Form"]
[]
[null,"Section A: Community Initiatve Status Form is where CSBG Eligible Entities identify initiatives intended to achieve community level outcomes. This form provides a central place to report valuable information about a single community initiative that started, continued, or ended during the current reporting period. The information reported on the status form will be selected via a dropdown menu or written as a narrative."]
[]
[null,"Module 3, Section B: Community National Performance Indicators (NPIs) - Data Entry Form"]
[]
[null,"Section B: Community NPIs Data Entry Form  provides an opportunity for CSBG Eligible Entities to enter data for the community level outcomes reported in Section A, Line 14. Entities may select from the indicators outlined in this section, or create their own indicator if none of the provided indicators captures what the CSBG Eligible Entity is trying to achieve. To facilitate the reporting, use, and learning from Community NPIs the Annual Report provides two types of indicators (Counts of Change and Rates of Change)."]
[null,"The first way to report impact is the Counts of Change indicators. These are basic measures that provide the number of units being measured, e.g. jobs, houses, resources, etc. that have been added (created) or subtracted (eliminated), and in some cases maintained, in the community the CSBG Eligible Entity has targeted.   "]
[null,"The second way to report impact is the Rates of Change indicators. While requiring a bit more information, these indicators tell the full story of the magnitude of the impacta community initiative (usually involving multiple organizations) has had in a community.  "]
[]
[null,"Module 3, Section C: Community Strategies List"]
[]
[null,"Section C: Community Strategies List provides a basic identification of strategies, arranged by Domain and by topic area.  The list cannot be all-inclusive; as such, an “other” category is included.  This standardized list will aid in local and state analysis of the relationship between community-level strategies and outcomes. "]

{"sheet":"Enter Data Msg","index":1,"n_rows":0,"n_cols":0,"rows_kept":0,"hidden":true}

{"sheet":"Edit Narrative","index":2,"n_rows":6,"n_cols":25,"rows_kept":6,"hidden":true,"merged":[[1,1,1,16],[2,1,59,19]]}
[null,{"$f":"Y4","v":"13. Impact of Outcomes"}]
[null,{"$f":"Y5","v":"Impact of Outcomes provides background, detail, and/or context to the numbers being reporting under Outcomes/Indicators that are reported in Item A.14. "}]
[null,"Provide a narrative on the outcomes’ scope of impact if interim or final outcomes are reported.",{"$nulls":20},"EditText_WsName","Status Form"]
[{"$nulls":22},"EditText_FieldName","M3A13Impact",{"$f":"_xlfn.XLOOKUP(EditText_FieldName,'Status Form'!Z:Z,'Status Form'!B:B,\"Edit Text\")","v":"13. Impact of Outcomes"}]
[{"$nulls":22},"EditText_Status","Cancel",{"$f":"_xlfn.XLOOKUP(EditText_FieldName,'Status Form'!Z:Z,'Status Form'!AC:AC,\"\")","v":"Impact of Outcomes provides background, detail, and/or context to the numbers being reporting under Outcomes/Indicators that are reported in Item A.14. "}]
[{"$nulls":22},"EditText_MaxLength",5000]

{"sheet":"Select STRs","index":3,"n_rows":135,"n_cols":35,"rows_kept":135,"hidden":true,"merged":[[16,3,16,18],[32,3,32,18],[55,3,55,18],[69,3,69,18],[87,3,87,18],[102,3,102,18],[113,3,113,18],[123,3,123,18],[133,3,133,18]]}
[null,"Module 3, Section C: Community Strategies List",{"$nulls":23},"hideShow","Domain","checkBoxValues","Orig Val","Is Other Text",null,null,"cmdTable","cmdSetting","cmdDisabled"]
[{"$nulls":25},true,{"$nulls":6},"EMP","Off",{"$f":"NOT(cbEMP)","v":true}]
[{"$nulls":25},true,{"$nulls":6},"EDU","Off",{"$f":"NOT(cbEDU)","v":true}]
[{"$nulls":25},true,{"$nulls":6},"INF","Off",{"$f":"NOT(cbINF)","v":true}]
[{"$nulls":25},true,{"$nulls":6},"HOU","Off",{"$f":"NOT(cbHOU)","v":true}]
[null,"Employment Strategies (STR 1)",{"$nulls":23},{"$f":"AND(_xlfn.XLOOKUP(AA6,cmdTable,cmdSetting,\"Off\")=\"On\",NOT(_xlfn.XLOOKUP(AA6,cmdTable,cmdDisabled,FALSE)))","v":false},"EMP",{"$nulls":5},"HLTH","Off",{"$f":"NOT(cbHLTH)","v":true}]
[{"$nulls":25},{"$f":"AND(_xlfn.XLOOKUP(AA7,cmdTable,cmdSetting,\"Off\")=\"On\",NOT(_xlfn.XLOOKUP(AA7,cmdTable,cmdDisabled,FALSE)))","v":false},"EMP",{"$nulls":5},"CIVG","Off",{"$f":"NOT(cbCIVG)","v":true}]
[null,null,"STR 1a Minimum/Living Wage Campaign ",{"$nulls":22},{"$f":"AND(_xlfn.XLOOKUP(AA8,cmdTable,cmdSetting,\"Off\")=\"On\",NOT(_xlfn.XLOOKUP(AA8,cmdTable,cmdDisabled,FALSE)))","v":false},"EMP","M3A111aMinWage",false,false,null,null,"COM","On",false]
[null,null,"STR 1b Job Creation/Employment Generation ",{"$nulls":22},{"$f":"AND(_xlfn.XLOOKUP(AA9,cmdTable,cmdSetting,\"Off\")=\"On\",NOT(_xlfn.XLOOKUP(AA9,cmdTable,cmdDisabled,FALSE)))","v":false},"EMP","M3A111bJobCreation",false,false,null,null,"EM","On",false]
[null,null,"STR 1c Job Fairs",{"$nulls":22},false,"EMP","M3A111cJobFairs",false,false]
[null,null,"STR 1d Earned Income Tax Credit (EITC) Promotion",{"$nulls":22},false,"EMP","M3A111dEITC",false,false]
[null,null,"STR 1e Commercial Space Development",{"$nulls":22},false,"EMP","M3A111eCommSpace",false,false]
[null,null,"STR 1f Employer Education ",{"$nulls":22},false,"EMP","M3A111fEmployerEd",false,false]
[null,null,"STR 1g Employment Policy Changes",{"$nulls":22},false,"EMP","M3A111gEmplPolChng",false,false]
[null,null,"STR 1h Employment Legislative Changes",{"$nulls":22},false,"EMP","M3A111hEmplLegChng",false,false]
[null,null,"STR 1i Other Employment Strategy: (please specify)",{"$nulls":22},false,"EMP","M3A111i1EmployOther",false,false]
[null,null,"Other",{"$nulls":22},{"$f":"AND(B16=\"P\",Z16)","v":false},"EMP","M3A111i1EmployOtherText",null,true]
[{"$nulls":25},false,"EMP"]
[null,"Education and Cognitive Development Strategies (STR 2)",{"$nulls":23},{"$f":"AND(_xlfn.XLOOKUP(AA19,cmdTable,cmdSetting,\"Off\")=\"On\",NOT(_xlfn.XLOOKUP(AA19,cmdTable,cmdDisabled,FALSE)))","v":false},"EDU"]
[{"$nulls":25},{"$f":"AND(_xlfn.XLOOKUP(AA20,cmdTable,cmdSetting,\"Off\")=\"On\",NOT(_xlfn.XLOOKUP(AA20,cmdTable,cmdDisabled,FALSE)))","v":false},"EDU"]
[null,null,"STR 2a Preschool for All Campaign",{"$nulls":22},{"$f":"AND(_xlfn.XLOOKUP(AA21,cmdTable,cmdSetting,\"Off\")=\"On\",NOT(_xlfn.XLOOKUP(AA21,cmdTable,cmdDisabled,FALSE)))","v":false},"EDU","M3A112aPreschool",false,false]
[null,null,"STR 2b Charter School Development",{"$nulls":22},{"$f":"AND(_xlfn.XLOOKUP(AA22,cmdTable,cmdSetting,\"Off\")=\"On\",NOT(_xlfn.XLOOKUP(AA22,cmdTable,cmdDisabled,FALSE)))","v":false},"EDU","M3A112bCharterSch",false,false]
[null,null,"STR 2c After School Enrichment Activities Promotion",{"$nulls":22},false,"EDU","M3A112cEnrichAct",false,false]
[null,null,"STR 2d Pre K-College/Community College Support ",{"$nulls":22},false,"EDU","M3A112dPreK",false,false]
[null,null,"STR 2e Children’s Trust Fund Creation",{"$nulls":22},false,"EDU","M3A112eTrustFund",false,false]
[null,null,"STR 2f Scholarship Creation",{"$nulls":22},false,"EDU","M3A112fScholarship",false,false]
[null,null,"STR 2g Child Tax Credit (CTC) Promotion ",{"$nulls":22},false,"EDU","M3A112gCTC",false,false]
[null,null,"STR 2h Adoption Child Care Quality Rating ",{"$nulls":22},false,"EDU","M3A112hAdoptChildCare",false,false]
[null,null,"STR 2i Adult Education Establishment",{"$nulls":22},false,"EDU","M3A112iAdultEd",false,false]
[null,null,"STR 2j Education and Cognitive Development Policy Changes",{"$nulls":22},false,"EDU","M3A112jEdCogDevPol",false,false]
[null,null,"STR 2k Education and Cognitive Development Legislative Changes",{"$nulls":22},false,"EDU","M3A112kEdCogDevLeg",false,false]
[null,null,"STR 2l Other Education and Cognitive Development Strategy: (please specify)",{"$nulls":22},false,"EDU","M3A112l1EdCogDevOther",false,false]
[null,null,"Other",{"$nulls":22},{"$f":"AND(B32=\"P\",Z32)","v":false},"EDU","M3A112l1EdCogDevOtherText",null,true]
[{"$nulls":25},false,"EDU"]
[null,"Infrastructure and Asset Building Strategies (STR 3)",{"$nulls":23},false,"INF"]
[{"$nulls":25},false,"INF"]
[null,null,"STR 3a Cultural Asset Creation",{"$nulls":22},false,"INF","M3A113aCulturalAsset",false,false]
[null,null,"STR 3b Police/Community Relations Campaign",{"$nulls":22},false,"INF","M3A113bPolCommRel",false,false]
[null,null,"STR 3c Neighborhood Safety Watch Programs",{"$nulls":22},false,"INF","M3A113cNeighborhoodWatch",false,false]
[null,null,"STR 3d Anti-Predatory Lending Campaign",{"$nulls":22},false,"INF","M3A113dPredLend",false,false]
[null,null,"STR 3e Asset Building and Savings Promotion ",{"$nulls":22},false,"INF","M3A113eAssetBuild",false,false]
[null,null,"STR 3f Develop/Build/Rehab Spaces  ",{"$nulls":22},false,"INF","M3A113fDevSpaces",false,false]
[null,null,"STR 3g Maintain or Host Income Tax Preparation Sites",{"$nulls":22},{"$f":"AND(_xlfn.XLOOKUP(AA43,cmdTable,cmdSetting,\"Off\")=\"On\",NOT(_xlfn.XLOOKUP(AA43,cmdTable,cmdDisabled,FALSE)))","v":false},"INF","M3A113gIncomeTaxPrep",false,false]
[null,null,"STR 3h Community-wide Data Collection Systems Development",{"$nulls":22},false,"INF","M3A113hDataCollSys",false,false]
[null,null,"STR 3i Local 211 or Resource/Referral System Development",{"$nulls":22},false,"INF","M3A113iLocal211",false,false]
[null,null,"STR 3j Water/Sewer System Development ",{"$nulls":22},false,"INF","M3A113jWaterSys",false,false]
[null,null,"STR 3k Community Financial Institution Creation",{"$nulls":22},false,"INF","M3A113kFinInstitution",false,false]
[null,null,"STR 3l Infrastructure Planning Coalition",{"$nulls":22},false,"INF","M3A113lInfrastrucPlan",false,false]
[null,null,"STR 3m Park or Recreation Creation and Maintenance ",{"$nulls":22},false,"INF","M3A113mParkRec",false,false]
[null,null,"STR 3n Rehabilitation/Weatherization of Housing Stock  ",{"$nulls":22},false,"INF","M3A113nWxnHouseStock",false,false]
[null,null,"STR 3o Community Center/Community Facility Establishment",{"$nulls":22},false,"INF","M3A113oCommCenter",false,false]
[null,null,"STR 3p Asset Limit Barriers for Benefits Policy Changes",{"$nulls":22},false,"INF","M3A113pBenPolicyChanges",false,false]
[null,null,"STR 3q Infrastructure and Asset Building Policy Changes",{"$nulls":22},false,"INF","M3A113qPolChanges",false,false]
[null,null,"STR 3r Infrastructure and Asset Building Legislative Changes",{"$nulls":22},false,"INF","M3A113rLegChanges",false,false]
[null,null,"STR 3s Other Infrastructure and Asset Building Strategy: (please specify)",{"$nulls":22},false,"INF","M3A113s1InfrastrAssetOther",false,false]
[null,null,"Other",{"$nulls":22},{"$f":"AND(B55=\"P\",Z55)","v":false},"INF","M3A113s1InfrastrAssetOtherText",null,true]
[{"$nulls":25},false,"INF"]
[null,"Housing Strategies (STR 4)",{"$nulls":23},{"$f":"AND(_xlfn.XLOOKUP(AA58,cmdTable,cmdSetting,\"Off\")=\"On\",NOT(_xlfn.XLOOKUP(AA58,cmdTable,cmdDisabled,FALSE)))","v":false},"HOU"]
[{"$nulls":25},false,"HOU"]
[null,null,"STR 4a End Chronic Homelessness Campaign",{"$nulls":22},false,"HOU","M3A114aChronicHomeless",false,false]
[null,null,"STR 4b New Affordable Single Unit Housing Creation ",{"$nulls":22},false,"HOU","M3A114bAffordSingleUnit",false,false]
[null,null,"STR 4c New Affordable Multi-Unit Housing Creation (Single Resident Occupancy (SRO), temporary housing, transitional housing)",{"$nulls":22},false,"HOU","M3A114cAffordMultiUnit",false,false]
[null,null,"STR 4d Tenants’ Rights Campaign",{"$nulls":22},false,"HOU","M3A114dTenantRights",false,false]
[null,null,"STR 4e New Shelters Creation (including day shelters and domestic violence shelters)",{"$nulls":22},false,"HOU","M3A114eShelterCreation",false,false]
[null,null,"STR 4f Housing or Land Trust Creation",{"$nulls":22},false,"HOU","M3A114fLandTrust",false,false]
[null,null,"STR 4g Building Codes Campaign",{"$nulls":22},false,"HOU","M3A114gBuildCodes",false,false]
[null,null,"STR 4h Housing Policy Changes",{"$nulls":22},false,"HOU","M3A114hHousePolChanges",false,false]
[null,null,"STR 4i Housing Legislative Changes ",{"$nulls":22},false,"HOU","M3A114iHouseLegChanges",false,false]
[null,null,"STR 4j Other Housing Strategy: (please specify)",{"$nulls":22},false,"HOU","M3A114j1HousingOther",false,false]
[null,null,"Other",{"$nulls":22},{"$f":"AND(B69=\"P\",Z69)","v":false},"HOU","M3A114j1HousingOtherText",null,true]
[{"$nulls":25},false,"HOU"]
[null,"Health and Social/Behavioral Development Strategies (STR 5)",{"$nulls":23},false,"HLTH"]
[{"$nulls":25},false,"HLTH"]
[null,null,"STR 5a Health Specific Campaign",{"$nulls":22},false,"HLTH","M3A115aHealthCampaign",false,false]
[null,null,"STR 5b Farmers Market or Community Garden Development",{"$nulls":22},false,"HLTH","M3A115bFarmMarket",false,false]
[null,null,"STR 5c Grocery Store Development",{"$nulls":22},false,"HLTH","M3A115cGrocStore",false,false]
[null,null,"STR 5d Gun Safety/Control Campaign",{"$nulls":22},false,"HLTH","M3A115dGunSafety",false,false]
[null,null,"STR 5e Healthy Food Campaign",{"$nulls":22},false,"HLTH","M3A115eHealthyFood",false,false]
[null,null,"STR 5f Nutrition Education Collaborative",{"$nulls":22},false,"HLTH","M3A115fNutritionEd",false,false]
[null,null,"STR 5g Food Bank Development",{"$nulls":22},false,"HLTH","M3A115gFoodBank",false,false]
[null,null,"STR 5h Domestic Violence Court Development",{"$nulls":22},false,"HLTH","M3A115hDomViolenceCourt",false,false]
[null,null,"STR 5i Drug Court Development",{"$nulls":22},{"$f":"AND(_xlfn.XLOOKUP(AA82,cmdTable,cmdSetting,\"Off\")=\"On\",NOT(_xlfn.XLOOKUP(AA82,cmdTable,cmdDisabled,FALSE)))","v":false},"HLTH","M3A115iDrugCourt",false,false]
[null,null,"STR 5j Alternative Energy Source Development",{"$nulls":22},false,"HLTH","M3A115jAltEnergy",false,false]
[null,null,"STR 5k Develop or Maintain a Health Clinic",{"$nulls":22},false,"HLTH","M3A115kHealthClinic",false,false]
[null,null,"STR 5l Health and Social/Behavioral Development Policy Changes",{"$nulls":22},false,"HLTH","M3A115lHealthPolChanges",false,false]
[null,null,"STR 5m Health and Social/Behavioral Development Legislative Changes",{"$nulls":22},false,"HLTH","M3A115mHealthLegChanges",false,false]
[null,null,"STR 5n Other Health and Social/Behavioral Development Strategy: (please specify)",{"$nulls":22},false,"HLTH","M3A115n1HealthOther",false,false]
[null,null,"Other",{"$nulls":22},{"$f":"AND(B87=\"P\",Z87)","v":false},"HLTH","M3A115n1HealthOtherText",null,true]
[{"$nulls":25},false,"HLTH"]
[null,"Civic Engagement and Community Involvement Strategies - Goal 2 (STR 6 G2)",{"$nulls":23},false,"CIVG"]
[{"$nulls":25},false,"CIVG"]
[null,null,"STR 6 G2a Development of Health and Social Service Provider Partnerships ",{"$nulls":22},false,"CIVG","M3A116G2aHealthSocService",false,false]
[null,null,"STR 6 G2b Recruiting and Coordinating Community Volunteers",{"$nulls":22},false,"CIVG","M3A116G2bCommVolunteer",false,false]
[null,null,"STR 6 G2c Poverty Simulations",{"$nulls":22},false,"CIVG","M3A116G2cPovSim",false,false]
[null,null,"STR 6 G2d Attract Capital Investments",{"$nulls":22},false,"CIVG","M3A116G2dCapInvest",false,false]
[null,null,"STR 6 G2e Build/Support Increased Equity ",{"$nulls":22},false,"CIVG","M3A116G2eIncrEquity",false,false]
[null,null,"STR 6 G2f Equity Awareness Campaign ",{"$nulls":22},false,"CIVG","M3A116G2fEquityAware",false,false]
[null,null,"STR 6 G2e Coordinated Community-wide Needs Assessment",{"$nulls":22},false,"CIVG","M3A116G2gNeedsAssess",false,false]
[null,null,"STR 6 G2f Civic Engagement and Community Involvement in Advocacy Efforts",{"$nulls":22},false,"CIVG","M3A116G2hAdvocEffort",false,false]
[null,null,"STR 6 G2g Civic Engagement Policy Changes ",{"$nulls":22},false,"CIVG","M3A116G2iCivicEngPolChanges",false,false]
[null,null,"STR 6 G2h Civic Engagement Legislative Changes ",{"$nulls":22},false,"CIVG","M3A116G2jCivicEngLegChanges",false,false]
[null,null,"STR 6 G2i Other Civic Engagement and Community Involvement Strategy: (please specify)",{"$nulls":22},false,"CIVG","M3A116G2k1CivicEngOther",false,false]
[null,null,"Other",{"$nulls":22},{"$f":"AND(B102=\"P\",Z102)","v":false},"CIVG","M3A116G2k1CivicEngOtherText",null,true]
[{"$nulls":25},false,"CIVG"]
[null,"Civic Engagement and Community Involvement Strategies - Goal 3 (STR 6 G3)",{"$nulls":23},false,"CIVG"]
[{"$nulls":25},{"$f":"AND(_xlfn.XLOOKUP(AA106,cmdTable,cmdSetting,\"Off\")=\"On\",NOT(_xlfn.XLOOKUP(AA106,cmdTable,cmdDisabled,FALSE)))","v":false},"CIVG"]
[null,null,"STR 6 G3a Empowerment of Individuals/Families with Low Incomes ",{"$nulls":22},false,"CIVG","M3A116G3aEmpowerLI",false,false]
[null,null,"STR 6 G3b Campaign to Ensure Individuals with Low Incomes are Represented on Local Governing Bodies ",{"$nulls":22},false,"CIVG","M3A116G3bLocalGovBodies",false,false]
[null,null,"STR 6 G3c Social Capital Building Campaign for Individuals/Families with Low Incomes",{"$nulls":22},false,"CIVG","M3A116G3cSocCapBuild",false,false]
[null,null,"STR 6 G3d Campaign for Volunteer Placement and Coordination ",{"$nulls":22},false,"CIVG","M3A116G3dVolPlacement",false,false]
[null,null,"STR 6 G3e Civic Engagement Policy Changes ",{"$nulls":22},false,"CIVG","M3A116G3eCivicEngPolChanges",false,false]
[null,null,"STR 6 G3f Civic Engagement Legislative Changes ",{"$nulls":22},{"$f":"AND(_xlfn.XLOOKUP(AA112,cmdTable,cmdSetting,\"Off\")=\"On\",NOT(_xlfn.XLOOKUP(AA112,cmdTable,cmdDisabled,FALSE)))","v":false},"CIVG","M3A116G3fCivicEngLegChanges",false,false]
[null,null,"STR 6 G3g Other Civic Engagement and Community Involvement Strategy: (please specify)",{"$nulls":22},{"$f":"AND(_xlfn.XLOOKUP(AA113,cmdTable,cmdSetting,\"Off\")=\"On\",NOT(_xlfn.XLOOKUP(AA113,cmdTable,cmdDisabled,FALSE)))","v":false},"CIVG","M3A116G3g1CivicEngOther",false,false]
[null,null,"Other",{"$nulls":22},{"$f":"AND(B113=\"P\",Z113)","v":false},"CIVG","M3A116G3g1CivicEngOtherText",null,true]
[{"$nulls":25},{"$f":"AND(_xlfn.XLOOKUP(AA115,cmdTable,cmdSetting,\"Off\")=\"On\",NOT(_xlfn.XLOOKUP(AA115,cmdTable,cmdDisabled,FALSE)))","v":false},"CIVG"]
[null,"Community Support Strategies (STR 7)",{"$nulls":23},{"$f":"AND(_xlfn.XLOOKUP(AA116,cmdTable,cmdSetting,\"Off\")=\"On\",NOT(_xlfn.XLOOKUP(AA116,cmdTable,cmdDisabled,FALSE)))","v":true},"COM"]
[{"$nulls":25},{"$f":"AND(_xlfn.XLOOKUP(AA117,cmdTable,cmdSetting,\"Off\")=\"On\",NOT(_xlfn.XLOOKUP(AA117,cmdTable,cmdDisabled,FALSE)))","v":true},"COM"]
[null,null,"STR 7a Off-Hours (Non-Traditional Hours) Child Care Development",{"$nulls":22},true,"COM","M3A117aOffHrChildCare",false,false]
[null,null,"STR 7b Transportation System Development",{"$nulls":22},true,"COM","M3A117bTransportSys",false,false]
[null,null,"STR 7c Transportation Services Coordination and Support",{"$nulls":22},true,"COM","M3A117cTransportServ",false,false]
[null,null,"STR 7d Community Support Policy Changes",{"$nulls":22},true,"COM","M3A117dCommSuppPolChanges",false,false]
[null,null,"STR 7e Community Support Legislative Changes ",{"$nulls":22},true,"COM","M3A117eCommSuppLegChanges",false,false]
[null,null,"STR 7f Other Community Support Strategy: (please specify)",{"$nulls":22},true,"COM","M3A117f1CommSuppOther",false,false]
[null,null,"Other",{"$nulls":22},{"$f":"AND(B123=\"P\",Z123)","v":false},"COM","M3A117f1CommSuppOtherText",null,true]
[{"$nulls":25},true,"COM"]
[null,"Emergency Management Strategies (STR 8)",{"$nulls":23},{"$f":"AND(_xlfn.XLOOKUP(AA126,cmdTable,cmdSetting,\"Off\")=\"On\",NOT(_xlfn.XLOOKUP(AA126,cmdTable,cmdDisabled,FALSE)))","v":true},"EM"]
[{"$nulls":25},{"$f":"AND(_xlfn.XLOOKUP(AA127,cmdTable,cmdSetting,\"Off\")=\"On\",NOT(_xlfn.XLOOKUP(AA127,cmdTable,cmdDisabled,FALSE)))","v":true},"EM"]
[null,null,"STR 8a State or Local Emergency Management Board Enhancement",{"$nulls":22},true,"EM","M3A118aEmerMan",false,false]
[null,null,"STR 8b Community-wide Emergency Disaster Relief Service Creation",{"$nulls":22},true,"EM","M3A118bEmerDisRelief",false,false]
[null,null,"STR 8c Disaster Preparation Planning",{"$nulls":22},true,"EM","M3A118cDisPrepPlan",false,false]
[null,null,"STR 8d Emergency Management Policy Changes",{"$nulls":22},true,"EM","M3A118dEmerManPolChanges",false,false]
[null,null,"STR 8e Emergency Management Legislative Changes ",{"$nulls":22},true,"EM","M3A118eEmerManLegChanges",true,false]
[null,null,"STR 8f Other Emergency Management Strategy: (please specify)",{"$nulls":22},true,"EM","M3A118f1EmerManOther",true,false]
[null,null,"Other",{"$nulls":22},{"$f":"AND(B133=\"P\",Z133)","v":false},"EM","M3A118f1EmerManOtherText",null,true]
[{"$nulls":25},true,"EM"]

{"sheet":"Select NPIs","index":4,"n_rows":120,"n_cols":35,"rows_kept":120,"hidden":true,"merged":[[105,2,105,20]]}
[null,"Module 3, Section B: Community National Performance Indicators (CNPIs) - Data Entry Form",{"$nulls":23},"hideShow","Domain","checkBoxValues","Orig Val",{"$nulls":3},"cmdTable","cmdSetting","cmdDisabled"]
[{"$nulls":25},true,{"$nulls":6},"EMP","Off",{"$f":"NOT(cbEMP)","v":true}]
[{"$nulls":25},true,{"$nulls":6},"EDU","Off",{"$f":"NOT(cbEDU)","v":true}]
[{"$nulls":25},true,{"$nulls":6},"INF","Off",{"$f":"NOT(cbINF)","v":true}]
[{"$nulls":25},true,{"$nulls":6},"HOU","Off",{"$f":"NOT(cbHOU)","v":true}]
[null,"Employment",{"$nulls":23},{"$f":"AND(_xlfn.XLOOKUP(AA6,cmdTable,cmdSetting,\"Off\")=\"On\",NOT(_xlfn.XLOOKUP(AA6,cmdTable,cmdDisabled,FALSE)))","v":false},"EMP",{"$nulls":5},"HLTH","Off",{"$f":"NOT(cbHLTH)","v":true}]
[{"$nulls":25},false,"EMP",{"$nulls":5},"CIVG","Off",{"$f":"NOT(cbCIVG)","v":true}]
[null,null,"CNPI 1a Number of jobs created to increase opportunities for people with low incomes in the identified community. ",{"$nulls":22},false,"EMP","M3A61aJobIncrOpp",true]
[null,null,"CNPI 1b Number of job opportunities maintained in the identified community.            ",{"$nulls":22},false,"EMP","M3A61bJobOppMain",true]
[null,null,"CNPI 1c Number of “living wage” jobs created in the identified community.",{"$nulls":22},false,"EMP","M3A61cLivWageCreate",false]
[null,null,"CNPI 1d Number of “living wage” jobs maintained in the identified community. ",{"$nulls":22},false,"EMP","M3A61dLivWageMain",true]
[null,null,"CNPI 1e Number of jobs created in the identified community with a benefit package. ",{"$nulls":22},false,"EMP","M3A61eBenPack",false]
[null,null,"CNPI 1z Other Counts of Change for Employment Indicators.",{"$nulls":22},false,"EMP","M3A61z1OtherEmploy",true]
[null,null,"CNPI 1f Percent decrease of the unemployment rate.",{"$nulls":22},false,"EMP","M3A61fUnemployRate",true]
[null,null,"CNPI 1g Percent decrease of the youth unemployment rate.",{"$nulls":22},false,"EMP","M3A61gYouthUnemployRate",true]
[null,null,"CNPI 1h Percent decrease of the underemployment rate.",{"$nulls":22},false,"EMP","M3A61hYouthUnemployRate",false]
[null,null,"CNPI 1z Other Rates of Change for Employment Indicators.",{"$nulls":22},false,"EMP","M3A61z6OtherEmploy",true]
[{"$nulls":25},false,"EMP"]
[null,"Education and Cognitive Development ",{"$nulls":23},false,"EDU"]
[{"$nulls":25},false,"EDU"]
[null,null,"CNPI 2a Number of accessible and affordable early childhood or pre-school education assets or resources added to the identified community. ",{"$nulls":22},false,"EDU","M3A62aPreSchool",true]
[null,null,"CNPI 2b Number of accredited or licensed affordable child care facilities added in the identified community. ",{"$nulls":22},false,"EDU","M3A62bAffordCare",true]
[null,null,"CNPI 2c Number of new Early Childhood Screenings offered to children (ages 0-5) of families with low-incomes in the identified community. ",{"$nulls":22},false,"EDU","M3A62cScreenings",true]
[null,null,"CNPI 2d Number of accessible and affordable education assets or resources added for school age children in the identified community.  (e.g., academic, enrichment activities, before/after school care, summer programs)",{"$nulls":22},false,"EDU","M3A62dSchoolAge",true]
[null,null,"CNPI 2e Number of accessible and affordable post secondary education assets or resources added for newly graduating youth in the identified community.  (e.g. college tuition, scholarships, vocational training, etc.) ",{"$nulls":22},false,"EDU","M3A62ePostSecondary",true]
[null,null,"CNPI 2f Number of accessible and affordable basic or secondary education assets or resources added for adults in the identified community.  (e.g. literacy, ESL, ABE/GED, etc.) ",{"$nulls":22},false,"EDU","M3A62fBasicEd",true]
[null,null,"CNPI 2z Other Counts of Change for Education and Cognitive Development Indicators.",{"$nulls":22},false,"EDU","M3A62z1OtherEdCogDev",true]
[null,null,"CNPI 2g Percent increase of children in the identified community who are kindergarten ready. ",{"$nulls":22},false,"EDU","M3A62gKindReady",true]
[null,null,"CNPI 2h Percent increase of children in the identified community at (or above) the basic reading level.",{"$nulls":22},false,"EDU","M3A62hBasicReadLvl",true]
[null,null,"CNPI 2i Percent increase of children in the identified community at (or above) the basic math level.",{"$nulls":22},false,"EDU","M3A62iBasicMathLvl",true]
[null,null,"CNPI 2j Percent increase in high school (or high school equivalency) graduation rate in the identified community.",{"$nulls":22},false,"EDU","M3A62jGradRate",true]
[null,null,"CNPI 2k Percent increase of the rate of youth in the identified community who attend post-secondary education.",{"$nulls":22},false,"EDU","M3A62kYouthPostSecAttend",true]
[null,null,"CNPI 2l Percent increase of the rate of youth in the identified community who graduate from post-secondary education. ",{"$nulls":22},false,"EDU","M3A62lYouthPostSecGrad",true]
[null,null,"CNPI 2m Percent increase of adults in the identified community who attend post-secondary education. ",{"$nulls":22},false,"EDU","M3A62mAdultPostSecAttend",true]
[null,null,"CNPI 2n Percent increase of adults in the identified community who graduate from post-secondary education.",{"$nulls":22},false,"EDU","M3A62nAdultPostSecGrad",true]
[null,null,"CNPI 2o Percent increase in the adult literacy rate in the identified community. ",{"$nulls":22},false,"EDU","M3A62oLitRate",true]
[null,null,"CNPI 2z Other Rates of Change for Education and Cognitive Development Indicators.",{"$nulls":22},false,"EDU","M3A62z6OtherEdCogDev",true]
[{"$nulls":25},{"$f":"AND(_xlfn.XLOOKUP(AA38,cmdTable,cmdSetting,\"Off\")=\"On\",NOT(_xlfn.XLOOKUP(AA38,cmdTable,cmdDisabled,FALSE)))","v":false},"EDU"]
[null,"Infrastructure and Asset Building",{"$nulls":23},false,"INF"]
[{"$nulls":25},false,"INF"]
[null,null,"CNPI 3a.1 Commercial",{"$nulls":22},false,"INF","M3A63a1Commercial",true]
[null,null,"CNPI 3a.2 Financial",{"$nulls":22},false,"INF","M3A63a2Financial",true]
[null,null,"CNPI 3a.3 Technological/Communications (e.g. broadband)",{"$nulls":22},false,"INF","M3A63a3TechComm",true]
[null,null,"CNPI 3a.4 Transportation",{"$nulls":22},false,"INF","M3A63a4Transportation",true]
[null,null,"CNPI 3a.5 Recreational (e.g. parks, gardens, libraries)",{"$nulls":22},false,"INF","M3A63a5Recreational",true]
[null,null,"CNPI 3a.6 Other Public Assets/Physical Improvements",{"$nulls":22},false,"INF","M3A63a6OtherPublic",true]
[null,null,"CNPI 3b.1 Commercial",{"$nulls":22},false,"INF","M3A63b1Commercial",true]
[null,null,"CNPI 3b.2 Financial",{"$nulls":22},false,"INF","M3A63b2Financial",true]
[null,null,"CNPI 3b.3 Technological/Communications (e.g. broadband)",{"$nulls":22},false,"INF","M3A63b3TechComm",true]
[null,null,"CNPI 3b.4 Transportation",{"$nulls":22},false,"INF","M3A63b4Transportation",true]
[null,null,"CNPI 3b.5 Recreational (e.g. parks, gardens, libraries)",{"$nulls":22},false,"INF","M3A63b5Recreational",true]
[null,null,"CNPI 3b.6 Other Public Assets/Physical Improvements",{"$nulls":22},false,"INF","M3A63b6OtherPublic",true]
[null,null,"CNPI 3z Other Counts of Change for Infrastructure and Asset Building Indicators.",{"$nulls":22},false,"INF","M3A63z1OtherInfraAsset",true]
[null,null,"CNPI 3c Percent decrease of abandoned or neglected buildings in the identified community.",{"$nulls":22},false,"INF","M3A63cAbandonBuild",true]
[null,null,"CNPI 3d Percent decrease in emergency response time measured in minutes in the identified community. (EMT, Police, Fire, etc.).",{"$nulls":22},false,"INF","M3A63dEmerRespTime",true]
[null,null,"CNPI 3e Percent decrease of predatory lenders and/or lending practices in the identified community.",{"$nulls":22},false,"INF","M3A63ePredLend",true]
[null,null,"CNPI 3f Percent decrease of environmental threats to households (toxic soil, radon, lead, air quality, quality of drinking water, etc.) in the identified community.",{"$nulls":22},false,"INF","M3A63fEnvirThreat",true]
[null,null,"CNPI 3g Percent increase of transportation services in the identified community.",{"$nulls":22},false,"INF","M3A63gTransportService",true]
[null,null,"CNPI 3z Other Rates of Change for Infrastructure and Asset Building Indicators.",{"$nulls":22},false,"INF","M3A63z6OtherInfraAsset",true]
[{"$nulls":25},false,"INF"]
[null,"Housing",{"$nulls":23},false,"HOU"]
[{"$nulls":25},false,"HOU"]
[null,null,"CNPI 4a Number of safe and affordable housing units developed in the identified community (e.g. built or set aside units for people with low incomes).",{"$nulls":22},false,"HOU","M3A64aSafeHousDev",true]
[null,null,"CNPI 4b Number of safe and affordable housing units maintained and/or improved through WAP or other rehabilitation efforts in the identified community. ",{"$nulls":22},false,"HOU","M3A64bSafeHousMain",true]
[null,null,"CNPI 4c Number of shelter beds created in the identified community. ",{"$nulls":22},false,"HOU","M3A64cShelterBedCreate",true]
[null,null,"CNPI 4d Number of shelter beds maintained in the identified community. ",{"$nulls":22},false,"HOU","M3A64dShelterBedMain",true]
[null,null,"CNPI 4z Other Counts of Change for Housing Indicators.",{"$nulls":22},false,"HOU","M3A64z1OtherHousing",true]
[null,null,"CNPI 4e Percent decrease in the rate of homelessness in the identified community. ",{"$nulls":22},false,"HOU","M3A64eHomeless",true]
[null,null,"CNPI 4f Percent decrease in the foreclosure rate in the identified community.",{"$nulls":22},false,"HOU","M3A64fForecloseRate",true]
[null,null,"CNPI 4g Percent increase in the rate of home ownership of people with low incomes in the identified community.",{"$nulls":22},{"$f":"AND(_xlfn.XLOOKUP(AA70,cmdTable,cmdSetting,\"Off\")=\"On\",NOT(_xlfn.XLOOKUP(AA70,cmdTable,cmdDisabled,FALSE)))","v":false},"HOU","M3A64gHomeOwn",true]
[null,null,"CNPI 4h Percent increase of affordable housing in the identified community.",{"$nulls":22},false,"HOU","M3A64hAffordHouse",true]
[null,null,"CNPI 4i Percent increase of shelter beds in the identified community.",{"$nulls":22},false,"HOU","M3A64iShelterBed",true]
[null,null,"CNPI 4z Other Rates of Change for Housing Indicators.",{"$nulls":22},false,"HOU","M3A64z6OtherHousing",true]
[{"$nulls":25},false,"HOU"]
[null,"Health and Social/Behavioral",{"$nulls":23},false,"HLTH"]
[{"$nulls":25},false,"HLTH"]
[null,null,"CNPI 5a Number of accessible and affordable physical health assets or resources created in the identified community. ",{"$nulls":22},false,"HLTH","M3A65aPhysHealth",true]
[null,null,"CNPI 5b Number of accessible and affordable behavioral and mental health assets or resources created in the identified community.     ",{"$nulls":22},false,"HLTH","M3A65bMentHealth",true]
[null,null,"CNPI 5c Number of public safety assets and resources created in the identified community.     ",{"$nulls":22},false,"HLTH","M3A65cPubSafe",true]
[null,null,"CNPI 5d Number of accessible and affordable healthy food resources created in the identified community.",{"$nulls":22},false,"HLTH","M3A65dFoodResource",true]
[null,null,"CNPI 5e Number of activities designed to improve police and community relations within the identified community.",{"$nulls":22},false,"HLTH","M3A65eCommRel",true]
[null,null,"CNPI 5z Other Counts of Change for Health and Social/Behavioral Indicators.",{"$nulls":22},false,"HLTH","M3A65z1OtherHealthSoc",true]
[null,null,"CNPI 5f Percent decrease in infant mortality rate in the identified community.",{"$nulls":22},false,"HLTH","M3A65fMortRate",true]
[null,null,"CNPI 5g Percent decrease in childhood obesity rate in the identified community. ",{"$nulls":22},false,"HLTH","M3A65gChildObesRate",true]
[null,null,"CNPI 5h Percent decrease in adult obesity rate in the identified community.",{"$nulls":22},false,"HLTH","M3A65hAdultObesRate",true]
[null,null,"CNPI 5i Percent increase in child immunization rate in the identified community. ",{"$nulls":22},false,"HLTH","M3A65iImmunRate",true]
[null,null,"CNPI 5j Percent decrease in uninsured families in the identified community. ",{"$nulls":22},false,"HLTH","M3A65jUninsuredFam",true]
[null,null,"CNPI 5k Percent decrease in the teen pregnancy rate in the identified community.",{"$nulls":22},false,"HLTH","M3A65kTeenPreg",true]
[null,null,"CNPI 5l Percent decrease in unplanned pregnancies in the identified community.",{"$nulls":22},false,"HLTH","M3A65lUnplanPreg",true]
[null,null,"CNPI 5m Percent decrease in substance abuse rate in the identified community (e.g. cigarettes, prescription drugs, narcotics, alcohol). ",{"$nulls":22},false,"HLTH","M3A65mSubAbuse",true]
[null,null,"CNPI 5n Percent decrease in domestic violence rate in the identified community.",{"$nulls":22},false,"HLTH","M3A65nDomViolence",true]
[null,null,"CNPI 5o Percent decrease in the child abuse rate in the identified community.",{"$nulls":22},false,"HLTH","M3A65oChildAbuse",true]
[null,null,"CNPI 5p Percent decrease in the child neglect rate in the identified community.",{"$nulls":22},false,"HLTH","M3A65pChildNeglect",true]
[null,null,"CNPI 5q Percent decrease in the elder abuse rate in the identified community. ",{"$nulls":22},false,"HLTH","M3A65qElderAbuse",true]
[null,null,"CNPI 5r Percent decrease in the elder neglect rate in the identified community. ",{"$nulls":22},false,"HLTH","M3A65rElderNeglect",true]
[null,null,"CNPI 5s Percent decrease in recidivism rate in the identified community.",{"$nulls":22},false,"HLTH","M3A65sRecidivism",true]
[null,null,"CNPI 5t Percent decrease in non-violent crime rate in the identified community.",{"$nulls":22},false,"HLTH","M3A65tNonViolCrime",true]
[null,null,"CNPI 5u Percent decrease in violent crime rate in the identified community.",{"$nulls":22},false,"HLTH","M3A65uViolCrime",true]
[null,null,"CNPI 5v Percent decrease in teens involved with the juvenile court system in the identified community.",{"$nulls":22},false,"HLTH","M3A65vJuvenileCourt",true]
[null,null,"CNPI 5z Other Rates of Change for Health and Social/Behavioral Indicators.",{"$nulls":22},false,"HLTH","M3A65z6OtherHealthSoc",true]
[{"$nulls":25},false,"HLTH"]
[null,"Civic Engagement and Community Involvement - Goal 2: Communities where people with low incomes live are healthy and offer economic opportunity.",{"$nulls":23},{"$f":"AND(_xlfn.XLOOKUP(AA102,cmdTable,cmdSetting,\"Off\")=\"On\",NOT(_xlfn.XLOOKUP(AA102,cmdTable,cmdDisabled,FALSE)))","v":false},"CIVG"]
[{"$nulls":25},false,"CIVG"]
[null,null,"CNPI 6 G2a Percent increase of donated time to support the CSBG Eligible Entity's delivery of services and/or implementation of strategies to address conditions of poverty in the identified community. ",{"$nulls":22},false,"CIVG","M3A66G2aDonatedTime",true]
[null,null,"CNPI 6 G2b Percent increase of donated resources to support the CSBG Eligible Entity's delivery of services and/or implementation of strategies to address conditions of poverty in the identified community. ",{"$nulls":22},false,"CIVG","M3A66G2bDonatedResources",true]
[null,null,"CNPI 6 G2c Percent increase of people participating in public hearings, policy forums, community planning, or other advisory boards related to the CSBG Eligible Entity's delivery of service and/or implementation of strategies to address conditions of poverty in the identified community.",{"$nulls":22},false,"CIVG","M3A66G2cPeoplePart",true]
[null,null,"CNPI 6 G2z Other Rates of Change for Civic Engagement and Community Involvement Indicators - Goal 2",{"$nulls":22},false,"CIVG","M3A66G2z1OtherCivicEng",true]
[null,null,"CNPI 6 G2z Other Counts of Change for Civic Engagement and Community Involvement Indicators - Goal 2",{"$nulls":22},false,"CIVG","M3A66G2z6OtherCivicEng",true]
[{"$nulls":25},false,"CIVG"]
[null,"Civic Engagement and Community Involvement - Goal 3: People with low incomes are engaged and active in building opportunities in communities.",{"$nulls":23},false,"CIVG"]
[{"$nulls":25},false,"CIVG"]
[null,null,"CNPI 6 G3a Percent increase of people with low incomes who support the CSBG Eligible Entity's delivery of service and/or implementation of strategies to address conditions of poverty in the identified community. ",{"$nulls":22},false,"CIVG","M3A66G3aSupplImpl",true]
[null,null,"CNPI 6 G3b Percent increase of people with low incomes who acquire and maintain leadership roles with the CSBG Eligible Entity or other organizations within the identified community. ",{"$nulls":22},false,"CIVG","M3A66G3bLeadRole",true]
[null,null,"CNPI 6 G3z Other Rates of Change for Civic Engagement and Community Involvement Indicators - Goal 3",{"$nulls":22},false,"CIVG","M3A66G3z1OtherCivicEng",true]
[null,null,"CNPI 6 G3z Other Counts of Change for Civic Engagement and Community Involvement Indicators - Goal 3",{"$nulls":22},false,"CIVG","M3A66G3z6OtherCivicEng",true]
[{"$nulls":25},false,"CIVG"]
[]
[]
[]
[{"$nulls":7}," "]

{"sheet":"Status Form Print","index":5,"n_rows":37,"n_cols":10,"rows_kept":37,"hidden":true,"merged":[[0,1,0,4],[2,2,2,4],[5,2,5,4],[6,2,6,4],[7,2,7,4],[8,2,8,4],[9,2,9,4],[10,2,10,4],[11,2,11,4],[12,2,12,4],[13,2,13,4],[14,2,14,4],[15,2,15,4],[16,2,16,4],[17,2,17,4],[18,2,18,4],[19,3,19,4],[20,2,20,4],[21,2,21,4],[22,2,22,4],[23,2,23,4],[24,2,24,4],[25,2,25,4],[26,2,26,4],[27,2,27,4],[28,2,28,4],[29,2,29,4],[30,2,30,4],[31,2,31,4],[32,2,32,4],[33,2,33,4],[34,2,34,4],[35,2,35,4],[36,2,36,4]]}
[null,"Module 3, Section A: Community Initiative Status Form",{"$nulls":6},"Min Height","Hide if Empty"]
[{"$nulls":8},6,true]
[null,"Name of CSBG Eligible Entity: ",{"$f":"M3AgencyName","v":"Alabama Council on Human Relations, Inc."},{"$nulls":5},31.5]
[null,"State:",{"$f":"M3StateName","v":"Alabama"},"UEI:",{"$f":"M3UEI","v":"183860386"},{"$nulls":3},18]
[{"$nulls":8},6,true]
[null,"Reporting Status:",{"$f":"M3ReportingStatus","v":"Select the Reporting Status"},{"$nulls":3},{"$f":"C6","v":"Select the Reporting Status"},null,31.5]
[null,"1. Initiative Name",{"$f":"M3A1InitiativeName","v":"Enter initiative name."},{"$nulls":3},{"$f":"C7","v":"Enter initiative name."},null,31.5]
[null,"2. Initiative Year\n",{"$f":"M3A2InitiativeYear","v":"Select the Initiative Year"},{"$nulls":5},31.5]
[null,"3. Problem Identification\n",{"$f":"M3A3ProblemID","v":0},{"$nulls":3},{"$f":"C9","v":0},null,31.5]
[null,"4. Goal/Agenda ",{"$f":"M3A4Goal","v":"Provide a narrative of the initiative’s overall goal."},{"$nulls":3},"Provide a narrative of the initiative’s overall goal.",null,31.5]
[null,"5. Issue/CSBG Community Domains \n",{"$nulls":6},54.4]
[null,"6. Ultimate Expected Outcome ","CNPIS EDUCATION\r\nCNPI 2a Number of accessible and affordable early childhood or pre-school education assets or resources added to the identified community. \r\nCNPI 2c Number of new Early Childhood Screenings offered to children (ages 0-5) of families with low-incomes in the identified community. \r\nCNPI 2d Number of accessible and affordable education assets or resources added for school age children in the identified community.  (e.g., academic, enrichment activities, before/after school care, summer programs)\r\nCNPI 2e Number of accessible and affordable post secondary education assets or resources added for newly graduating youth in the identified community.  (e.g. college tuition, scholarships, vocational training, etc.) \r\nCNPI 2f Number of accessible and affordable basic or secondary education assets or resources added for adults in the identified community.  (e.g. literacy, ESL, ABE/GED, etc.) \r\nCNPI 2z Other Counts of Change for Education and Cognitive Development Indicators.\r\nCNPI 2g Percent increase of children in the identified community who are kindergarten ready. \r\nCNPI 2h Percent increase of children in the identified community at (or above) the basic reading level.\r\nCNPI 2j Percent increase in high school (or high school equivalency) graduation rate in the identified community.\r\nCNPI 2k Percent increase of the rate of youth in the identified community who attend post-secondary education.\r\nCNPI 2l Percent increase of the rate of youth in the identified community who graduate from post-secondary education. \r\nCNPI 2m Percent increase of adults in the identified community who attend post-secondary education. \r\nCNPI 2n Percent increase of adults in the identified community who graduate from post-secondary education.\r\nCNPI 2o Percent increase in the adult literacy rate in the identified community. \r\n",{"$nulls":3},"CNPIS EDUCATION\r\nCNPI 2a Number of accessible and affordable early childhood or pre-school education assets or resources added to the identified community. \r\nCNPI 2c Number of new Early Childhood Screenings offered to children (ages 0-5) of families with low-incomes in the identified community. \r\nCNPI 2d Number of accessible and affordable education assets or resources added for school age children in the identified community.  (e.g., academic, enrichment activities, before/after school care, summer programs)\r\nCNPI 2e Number of accessible and affordable post secondary education assets or resources added for newly graduating youth in the identified community.  (e.g. college tuition, scholarships, vocational training, etc.) \r\nCNPI 2f Number of accessible and affordable basic or secondary education assets or resources added for adults in the identified community.  (e.g. literacy, ESL, ABE/GED, etc.) \r\nCNPI 2z Other Counts of Change for Education and Cognitive Development Indicators.\r\nCNPI 2g Percent increase of children in the identified community who are kindergarten ready. \r\nCNPI 2h Percent increase of children in the identified community at (or above) the basic reading level.\r\nCNPI 2j Percent increase in high school (or high school equivalency) graduation rate in the identified community.\r\nCNPI 2k Percent increase of the rate of youth in the identified community who attend post-secondary education.\r\nCNPI 2l Percent increase of the rate of youth in the identified community who graduate from post-secondary education. \r\nCNPI 2m Percent increase of adults in the identified community who attend post-secondary education. \r\nCNPI 2n Percent increase of adults in the identified community who graduate from post-secondary education.\r\nCNPI 2o Percent increase in the adult literacy rate in the identified community. \r\n",null,31.5]
[null,null,"CNPIS EMPLOYMENT\r\nCNPI 1a Number of jobs created to increase opportunities for people with low incomes in the identified community. \r\nCNPI 1c Number of “living wage” jobs created in the identified community.\r\nCNPI 1d Number of “living wage” jobs maintained in the identified community. \r\nCNPI 1e Number of jobs created in the identified community with a benefit package. \r\nCNPI 1f Percent decrease of the unemployment rate.\r\nCNPI 1g Percent decrease of the youth unemployment rate.\r\nCNPI 1h Percent decrease of the underemployment rate.\r\n",{"$nulls":3},"CNPIS EMPLOYMENT\r\nCNPI 1a Number of jobs created to increase opportunities for people with low incomes in the identified community. \r\nCNPI 1c Number of “living wage” jobs created in the identified community.\r\nCNPI 1d Number of “living wage” jobs maintained in the identified community. \r\nCNPI 1e Number of jobs created in the identified community with a benefit package. \r\nCNPI 1f Percent decrease of the unemployment rate.\r\nCNPI 1g Percent decrease of the youth unemployment rate.\r\nCNPI 1h Percent decrease of the underemployment rate.\r\n",null,null,true]
[null,null,"CNPIS INFRASTRUCTURE ASSET\r\nCNPI 3a.1 Commercial\r\nCNPI 3a.2 Financial\r\nCNPI 3a.3 Technological/Communications (e.g. broadband)\r\nCNPI 3a.4 Transportation\r\nCNPI 3a.5 Recreational (e.g. parks, gardens, libraries)\r\nCNPI 3a.6 Other Public Assets/Physical Improvements\r\nCNPI 3b.1 Commercial\r\nCNPI 3b.2 Financial\r\nCNPI 3b.3 Technological/Communications (e.g. broadband)\r\nCNPI 3b.4 Transportation\r\nCNPI 3b.5 Recreational (e.g. parks, gardens, libraries)\r\nCNPI 3b.6 Other Public Assets/Physical Improvements\r\nCNPI 3z Other Counts of Change for Infrastructure and Asset Building Indicators.\r\nCNPI 3c Percent decrease of abandoned or neglected buildings in the identified community.\r\nCNPI 3d Percent decrease in emergency response time measured in minutes in the identified community. (EMT, Police, Fire, etc.).\r\nCNPI 3e Percent decrease of predatory lenders and/or lending practices in the identified community.\r\nCNPI 3f Percent decrease of environmental threats to households (toxic soil, radon, lead, air quality, quality of drinking water, etc.) in the identified community.\r\nCNPI 3g Percent increase of transportation services in the identified community.\r\n",{"$nulls":3},"CNPIS INFRASTRUCTURE ASSET\r\nCNPI 3a.1 Commercial\r\nCNPI 3a.2 Financial\r\nCNPI 3a.3 Technological/Communications (e.g. broadband)\r\nCNPI 3a.4 Transportation\r\nCNPI 3a.5 Recreational (e.g. parks, gardens, libraries)\r\nCNPI 3a.6 Other Public Assets/Physical Improvements\r\nCNPI 3b.1 Commercial\r\nCNPI 3b.2 Financial\r\nCNPI 3b.3 Technological/Communications (e.g. broadband)\r\nCNPI 3b.4 Transportation\r\nCNPI 3b.5 Recreational (e.g. parks, gardens, libraries)\r\nCNPI 3b.6 Other Public Assets/Physical Improvements\r\nCNPI 3z Other Counts of Change for Infrastructure and Asset Building Indicators.\r\nCNPI 3c Percent decrease of abandoned or neglected buildings in the identified community.\r\nCNPI 3d Percent decrease in emergency response time measured in minutes in the identified community. (EMT, Police, Fire, etc.).\r\nCNPI 3e Percent decrease of predatory lenders and/or lending practices in the identified community.\r\nCNPI 3f Percent decrease of environmental threats to households (toxic soil, radon, lead, air quality, quality of drinking water, etc.) in the identified community.\r\nCNPI 3g Percent increase of transportation services in the identified community.\r\n",null,null,true]
[null,null,"CNPIS HEALTH AND SOCIAL\r\nCNPI 5a Number of accessible and affordable physical health assets or resources created in the identified community. \r\nCNPI 5b Number of accessible and affordable behavioral and mental health assets or resources created in the identified community.     \r\nCNPI 5c Number of public safety assets and resources created in the identified community.     \r\nCNPI 5d Number of accessible and affordable healthy food resources created in the identified community.\r\nCNPI 5e Number of activities designed to improve police and community relations within the identified community.\r\nCNPI 5z Other Counts of Change for Health and Social/Behavioral Indicators.\r\nCNPI 5f Percent decrease in infant mortality rate in the identified community.\r\nCNPI 5g Percent decrease in childhood obesity rate in the identified community. \r\nCNPI 5h Percent decrease in adult obesity rate in the identified community.\r\nCNPI 5i Percent increase in child immunization rate in the identified community. \r\nCNPI 5j Percent decrease in uninsured families in the identified community. \r\nCNPI 5k Percent decrease in the teen pregnancy rate in the identified community.\r\nCNPI 5l Percent decrease in unplanned pregnancies in the identified community.\r\nCNPI 5m Percent decrease in substance abuse rate in the identified community (e.g. cigarettes, prescription drugs, narcotics, alcohol). \r\nCNPI 5n Percent decrease in domestic violence rate in the identified community.\r\nCNPI 5o Percent decrease in the child abuse rate in the identified community.\r\nCNPI 5p Percent decrease in the child neglect rate in the identified community.\r\nCNPI 5q Percent decrease in the elder abuse rate in the identified community. \r\nCNPI 5r Percent decrease in the elder neglect rate in the identified community. \r\nCNPI 5s Percent decrease in recidivism rate in the identified community.\r\nCNPI 5t Percent decrease in non-violent crime rate in the identified community.\r\nCNPI 5u Percent decrease in violent crime rate in the identified community.\r\nCNPI 5v Percent decrease in teens involved with the juvenile court system in the identified community.\r\nCNPI 5z Other Rates of Change for Health and Social/Behavioral Indicators.\r\n",{"$nulls":3},"CNPIS HEALTH AND SOCIAL\r\nCNPI 5a Number of accessible and affordable physical health assets or resources created in the identified community. \r\nCNPI 5b Number of accessible and affordable behavioral and mental health assets or resources created in the identified community.     \r\nCNPI 5c Number of public safety assets and resources created in the identified community.     \r\nCNPI 5d Number of accessible and affordable healthy food resources created in the identified community.\r\nCNPI 5e Number of activities designed to improve police and community relations within the identified community.\r\nCNPI 5z Other Counts of Change for Health and Social/Behavioral Indicators.\r\nCNPI 5f Percent decrease in infant mortality rate in the identified community.\r\nCNPI 5g Percent decrease in childhood obesity rate in the identified community. \r\nCNPI 5h Percent decrease in adult obesity rate in the identified community.\r\nCNPI 5i Percent increase in child immunization rate in the identified community. \r\nCNPI 5j Percent decrease in uninsured families in the identified community. \r\nCNPI 5k Percent decrease in the teen pregnancy rate in the identified community.\r\nCNPI 5l Percent decrease in unplanned pregnancies in the identified community.\r\nCNPI 5m Percent decrease in substance abuse rate in the identified community (e.g. cigarettes, prescription drugs, narcotics, alcohol). \r\nCNPI 5n Percent decrease in domestic violence rate in the identified community.\r\nCNPI 5o Percent decrease in the child abuse rate in the identified community.\r\nCNPI 5p Percent decrease in the child neglect rate in the identified community.\r\nCNPI 5q Percent decrease in the elder abuse rate in the identified community. \r\nCNPI 5r Percent decrease in the elder neglect rate in the identified community. \r\nCNPI 5s Percent decrease in recidivism rate in the identified community.\r\nCNPI 5t Percent decrease in non-violent crime rate in the identified community.\r\nCNPI 5u Percent decrease in violent crime rate in the identified community.\r\nCNPI 5v Percent decrease in teens involved with the juvenile court system in the identified community.\r\nCNPI 5z Other Rates of Change for Health and Social/Behavioral Indicators.\r\n",null,null,true]
[null,null,"CNPIS HOUSING\r\nCNPI 4a Number of safe and affordable housing units developed in the identified community (e.g. built or set aside units for people with low incomes).\r\nCNPI 4b Number of safe and affordable housing units maintained and/or improved through WAP or other rehabilitation efforts in the identified community. \r\nCNPI 4c Number of shelter beds created in the identified community. \r\nCNPI 4d Number of shelter beds maintained in the identified community. \r\nCNPI 4z Other Counts of Change for Housing Indicators.\r\nCNPI 4e Percent decrease in the rate of homelessness in the identified community. \r\nCNPI 4f Percent decrease in the foreclosure rate in the identified community.\r\nCNPI 4g Percent increase in the rate of home ownership of people with low incomes in the identified community.\r\nCNPI 4h Percent increase of affordable housing in the identified community.\r\nCNPI 4i Percent increase of shelter beds in the identified community.\r\nCNPI 4z Other Rates of Change for Housing Indicators.\r\n",{"$nulls":3},"CNPIS HOUSING\r\nCNPI 4a Number of safe and affordable housing units developed in the identified community (e.g. built or set aside units for people with low incomes).\r\nCNPI 4b Number of safe and affordable housing units maintained and/or improved through WAP or other rehabilitation efforts in the identified community. \r\nCNPI 4c Number of shelter beds created in the identified community. \r\nCNPI 4d Number of shelter beds maintained in the identified community. \r\nCNPI 4z Other Counts of Change for Housing Indicators.\r\nCNPI 4e Percent decrease in the rate of homelessness in the identified community. \r\nCNPI 4f Percent decrease in the foreclosure rate in the identified community.\r\nCNPI 4g Percent increase in the rate of home ownership of people with low incomes in the identified community.\r\nCNPI 4h Percent increase of affordable housing in the identified community.\r\nCNPI 4i Percent increase of shelter beds in the identified community.\r\nCNPI 4z Other Rates of Change for Housing Indicators.\r\n",null,null,true]
[null,null,"CIVIC ENGAGEMENT\r\nCNPI 6 G2a Percent increase of donated time to support the CSBG Eligible Entity's delivery of services and/or implementation of strategies to address conditions of poverty in the identified community. \r\nCNPI 6 G2b Percent increase of donated resources to support the CSBG Eligible Entity's delivery of services and/or implementation of strategies to address conditions of poverty in the identified community. \r\nCNPI 6 G2c Percent increase of people participating in public hearings, policy forums, community planning, or other advisory boards related to the CSBG Eligible Entity's delivery of service and/or implementation of strategies to address conditions of poverty in the identified community.\r\nCNPI 6 G2z Other Rates of Change for Civic Engagement and Community Involvement Indicators - Goal 2\r\nCNPI 6 G3a Percent increase of people with low incomes who support the CSBG Eligible Entity's delivery of service and/or implementation of strategies to address conditions of poverty in the identified community. \r\nCNPI 6 G3b Percent increase of people with low incomes who acquire and maintain leadership roles with the CSBG Eligible Entity or other organizations within the identified community. \r\nCNPI 6 G3z Other Rates of Change for Civic Engagement and Community Involvement Indicators - Goal 3\r\n",{"$nulls":3},"CIVIC ENGAGEMENT\r\nCNPI 6 G2a Percent increase of donated time to support the CSBG Eligible Entity's delivery of services and/or implementation of strategies to address conditions of poverty in the identified community. \r\nCNPI 6 G2b Percent increase of donated resources to support the CSBG Eligible Entity's delivery of services and/or implementation of strategies to address conditions of poverty in the identified community. \r\nCNPI 6 G2c Percent increase of people participating in public hearings, policy forums, community planning, or other advisory boards related to the CSBG Eligible Entity's delivery of service and/or implementation of strategies to address conditions of poverty in the identified community.\r\nCNPI 6 G2z Other Rates of Change for Civic Engagement and Community Involvement Indicators - Goal 2\r\nCNPI 6 G3a Percent increase of people with low incomes who support the CSBG Eligible Entity's delivery of service and/or implementation of strategies to address conditions of poverty in the identified community. \r\nCNPI 6 G3b Percent increase of people with low incomes who acquire and maintain leadership roles with the CSBG Eligible Entity or other organizations within the identified community. \r\nCNPI 6 G3z Other Rates of Change for Civic Engagement and Community Involvement Indicators - Goal 3\r\n",null,null,true]
[{"$nulls":8},6,true]
[null,"7. Identified Community\n",{"$f":"M3A7Community","v":"Select the Identified Community"},{"$nulls":3},"Select the Identified Community",null,31.5]
[null,null,{"$f":"IF(D20=\"\",\"\",\"7. Other\")","v":""},{"$f":"TEXT(M3A7CommunityOther,\"\")","v":""},null,null,{"$f":"D20","v":""},null,null,true]
[null,"8. Expected Duration\n",{"$f":"M3A8Duration","v":"Enter the number of years that the initiative is expected to operate. "},{"$nulls":3},"Enter the number of years that the initiative is expected to operate. ",null,31.5]
[null,"9. Partnership Type\n",{"$f":"M3A9PartnerType","v":"Select the Partnership Type"},{"$nulls":3},"Select the Partnership Type",null,31.5]
[null,"10. Partners\n",{"$f":"M3A10Partners","v":"Provide a brief narrative on 1 – 3 partners."},{"$nulls":3},"Provide a brief narrative on 1 – 3 partners.",null,31.5]
[null,"11. Strategy(ies)",{"$nulls":4},0,null,31.5]
[{"$nulls":6},0,null,null,true]
[{"$nulls":6},0,null,null,true]
[{"$nulls":6},0,null,null,true]
[{"$nulls":6},0,null,null,true]
[{"$nulls":6},0,null,null,true]
[{"$nulls":6},0,null,null,true]
[{"$nulls":6},{"$f":"C31","v":0},null,null,true]
[{"$nulls":8},6,true]
[null,"12. Progress on Outcomes/Indicators",{"$f":"M3A12Progress","v":"Select the Progress on Outcomes/Indicators"},{"$nulls":3},"Select the Progress on Outcomes/Indicators",null,31.5]
[null,"13. Impact of Outcomes",{"$f":"M3A13Impact","v":"Provide a narrative on the outcomes’ scope of impact if interim or final outcomes are reported."},{"$nulls":3},"Provide a narrative on the outcomes’ scope of impact if interim or final outcomes are reported.",null,31.5]
[null,"14. Outcomes/Indicators to Report",{"$nulls":4},0,null,31.5]
[null,"15. Final Status\n",{"$f":"M3A15Status","v":"Select the Final Status"},{"$nulls":3},"Select the Final Status",null,31.5]
[null,"16. Lessons Learned\n",{"$f":"M3A16Lessons","v":"Provide a narrative on any lessons learned during the implementation of the initiative."},{"$nulls":3},"Provide a narrative on any lessons learned during the implementation of the initiative.",null,31.5]

{"sheet":"Status Form","index":6,"n_rows":26,"n_cols":29,"rows_kept":26,"merged":[[0,1,0,4],[2,2,2,4],[2,6,3,16],[6,8,7,16],[7,2,7,4],[8,2,8,4],[8,6,25,19],[9,2,9,4],[10,2,10,4],[11,2,11,4],[12,2,12,4],[13,2,13,4],[14,2,14,4],[15,2,15,4],[16,3,16,4],[17,2,17,4],[18,2,18,4],[19,2,19,4],[20,2,20,4],[21,2,21,4],[22,2,22,4],[23,2,23,4],[24,2,24,4],[25,2,25,4]]}
[null,"Module 3, Section A: Community Initiative Status Form"]
[{"$nulls":19},"M3A13Impact"]
[null,"Name of CSBG Eligible Entity: ","Alabama Council on Human Relations, Inc.",{"$nulls":3},"To enter data into text fields on the left-hand side of the screen  (Items 3, 4, 10, 13, and 16), select the field (e.g. cell C8) and then click the \"Edit\" button, below. A text box will pop-up. Enter your narrative data into the pop-up."]
[null,"State:","Alabama","UEI:","183860386"]
[]
[]
[{"$nulls":8},"13. Impact of Outcomes"]
[null,"Reporting Status:","Select the Reporting Status",{"$nulls":22},"fieldNameCol"]
[null,null,"Use the dropdown menu to select the response where appropriate.",{"$nulls":3},"Provide a narrative on the outcomes’ scope of impact if interim or final outcomes are reported.",{"$nulls":18},{"$f":"COLUMN(Z8)","v":26},"Type","Max length (memos)","Displayed Hint"]
[null,"1. Initiative Name","Enter initiative name.",{"$nulls":22},"M3A1InitiativeName",{"$f":"_xlfn.XLOOKUP(Z10,'XML Export Map'!B:B,'XML Export Map'!E:E,\"\")","v":"Memo"},{"$f":"_xlfn.XLOOKUP(Z10,'XML Export Map'!B:B,'XML Export Map'!G:G,\"\")","v":500}," Initiative Name should be unique and concise."]
[null,"2. Initiative Year\n","Select the Initiative Year",{"$nulls":22},"M3A2InitiativeYear",{"$f":"_xlfn.XLOOKUP(Z11,'XML Export Map'!B:B,'XML Export Map'!E:E,\"\")","v":"DropDown"},{"$f":"_xlfn.XLOOKUP(Z11,'XML Export Map'!B:B,'XML Export Map'!G:G,\"\")","v":0}]
[null,"3. Problem Identification\n",{"$nulls":23},"M3A3ProblemID",{"$f":"_xlfn.XLOOKUP(Z12,'XML Export Map'!B:B,'XML Export Map'!E:E,\"\")","v":"Memo"},{"$f":"_xlfn.XLOOKUP(Z12,'XML Export Map'!B:B,'XML Export Map'!G:G,\"\")","v":5000},"Clearly articulates a community level need. Include supporting data (baseline data, CAN data, other data sources)."]
[null,"4. Goal/Agenda ","Provide a narrative of the initiative’s overall goal.",{"$nulls":22},"M3A4Goal",{"$f":"_xlfn.XLOOKUP(Z13,'XML Export Map'!B:B,'XML Export Map'!E:E,\"\")","v":"Memo"},{"$f":"_xlfn.XLOOKUP(Z13,'XML Export Map'!B:B,'XML Export Map'!G:G,\"\")","v":5000},"Goal and Agenda should define the ultimate outcome(s) the initiative seeks to achieve and should clearly relate to the problem described in Item A.3."]
[null,"5. Issue/CSBG Community Domains \n"]
[null,"6. Ultimate Expected Outcome ",{"$nulls":23},"Outcomes"]
[null,"7. Identified Community\n","Select the Identified Community",{"$nulls":22},"M3A7Community",{"$f":"_xlfn.XLOOKUP(Z16,'XML Export Map'!B:B,'XML Export Map'!E:E,\"\")","v":"DropDown"},{"$f":"_xlfn.XLOOKUP(Z16,'XML Export Map'!B:B,'XML Export Map'!G:G,\"\")","v":0}]
[null,null,"7. Other",{"$nulls":23},{"$f":"_xlfn.XLOOKUP(Z17,'XML Export Map'!B:B,'XML Export Map'!E:E,\"\")","v":0},{"$f":"_xlfn.XLOOKUP(Z17,'XML Export Map'!B:B,'XML Export Map'!G:G,\"\")","v":0}]
[null,"8. Expected Duration\n","Enter the number of years that the initiative is expected to operate. ",{"$nulls":22},"M3A8Duration",{"$f":"_xlfn.XLOOKUP(Z18,'XML Export Map'!B:B,'XML Export Map'!E:E,\"\")","v":"Memo"},{"$f":"_xlfn.XLOOKUP(Z18,'XML Export Map'!B:B,'XML Export Map'!G:G,\"\")","v":5000},"Expected Duration reflects the timeframe (in years) needed to achieve the ultimate goal(s) described in Item A.4. "]
[null,"9. Partnership Type\n","Select the Partnership Type",{"$nulls":22},"M3A9PartnerType",{"$f":"_xlfn.XLOOKUP(Z19,'XML Export Map'!B:B,'XML Export Map'!E:E,\"\")","v":"DropDown"},{"$f":"_xlfn.XLOOKUP(Z19,'XML Export Map'!B:B,'XML Export Map'!G:G,\"\")","v":0}]
[null,"10. Partners\n","Provide a brief narrative on 1 – 3 partners.",{"$nulls":22},"M3A10Partners",{"$f":"_xlfn.XLOOKUP(Z20,'XML Export Map'!B:B,'XML Export Map'!E:E,\"\")","v":"Memo"},{"$f":"_xlfn.XLOOKUP(Z20,'XML Export Map'!B:B,'XML Export Map'!G:G,\"\")","v":5000},"List 1 to 3 key initiative partners, including how each is involved and the resources brought. Describes the role of the eligible entity, including any use of CSBG funds."]
[null,"11. Strategy(ies)",{"$nulls":23},"Strategies"]
[null,"12. Progress on Outcomes/Indicators","Select the Progress on Outcomes/Indicators",{"$nulls":22},"M3A12Progress",{"$f":"_xlfn.XLOOKUP(Z22,'XML Export Map'!B:B,'XML Export Map'!E:E,\"\")","v":"DropDown"},{"$f":"_xlfn.XLOOKUP(Z22,'XML Export Map'!B:B,'XML Export Map'!G:G,\"\")","v":0}]
[null,"13. Impact of Outcomes","Provide a narrative on the outcomes’ scope of impact if interim or final outcomes are reported.",{"$nulls":22},"M3A13Impact",{"$f":"_xlfn.XLOOKUP(Z23,'XML Export Map'!B:B,'XML Export Map'!E:E,\"\")","v":"Memo"},{"$f":"_xlfn.XLOOKUP(Z23,'XML Export Map'!B:B,'XML Export Map'!G:G,\"\")","v":5000},"Impact of Outcomes provides background, detail, and/or context to the numbers being reporting under Outcomes/Indicators that are reported in Item A.14. "]
[null,"14. Outcomes/Indicators to Report","Community Level National Performance Indicators (CNPIs)\n(Reference the Community NPIs listed in Section B)",{"$nulls":22},"Reported"]
[null,"15. Final Status\n","Select the Final Status",{"$nulls":22},"M3A15Status",{"$f":"_xlfn.XLOOKUP(Z25,'XML Export Map'!B:B,'XML Export Map'!E:E,\"\")","v":"DropDown"},{"$f":"_xlfn.XLOOKUP(Z25,'XML Export Map'!B:B,'XML Export Map'!G:G,\"\")","v":0}]
[null,"16. Lessons Learned\n","Provide a narrative on any lessons learned during the implementation of the initiative.",{"$nulls":22},"M3A16Lessons",{"$f":"_xlfn.XLOOKUP(Z26,'XML Export Map'!B:B,'XML Export Map'!E:E,\"\")","v":"Memo"},{"$f":"_xlfn.XLOOKUP(Z26,'XML Export Map'!B:B,'XML Export Map'!G:G,\"\")","v":5000},"Lessons Learned defines what went (is going) well, barriers faced (being faced), and any significant findings or issues that occurred (are occurring)."]

{"sheet":"CNPIs Employment","index":7,"n_rows":31,"n_cols":12,"rows_kept":31,"hidden":true,"merged":[[1,1,1,11],[2,1,2,11],[3,1,3,11],[4,1,4,3],[4,4,4,9],[5,1,5,3],[5,4,5,7],[7,1,12,1],[7,2,7,7],[8,2,8,7],[9,2,9,7],[10,2,10,7],[11,2,11,7],[12,2,12,7],[13,1,13,11],[15,1,18,1],[15,2,15,7],[16,2,16,7],[17,2,17,7],[18,2,18,7],[20,1,23,1],[20,2,20,4],[21,2,21,4],[22,2,22,4],[23,2,23,4],[25,1,28,1],[25,2,25,4],[26,2,26,4],[27,2,27,4],[28,2,28,4],[31,1,31,11]]}
[]
[null,"Module 3, Section B: Community National Performance Indicators (CNPIs) - Data Entry Form"]
[null,"Goal 2: Communities where people with low incomes live are healthy and offer economic opportunity."]
[null,"Employment Indicators"]
[null,"Name of CSBG Eligible Entity: ",null,null,{"$f":"IF(M3AgencyName=\"\",\"\",M3AgencyName)","v":"Alabama Council on Human Relations, Inc."}]
[null,"State:",null,null,{"$f":"IF(M3StateName=\"\",\"\",M3StateName)","v":"Alabama"},{"$nulls":3},"UEI:",{"$f":"IF(M3UEI=\"\",\"\",M3UEI)","v":"183860386"}]
[]
[null,"Counts\n of Change","Counts of Change for Employment Indicators (CNPI 1)",{"$nulls":5},"I.)  Identified Community\n(auto-populated)","II.)  Target \n(#)","III.)  Actual Results\n(#)","IV.) Performance target accuracy \n(% auto calculated)"]
[null,null,"CNPI 1a Number of jobs created to increase opportunities for people with low incomes in the identified community. ",{"$nulls":8},{"$f":"IFERROR(ROUND(K9/J9,2),\"\")","v":""}]
[null,null,"CNPI 1b Number of job opportunities maintained in the identified community.            ",{"$nulls":8},{"$f":"IFERROR(ROUND(K10/J10,2),\"\")","v":""}]
[null,null,"CNPI 1c Number of “living wage” jobs created in the identified community*.",{"$nulls":8},{"$f":"IFERROR(ROUND(K11/J11,2),\"\")","v":""}]
[null,null,"CNPI 1d Number of “living wage” jobs maintained in the  identified community*. ",{"$nulls":8},{"$f":"IFERROR(ROUND(K12/J12,2),\"\")","v":""}]
[null,null,"CNPI 1e Number of jobs created in the identified community with a benefit package. ",{"$nulls":8},{"$f":"IFERROR(ROUND(K13/J13,2),\"\")","v":""}]
[null,"*When reporting on indicators related to living wage, agencies can provide their own definition or select from national or locally-defined models. Please indicate the living wage definition used in the General Comment box. "]
[]
[null,"Other Counts of Change","Other Counts of Change for Employment Indicators (CNPI 1z) - Please specify below.",{"$nulls":5},"I.)  Identified Community\n(auto-populated)","II.)  Target \n(#)","III.)  Actual Results\n(#)","IV.) Performance target accuracy \n(% auto calculated)"]
[{"$nulls":11},{"$f":"IFERROR(ROUND(K17/J17,2),\"\")","v":""}]
[{"$nulls":11},{"$f":"IFERROR(ROUND(K18/J18,2),\"\")","v":""}]
[{"$nulls":11},{"$f":"IFERROR(ROUND(K19/J19,2),\"\")","v":""}]
[]
[null,"Rates of Change","Rates of Change for Employment Indicators (CNPI 1)",null,null,"I.)  Identified Community\n(auto-populated)","II.) Baseline existing starting point used for comparisons \n(%)","III.)  Target \n(%)","IV.)  Expected % change from baseline \n(Target %  auto calculated) ","V.)  Actual Results\n(%)","VI.)  Actual % change from baseline \n(% auto calculated) ","VII.) Performance target accuracy\n(% auto calculated)"]
[null,null,"CNPI 1f Percent decrease of the unemployment rate.",{"$nulls":5},{"$f":"IFERROR(ROUND((H22-G22)/G22,2),\"\")","v":""},null,{"$f":"IFERROR(ROUND((J22-G22)/G22,2),\"\")","v":""},{"$f":"IFERROR(ROUND((J22-G22)/(H22-G22),2),\"\")","v":""}]
[null,null,"CNPI 1g Percent decrease of the youth unemployment rate.",{"$nulls":5},{"$f":"IFERROR(ROUND((H23-G23)/G23,2),\"\")","v":""},null,{"$f":"IFERROR(ROUND((J23-G23)/G23,2),\"\")","v":""},{"$f":"IFERROR(ROUND((J23-G23)/(H23-G23),2),\"\")","v":""}]
[null,null,"CNPI 1h Percent decrease of the underemployment rate.",{"$nulls":5},{"$f":"IFERROR(ROUND((H24-G24)/G24,2),\"\")","v":""},null,{"$f":"IFERROR(ROUND((J24-G24)/G24,2),\"\")","v":""},{"$f":"IFERROR(ROUND((J24-G24)/(H24-G24),2),\"\")","v":""}]
[]
[null,"Other Rates of Change","Other Rates of Change for Employment Indicators (CNPI 1z) \n- Please specify below.",null,null,"I.)  Identified Community\n(auto-populated)","II.) Baseline existing starting point used for comparisons \n(%)","III.)  Target \n(%)","IV.)  Expected % change from baseline \n(Target %  auto calculated) ","V.)  Actual Results\n(%)","VI.)  Actual % change from baseline \n(% auto calculated) ","VII.) Performance target accuracy\n(% auto calculated)"]
[{"$nulls":8},{"$f":"IFERROR(ROUND((H27-G27)/G27,2),\"\")","v":""},null,{"$f":"IFERROR(ROUND((J27-G27)/G27,2),\"\")","v":""},{"$f":"IFERROR(ROUND((J27-G27)/(H27-G27),2),\"\")","v":""}]
[{"$nulls":8},{"$f":"IFERROR(ROUND((H28-G28)/G28,2),\"\")","v":""},null,{"$f":"IFERROR(ROUND((J28-G28)/G28,2),\"\")","v":""},{"$f":"IFERROR(ROUND((J28-G28)/(H28-G28),2),\"\")","v":""}]
[{"$nulls":8},{"$f":"IFERROR(ROUND((H29-G29)/G29,2),\"\")","v":""},null,{"$f":"IFERROR(ROUND((J29-G29)/G29,2),\"\")","v":""},{"$f":"IFERROR(ROUND((J29-G29)/(H29-G29),2),\"\")","v":""}]
[]
[null,"General comments:"]

{"sheet":"CNPIs Education","index":8,"n_rows":36,"n_cols":12,"rows_kept":36,"hidden":true,"merged":[[1,1,1,11],[2,1,2,11],[3,1,3,11],[4,1,4,3],[4,4,4,9],[5,1,5,3],[5,4,5,7],[7,1,13,1],[7,2,7,7],[8,2,8,7],[9,2,9,7],[10,2,10,7],[11,2,11,7],[12,2,12,7],[13,2,13,7],[15,1,18,1],[15,2,15,7],[16,2,16,7],[17,2,17,7],[18,2,18,7],[20,1,29,1],[20,2,20,4],[21,2,21,4],[22,2,22,4],[23,2,23,4],[24,2,24,4],[25,2,25,4],[26,2,26,4],[27,2,27,4],[28,2,28,4],[29,2,29,4],[31,1,34,1],[31,2,31,4],[32,2,32,4],[33,2,33,4],[34,2,34,4],[36,1,36,11]]}
[]
[null,"Module 3, Section B: Community National Performance Indicators (CNPIs) - Data Entry Form"]
[null,"Goal 2: Communities where people with low incomes live are healthy and offer economic opportunity."]
[null,"Education and Cognitive Development Indicators"]
[null,"Name of CSBG Eligible Entity: ",null,null,{"$f":"IF(M3AgencyName=\"\",\"\",M3AgencyName)","v":"Alabama Council on Human Relations, Inc."}]
[null,"State:",null,null,{"$f":"IF(M3StateName=\"\",\"\",M3StateName)","v":"Alabama"},{"$nulls":3},"UEI:",{"$f":"IF(M3UEI=\"\",\"\",M3UEI)","v":"183860386"}]
[]
[null,"Counts\n of Change","Counts of Change for Education and Cognitive Development Indicators (CNPI 2)",{"$nulls":5},"I.)  Identified Community\n(auto-populated)","II.)  Target \n(#)","III.)  Actual Results\n(#)","IV.) Performance target accuracy \n(% auto calculated)"]
[null,null,"CNPI 2a Number of accessible and affordable early childhood or pre-school education assets or resources added to the identified community. ",{"$nulls":8},{"$f":"IFERROR(ROUND(K9/J9,2),\"\")","v":""}]
[null,null,"CNPI 2b Number of accredited or licensed affordable child care facilities added in the identified community. ",{"$nulls":8},""]
[null,null,"CNPI 2c Number of new Early Childhood Screenings offered to children (ages 0-5) of families with low-incomes in the identified community. ",{"$nulls":8},""]
[null,null,"CNPI 2d Number of accessible and affordable education assets or resources added for school age children in the identified community.  (e.g., academic, enrichment activities, before/after school care, summer programs)",{"$nulls":8},""]
[null,null,"CNPI 2e Number of accessible and affordable post secondary education assets or resources added for newly graduating youth in the identified community.  (e.g. college tuition, scholarships, vocational training, etc.) ",{"$nulls":8},""]
[null,null,"CNPI 2f Number of accessible and affordable basic or secondary education assets or resources added for adults in the identified community.  (e.g. literacy, ESL, ABE/GED, etc.) ",{"$nulls":8},""]
[]
[null,"Other Counts of Change","Other Counts of Change for Education and Cognitive Development Indicators (CNPI 2z) - Please specify below.",{"$nulls":5},"I.)  Identified Community\n(auto-populated)","II.)  Target \n(#)","III.)  Actual Results\n(#)","IV.) Performance target accuracy \n(% auto calculated)"]
[{"$nulls":11},{"$f":"IFERROR(ROUND(K17/J17,2),\"\")","v":""}]
[{"$nulls":11},{"$f":"IFERROR(ROUND(K18/J18,2),\"\")","v":""}]
[{"$nulls":11},{"$f":"IFERROR(ROUND(K19/J19,2),\"\")","v":""}]
[]
[null,"Rates of Change","Rates of Change for Education and Cognitive Development Indicators (CNPI 2)",null,null,"I.)  Identified Community\n(auto-populated)","II.) Baseline existing starting point used for comparisons \n(%)","III.)  Target \n(%)","IV.)  Expected % change from baseline \n(Target %  auto calculated) ","V.)  Actual Results\n(%)","VI.)  Actual % change from baseline \n(% auto calculated) ","VII.) Performance target accuracy\n(% auto calculated)"]
[null,null,"CNPI 2g Percent increase of children in the identified community who are kindergarten ready. ",{"$nulls":5},{"$f":"IFERROR(ROUND((H22-G22)/G22,2),\"\")","v":""},null,{"$f":"IFERROR(ROUND((J22-G22)/G22,2),\"\")","v":""},{"$f":"IFERROR(ROUND((J22-G22)/(H22-G22),2),\"\")","v":""}]
[null,null,"CNPI 2h Percent increase of children in the identified community at (or above) the basic reading level.",{"$nulls":5},"",null,"",""]
[null,null,"CNPI 2i Percent increase of children in the identified community at (or above) the basic math level.",{"$nulls":5},"",null,"",""]
[null,null,"CNPI 2j Percent increase in high school (or high school equivalency) graduation rate in the  identified community.",{"$nulls":5},"",null,"",""]
[null,null,"CNPI 2k Percent increase of the rate of youth in the identified community  who attend post-secondary education.",{"$nulls":5},"",null,"",""]
[null,null,"CNPI 2l Percent increase of the rate of youth in the identified community who graduate from post-secondary education. ",{"$nulls":5},"",null,"",""]
[null,null,"CNPI 2m Percent increase of adults in the identified community who attend post-secondary education. ",{"$nulls":5},"",null,"",""]
[null,null,"CNPI 2n Percent increase of adults in the  identified community who graduate from post-secondary education.",{"$nulls":5},"",null,"",""]
[null,null,"CNPI 2o Percent increase in the adult literacy rate in the identified community . ",{"$nulls":5},"",null,"",""]
[]
[null,"Other Rates of Change","Other Rates of Change for Education and Cognitive Development Indicators (CNPI 2z)\n- Please specify below.",null,null,"I.)  Identified Community\n(auto populated)","II.) Baseline existing starting point used for comparisons \n(%)","III.)  Target \n(%)","IV.)  Expected % change from baseline \n(Target %  auto calculated) ","V.)  Actual Results\n(%)","VI.)  Actual % change from baseline \n(% auto calculated) ","VII.) Performance target accuracy\n(% auto calculated)"]
[{"$nulls":8},{"$f":"IFERROR(ROUND((H33-G33)/G33,2),\"\")","v":""},null,{"$f":"IFERROR(ROUND((J33-G33)/G33,2),\"\")","v":""},{"$f":"IFERROR(ROUND((J33-G33)/(H33-G33),2),\"\")","v":""}]
[{"$nulls":8},{"$f":"IFERROR(ROUND((H34-G34)/G34,2),\"\")","v":""},null,{"$f":"IFERROR(ROUND((J34-G34)/G34,2),\"\")","v":""},{"$f":"IFERROR(ROUND((J34-G34)/(H34-G34),2),\"\")","v":""}]
[{"$nulls":8},{"$f":"IFERROR(ROUND((H35-G35)/G35,2),\"\")","v":""},null,{"$f":"IFERROR(ROUND((J35-G35)/G35,2),\"\")","v":""},{"$f":"IFERROR(ROUND((J35-G35)/(H35-G35),2),\"\")","v":""}]
[null,"General comments:"]

{"sheet":"CNPIs Infrastructure Asset","index":9,"n_rows":41,"n_cols":13,"rows_kept":41,"hidden":true,"merged":[[1,0,1,12],[2,0,2,12],[3,0,3,12],[4,1,4,3],[4,4,4,9],[5,1,5,3],[5,4,5,7],[7,1,21,1],[7,2,7,5],[8,2,8,9],[9,2,9,5],[10,2,10,5],[11,2,11,5],[12,2,12,5],[13,2,13,5],[14,2,14,5],[15,2,15,9],[16,2,16,5],[17,2,17,5],[18,2,18,5],[19,2,19,5],[20,2,20,5],[21,2,21,5],[22,1,22,6],[23,1,26,1],[23,2,23,5],[24,2,24,5],[25,2,25,5],[26,2,26,5],[28,1,33,1],[28,2,28,5],[29,2,29,5],[30,2,30,5],[31,2,31,5],[32,2,32,5],[33,2,33,5],[35,1,38,1],[35,2,35,5],[36,2,36,5],[37,2,37,5],[38,2,38,5],[41,1,41,12]]}
[]
["Module 3, Section B: Community National Performance Indicators (CNPIs) - Data Entry Form"]
["Goal 2: Communities where people with low incomes live are healthy and offer economic opportunity."]
["Infrastructure and Asset Building Indicators"]
[null,"Name of CSBG Eligible Entity: ",null,null,{"$f":"IF(M3AgencyName=\"\",\"\",M3AgencyName)","v":"Alabama Council on Human Relations, Inc."}]
[null,"State:",null,null,{"$f":"IF(M3StateName=\"\",\"\",M3StateName)","v":"Alabama"},{"$nulls":3},"UEI:",{"$f":"IF(M3UEI=\"\",\"\",M3UEI)","v":"183860386"}]
[]
[null,"Counts\n of Change","Counts of Change for Infrastructure and Asset Building Indicators (CNPI 3)",{"$nulls":3},"I.)  Identified Community\n(auto-populated)","II.)  Target \n(#)","III.)  Actual Results\n(#)","IV.) Performance target accuracy \n(% auto calculated)"]
[null,null,"CNPI 3a Number of new accessible assets/resources created in the identified community:"]
[null,null,"CNPI 3a.1 Commercial",{"$nulls":6},{"$f":"IFERROR(ROUND(I10/H10,2),\"\")","v":""}]
[null,null,"CNPI 3a.2 Financial",{"$nulls":6},""]
[null,null,"CNPI 3a.3 Technological/ Communications (e.g. broadband)",{"$nulls":6},""]
[null,null,"CNPI 3a.4 Transportation",{"$nulls":6},""]
[null,null,"CNPI 3a.5 Recreational (e.g. parks, gardens, libraries)",{"$nulls":6},""]
[null,null,"CNPI 3a.6 Other Public Assets/Physical Improvements",{"$nulls":6},""]
[null,null,"CNPI 3b Number of existing assets/resources made accessible to the identified community:"]
[null,null,"CNPI 3b.1 Commercial",{"$nulls":6},{"$f":"IFERROR(ROUND(I17/H17,2),\"\")","v":""}]
[null,null,"CNPI 3b.2 Financial",{"$nulls":6},""]
[null,null,"CNPI 3b.3 Technological/ Communications (e.g. broadband)",{"$nulls":6},""]
[null,null,"CNPI 3b.4 Transportation",{"$nulls":6},""]
[null,null,"CNPI 3b.5 Recreational (e.g. parks, gardens, libraries)",{"$nulls":6},""]
[null,null,"CNPI 3b.6 Other Public Assets/Physical Improvements",{"$nulls":6},""]
[]
[null,"Other Counts of Change","Other Counts of Change for Infrastructure and Asset Building Indicators (CNPI 3z) - Please specify below.",{"$nulls":3},"I.)  Identified Community\n(auto populated)","II.)  Target \n(#)","III.)  Actual Results\n(#)","IV.) Performance target accuracy \n(% auto calculated)"]
[{"$nulls":9},{"$f":"IFERROR(ROUND(I25/H25,2),\"\")","v":""}]
[{"$nulls":9},{"$f":"IFERROR(ROUND(I26/H26,2),\"\")","v":""}]
[{"$nulls":9},{"$f":"IFERROR(ROUND(I27/H27,2),\"\")","v":""}]
[]
[null,"Rates of Change","Rates of Change for Infrastructure and Asset Building Indicators (CNPI 3)",{"$nulls":3},"I.)  Identified Community\n(auto-populated)","II.) Baseline existing starting point used for comparisons \n(%)","III.)  Target \n(%)","IV.)  Expected % change from baseline \n(Target %  auto calculated) ","V.)  Actual Results\n(%)","VI.)  Actual % change from baseline \n(% auto calculated) ","VII.) Performance target accuracy\n(% auto calculated)"]
[null,null,"CNPI 3c Percent decrease of abandoned or neglected buildings in the identified community.",{"$nulls":6},{"$f":"IFERROR(ROUND((I30-H30)/H30,2),\"\")","v":""},null,{"$f":"IFERROR(ROUND((K30-H30)/H30,2),\"\")","v":""},{"$f":"IFERROR(ROUND((K30-H30)/(I30-H30),2),\"\")","v":""}]
[null,null,"CNPI 3d Percent decrease in emergency response time measured in minutes in the identified community. (EMT, Police, Fire, etc.).",{"$nulls":6},{"$f":"IFERROR(ROUND((I31-H31)/H31,2),\"\")","v":""},null,{"$f":"IFERROR(ROUND((K31-H31)/H31,2),\"\")","v":""},{"$f":"IFERROR(ROUND((K31-H31)/(I31-H31),2),\"\")","v":""}]
[null,null,"CNPI 3e Percent decrease of predatory lenders and/or lending practices in the identified community.",{"$nulls":6},{"$f":"IFERROR(ROUND((I32-H32)/H32,2),\"\")","v":""},null,{"$f":"IFERROR(ROUND((K32-H32)/H32,2),\"\")","v":""},{"$f":"IFERROR(ROUND((K32-H32)/(I32-H32),2),\"\")","v":""}]
[null,null,"CNPI 3f Percent decrease of environmental threats to households (toxic soil, radon, lead, air quality, quality of drinking water, etc.) in the identified community.",{"$nulls":6},{"$f":"IFERROR(ROUND((I33-H33)/H33,2),\"\")","v":""},null,{"$f":"IFERROR(ROUND((K33-H33)/H33,2),\"\")","v":""},{"$f":"IFERROR(ROUND((K33-H33)/(I33-H33),2),\"\")","v":""}]
[null,null,"CNPI 3g Percent increase of transportation services in the identified community.",{"$nulls":6},{"$f":"IFERROR(ROUND((I34-H34)/H34,2),\"\")","v":""},null,{"$f":"IFERROR(ROUND((K34-H34)/H34,2),\"\")","v":""},{"$f":"IFERROR(ROUND((K34-H34)/(I34-H34),2),\"\")","v":""}]
[]
[null,"Other Rates of Change","Other Rates of Change for Infrastructure and Asset Building Indicators (CNPI 3z)\n- Please specify below.",{"$nulls":3},"I.)  Identified Community\n(auto-populated)","II.) Baseline existing starting point used for comparisons \n(%)","III.)  Target \n(%)","IV.)  Expected % change from baseline \n(Target %  auto calculated) ","V.)  Actual Results\n(%)","VI.)  Actual % change from baseline \n(% auto calculated) ","VII.) Performance target accuracy\n(% auto calculated)"]
[{"$nulls":9},{"$f":"IFERROR(ROUND((I37-H37)/H37,2),\"\")","v":""},null,{"$f":"IFERROR(ROUND((K37-H37)/H37,2),\"\")","v":""},{"$f":"IFERROR(ROUND((K37-H37)/(I37-H37),2),\"\")","v":""}]
[{"$nulls":9},{"$f":"IFERROR(ROUND((I38-H38)/H38,2),\"\")","v":""},null,{"$f":"IFERROR(ROUND((K38-H38)/H38,2),\"\")","v":""},{"$f":"IFERROR(ROUND((K38-H38)/(I38-H38),2),\"\")","v":""}]
[{"$nulls":9},{"$f":"IFERROR(ROUND((I39-H39)/H39,2),\"\")","v":""},null,{"$f":"IFERROR(ROUND((K39-H39)/H39,2),\"\")","v":""},{"$f":"IFERROR(ROUND((K39-H39)/(I39-H39),2),\"\")","v":""}]
[]
[null,"General comments:"]

{"sheet":"CNPIs Housing","index":10,"n_rows":31,"n_cols":12,"rows_kept":31,"hidden":true,"merged":[[1,1,1,11],[2,1,2,11],[3,1,3,11],[4,1,4,3],[4,4,4,9],[5,1,5,3],[5,4,5,7],[7,1,11,1],[7,2,7,7],[8,2,8,7],[9,2,9,7],[10,2,10,7],[11,2,11,7],[13,1,16,1],[13,2,13,7],[14,2,14,7],[15,2,15,7],[16,2,16,7],[18,1,23,1],[18,2,18,4],[19,2,19,4],[20,2,20,4],[21,2,21,4],[22,2,22,4],[23,2,23,4],[25,1,28,1],[25,2,25,4],[26,2,26,4],[27,2,27,4],[28,2,28,4],[31,1,31,11]]}
[]
[null,"Module 3, Section B: Community National Performance Indicators (CNPIs) - Data Entry Form"]
[null,"Goal 2: Communities where people with low incomes live are healthy and offer economic opportunity."]
[null,"Housing Indicators"]
[null,"Name of CSBG Eligible Entity: ",null,null,{"$f":"IF(M3AgencyName=\"\",\"\",M3AgencyName)","v":"Alabama Council on Human Relations, Inc."}]
[null,"State:",null,null,{"$f":"IF(M3StateName=\"\",\"\",M3StateName)","v":"Alabama"},{"$nulls":3},"UEI:",{"$f":"IF(M3UEI=\"\",\"\",M3UEI)","v":"183860386"}]
[]
[null,"Counts\n of Change","Counts of Change for Housing Indicators (CNPI 4)",{"$nulls":5},"I.)  Identified Community\n(auto-populated)","II.)  Target \n(#)","III.)  Actual Results\n(#)","IV.) Performance target accuracy \n(% auto calculated)"]
[null,null,"CNPI 4a Number of safe and affordable housing units developed in the identified community (e.g. built or set aside units for people with low incomes).",{"$nulls":8},{"$f":"IFERROR(ROUND(K9/J9,2),\"\")","v":""}]
[null,null,"CNPI 4b Number of safe and affordable housing units maintained  and/or improved through WAP or other rehabilitation efforts in the identified community. ",{"$nulls":8},{"$f":"IFERROR(ROUND(K10/J10,2),\"\")","v":""}]
[null,null,"CNPI 4c Number of shelter beds created in the identified community. ",{"$nulls":8},{"$f":"IFERROR(ROUND(K11/J11,2),\"\")","v":""}]
[null,null,"CNPI 4d Number of shelter beds maintained in the identified community. ",{"$nulls":8},{"$f":"IFERROR(ROUND(K12/J12,2),\"\")","v":""}]
[]
[null,"Other Counts of Change","Other Counts of Change for Housing Indicators (CNPI 4z) - Please specify below.",{"$nulls":5},"I.)  Identified Community\n(auto-populated)","II.)  Target \n(#)","III.)  Actual Results\n(#)","IV.) Performance target accuracy \n(% auto calculated)"]
[{"$nulls":11},{"$f":"IFERROR(ROUND(K15/J15,2),\"\")","v":""}]
[{"$nulls":11},{"$f":"IFERROR(ROUND(K16/J16,2),\"\")","v":""}]
[{"$nulls":11},{"$f":"IFERROR(ROUND(K17/J17,2),\"\")","v":""}]
[]
[null,"Rates of Change","Rates of Change for Housing Indicators (CNPI 4)",null,null,"I.)  Identified Community\n(auto-populated)","II.) Baseline existing starting point used for comparisons \n(%)","III.)  Target \n(%)","IV.)  Expected % change from baseline \n(Target %  auto calculated) ","V.)  Actual Results\n(%)","VI.)  Actual % change from baseline \n(% auto calculated) ","VII.) Performance target accuracy\n(% auto calculated)"]
[null,null,"CNPI 4e Percent decrease in the rate of homelessness in the identified community. ",{"$nulls":5},{"$f":"IFERROR(ROUND((H20-G20)/G20,2),\"\")","v":""},null,{"$f":"IFERROR(ROUND((J20-G20)/G20,2),\"\")","v":""},{"$f":"IFERROR(ROUND((J20-G20)/(H20-G20),2),\"\")","v":""}]
[null,null,"CNPI 4f Percent decrease in the foreclosure rate in the identified community.",{"$nulls":5},{"$f":"IFERROR(ROUND((H21-G21)/G21,2),\"\")","v":""},null,{"$f":"IFERROR(ROUND((J21-G21)/G21,2),\"\")","v":""},{"$f":"IFERROR(ROUND((J21-G21)/(H21-G21),2),\"\")","v":""}]
[null,null,"CNPI 4g Percent increase in the rate of home ownership of people with low incomes in the identified community.",{"$nulls":5},{"$f":"IFERROR(ROUND((H22-G22)/G22,2),\"\")","v":""},null,{"$f":"IFERROR(ROUND((J22-G22)/G22,2),\"\")","v":""},{"$f":"IFERROR(ROUND((J22-G22)/(H22-G22),2),\"\")","v":""}]
[null,null,"CNPI 4h Percent increase of affordable housing in the identified community.",{"$nulls":5},{"$f":"IFERROR(ROUND((H23-G23)/G23,2),\"\")","v":""},null,{"$f":"IFERROR(ROUND((J23-G23)/G23,2),\"\")","v":""},{"$f":"IFERROR(ROUND((J23-G23)/(H23-G23),2),\"\")","v":""}]
[null,null,"CNPI 4i Percent increase of shelter beds in the identified community.",{"$nulls":5},{"$f":"IFERROR(ROUND((H24-G24)/G24,2),\"\")","v":""},null,{"$f":"IFERROR(ROUND((J24-G24)/G24,2),\"\")","v":""},{"$f":"IFERROR(ROUND((J24-G24)/(H24-G24),2),\"\")","v":""}]
[]
[null,"Other Rates of Change","Other Rates of Change for Housing Indicators (CNPI 4z)\n- Please specify below.",null,null,"I.)  Identified Community\n(auto populated)","II.) Baseline existing starting point used for comparisons \n(%)","III.)  Target \n(%)","IV.)  Expected % change from baseline \n(Target %  auto calculated) ","V.)  Actual Results\n(%)","VI.)  Actual % change from baseline \n(% auto calculated) ","VII.) Performance target accuracy\n(% auto calculated)"]
[{"$nulls":8},{"$f":"IFERROR(ROUND((H27-G27)/G27,2),\"\")","v":""},null,{"$f":"IFERROR(ROUND((J27-G27)/G27,2),\"\")","v":""},{"$f":"IFERROR(ROUND((J27-G27)/(H27-G27),2),\"\")","v":""}]
[{"$nulls":8},{"$f":"IFERROR(ROUND((H28-G28)/G28,2),\"\")","v":""},null,{"$f":"IFERROR(ROUND((J28-G28)/G28,2),\"\")","v":""},{"$f":"IFERROR(ROUND((J28-G28)/(H28-G28),2),\"\")","v":""}]
[{"$nulls":8},{"$f":"IFERROR(ROUND((H29-G29)/G29,2),\"\")","v":""},null,{"$f":"IFERROR(ROUND((J29-G29)/G29,2),\"\")","v":""},{"$f":"IFERROR(ROUND((J29-G29)/(H29-G29),2),\"\")","v":""}]
[]
[null,"General comments:"]

{"sheet":"CNPIs Health and Social","index":11,"n_rows":47,"n_cols":12,"rows_kept":47,"hidden":true,"merged":[[1,1,1,11],[2,1,2,11],[3,1,3,11],[4,1,4,3],[4,4,4,9],[5,1,5,3],[5,4,5,7],[7,1,12,1],[7,2,7,7],[8,2,8,7],[9,2,9,7],[10,2,10,7],[11,2,11,7],[12,2,12,7],[14,1,17,1],[14,2,14,7],[15,2,15,7],[16,2,16,7],[17,2,17,7],[19,1,24,1],[19,2,19,4],[20,2,20,4],[21,2,21,4],[22,2,22,4],[23,2,23,4],[24,2,24,4],[25,1,33,1],[25,2,25,4],[26,2,26,4],[27,2,27,4],[28,2,28,4],[29,2,29,4],[30,2,30,4],[31,2,31,4],[32,2,32,4],[33,2,33,4],[35,1,39,1],[35,2,35,4],[36,2,36,4],[37,2,37,4],[38,2,38,4],[39,2,39,4],[41,1,44,1],[41,2,41,4],[42,2,42,4],[43,2,43,4],[44,2,44,4],[47,1,47,11]]}
[]
[null,"Module 3, Section B: Community National Performance Indicators (CNPIs) - Data Entry Form"]
[null,"Goal 2: Communities where people with low incomes live are healthy and offer economic opportunity."]
[null,"Health and Social/Behavioral Indicators"]
[null,"Name of CSBG Eligible Entity: ",null,null,{"$f":"IF(M3AgencyName=\"\",\"\",M3AgencyName)","v":"Alabama Council on Human Relations, Inc."}]
[null,"State:",null,null,{"$f":"IF(M3StateName=\"\",\"\",M3StateName)","v":"Alabama"},{"$nulls":3},"UEI:",{"$f":"IF(M3UEI=\"\",\"\",M3UEI)","v":"183860386"}]
[]
[null,"Counts\n of Change","Counts of Change for Health and Social/Behavioral Indicators (CNPI 5)",{"$nulls":5},"I.)  Identified Community\n(auto-populated)","II.)  Target \n(#)","III.)  Actual Results\n(#)","IV.) Performance target accuracy \n(% auto calculated)"]
[null,null,"CNPI 5a Number of accessible and affordable physical health assets or resources created in the identified community. ",{"$nulls":8},{"$f":"IFERROR(ROUND(K9/J9,2),\"\")","v":""}]
[null,null,"CNPI 5b Number of accessible and affordable behavioral and mental health assets or resources created in the identified community.     ",{"$nulls":8},{"$f":"IFERROR(ROUND(K10/J10,2),\"\")","v":""}]
[null,null,"CNPI 5c Number of public safety assets and resources created in the identified community.     ",{"$nulls":8},{"$f":"IFERROR(ROUND(K11/J11,2),\"\")","v":""}]
[null,null,"CNPI 5d Number of accessible and affordable healthy food resources created in the identified community.",{"$nulls":8},{"$f":"IFERROR(ROUND(K12/J12,2),\"\")","v":""}]
[null,null,"CNPI 5e Number of activities designed to improve police and community relations within the identified community.",{"$nulls":8},{"$f":"IFERROR(ROUND(K13/J13,2),\"\")","v":""}]
[]
[null,"Other Counts of Change","Other Counts of Change for Health and Social/Behavioral Indicators (CNPI 5z) - Please specify below.",{"$nulls":5},"I.)  Identified Community\n(auto-populated)","II.)  Target \n(#)","III.)  Actual Results\n(#)","IV.) Performance target accuracy \n(% auto calculated)"]
[{"$nulls":11},{"$f":"IFERROR(ROUND(K16/J16,2),\"\")","v":""}]
[{"$nulls":11},{"$f":"IFERROR(ROUND(K17/J17,2),\"\")","v":""}]
[{"$nulls":11},{"$f":"IFERROR(ROUND(K18/J18,2),\"\")","v":""}]
[]
[null,"Rates of Change","Rates of Change for Physical Health, Wellbeing, and Development Indicators (CNPI 5)",null,null,"I.)  Identified Community\n(auto-populated)","II.) Baseline existing starting point used for comparisons \n(%)","III.)  Target \n(%)","IV.)  Expected % change from baseline \n(Target %  auto calculated) ","V.)  Actual Results\n(%)","VI.)  Actual % change from baseline \n(% auto calculated) ","VII.) Performance target accuracy\n(% auto calculated)"]
[null,null,"CNPI 5f Percent decrease in infant mortality rate in the identified community.",{"$nulls":5},{"$f":"IFERROR(ROUND((H21-G21)/G21,2),\"\")","v":""},null,{"$f":"IFERROR(ROUND((J21-G21)/G21,2),\"\")","v":""},{"$f":"IFERROR(ROUND((J21-G21)/(H21-G21),2),\"\")","v":""}]
[null,null,"CNPI 5g Percent decrease in childhood obesity rate in the identified community. ",{"$nulls":5},{"$f":"IFERROR(ROUND((H22-G22)/G22,2),\"\")","v":""},null,{"$f":"IFERROR(ROUND((J22-G22)/G22,2),\"\")","v":""},{"$f":"IFERROR(ROUND((J22-G22)/(H22-G22),2),\"\")","v":""}]
[null,null,"CNPI 5h Percent decrease in adult obesity rate in the identified community.",{"$nulls":5},{"$f":"IFERROR(ROUND((H23-G23)/G23,2),\"\")","v":""},null,{"$f":"IFERROR(ROUND((J23-G23)/G23,2),\"\")","v":""},{"$f":"IFERROR(ROUND((J23-G23)/(H23-G23),2),\"\")","v":""}]
[null,null,"CNPI 5i Percent increase in child immunization rate in the identified community. ",{"$nulls":5},{"$f":"IFERROR(ROUND((H24-G24)/G24,2),\"\")","v":""},null,{"$f":"IFERROR(ROUND((J24-G24)/G24,2),\"\")","v":""},{"$f":"IFERROR(ROUND((J24-G24)/(H24-G24),2),\"\")","v":""}]
[null,null,"CNPI 5j Percent decrease in uninsured families in the identified community. ",{"$nulls":5},{"$f":"IFERROR(ROUND((H25-G25)/G25,2),\"\")","v":""},null,{"$f":"IFERROR(ROUND((J25-G25)/G25,2),\"\")","v":""},{"$f":"IFERROR(ROUND((J25-G25)/(H25-G25),2),\"\")","v":""}]
[null,"Rates of Change","Rates of Change for Behavioral and Mental health, Emotional Wellbeing, and Development Indicators (CNPI 5)",null,null,"I.)  Identified Community\n(auto-populated)","II.) Baseline existing starting point used for comparisons \n(%)","III.)  Target \n(%)","IV.)  Expected % change from baseline \n(Target %  auto calculated) ","V.)  Actual Results\n(%)","VI.)  Actual % change from baseline \n(% auto calculated) ","VII.) Performance target accuracy\n(% auto calculated)"]
[null,null,"CNPI 5k Percent decrease in the teen pregnancy rate in the identified community.",{"$nulls":5},{"$f":"IFERROR(ROUND((H27-G27)/G27,2),\"\")","v":""},null,{"$f":"IFERROR(ROUND((J27-G27)/G27,2),\"\")","v":""},{"$f":"IFERROR(ROUND((J27-G27)/(H27-G27),2),\"\")","v":""}]
[null,null,"CNPI 5l Percent decrease in unplanned pregnancies in the identified community.",{"$nulls":5},"",null,"",""]
[null,null,"CNPI 5m Percent decrease in substance abuse rate in the identified community.(e.g. cigarettes, prescription drugs, narcotics, alcohol). ",{"$nulls":5},"",null,"",""]
[null,null,"CNPI 5n Percent decrease in domestic violence rate in the identified community.",{"$nulls":5},"",null,"",""]
[null,null,"CNPI 5o Percent decrease in the child abuse rate in the identified community.",{"$nulls":5},"",null,"",""]
[null,null,"CNPI 5p Percent decrease in the child neglect rate in the identified community.",{"$nulls":5},"",null,"",""]
[null,null,"CNPI 5q Percent decrease in the elder abuse rate in the identified community. ",{"$nulls":5},"",null,"",""]
[null,null,"CNPI 5r Percent decrease in the elder neglect rate in the identified community. ",{"$nulls":5},"",null,"",""]
[]
[null,"Rates of Change","Rates of Change for Public Safety Indicators (CNPI 5)",null,null,"I.)  Identified Community\n(auto populated)","II.) Baseline existing starting point used for comparisons \n(%)","III.)  Target \n(%)","IV.)  Expected % change from baseline \n(Target %  auto calculated) ","V.)  Actual Results\n(%)","VI.)  Actual % change from baseline \n(% auto calculated) ","VII.) Performance target accuracy\n(% auto calculated)"]
[null,null,"CNPI 5s Percent decrease in recidivism rate in the identified community.",{"$nulls":5},{"$f":"IFERROR(ROUND((H37-G37)/G37,2),\"\")","v":""},null,{"$f":"IFERROR(ROUND((J37-G37)/G37,2),\"\")","v":""},{"$f":"IFERROR(ROUND((J37-G37)/(H37-G37),2),\"\")","v":""}]
[null,null,"CNPI 5t Percent decrease in non-violent crime rate in the identified community.",{"$nulls":5},{"$f":"IFERROR(ROUND((H38-G38)/G38,2),\"\")","v":""},null,{"$f":"IFERROR(ROUND((J38-G38)/G38,2),\"\")","v":""},{"$f":"IFERROR(ROUND((J38-G38)/(H38-G38),2),\"\")","v":""}]
[null,null,"CNPI 5u Percent decrease in violent crime rate in the identified community.",{"$nulls":5},{"$f":"IFERROR(ROUND((H39-G39)/G39,2),\"\")","v":""},null,{"$f":"IFERROR(ROUND((J39-G39)/G39,2),\"\")","v":""},{"$f":"IFERROR(ROUND((J39-G39)/(H39-G39),2),\"\")","v":""}]
[null,null,"CNPI 5v Percent decrease in teens involved with the juvenile court system in the identified community.",{"$nulls":5},{"$f":"IFERROR(ROUND((H40-G40)/G40,2),\"\")","v":""},null,{"$f":"IFERROR(ROUND((J40-G40)/G40,2),\"\")","v":""},{"$f":"IFERROR(ROUND((J40-G40)/(H40-G40),2),\"\")","v":""}]
[]
[null,"Other Rates of Change","Other Rates of Change for Health and Social/Behavioral Indicators (CNPI 5z)\n- Please specify below.",null,null,"I.)  Identified Community\n(auto populated)","II.) Baseline existing starting point used for comparisons \n(%)","III.)  Target \n(%)","IV.)  Expected % change from baseline \n(Target %  auto calculated) ","V.)  Actual Results\n(%)","VI.)  Actual % change from baseline \n(% auto calculated) ","VII.) Performance target accuracy\n(% auto calculated)"]
[{"$nulls":8},{"$f":"IFERROR(ROUND((H43-G43)/G43,2),\"\")","v":""},null,{"$f":"IFERROR(ROUND((J43-G43)/G43,2),\"\")","v":""},{"$f":"IFERROR(ROUND((J43-G43)/(H43-G43),2),\"\")","v":""}]
[{"$nulls":8},{"$f":"IFERROR(ROUND((H44-G44)/G44,2),\"\")","v":""},null,{"$f":"IFERROR(ROUND((J44-G44)/G44,2),\"\")","v":""},{"$f":"IFERROR(ROUND((J44-G44)/(H44-G44),2),\"\")","v":""}]
[{"$nulls":8},{"$f":"IFERROR(ROUND((H45-G45)/G45,2),\"\")","v":""},null,{"$f":"IFERROR(ROUND((J45-G45)/G45,2),\"\")","v":""},{"$f":"IFERROR(ROUND((J45-G45)/(H45-G45),2),\"\")","v":""}]
[]
[null,"General comments:"]

{"sheet":"CNPIs G2 Civic Engagement","index":12,"n_rows":23,"n_cols":12,"rows_kept":23,"hidden":true,"merged":[[1,1,1,11],[2,1,2,11],[3,1,3,11],[4,1,4,3],[4,4,4,9],[5,1,5,3],[5,4,5,7],[8,1,11,1],[8,2,8,4],[9,2,9,4],[10,2,10,4],[11,2,11,4],[13,1,16,1],[13,2,13,4],[14,2,14,4],[15,2,15,4],[16,2,16,4],[18,1,21,1],[18,2,18,7],[19,2,19,7],[20,2,20,7],[21,2,21,7],[23,1,23,11]]}
[]
[null,"Module 3, Section B: Community National Performance Indicators (CNPIs) - Data Entry Form"]
[null,"Goal 2: Communities where people with low incomes live are healthy and offer economic opportunity."]
[null,"Civic Engagement and Community Involvement Indicators"]
[null,"Name of CSBG Eligible Entity: ",null,null,{"$f":"IF(M3AgencyName=\"\",\"\",M3AgencyName)","v":"Alabama Council on Human Relations, Inc."}]
[null,"State:",null,null,{"$f":"IF(M3StateName=\"\",\"\",M3StateName)","v":"Alabama"},{"$nulls":3},"UEI:",{"$f":"IF(M3UEI=\"\",\"\",M3UEI)","v":"183860386"}]
[]
[]
[null,"Rates of Change","Rates of Change for Civic Engagement and Community Involvement Indicators - Goal 2 (CNPI 6)",null,null,"I.)  Identified Community\n(auto-populated)","II.) Baseline existing starting point used for comparisons \n(%)","III.)  Target \n(%)","IV.)  Expected % change from baseline \n(Target %  auto calculated) ","V.)  Actual Results\n(%)","VI.)  Actual % change from baseline \n(% auto calculated) ","VII.) Performance target accuracy\n(% auto calculated)"]
[null,null,"CNPI 6 G2a Percent increase of donated time to support the CSBG Eligible Entity's delivery of services and/or implementation of strategies to address conditions of poverty in the identified community. ",{"$nulls":5},{"$f":"IFERROR(ROUND((H10-G10)/G10,2),\"\")","v":""},null,{"$f":"IFERROR(ROUND((J10-G10)/G10,2),\"\")","v":""},{"$f":"IFERROR(ROUND((J10-G10)/(H10-G10),2),\"\")","v":""}]
[null,null,"CNPI 6 G2b Percent increase of donated resources to support the CSBG Eligible Entity's delivery of services and/or implementation of strategies to address conditions of poverty in the identified community. ",{"$nulls":5},{"$f":"IFERROR(ROUND((H11-G11)/G11,2),\"\")","v":""},null,{"$f":"IFERROR(ROUND((J11-G11)/G11,2),\"\")","v":""},{"$f":"IFERROR(ROUND((J11-G11)/(H11-G11),2),\"\")","v":""}]
[null,null,"CNPI 6 G2c Percent increase of people participating in public hearings, policy forums, community planning, or other advisory boards related to the CSBG Eligible Entity's delivery of service and/or implementation of strategies to address conditions of poverty in the identified community.",{"$nulls":5},{"$f":"IFERROR(ROUND((H12-G12)/G12,2),\"\")","v":""},null,{"$f":"IFERROR(ROUND((J12-G12)/G12,2),\"\")","v":""},{"$f":"IFERROR(ROUND((J12-G12)/(H12-G12),2),\"\")","v":""}]
[]
[null,"Other Rates of Change","Other Rates of Change for Civic Engagement and Community Involvement Indicators - Goal 2 (CNPI 6 G2z)\n- Please specify below.",null,null,"I.)  Identified Community\n(auto-populated)","II.) Baseline existing starting point used for comparisons \n(%)","III.)  Target \n(%)","IV.)  Expected % change from baseline \n(Target %  auto calculated) ","V.)  Actual Results\n(%)","VI.)  Actual % change from baseline \n(% auto calculated) ","VII.) Performance target accuracy\n(% auto calculated)"]
[{"$nulls":8},{"$f":"IFERROR(ROUND((H15-G15)/G15,2),\"\")","v":""},null,{"$f":"IFERROR(ROUND((J15-G15)/G15,2),\"\")","v":""},{"$f":"IFERROR(ROUND((J15-G15)/(H15-G15),2),\"\")","v":""}]
[{"$nulls":8},{"$f":"IFERROR(ROUND((H16-G16)/G16,2),\"\")","v":""},null,{"$f":"IFERROR(ROUND((J16-G16)/G16,2),\"\")","v":""},{"$f":"IFERROR(ROUND((J16-G16)/(H16-G16),2),\"\")","v":""}]
[{"$nulls":8},{"$f":"IFERROR(ROUND((H17-G17)/G17,2),\"\")","v":""},null,{"$f":"IFERROR(ROUND((J17-G17)/G17,2),\"\")","v":""},{"$f":"IFERROR(ROUND((J17-G17)/(H17-G17),2),\"\")","v":""}]
[]
[null,"Other Counts of Change","Other Counts of Change for Civic Engagement and Community Involvement Indicators - Goal 2 (CNPI 6 G2z)\n- Please specify below.",{"$nulls":5},"I.)  Identified Community\n(auto populated)","II.)  Target \n(#)","III.)  Actual Results\n(#)","IV.) Performance target accuracy \n(% auto calculated)"]
[{"$nulls":11},{"$f":"IFERROR(ROUND(K20/J20,2),\"\")","v":""}]
[{"$nulls":11},{"$f":"IFERROR(ROUND(K21/J21,2),\"\")","v":""}]
[{"$nulls":11},{"$f":"IFERROR(ROUND(K22/J22,2),\"\")","v":""}]
[null,"General comments:"]

{"sheet":"CNPIs G3 Civic Engagement","index":13,"n_rows":22,"n_cols":12,"rows_kept":22,"hidden":true,"merged":[[1,1,1,11],[2,1,2,11],[3,1,3,11],[4,1,4,3],[4,4,4,9],[5,1,5,3],[5,4,5,7],[8,1,10,1],[8,2,8,4],[9,2,9,4],[10,2,10,4],[12,1,15,1],[12,2,12,4],[13,2,13,4],[14,2,14,4],[15,2,15,4],[17,1,20,1],[17,2,17,7],[18,2,18,7],[19,2,19,7],[20,2,20,7],[22,1,22,11]]}
[]
[null,"Module 3, Section B: Community National Performance Indicators (CNPIs) - Data Entry Form"]
[null,"Goal 3: People with low-incomes are engaged and active in building opportunities in communities."]
[null,"Civic Engagement and Community Involvement Indicators"]
[null,"Name of CSBG Eligible Entity: ",null,null,{"$f":"IF(M3AgencyName=\"\",\"\",M3AgencyName)","v":"Alabama Council on Human Relations, Inc."}]
[null,"State:",null,null,{"$f":"IF(M3StateName=\"\",\"\",M3StateName)","v":"Alabama"},{"$nulls":3},"UEI:",{"$f":"IF(M3UEI=\"\",\"\",M3UEI)","v":"183860386"}]
[]
[]
[null,"Rates of Change","Rates of Change for Civic Engagement and Community Involvement Indicators - Goal 3 (CNPI 6)",null,null,"I.)  Identified Community\n(auto-populated)","II.) Baseline existing starting point used for comparisons \n(%)","III.)  Target \n(%)","IV.)  Expected % change from baseline \n(Target %  auto calculated) ","V.)  Actual Results\n(%)","VI.)  Actual % change from baseline \n(% auto calculated) ","VII.) Performance target accuracy\n(% auto calculated)"]
[null,null,"CNPI 6 G3a Percent increase of people with low incomes who support the CSBG Eligible Entity's delivery of service and/or implementation of strategies to address conditions of poverty in the identified community. ",{"$nulls":5},{"$f":"IFERROR(ROUND((H10-G10)/G10,2),\"\")","v":""},null,{"$f":"IFERROR(ROUND((J10-G10)/G10,2),\"\")","v":""},{"$f":"IFERROR(ROUND((J10-G10)/(H10-G10),2),\"\")","v":""}]
[null,null,"CNPI 6 G3b Percent increase of people with low incomes who acquire and maintain leadership roles with the CSBG Eligible Entity or other organizations within the identified community. ",{"$nulls":5},{"$f":"IFERROR(ROUND((H11-G11)/G11,2),\"\")","v":""},null,{"$f":"IFERROR(ROUND((J11-G11)/G11,2),\"\")","v":""},{"$f":"IFERROR(ROUND((J11-G11)/(H11-G11),2),\"\")","v":""}]
[]
[null,"Other Rates of Change","Other Rates of Change for Civic Engagement and Community Involvement Indicators - Goal 3 (CNPI 6 G3z)\n- Please specify below.",null,null,"I.)  Identified Community\n(auto-populated)","II.) Baseline existing starting point used for comparisons \n(%)","III.)  Target \n(%)","IV.)  Expected % change from baseline \n(Target %  auto calculated) ","V.)  Actual Results\n(%)","VI.)  Actual % change from baseline \n(% auto calculated) ","VII.) Performance target accuracy\n(% auto calculated)"]
[{"$nulls":8},{"$f":"IFERROR(ROUND((H14-G14)/G14,2),\"\")","v":""},null,{"$f":"IFERROR(ROUND((J14-G14)/G14,2),\"\")","v":""},{"$f":"IFERROR(ROUND((J14-G14)/(H14-G14),2),\"\")","v":""}]
[{"$nulls":8},{"$f":"IFERROR(ROUND((#REF!-G15)/G15,2),\"\")","v":""},null,{"$f":"IFERROR(ROUND((J15-G15)/G15,2),\"\")","v":""},{"$f":"IFERROR(ROUND((J15-G15)/(#REF!-G15),2),\"\")","v":""}]
[{"$nulls":8},{"$f":"IFERROR(ROUND((H15-G16)/G16,2),\"\")","v":""},null,{"$f":"IFERROR(ROUND((J16-G16)/G16,2),\"\")","v":""},{"$f":"IFERROR(ROUND((J16-G16)/(H15-G16),2),\"\")","v":""}]
[]
[null,"Other Counts of Change","Other Counts of Change for Civic Engagement and Community Involvement Indicators - Goal 3 (CNPI 6 G3z)\n- Please specify below.",{"$nulls":5},"I.)  Identified Community\n(auto populated)","II.)  Target \n(#)","III.)  Actual Results\n(#)","IV.) Performance target accuracy \n(% auto calculated)"]
[{"$nulls":11},{"$f":"IFERROR(ROUND(K19/J19,2),\"\")","v":""}]
[{"$nulls":11},{"$f":"IFERROR(ROUND(K20/J20,2),\"\")","v":""}]
[{"$nulls":11},{"$f":"IFERROR(ROUND(K21/J21,2),\"\")","v":""}]
[null,"General comments:"]

{"sheet":"CNPIs List","index":14,"n_rows":156,"n_cols":2,"rows_kept":156}
[]
[null,"Module 3, Section B. Community National Performance Indicators (Indicators)"]
[]
[null,"Employment Indicators (CNPI 1)"]
["CNPI 1"," Counts of Change for Employment Indicators"]
["CNPI 1a","Number of jobs created to increase opportunities for people with low incomes in the identified community."]
["CNPI 1b","Number of job opportunities maintained in the identified community.            "]
["CNPI 1c","Number of “living wage ” jobs created in the identified community."]
["CNPI 1d","Number of “living wage”  jobs maintained in the  identified community. "]
["CNPI 1e","Number of jobs created in the identified community with a benefit package. "]
["CNPI 1z"," Other Counts of Change for Employment Indicators - Please specify below"]
["CNPI 1z.1","Other"]
["CNPI 1z.2","Other"]
["CNPI 1z.3","Other"]
["CNPI 1","Rates of Change for Employment Indicators"]
["CNPI 1f","Percent decrease of the unemployment rate."]
["CNPI 1g","Percent decrease of the youth unemployment rate."]
["CNPI 1h","Percent decrease of the underemployment rate."]
["CNPI 1z","Other Rates of Change for Employment Indicators"]
["CNPI 1z.4","Other"]
["CNPI 1z.5","Other"]
["CNPI 1z.6","Other"]
[]
[null,"Education and Cognitive Development Indicators (CNPI 2)"]
["CNPI 2","Counts of Change for Education and Cognitive Development Indicators"]
["CNPI 2a","Number of accessible and affordable early childhood or pre-school education assets or resource added to the identified community. "]
["CNPI 2b","Number of accredited or licensed affordable child care facilities added in the identified community. "]
["CNPI 2c","Number of new Early Childhood Screenings offered to children (ages 0-5) of families with low-incomes in the identified community. "]
["CNPI 2d","Number of accessible and affordable education assets or resources added for school age children in the identified community.  (e.g., academic, enrichment activities, before/after school care, summer programs)"]
["CNPI 2e","Number of accessible and affordable post secondary education assets or resources added for newly graduating youth in the identified community.  (e.g. college tuition, scholarships, vocational training, etc.)"]
["CNPI 2f","Number of accessible and affordable basic or secondary education assets or resources added for adults in the identified community.  (e.g. literacy, ESL, ABE/GED, etc.) "]
["CNPI 2z","Other Counts of Change for Education and Cognitive Development Indicators - Please specify below."]
["CNPI 2z.1","Other"]
["CNPI 2z.2","Other"]
["CNPI 2z.3","Other"]
["CNPI 2","Rates of Change for Education and Cognitive Development Indicators"]
["CNPI 2g","Percent increase of children in the identified community who are kindergarten ready. "]
["CNPI 2h","Percent increase of children in the identified community at (or above) the basic reading level."]
["CNPI 2i","Percent increase of children in the identified community at (or above) the basic math level."]
["CNPI 2j","Percent increase in high school (or high school equivalency) graduation rate in the  identified community."]
["CNPI 2k","Percent increase of the rate of youth in the identified community  who attend post-secondary education."]
["CNPI 2l","Percent increase of the rate of youth in the identified community who graduate from post-secondary education. "]
["CNPI 2m","Percent increase of adults in the identified community who attend post-secondary education. "]
["CNPI 2n","Percent increase of adults in the  identified community who graduate from post-secondary education."]
["CNPI 2o","Percent increase in the adult literacy rate in the identified community. "]
["CNPI 2z","Other Rates of Change for Education and Cognitive Development Indicators - Please specify below."]
["CNPI 2z.4","Other"]
["CNPI 2z.5","Other"]
["CNPI 2z.6","Other"]
[]
[null,"Infrastructure and Asset Building Indicators (CNPI 3)"]
["CNPI 3","Counts of Change for Infrastructure and Asset Building Indicators"]
["CNPI 3a","Number of new accessible assets/resources created in the identified community:"]
["CNPI 3a.1"," Commercial"]
["CNPI 3a.2"," Financial"]
["CNPI 3a.3"," Technological/ Communications (e.g. broadband)"]
["CNPI 3a.4"," Transportation"]
["CNPI 3a.5"," Recreational (e.g. parks, gardens, libraries)"]
["CNPI 3a.6"," Other Public Assets/Physical Improvements"]
["CNPI 3b"," Number of existing assets/resources made accessible to the identified community:"]
["CNPI 3b.1","  Commercial"]
["CNPI 3b.2","  Financial"]
["CNPI 3b.3","  Technological/ Communications (e.g. broadband)"]
["CNPI 3b.4","  Transportation"]
["CNPI 3c"," Recreational (e.g. parks, gardens, libraries)"]
["CNPI 3d"," Other Public Assets/Physical Improvements"]
["CNPI 3z"," Other Counts of Change for Infrastructure and Asset Building Indicators - Please specify below."]
["CNPI 3z.1","Other"]
["CNPI 3z.2","Other"]
["CNPI 3z.3","Other"]
["CNPI 3","Rates of Change for Infrastructure and Asset Building Indicators"]
["CNPI 3e","Percent decrease of abandoned or neglected buildings in the identified community."]
["CNPI 3f","Percent decrease in emergency response time measured in minutes in the identified community. (EMT, Police, Fire, etc.)."]
["CNPI 3g","Percent decrease of predatory lenders and/or lending practices in the identified community."]
["CNPI 3h","Percent decrease of environmental threats to households (toxic soil, radon, lead, air quality, quality of drinking water, etc.) in the identified community."]
["CNPI 3i","Percent increase of transportation services in the identified community."]
["CNPI 3z","Other Rates of Change for Infrastructure and Asset Building Indicators - Please specify below."]
["CNPI 3z.4"," Other"]
["CNPI 3z.5"," Other"]
["CNPI 3z.6"," Other"]
[]
[null,"Housing Indicators (CNPI 4)"]
["CNPI 4"," Counts of Change for Housing Indicators"]
["CNPI 4a","Number of safe and affordable housing units developed in the identified community (e.g. built or set aside units for people with low incomes)."]
["CNPI 4b","Number of safe and affordable housing units maintained  and/or improved through WAP or other rehabilitation efforts in the identified community. "]
["CNPI 4c","Number of shelter beds created in the identified community. "]
["CNPI 4d","Number of shelter beds maintained in the identified community. "]
["CNPI 4z"," Other Counts of Change for Housing Indicators - Please specify below."]
["CNPI 4z.1","Other"]
["CNPI 4z.2","Other"]
["CNPI 4z.3","Other"]
["CNPI 4","Rates of Change for Housing Indicators"]
["CNPI 4e","Percent decrease in the rate of homelessness in the identified community. "]
["CNPI 4f","Percent decrease in the foreclosure rate in the identified community."]
["CNPI 4g","Percent increase in the rate of home ownership of people with low incomes in the identified community."]
["CNPI 4h","Percent increase of affordable housing in the identified community."]
["CNPI 4i","Percent increase of shelter beds in the identified community."]
["CNPI 4z"," Other Rates of Change for Housing Indicators - Please specify below."]
["CNPI 4z.4","Other"]
["CNPI 4z.5","Other"]
["CNPI 4z.6","Other"]
[]
[null,"Health and Social/Behavioral Indicators (CNPI 5)"]
["CNPI 5"," Counts of Change for Health and Social/Behavioral Indicators"]
["CNPI 5a","Number of accessible and affordable physical health assets or resources created in the identified community. "]
["CNPI 5b","Number of accessible and affordable behavioral and mental health assets or resources created in the identified community."]
["CNPI 5c","Number of public safety assets and resources created in the identified community.   "]
["CNPI 5d","Number of accessible and affordable healthy food resources created in the identified community."]
["CNPI 5e","Number of activities designed to improve police and community relations within the identified community."]
["CNPI 5z"," Other Counts of Change for Health and Social/Behavioral Indicators- Please specify below."]
["CNPI 5z.1","Other"]
["CNPI 5z.2","Other"]
["CNPI 5z.3","Other"]
["CNPI 5"," Rates of Change for Physical Health, Wellbeing, and Development Indicators"]
["CNPI 5f"," Percent decrease in infant mortality rate in the identified community."]
["CNPI 5g"," Percent decrease in childhood obesity rate in the identified community. "]
["CNPI 5h"," Percent decrease in adult obesity rate in the identified community."]
["CNPI 5i"," Percent increase in child immunization rate in the identified community. "]
["CNPI 5j"," Percent decrease in uninsured families in the identified community. "]
["CNPI 5","Rates of Change for Behavioral and Mental health, Emotional Wellbeing, and Development Indicators"]
["CNPI 5k"," Percent decrease in the teen pregnancy rate in the identified community."]
["CNPI 5l"," Percent decrease in unplanned pregnancies in the identified community."]
["CNPI 5m"," Percent decrease in substance abuse rate in the identified community.(e.g. cigarettes, prescription drugs, narcotics, alcohol). "]
["CNPI 5n"," Percent decrease in domestic violence rate in the identified community."]
["CNPI 5o"," Percent decrease in the child abuse rate in the identified community."]
["CNPI 5p"," Percent decrease in the child neglect rate in the identified community."]
["CNPI 5q"," Percent decrease in the elder abuse rate in the identified community. "]
["CNPI 5r"," Percent decrease in the elder neglect rate in the identified community. "]
["CNPI 5","Rates of Change for Public Safety Indicators"]
["CNPI 5s"," Percent decrease in recidivism rate in the identified community."]
["CNPI 5t"," Percent decrease in non-violent crime rate in the identified community."]
["CNPI 5u"," Percent decrease in violent crime rate in the identified community."]
["CNPI 5v"," Percent decrease in teens involved with the juvenile court system in the identified community."]
["CNPI 5","Other Rates of Change for Health and Social/Behavioral Indicators - Please specify below."]
["CNPI 5z.4","Other"]
["CNPI 5z.5","Other"]
["CNPI 5z.6","Other"]
[]
[null,"Civic Engagement and Community Involvement Indicators - Goal 2 (CNPI 6 G2)"]
["CNPI 6","Rates of Change for Civic Engagement and Community Involvement Indicators - Goal 2"]
["CNPI 6 G2a","Percent increase of donated time to support the CSBG Eligible Entity's delivery of services and/or implementation of strategies to address conditions of poverty in the identified community. "]
["CNPI 6 G2b","Percent increase of donated resources to support the CSBG Eligible Entity's delivery of services and/or implementation of strategies to address conditions of poverty in the identified community. "]
["CNPI 6 G2c"," Percent increase of people participating in public hearings, policy forums, community planning, or other advisory boards related to the CSBG Eligible Entity's delivery of service and/or implementation of strategies to address conditions of poverty in the identified community."]
["CNPI 62z","Other Rates of Change for Civic Engagement and Community Involvement Indicators - Goal 2"]
["CNPI 6 G2z.1","Other"]
["CNPI 6 G2z.2","Other"]
["CNPI 6 G2z.3","Other"]
[]
[null,"Civic Engagement and Community Involvement Indicators - Goal 3 (CNPI 6 G3)"]
["CNPI 6","Rates of Change for Civic Engagement and Community Involvement Indicators - Goal 3"]
["CNPI 6 G3a ","Percent increase of people with low incomes who support the CSBG Eligible Entity's delivery of service and/or implementation of strategies to address conditions of poverty in the identified community. "]
["CNPI 6 G3b","Percent increase of people with low incomes who acquire and maintain leadership roles with the CSBG Eligible Entity or other organizations within the identified community. "]
["CNPI 63z","Other Rates of Change for Civic Engagement and Community Involvement Indicators - Goal 3"]
["CNPI 6 G3z.1","Other"]
["CNPI 6 G3z.2","Other"]
["CNPI 6 G3z.3","Other"]

{"sheet":"Strategies List","index":15,"n_rows":112,"n_cols":2,"rows_kept":112}
[]
[null,"Module 3, Section C: Community Strategies List"]
[]
[null,"Employment Strategies (STR 1)"]
["STR 1a","Minimum/Living Wage Campaign "]
["STR 1b","Job Creation/Employment Generation "]
["STR 1c","Job Fairs"]
["STR 1d","Earned Income Tax Credit (EITC) Promotion"]
["STR 1e","Commercial Space Development"]
["STR 1f","Employer Education "]
["STR 1g","Employment Policy Changes"]
["STR 1h","Employment Legislative Changes"]
["STR 1i","Other Employment Strategy: (please specify)"]
[]
[null,"Education and Cognitive Development Strategies (STR 2)"]
["STR 2a","Preschool for All Campaign"]
["STR 2b","Charter School Development"]
["STR 2c","After School Enrichment Activities Promotion"]
["STR 2d","Pre K-College/Community College Support "]
["STR 2e","Children’s Trust Fund Creation"]
["STR 2f","Scholarship Creation"]
["STR 2g","Child Tax Credit (CTC) Promotion "]
["STR 2h","Adoption Child Care Quality Rating "]
["STR 2i","Adult Education Establishment"]
["STR 2j","Education and Cognitive Development Policy Changes"]
["STR 2k","Education and Cognitive Development Legislative Changes"]
["STR 2l","Other Education and Cognitive Development Strategy: (please specify)"]
[]
[null,"Infrastructure and Asset Building Strategies (STR 3)"]
["STR 3a","Cultural Asset Creation"]
["STR 3b","Police/Community Relations Campaign"]
["STR 3c","Neighborhood Safety Watch Programs"]
["STR 3d","Anti-Predatory Lending Campaign"]
["STR 3e","Asset Building and Savings Promotion "]
["STR 3f","Develop/Build/Rehab Spaces  "]
["STR 3g","Maintain or Host Income Tax Preparation Sites"]
["STR 3h","Community-Wide Data Collection Systems Development"]
["STR 3i","Local 211 or Resource/Referral System Development"]
["STR 3j","Water/Sewer System Development "]
["STR 3k","Community Financial Institution Creation"]
["STR 3l","Infrastructure Planning Coalition"]
["STR 3m","Park or Recreation Creation and Maintenance "]
["STR 3n","Rehabilitation/Weatherization of Housing Stock  "]
["STR 3o","Community Center/Community Facility Establishment"]
["STR 3p","Asset Limit Barriers for Benefits Policy Changes"]
["STR 3q","Infrastructure and Asset Building Policy Changes"]
["STR 3r","Infrastructure and Asset Building Legislative Changes"]
["STR 3s","Other Infrastructure and Asset Building Strategy: (please specify)"]
[]
[null,"Housing Strategies (STR 4)"]
["STR 4a","End Chronic Homelessness Campaign"]
["STR 4b","New Affordable Single Unit Housing Creation "]
["STR 4c","New Affordable Multi- Unit Housing Creation (Single Resident Occupancy (SRO), temporary housing, transitional housing)"]
["STR 4d","Tenants’ Rights Campaign"]
["STR 4e","New Shelters Creation (including day shelters and domestic violence shelters)"]
["STR 4f","Housing or Land Trust Creation"]
["STR 4g","Building Codes Campaign"]
["STR 4h","Housing Policy Changes"]
["STR 4i","Housing Legislative Changes "]
["STR 4j","Other Housing Strategy: (please specify)"]
[]
[null,"Health and Social/Behavioral Development Strategies (STR 5)"]
["STR 5a","Health Specific Campaign"]
["STR 5b","Farmers Market or Community Garden Development"]
["STR 5c","Grocery Store Development"]
["STR 5d","Gun Safety/Control Campaign"]
["STR 5e","Healthy Food Campaign"]
["STR 5f","Nutrition Education Collaborative"]
["STR 5g","Food Bank Development"]
["STR 5h","Domestic Violence Court Development"]
["STR 5i","Drug Court Development"]
["STR 5j","Alternative Energy Source Development"]
["STR 5k","Develop or Maintain a Health Clinic"]
["STR 5l","Health and Social/Behavioral Development Policy Changes"]
["STR 5m","Health and Social/Behavioral Development Legislative Changes"]
["STR 5n","Other Health and Social/Behavioral Development Strategy: (please specify)"]
[]
[null,"Civic Engagement and Community Involvement Strategies - Goal 2 (STR 6 G2)"]
["STR 6 G2a","Development of Health and Social Service Provider Partnerships "]
["STR 6 G2b","Recruiting and Coordinating Community Volunteers"]
["STR 6 G2c","Poverty Simulations"]
["STR 6 G2d","Attract Capital Investments"]
["STR 6 G2e","Coordinated Community-wide Needs Assessment"]
["STR 6 G2f","Civic Engagement and Community Involvement in Advocacy Efforts"]
["STR 6 G2g","Civic Engagement Policy Changes "]
["STR 6 G2h","Civic Engagement Legislative Changes "]
["STR 6 G2i","Other Civic Engagement and Community Involvement Strategy: (please specify)"]
[]
[null,"Civic Engagement and Community Involvement Strategies - Goal 3 (STR 6 G3)"]
["STR 6 G3a","Empowerment of Individuals/Families with Low-Incomes "]
["STR 6 G3b","Campaign to Ensure Individuals with Low-Incomes are Represented on Local Governing Bodies "]
["STR 6 G3c","Social Capital Building Campaign for Individuals/Families with Low-Incomes"]
["STR 6 G3d","Campaign for Volunteer Placement and Coordination "]
["STR 6 G3e","Civic Engagement Policy Changes "]
["STR 6 G3f","Civic Engagement Legislative Changes "]
["STR 6 G3g","Other Civic Engagement and Community Involvement Strategy: (please specify)"]
[]
[null,"Community Support Strategies (STR 7)"]
["STR 7a","Off-Hours (Non-Traditional Hours) Child Care Development"]
["STR 7b","Transportation System Development"]
["STR 7c","Transportation Services Coordination and Support"]
["STR 7d","Community Support Policy Changes"]
["STR 7e","Community Support Legislative Changes "]
["STR 7f","Other Community Support Strategy: (please specify)"]
[]
[null,"Emergency Management Strategies (STR 8)"]
["STR 8a","State or Local Emergency Management Board Enhancement"]
["STR 8b","Community-wide Emergency Disaster Relief Service Creation"]
["STR 8c","Disaster Preparation Planning"]
["STR 8d","Emergency Management Policy Changes"]
["STR 8e","Emergency Management Legislative Changes "]
["STR 8f","Other Emergency Management Strategy: (please specify)"]

{"sheet":"XML Export Map","index":16,"n_rows":850,"n_cols":21,"rows_kept":850,"hidden":true}
[{"$nulls":8},"Field is set by code",{"$nulls":10},"M3B1",{"$f":"_xlfn.XLOOKUP(T1&\"TRUE\",I:I,I:I,\"\")<>\"\"","v":false}]
["Question/Reference","Smartform Range Name","Address","Value","Type","XML Export Name for DB","Max Length","Other","Form Control Name",null,{"$f":"FIND(\"]\",L2)","v":36},{"$f":"CELL(\"address\",INDIRECT(B5))","v":"'[Module 3 SmartForm - 2024-25.xlsm]Status Form'!$C$4"},{"$nulls":7},"M3B2",false]
[{"$nulls":8},"Field can be changed by NASCSP",{"$nulls":10},"M3B3",false]
["leadAgency","M3LeadAgency","=\"XML Export Map\"!$D$4",null,"Text","M3LeadAgency",100,{"$nulls":12},"M3B4",false]
["State Name","M3StateName",{"$f":"\"'='\" & MID(CELL(\"address\",INDIRECT(B5)),$K$2+1,100)","v":"'='Status Form'!$C$4"},{"$f":"M3StateName","v":"Alabama"},"Text","M3StateName",{"$nulls":13},"M3B5",false]
["Agency Name","M3AgencyName",{"$f":"\"'='\" & MID(CELL(\"address\",INDIRECT(B6)),$K$2+1,100)","v":"'='Status Form'!$C$3"},{"$f":"M3AgencyName","v":"Alabama Council on Human Relations, Inc."},"Text","M3AgencyName",{"$nulls":13},"M3B6",false]
["orgAbbrev","M3OrgAbbrev","=\"XML Export Map\"!$D$7","ACF","Text","M3OrgAbbrev"]
["programAcronym","M3ProgramAcronym","=\"XML Export Map\"!$D$8","CSBG","Text","M3ProgramAcronym"]
["UEI Number","M3UEI",{"$f":"\"'='\" & MID(CELL(\"address\",INDIRECT(B9)),$K$2+1,100)","v":"'='Status Form'!$E$4"},{"$f":"M3UEI","v":"183860386"},"Text","M3UEI"]
["reportPeriodStartDate","M3ReportPeriodStartDate","=\"XML Export Map\"!$D$10",null,"Date","M3ReportPeriodStartDate",null,"(Format:YYYY-MM-DD)"]
["reportPeriodEndDate","M3ReportPeriodEndDate","=\"XML Export Map\"!$D$11",null,"Date","M3ReportPeriodEndDate",null,"(Format:YYYY-MM-DD)"]
["grantNumber","M3GrantNumber","=\"XML Export Map\"!$D$12",null,"Text","M3GrantNumber"]
["subGrantee",null,null,true,"True/False","M3SubGrantee"]
["1. Initiative Name","M3A1InitiativeName",{"$f":"\"'='\" & MID(CELL(\"address\",INDIRECT(B14)),$K$2+1,100)","v":"'='Status Form'!$C$10"},{"$f":"M3A1InitiativeName","v":"Enter initiative name."},"Memo","M3A1InitiativeName",500]
["2. Initiative Year\n","M3A2InitiativeYear",{"$f":"\"'='\" & MID(CELL(\"address\",INDIRECT(B15)),$K$2+1,100)","v":"'='Status Form'!$C$11"},{"$f":"M3A2InitiativeYear","v":"Select the Initiative Year"},"DropDown","M3A2InitiativeYear"]
["3. Problem Identification\n","M3A3ProblemID",{"$f":"\"'='\" & MID(CELL(\"address\",INDIRECT(B16)),$K$2+1,100)","v":"'='Status Form'!$C$12"},{"$f":"M3A3ProblemID","v":0},"Memo","M3A3ProblemID",5000]
["4. Goal/Agenda ","M3A4Goal",{"$f":"\"'='\" & MID(CELL(\"address\",INDIRECT(B17)),$K$2+1,100)","v":"'='Status Form'!$C$13"},{"$f":"M3A4Goal","v":"Provide a narrative of the initiative’s overall goal."},"Memo","M3A4Goal",5000]
["5. Issue/CSBG Community Domains \n"]
["cbA5_Civic","cbA5_Civic",null,false,"True/False","M3A5fCivicEng"]
["cbA5_Education","cbA5_Education",null,false,"True/False","M3A5bEducation"]
["cbA5_Employment","cbA5_Employment",null,true,"True/False","M3A5aEmployment"]
["cbA5_Health","cbA5_Health",null,true,"True/False","M3A5eHealth"]
["cbA5_Housing","cbA5_Housing",null,false,"True/False","M3A5dHousing"]
["cbA5_Inf","cbA5_Inf",null,false,"True/False","M3A5hInfastructure"]
["6. Ultimate Expected Outcome ","M3_A6_Outcomes",{"$f":"\"'='\" & MID(CELL(\"address\",INDIRECT(B25)),$K$2+1,100)","v":"'='Status Form'!$C$15"}]
["7. Identified Community\n","M3A7Community",{"$f":"\"'='\" & MID(CELL(\"address\",INDIRECT(B26)),$K$2+1,100)","v":"'='Status Form'!$C$16"},{"$f":"M3A7Community","v":"Select the Identified Community"},"DropDown","M3A7Community"]
["7. Identified Community - Other","M3A7CommunityOther",{"$f":"\"'='\" & MID(CELL(\"address\",INDIRECT(B27)),$K$2+1,100)","v":"'='Status Form'!$D$17"},{"$f":"M3A7CommunityOther","v":0},"Text","M3A7CommunityOther",1000]
["8. Expected Duration","M3A8Duration",{"$f":"\"'='\" & MID(CELL(\"address\",INDIRECT(B28)),$K$2+1,100)","v":"'='Status Form'!$C$18"},{"$f":"M3A8Duration","v":"Enter the number of years that the initiative is expected to operate. "},"Memo","M3A8Duration",5000]
["9. Partnership Type\n","M3A9PartnerType",{"$f":"\"'='\" & MID(CELL(\"address\",INDIRECT(B29)),$K$2+1,100)","v":"'='Status Form'!$C$19"},{"$f":"M3A9PartnerType","v":"Select the Partnership Type"},"DropDown","M3A9PartnerType"]
["10. Partners\n","M3A10Partners",{"$f":"\"'='\" & MID(CELL(\"address\",INDIRECT(B30)),$K$2+1,100)","v":"'='Status Form'!$C$20"},{"$f":"M3A10Partners","v":"Provide a brief narrative on 1 – 3 partners."},"Memo","M3A10Partners",5000]
["11. Strategy(ies)","M3_A11_Strategy",{"$f":"\"'='\" & MID(CELL(\"address\",INDIRECT(B31)),$K$2+1,100)","v":"'='Status Form'!$C$21"}]
["12. Progress on Outcomes/Indicators","M3A12Progress",{"$f":"\"'='\" & MID(CELL(\"address\",INDIRECT(B32)),$K$2+1,100)","v":"'='Status Form'!$C$22"},{"$f":"M3A12Progress","v":"Select the Progress on Outcomes/Indicators"},"DropDown","M3A12Progress"]
["13. Impact of Outcomes","M3A13Impact",{"$f":"\"'='\" & MID(CELL(\"address\",INDIRECT(B33)),$K$2+1,100)","v":"'='Status Form'!$C$23"},{"$f":"M3A13Impact","v":"Provide a narrative on the outcomes’ scope of impact if interim or final outcomes are reported."},"Memo","M3A13Impact",5000]
["14. Outcomes/Indicators to Report","M3_A14_Reported",{"$f":"\"'='\" & MID(CELL(\"address\",INDIRECT(B34)),$K$2+1,100)","v":"'='Status Form'!$C$24"}]
["15. Final Status\n","M3A15Status",{"$f":"\"'='\" & MID(CELL(\"address\",INDIRECT(B35)),$K$2+1,100)","v":"'='Status Form'!$C$25"},{"$f":"M3A15Status","v":"Select the Final Status"},"DropDown","M3A15Status"]
["16. Lessons Learned\n","M3A16Lessons",{"$f":"\"'='\" & MID(CELL(\"address\",INDIRECT(B36)),$K$2+1,100)","v":"'='Status Form'!$C$26"},{"$f":"M3A16Lessons","v":"Provide a narrative on any lessons learned during the implementation of the initiative."},"Memo","M3A16Lessons",5000]
["Does this Include CSBG Funds","M3IncludesCSBGFunds",{"$f":"\"'='\" & MID(CELL(\"address\",INDIRECT(B37)),$K$2+1,100)","v":"'='Lookups'!$N$35"},{"$f":"M3IncludesCSBGFunds","v":0},"Text","M3IncludesCSBGFunds"]
["Does this Include CSBG Cares","M3IncludesCSBGCares",{"$f":"\"'='\" & MID(CELL(\"address\",INDIRECT(B38)),$K$2+1,100)","v":"'='Lookups'!$N$33"},{"$f":"M3IncludesCSBGCares","v":0},"Text","M3IncludesCSBGCares"]
["Does this Include CSBG Disaster","M3IncludesCSBGDisaster",{"$f":"\"'='\" & MID(CELL(\"address\",INDIRECT(B39)),$K$2+1,100)","v":"'='Lookups'!$N$35"},{"$f":"M3IncludesCSBGDisaster","v":0},"Text","M3IncludesCSBGDisaster"]
["Reporting Status","M3ReportingStatus",{"$f":"\"'='\" & MID(CELL(\"address\",INDIRECT(B40)),$K$2+1,100)","v":"'='Status Form'!$C$8"},{"$f":"M3ReportingStatus","v":"Select the Reporting Status"},"Text","M3ReportingStatus"]
["M3B2aPreSchoolTarget","M3B2aPreSchoolTarget",{"$f":"\"'='\" & MID(CELL(\"address\",INDIRECT(B41)),$K$2+1,100)","v":"'='CNPIs Education'!$J$9"},{"$f":"M3B2aPreSchoolTarget","v":0},"Number","M3B2aPreSchoolTarget",null,null,{"$f":"LEFT(A41,4) & AND(D41<>\"\",D41<>0)","v":"M3B2FALSE"}]
["M3B2aPreSchoolResults","M3B2aPreSchoolResults",{"$f":"\"'='\" & MID(CELL(\"address\",INDIRECT(B42)),$K$2+1,100)","v":"'='CNPIs Education'!$K$9"},{"$f":"M3B2aPreSchoolResults","v":0},"Number","M3B2aPreSchoolResults",null,null,{"$f":"LEFT(A42,4) & AND(D42<>\"\",D42<>0)","v":"M3B2FALSE"}]
["M3B2aPreSchoolAccuracy","M3B2aPreSchoolAccuracy",{"$f":"\"'='\" & MID(CELL(\"address\",INDIRECT(B43)),$K$2+1,100)","v":"'='CNPIs Education'!$L$9"},{"$f":"M3B2aPreSchoolAccuracy","v":""},"Number","M3B2aPreSchoolAccuracy",null,null,"M3B2FALSE"]
["M3B2bAffordCareTarget","M3B2bAffordCareTarget",{"$f":"\"'='\" & MID(CELL(\"address\",INDIRECT(B44)),$K$2+1,100)","v":"'='CNPIs Education'!$J$10"},{"$f":"M3B2bAffordCareTarget","v":0},"Number","M3B2bAffordCareTarget",null,null,"M3B2FALSE"]
["M3B2bAffordCareResults","M3B2bAffordCareResults",{"$f":"\"'='\" & MID(CELL(\"address\",INDIRECT(B45)),$K$2+1,100)","v":"'='CNPIs Education'!$K$10"},{"$f":"M3B2bAffordCareResults","v":0},"Number","M3B2bAffordCareResults",null,null,"M3B2FALSE"]
["M3B2bAffordCareAccuracy","M3B2bAffordCareAccuracy",{"$f":"\"'='\" & MID(CELL(\"address\",INDIRECT(B46)),$K$2+1,100)","v":"'='CNPIs Education'!$L$10"},{"$f":"M3B2bAffordCareAccuracy","v":""},"Number","M3B2bAffordCareAccuracy",null,null,"M3B2FALSE"]
["M3B2cScreeningsTarget","M3B2cScreeningsTarget",{"$f":"\"'='\" & MID(CELL(\"address\",INDIRECT(B47)),$K$2+1,100)","v":"'='CNPIs Education'!$J$11"},{"$f":"M3B2cScreeningsTarget","v":0},"Number","M3B2cScreeningsTarget",null,null,"M3B2FALSE"]
["M3B2cScreeningsResults","M3B2cScreeningsResults",{"$f":"\"'='\" & MID(CELL(\"address\",INDIRECT(B48)),$K$2+1,100)","v":"'='CNPIs Education'!$K$11"},{"$f":"M3B2cScreeningsResults","v":0},"Number","M3B2cScreeningsResults",null,null,"M3B2FALSE"]
["M3B2cScreeningsAccuracy","M3B2cScreeningsAccuracy",{"$f":"\"'='\" & MID(CELL(\"address\",INDIRECT(B49)),$K$2+1,100)","v":"'='CNPIs Education'!$L$11"},{"$f":"M3B2cScreeningsAccuracy","v":""},"Number","M3B2cScreeningsAccuracy",null,null,"M3B2FALSE"]
["M3B2dSchoolAgeTarget","M3B2dSchoolAgeTarget",{"$f":"\"'='\" & MID(CELL(\"address\",INDIRECT(B50)),$K$2+1,100)","v":"'='CNPIs Education'!$J$12"},{"$f":"M3B2dSchoolAgeTarget","v":0},"Number","M3B2dSchoolAgeTarget",null,null,"M3B2FALSE"]
["M3B2dSchoolAgeResults","M3B2dSchoolAgeResults",{"$f":"\"'='\" & MID(CELL(\"address\",INDIRECT(B51)),$K$2+1,100)","v":"'='CNPIs Education'!$K$12"},{"$f":"M3B2dSchoolAgeResults","v":0},"Number","M3B2dSchoolAgeResults",null,null,"M3B2FALSE"]
["M3B2dSchoolAgeAccuracy","M3B2dSchoolAgeAccuracy",{"$f":"\"'='\" & MID(CELL(\"address\",INDIRECT(B52)),$K$2+1,100)","v":"'='CNPIs Education'!$L$12"},{"$f":"M3B2dSchoolAgeAccuracy","v":""},"Number","M3B2dSchoolAgeAccuracy",null,null,"M3B2FALSE"]
["M3B2ePostSecondaryTarget","M3B2ePostSecondaryTarget",{"$f":"\"'='\" & MID(CELL(\"address\",INDIRECT(B53)),$K$2+1,100)","v":"'='CNPIs Education'!$J$13"},{"$f":"M3B2ePostSecondaryTarget","v":0},"Number","M3B2ePostSecondaryTarget",null,null,"M3B2FALSE"]
["M3B2ePostSecondaryResults","M3B2ePostSecondaryResults",{"$f":"\"'='\" & MID(CELL(\"address\",INDIRECT(B54)),$K$2+1,100)","v":"'='CNPIs Education'!$K$13"},{"$f":"M3B2ePostSecondaryResults","v":0},"Number","M3B2ePostSecondaryResults",null,null,"M3B2FALSE"]
["M3B2ePostSecondaryAccuracy","M3B2ePostSecondaryAccuracy",{"$f":"\"'='\" & MID(CELL(\"address\",INDIRECT(B55)),$K$2+1,100)","v":"'='CNPIs Education'!$L$13"},{"$f":"M3B2ePostSecondaryAccuracy","v":""},"Number","M3B2ePostSecondaryAccuracy",null,null,"M3B2FALSE"]
["M3B2fBasicEdTarget","M3B2fBasicEdTarget",{"$f":"\"'='\" & MID(CELL(\"address\",INDIRECT(B56)),$K$2+1,100)","v":"'='CNPIs Education'!$J$14"},{"$f":"M3B2fBasicEdTarget","v":0},"Number","M3B2fBasicEdTarget",null,null,"M3B2FALSE"]
["M3B2fBasicEdResults","M3B2fBasicEdResults",{"$f":"\"'='\" & MID(CELL(\"address\",INDIRECT(B57)),$K$2+1,100)","v":"'='CNPIs Education'!$K$14"},{"$f":"M3B2fBasicEdResults","v":0},"Number","M3B2fBasicEdResults",null,null,"M3B2FALSE"]
["M3B2fBasicEdAccuracy","M3B2fBasicEdAccuracy",{"$f":"\"'='\" & MID(CELL(\"address\",INDIRECT(B58)),$K$2+1,100)","v":"'='CNPIs Education'!$L$14"},{"$f":"M3B2fBasicEdAccuracy","v":""},"Number","M3B2fBasicEdAccuracy",null,null,"M3B2FALSE"]
["M3B2z1OtherEdCogDev1Name","M3B2z1OtherEdCogDev1Name",{"$f":"\"'='\" & MID(CELL(\"address\",INDIRECT(B59)),$K$2+1,100)","v":"'='CNPIs Education'!$C$17"},{"$f":"M3B2z1OtherEdCogDev1Name","v":0},"Text","M3B2z1OtherEdCogDev1Name",1000,null,"M3B2FALSE"]
["M3B2z1OtherEdCogDev1Target","M3B2z1OtherEdCogDev1Target",{"$f":"\"'='\" & MID(CELL(\"address\",INDIRECT(B60)),$K$2+1,100)","v":"'='CNPIs Education'!$J$17"},{"$f":"M3B2z1OtherEdCogDev1Target","v":0},"Number","M3B2z1OtherEdCogDev1Target",null,null,"M3B2FALSE"]
["M3B2z1OtherEdCogDev1Results","M3B2z1OtherEdCogDev1Results",{"$f":"\"'='\" & MID(CELL(\"address\",INDIRECT(B61)),$K$2+1,100)","v":"'='CNPIs Education'!$K$17"},{"$f":"M3B2z1OtherEdCogDev1Results","v":0},"Number","M3B2z1OtherEdCogDev1Results",null,null,"M3B2FALSE"]
["M3B2z1OtherEdCogDev1Accuracy","M3B2z1OtherEdCogDev1Accuracy",{"$f":"\"'='\" & MID(CELL(\"address\",INDIRECT(B62)),$K$2+1,100)","v":"'='CNPIs Education'!$L$17"},{"$f":"M3B2z1OtherEdCogDev1Accuracy","v":""},"Number","M3B2z1OtherEdCogDev1Accuracy",null,null,"M3B2FALSE"]
["M3B2z2OtherEdCogDev2Name","M3B2z2OtherEdCogDev2Name",{"$f":"\"'='\" & MID(CELL(\"address\",INDIRECT(B63)),$K$2+1,100)","v":"'='CNPIs Education'!$C$18"},{"$f":"M3B2z2OtherEdCogDev2Name","v":0},"Text","M3B2z2OtherEdCogDev2Name",1000,null,"M3B2FALSE"]
["M3B2z2OtherEdCogDev2Target","M3B2z2OtherEdCogDev2Target",{"$f":"\"'='\" & MID(CELL(\"address\",INDIRECT(B64)),$K$2+1,100)","v":"'='CNPIs Education'!$J$18"},{"$f":"M3B2z2OtherEdCogDev2Target","v":0},"Number","M3B2z2OtherEdCogDev2Target",null,null,"M3B2FALSE"]
["M3B2z2OtherEdCogDev2Results","M3B2z2OtherEdCogDev2Results",{"$f":"\"'='\" & MID(CELL(\"address\",INDIRECT(B65)),$K$2+1,100)","v":"'='CNPIs Education'!$K$18"},{"$f":"M3B2z2OtherEdCogDev2Results","v":0},"Number","M3B2z2OtherEdCogDev2Results",null,null,"M3B2FALSE"]
["M3B2z2OtherEdCogDev2Accuracy","M3B2z2OtherEdCogDev2Accuracy",{"$f":"\"'='\" & MID(CELL(\"address\",INDIRECT(B66)),$K$2+1,100)","v":"'='CNPIs Education'!$L$18"},{"$f":"M3B2z2OtherEdCogDev2Accuracy","v":""},"Number","M3B2z2OtherEdCogDev2Accuracy",null,null,"M3B2FALSE"]
["M3B2z3OtherEdCogDev3Name","M3B2z3OtherEdCogDev3Name",{"$f":"\"'='\" & MID(CELL(\"address\",INDIRECT(B67)),$K$2+1,100)","v":"'='CNPIs Education'!$C$19"},{"$f":"M3B2z3OtherEdCogDev3Name","v":0},"Text","M3B2z3OtherEdCogDev3Name",1000,null,"M3B2FALSE"]
["M3B2z3OtherEdCogDev3Target","M3B2z3OtherEdCogDev3Target",{"$f":"\"'='\" & MID(CELL(\"address\",INDIRECT(B68)),$K$2+1,100)","v":"'='CNPIs Education'!$J$19"},{"$f":"M3B2z3OtherEdCogDev3Target","v":0},"Number","M3B2z3OtherEdCogDev3Target",null,null,"M3B2FALSE"]
["M3B2z3OtherEdCogDev3Results","M3B2z3OtherEdCogDev3Results",{"$f":"\"'='\" & MID(CELL(\"address\",INDIRECT(B69)),$K$2+1,100)","v":"'='CNPIs Education'!$K$19"},{"$f":"M3B2z3OtherEdCogDev3Results","v":0},"Number","M3B2z3OtherEdCogDev3Results",null,null,"M3B2FALSE"]
["M3B2z3OtherEdCogDev3Accuracy","M3B2z3OtherEdCogDev3Accuracy",{"$f":"\"'='\" & MID(CELL(\"address\",INDIRECT(B70)),$K$2+1,100)","v":"'='CNPIs Education'!$L$19"},{"$f":"M3B2z3OtherEdCogDev3Accuracy","v":""},"Number","M3B2z3OtherEdCogDev3Accuracy",null,null,"M3B2FALSE"]
["M3B2gKindReadyBaseline","M3B2gKindReadyBaseline",{"$f":"\"'='\" & MID(CELL(\"address\",INDIRECT(B71)),$K$2+1,100)","v":"'='CNPIs Education'!$G$22"},{"$f":"M3B2gKindReadyBaseline","v":0},"Number","M3B2gKindReadyBaseline",null,null,"M3B2FALSE"]
["M3B2gKindReadyTarget","M3B2gKindReadyTarget",{"$f":"\"'='\" & MID(CELL(\"address\",INDIRECT(B72)),$K$2+1,100)","v":"'='CNPIs Education'!$H$22"},{"$f":"M3B2gKindReadyTarget","v":0},"Number","M3B2gKindReadyTarget",null,null,"M3B2FALSE"]
["M3B2gKindReadyExpectChng","M3B2gKindReadyExpectChng",{"$f":"\"'='\" & MID(CELL(\"address\",INDIRECT(B73)),$K$2+1,100)","v":"'='CNPIs Education'!$I$22"},{"$f":"M3B2gKindReadyExpectChng","v":""},"Number","M3B2gKindReadyExpectChng",null,null,"M3B2FALSE"]
["M3B2gKindReadyResults","M3B2gKindReadyResults",{"$f":"\"'='\" & MID(CELL(\"address\",INDIRECT(B74)),$K$2+1,100)","v":"'='CNPIs Education'!$J$22"},{"$f":"M3B2gKindReadyResults","v":0},"Number","M3B2gKindReadyResults",null,null,"M3B2FALSE"]
["M3B2gKindReadyActualChng","M3B2gKindReadyActualChng",{"$f":"\"'='\" & MID(CELL(\"address\",INDIRECT(B75)),$K$2+1,100)","v":"'='CNPIs Education'!$K$22"},{"$f":"M3B2gKindReadyActualChng","v":""},"Number","M3B2gKindReadyActualChng",null,null,"M3B2FALSE"]
["M3B2gKindReadyAccuracy","M3B2gKindReadyAccuracy",{"$f":"\"'='\" & MID(CELL(\"address\",INDIRECT(B76)),$K$2+1,100)","v":"'='CNPIs Education'!$L$22"},{"$f":"M3B2gKindReadyAccuracy","v":""},"Number","M3B2gKindReadyAccuracy",null,null,"M3B2FALSE"]
["M3B2hBasicReadLvlBaseline","M3B2hBasicReadLvlBaseline",{"$f":"\"'='\" & MID(CELL(\"address\",INDIRECT(B77)),$K$2+1,100)","v":"'='CNPIs Education'!$G$23"},{"$f":"M3B2hBasicReadLvlBaseline","v":0},"Number","M3B2hBasicReadLvlBaseline",null,null,"M3B2FALSE"]
["M3B2hBasicReadLvlTarget","M3B2hBasicReadLvlTarget",{"$f":"\"'='\" & MID(CELL(\"address\",INDIRECT(B78)),$K$2+1,100)","v":"'='CNPIs Education'!$H$23"},{"$f":"M3B2hBasicReadLvlTarget","v":0},"Number","M3B2hBasicReadLvlTarget",null,null,"M3B2FALSE"]
["M3B2hBasicReadLvlExpectChng","M3B2hBasicReadLvlExpectChng",{"$f":"\"'='\" & MID(CELL(\"address\",INDIRECT(B79)),$K$2+1,100)","v":"'='CNPIs Education'!$I$23"},{"$f":"M3B2hBasicReadLvlExpectChng","v":""},"Number","M3B2hBasicReadLvlExpectChng",null,null,"M3B2FALSE"]
["M3B2hBasicReadLvlResults","M3B2hBasicReadLvlResults",{"$f":"\"'='\" & MID(CELL(\"address\",INDIRECT(B80)),$K$2+1,100)","v":"'='CNPIs Education'!$J$23"},{"$f":"M3B2hBasicReadLvlResults","v":0},"Number","M3B2hBasicReadLvlResults",null,null,"M3B2FALSE"]
["M3B2hBasicReadLvlActualChng","M3B2hBasicReadLvlActualChng",{"$f":"\"'='\" & MID(CELL(\"address\",INDIRECT(B81)),$K$2+1,100)","v":"'='CNPIs Education'!$K$23"},{"$f":"M3B2hBasicReadLvlActualChng","v":""},"Number","M3B2hBasicReadLvlActualChng",null,null,"M3B2FALSE"]
["M3B2hBasicReadLvlAccuracy","M3B2hBasicReadLvlAccuracy",{"$f":"\"'='\" & MID(CELL(\"address\",INDIRECT(B82)),$K$2+1,100)","v":"'='CNPIs Education'!$L$23"},{"$f":"M3B2hBasicReadLvlAccuracy","v":""},"Number","M3B2hBasicReadLvlAccuracy",null,null,"M3B2FALSE"]
["M3B2iBasicMathLvlBaseline","M3B2iBasicMathLvlBaseline",{"$f":"\"'='\" & MID(CELL(\"address\",INDIRECT(B83)),$K$2+1,100)","v":"'='CNPIs Education'!$G$24"},{"$f":"M3B2iBasicMathLvlBaseline","v":0},"Number","M3B2iBasicMathLvlBaseline",null,null,"M3B2FALSE"]
["M3B2iBasicMathLvlTarget","M3B2iBasicMathLvlTarget",{"$f":"\"'='\" & MID(CELL(\"address\",INDIRECT(B84)),$K$2+1,100)","v":"'='CNPIs Education'!$H$24"},{"$f":"M3B2iBasicMathLvlTarget","v":0},"Number","M3B2iBasicMathLvlTarget",null,null,"M3B2FALSE"]
["M3B2iBasicMathLvlExpectChng","M3B2iBasicMathLvlExpectChng",{"$f":"\"'='\" & MID(CELL(\"address\",INDIRECT(B85)),$K$2+1,100)","v":"'='CNPIs Education'!$I$24"},{"$f":"M3B2iBasicMathLvlExpectChng","v":""},"Number","M3B2iBasicMathLvlExpectChng",null,null,"M3B2FALSE"]
["M3B2iBasicMathLvlResults","M3B2iBasicMathLvlResults",{"$f":"\"'='\" & MID(CELL(\"address\",INDIRECT(B86)),$K$2+1,100)","v":"'='CNPIs Education'!$J$24"},{"$f":"M3B2iBasicMathLvlResults","v":0},"Number","M3B2iBasicMathLvlResults",null,null,"M3B2FALSE"]
["M3B2iBasicMathLvlActualChng","M3B2iBasicMathLvlActualChng",{"$f":"\"'='\" & MID(CELL(\"address\",INDIRECT(B87)),$K$2+1,100)","v":"'='CNPIs Education'!$K$24"},{"$f":"M3B2iBasicMathLvlActualChng","v":""},"Number","M3B2iBasicMathLvlActualChng",null,null,"M3B2FALSE"]
["M3B2iBasicMathLvlAccuracy","M3B2iBasicMathLvlAccuracy",{"$f":"\"'='\" & MID(CELL(\"address\",INDIRECT(B88)),$K$2+1,100)","v":"'='CNPIs Education'!$L$24"},{"$f":"M3B2iBasicMathLvlAccuracy","v":""},"Number","M3B2iBasicMathLvlAccuracy",null,null,"M3B2FALSE"]
["M3B2jGradRateBaseline","M3B2jGradRateBaseline",{"$f":"\"'='\" & MID(CELL(\"address\",INDIRECT(B89)),$K$2+1,100)","v":"'='CNPIs Education'!$G$25"},{"$f":"M3B2jGradRateBaseline","v":0},"Number","M3B2jGradRateBaseline",null,null,"M3B2FALSE"]
["M3B2jGradRateTarget","M3B2jGradRateTarget",{"$f":"\"'='\" & MID(CELL(\"address\",INDIRECT(B90)),$K$2+1,100)","v":"'='CNPIs Education'!$H$25"},{"$f":"M3B2jGradRateTarget","v":0},"Number","M3B2jGradRateTarget",null,null,"M3B2FALSE"]
["M3B2jGradRateExpectChng","M3B2jGradRateExpectChng",{"$f":"\"'='\" & MID(CELL(\"address\",INDIRECT(B91)),$K$2+1,100)","v":"'='CNPIs Education'!$I$25"},{"$f":"M3B2jGradRateExpectChng","v":""},"Number","M3B2jGradRateExpectChng",null,null,"M3B2FALSE"]
["M3B2jGradRateResults","M3B2jGradRateResults",{"$f":"\"'='\" & MID(CELL(\"address\",INDIRECT(B92)),$K$2+1,100)","v":"'='CNPIs Education'!$J$25"},{"$f":"M3B2jGradRateResults","v":0},"Number","M3B2jGradRateResults",null,null,"M3B2FALSE"]
["M3B2jGradRateActualChng","M3B2jGradRateActualChng",{"$f":"\"'='\" & MID(CELL(\"address\",INDIRECT(B93)),$K$2+1,100)","v":"'='CNPIs Education'!$K$25"},{"$f":"M3B2jGradRateActualChng","v":""},"Number","M3B2jGradRateActualChng",null,null,"M3B2FALSE"]
["M3B2jGradRateAccuracy","M3B2jGradRateAccuracy",{"$f":"\"'='\" & MID(CELL(\"address\",INDIRECT(B94)),$K$2+1,100)","v":"'='CNPIs Education'!$L$25"},{"$f":"M3B2jGradRateAccuracy","v":""},"Number","M3B2jGradRateAccuracy",null,null,"M3B2FALSE"]
["M3B2kYouthPostSecAttendBaseline","M3B2kYouthPostSecAttendBaseline",{"$f":"\"'='\" & MID(CELL(\"address\",INDIRECT(B95)),$K$2+1,100)","v":"'='CNPIs Education'!$G$26"},{"$f":"M3B2kYouthPostSecAttendBaseline","v":0},"Number","M3B2kYouthPostSecAttendBaseline",null,null,"M3B2FALSE"]
["M3B2kYouthPostSecAttendTarget","M3B2kYouthPostSecAttendTarget",{"$f":"\"'='\" & MID(CELL(\"address\",INDIRECT(B96)),$K$2+1,100)","v":"'='CNPIs Education'!$H$26"},{"$f":"M3B2kYouthPostSecAttendTarget","v":0},"Number","M3B2kYouthPostSecAttendTarget",null,null,"M3B2FALSE"]
["M3B2kYouthPostSecAttendExpectChng","M3B2kYouthPostSecAttendExpectChng",{"$f":"\"'='\" & MID(CELL(\"address\",INDIRECT(B97)),$K$2+1,100)","v":"'='CNPIs Education'!$I$26"},{"$f":"M3B2kYouthPostSecAttendExpectChng","v":""},"Number","M3B2kYouthPostSecAttendExpectChng",null,null,"M3B2FALSE"]
["M3B2kYouthPostSecAttendResults","M3B2kYouthPostSecAttendResults",{"$f":"\"'='\" & MID(CELL(\"address\",INDIRECT(B98)),$K$2+1,100)","v":"'='CNPIs Education'!$J$26"},{"$f":"M3B2kYouthPostSecAttendResults","v":0},"Number","M3B2kYouthPostSecAttendResults",null,null,"M3B2FALSE"]
["M3B2kYouthPostSecAttendActualChng","M3B2kYouthPostSecAttendActualChng",{"$f":"\"'='\" & MID(CELL(\"address\",INDIRECT(B99)),$K$2+1,100)","v":"'='CNPIs Education'!$K$26"},{"$f":"M3B2kYouthPostSecAttendActualChng","v":""},"Number","M3B2kYouthPostSecAttendActualChng",null,null,"M3B2FALSE"]
["M3B2kYouthPostSecAttendAccuracy","M3B2kYouthPostSecAttendAccuracy",{"$f":"\"'='\" & MID(CELL(\"address\",INDIRECT(B100)),$K$2+1,100)","v":"'='CNPIs Education'!$L$26"},{"$f":"M3B2kYouthPostSecAttendAccuracy","v":""},"Number","M3B2kYouthPostSecAttendAccuracy",null,null,"M3B2FALSE"]
["M3B2lYouthPostSecGradBaseline","M3B2lYouthPostSecGradBaseline",{"$f":"\"'='\" & MID(CELL(\"address\",INDIRECT(B101)),$K$2+1,100)","v":"'='CNPIs Education'!$G$27"},{"$f":"M3B2lYouthPostSecGradBaseline","v":0},"Number","M3B2lYouthPostSecGradBaseline",null,null,"M3B2FALSE"]
["M3B2lYouthPostSecGradTarget","M3B2lYouthPostSecGradTarget",{"$f":"\"'='\" & MID(CELL(\"address\",INDIRECT(B102)),$K$2+1,100)","v":"'='CNPIs Education'!$H$27"},{"$f":"M3B2lYouthPostSecGradTarget","v":0},"Number","M3B2lYouthPostSecGradTarget",null,null,"M3B2FALSE"]
["M3B2lYouthPostSecGradExpectChng","M3B2lYouthPostSecGradExpectChng",{"$f":"\"'='\" & MID(CELL(\"address\",INDIRECT(B103)),$K$2+1,100)","v":"'='CNPIs Education'!$I$27"},{"$f":"M3B2lYouthPostSecGradExpectChng","v":""},"Number","M3B2lYouthPostSecGradExpectChng",null,null,"M3B2FALSE"]
["M3B2lYouthPostSecGradResults","M3B2lYouthPostSecGradResults",{"$f":"\"'='\" & MID(CELL(\"address\",INDIRECT(B104)),$K$2+1,100)","v":"'='CNPIs Education'!$J$27"},{"$f":"M3B2lYouthPostSecGradResults","v":0},"Number","M3B2lYouthPostSecGradResults",null,null,"M3B2FALSE"]
["M3B2lYouthPostSecGradActualChng","M3B2lYouthPostSecGradActualChng",{"$f":"\"'='\" & MID(CELL(\"address\",INDIRECT(B105)),$K$2+1,100)","v":"'='CNPIs Education'!$K$27"},{"$f":"M3B2lYouthPostSecGradActualChng","v":""},"Number","M3B2lYouthPostSecGradActualChng",null,null,"M3B2FALSE"]
["M3B2lYouthPostSecGradAccuracy","M3B2lYouthPostSecGradAccuracy",{"$f":"\"'='\" & MID(CELL(\"address\",INDIRECT(B106)),$K$2+1,100)","v":"'='CNPIs Education'!$L$27"},{"$f":"M3B2lYouthPostSecGradAccuracy","v":""},"Number","M3B2lYouthPostSecGradAccuracy",null,null,{"$f":"LEFT(A106,4) & AND(D106<>\"\",D106<>0)","v":"M3B2FALSE"}]
["M3B2mAdultPostSecAttendBaseline","M3B2mAdultPostSecAttendBaseline",{"$f":"\"'='\" & MID(CELL(\"address\",INDIRECT(B107)),$K$2+1,100)","v":"'='CNPIs Education'!$G$28"},{"$f":"M3B2mAdultPostSecAttendBaseline","v":0},"Number","M3B2mAdultPostSecAttendBaseline",null,null,"M3B2FALSE"]
["M3B2mAdultPostSecAttendTarget","M3B2mAdultPostSecAttendTarget",{"$f":"\"'='\" & MID(CELL(\"address\",INDIRECT(B108)),$K$2+1,100)","v":"'='CNPIs Education'!$H$28"},{"$f":"M3B2mAdultPostSecAttendTarget","v":0},"Number","M3B2mAdultPostSecAttendTarget",null,null,"M3B2FALSE"]
["M3B2mAdultPostSecAttendExpectChng","M3B2mAdultPostSecAttendExpectChng",{"$f":"\"'='\" & MID(CELL(\"address\",INDIRECT(B109)),$K$2+1,100)","v":"'='CNPIs Education'!$I$28"},{"$f":"M3B2mAdultPostSecAttendExpectChng","v":""},"Number","M3B2mAdultPostSecAttendExpectChng",null,null,"M3B2FALSE"]
["M3B2mAdultPostSecAttendResults","M3B2mAdultPostSecAttendResults",{"$f":"\"'='\" & MID(CELL(\"address\",INDIRECT(B110)),$K$2+1,100)","v":"'='CNPIs Education'!$J$28"},{"$f":"M3B2mAdultPostSecAttendResults","v":0},"Number","M3B2mAdultPostSecAttendResults",null,null,"M3B2FALSE"]
["M3B2mAdultPostSecAttendActualChng","M3B2mAdultPostSecAttendActualChng",{"$f":"\"'='\" & MID(CELL(\"address\",INDIRECT(B111)),$K$2+1,100)","v":"'='CNPIs Education'!$K$28"},{"$f":"M3B2mAdultPostSecAttendActualChng","v":""},"Number","M3B2mAdultPostSecAttendActualChng",null,null,"M3B2FALSE"]
["M3B2mAdultPostSecAttendAccuracy","M3B2mAdultPostSecAttendAccuracy",{"$f":"\"'='\" & MID(CELL(\"address\",INDIRECT(B112)),$K$2+1,100)","v":"'='CNPIs Education'!$L$28"},{"$f":"M3B2mAdultPostSecAttendAccuracy","v":""},"Number","M3B2mAdultPostSecAttendAccuracy",null,null,"M3B2FALSE"]
["M3B2nAdultPostSecGradBaseline","M3B2nAdultPostSecGradBaseline",{"$f":"\"'='\" & MID(CELL(\"address\",INDIRECT(B113)),$K$2+1,100)","v":"'='CNPIs Education'!$G$29"},{"$f":"M3B2nAdultPostSecGradBaseline","v":0},"Number","M3B2nAdultPostSecGradBaseline",null,null,"M3B2FALSE"]
["M3B2nAdultPostSecGradTarget","M3B2nAdultPostSecGradTarget",{"$f":"\"'='\" & MID(CELL(\"address\",INDIRECT(B114)),$K$2+1,100)","v":"'='CNPIs Education'!$H$29"},{"$f":"M3B2nAdultPostSecGradTarget","v":0},"Number","M3B2nAdultPostSecGradTarget",null,null,"M3B2FALSE"]
["M3B2nAdultPostSecGradExpectChng","M3B2nAdultPostSecGradExpectChng",{"$f":"\"'='\" & MID(CELL(\"address\",INDIRECT(B115)),$K$2+1,100)","v":"'='CNPIs Education'!$I$29"},{"$f":"M3B2nAdultPostSecGradExpectChng","v":""},"Number","M3B2nAdultPostSecGradExpectChng",null,null,"M3B2FALSE"]
["M3B2nAdultPostSecGradResults","M3B2nAdultPostSecGradResults",{"$f":"\"'='\" & MID(CELL(\"address\",INDIRECT(B116)),$K$2+1,100)","v":"'='CNPIs Education'!$J$29"},{"$f":"M3B2nAdultPostSecGradResults","v":0},"Number","M3B2nAdultPostSecGradResults",null,null,"M3B2FALSE"]
["M3B2nAdultPostSecGradActualChng","M3B2nAdultPostSecGradActualChng",{"$f":"\"'='\" & MID(CELL(\"address\",INDIRECT(B117)),$K$2+1,100)","v":"'='CNPIs Education'!$K$29"},{"$f":"M3B2nAdultPostSecGradActualChng","v":""},"Number","M3B2nAdultPostSecGradActualChng",null,null,"M3B2FALSE"]
["M3B2nAdultPostSecGradAccuracy","M3B2nAdultPostSecGradAccuracy",{"$f":"\"'='\" & MID(CELL(\"address\",INDIRECT(B118)),$K$2+1,100)","v":"'='CNPIs Education'!$L$29"},{"$f":"M3B2nAdultPostSecGradAccuracy","v":""},"Number","M3B2nAdultPostSecGradAccuracy",null,null,"M3B2FALSE"]
["M3B2oLitRateBaseline","M3B2oLitRateBaseline",{"$f":"\"'='\" & MID(CELL(\"address\",INDIRECT(B119)),$K$2+1,100)","v":"'='CNPIs Education'!$G$30"},{"$f":"M3B2oLitRateBaseline","v":0},"Number","M3B2oLitRateBaseline",null,null,"M3B2FALSE"]
["M3B2oLitRateTarget","M3B2oLitRateTarget",{"$f":"\"'='\" & MID(CELL(\"address\",INDIRECT(B120)),$K$2+1,100)","v":"'='CNPIs Education'!$H$30"},{"$f":"M3B2oLitRateTarget","v":0},"Number","M3B2oLitRateTarget",null,null,"M3B2FALSE"]
["M3B2oLitRateExpectChng","M3B2oLitRateExpectChng",{"$f":"\"'='\" & MID(CELL(\"address\",INDIRECT(B121)),$K$2+1,100)","v":"'='CNPIs Education'!$I$30"},{"$f":"M3B2oLitRateExpectChng","v":""},"Number","M3B2oLitRateExpectChng",null,null,"M3B2FALSE"]
["M3B2oLitRateResults","M3B2oLitRateResults",{"$f":"\"'='\" & MID(CELL(\"address\",INDIRECT(B122)),$K$2+1,100)","v":"'='CNPIs Education'!$J$30"},{"$f":"M3B2oLitRateResults","v":0},"Number","M3B2oLitRateResults",null,null,"M3B2FALSE"]
["M3B2oLitRateActualChng","M3B2oLitRateActualChng",{"$f":"\"'='\" & MID(CELL(\"address\",INDIRECT(B123)),$K$2+1,100)","v":"'='CNPIs Education'!$K$30"},{"$f":"M3B2oLitRateActualChng","v":""},"Number","M3B2oLitRateActualChng",null,null,"M3B2FALSE"]
["M3B2oLitRateAccuracy","M3B2oLitRateAccuracy",{"$f":"\"'='\" & MID(CELL(\"address\",INDIRECT(B124)),$K$2+1,100)","v":"'='CNPIs Education'!$L$30"},{"$f":"M3B2oLitRateAccuracy","v":""},"Number","M3B2oLitRateAccuracy",null,null,"M3B2FALSE"]
["M3B2z4OtherEdCogDev4Name","M3B2z4OtherEdCogDev4Name",{"$f":"\"'='\" & MID(CELL(\"address\",INDIRECT(B125)),$K$2+1,100)","v":"'='CNPIs Education'!$C$33"},{"$f":"M3B2z4OtherEdCogDev4Name","v":0},"Text","M3B2z4OtherEdCogDev4Name",1000,null,"M3B2FALSE"]
["M3B2z4OtherEdCogDev4Baseline","M3B2z4OtherEdCogDev4Baseline",{"$f":"\"'='\" & MID(CELL(\"address\",INDIRECT(B126)),$K$2+1,100)","v":"'='CNPIs Education'!$G$33"},{"$f":"M3B2z4OtherEdCogDev4Baseline","v":0},"Number","M3B2z4OtherEdCogDev4Baseline",null,null,"M3B2FALSE"]
["M3B2z4OtherEdCogDev4Target","M3B2z4OtherEdCogDev4Target",{"$f":"\"'='\" & MID(CELL(\"address\",INDIRECT(B127)),$K$2+1,100)","v":"'='CNPIs Education'!$H$33"},{"$f":"M3B2z4OtherEdCogDev4Target","v":0},"Number","M3B2z4OtherEdCogDev4Target",null,null,"M3B2FALSE"]
["M3B2z4OtherEdCogDev4ExpectChng","M3B2z4OtherEdCogDev4ExpectChng",{"$f":"\"'='\" & MID(CELL(\"address\",INDIRECT(B128)),$K$2+1,100)","v":"'='CNPIs Education'!$I$33"},{"$f":"M3B2z4OtherEdCogDev4ExpectChng","v":""},"Number","M3B2z4OtherEdCogDev4ExpectChng",null,null,"M3B2FALSE"]
["M3B2z4OtherEdCogDev4Results","M3B2z4OtherEdCogDev4Results",{"$f":"\"'='\" & MID(CELL(\"address\",INDIRECT(B129)),$K$2+1,100)","v":"'='CNPIs Education'!$J$33"},{"$f":"M3B2z4OtherEdCogDev4Results","v":0},"Number","M3B2z4OtherEdCogDev4Results",null,null,"M3B2FALSE"]
["M3B2z4OtherEdCogDev4ActualChng","M3B2z4OtherEdCogDev4ActualChng",{"$f":"\"'='\" & MID(CELL(\"address\",INDIRECT(B130)),$K$2+1,100)","v":"'='CNPIs Education'!$K$33"},{"$f":"M3B2z4OtherEdCogDev4ActualChng","v":""},"Number","M3B2z4OtherEdCogDev4ActualChng",null,null,"M3B2FALSE"]
["M3B2z4OtherEdCogDev4Accuracy","M3B2z4OtherEdCogDev4Accuracy",{"$f":"\"'='\" & MID(CELL(\"address\",INDIRECT(B131)),$K$2+1,100)","v":"'='CNPIs Education'!$L$33"},{"$f":"M3B2z4OtherEdCogDev4Accuracy","v":""},"Number","M3B2z4OtherEdCogDev4Accuracy",null,null,"M3B2FALSE"]
["M3B2z5OtherEdCogDev5Name","M3B2z5OtherEdCogDev5Name",{"$f":"\"'='\" & MID(CELL(\"address\",INDIRECT(B132)),$K$2+1,100)","v":"'='CNPIs Education'!$C$34"},{"$f":"M3B2z5OtherEdCogDev5Name","v":0},"Text","M3B2z5OtherEdCogDev5Name",1000,null,"M3B2FALSE"]
["M3B2z5OtherEdCogDev5Baseline","M3B2z5OtherEdCogDev5Baseline",{"$f":"\"'='\" & MID(CELL(\"address\",INDIRECT(B133)),$K$2+1,100)","v":"'='CNPIs Education'!$G$34"},{"$f":"M3B2z5OtherEdCogDev5Baseline","v":0},"Number","M3B2z5OtherEdCogDev5Baseline",null,null,"M3B2FALSE"]
["M3B2z5OtherEdCogDev5Target","M3B2z5OtherEdCogDev5Target",{"$f":"\"'='\" & MID(CELL(\"address\",INDIRECT(B134)),$K$2+1,100)","v":"'='CNPIs Education'!$H$34"},{"$f":"M3B2z5OtherEdCogDev5Target","v":0},"Number","M3B2z5OtherEdCogDev5Target",null,null,"M3B2FALSE"]
["M3B2z5OtherEdCogDev5ExpectChng","M3B2z5OtherEdCogDev5ExpectChng",{"$f":"\"'='\" & MID(CELL(\"address\",INDIRECT(B135)),$K$2+1,100)","v":"'='CNPIs Education'!$I$34"},{"$f":"M3B2z5OtherEdCogDev5ExpectChng","v":""},"Number","M3B2z5OtherEdCogDev5ExpectChng",null,null,"M3B2FALSE"]
["M3B2z5OtherEdCogDev5Results","M3B2z5OtherEdCogDev5Results",{"$f":"\"'='\" & MID(CELL(\"address\",INDIRECT(B136)),$K$2+1,100)","v":"'='CNPIs Education'!$J$34"},{"$f":"M3B2z5OtherEdCogDev5Results","v":0},"Number","M3B2z5OtherEdCogDev5Results",null,null,"M3B2FALSE"]
["M3B2z5OtherEdCogDev5ActualChng","M3B2z5OtherEdCogDev5ActualChng",{"$f":"\"'='\" & MID(CELL(\"address\",INDIRECT(B137)),$K$2+1,100)","v":"'='CNPIs Education'!$K$34"},{"$f":"M3B2z5OtherEdCogDev5ActualChng","v":""},"Number","M3B2z5OtherEdCogDev5ActualChng",null,null,"M3B2FALSE"]
["M3B2z5OtherEdCogDev5Accuracy","M3B2z5OtherEdCogDev5Accuracy",{"$f":"\"'='\" & MID(CELL(\"address\",INDIRECT(B138)),$K$2+1,100)","v":"'='CNPIs Education'!$L$34"},{"$f":"M3B2z5OtherEdCogDev5Accuracy","v":""},"Number","M3B2z5OtherEdCogDev5Accuracy",null,null,"M3B2FALSE"]
["M3B2z6OtherEdCogDev6Name","M3B2z6OtherEdCogDev6Name",{"$f":"\"'='\" & MID(CELL(\"address\",INDIRECT(B139)),$K$2+1,100)","v":"'='CNPIs Education'!$C$35"},{"$f":"M3B2z6OtherEdCogDev6Name","v":0},"Text","M3B2z6OtherEdCogDev6Name",1000,null,"M3B2FALSE"]
["M3B2z6OtherEdCogDev6Baseline","M3B2z6OtherEdCogDev6Baseline",{"$f":"\"'='\" & MID(CELL(\"address\",INDIRECT(B140)),$K$2+1,100)","v":"'='CNPIs Education'!$G$35"},{"$f":"M3B2z6OtherEdCogDev6Baseline","v":0},"Number","M3B2z6OtherEdCogDev6Baseline",null,null,"M3B2FALSE"]
["M3B2z6OtherEdCogDev6Target","M3B2z6OtherEdCogDev6Target",{"$f":"\"'='\" & MID(CELL(\"address\",INDIRECT(B141)),$K$2+1,100)","v":"'='CNPIs Education'!$H$35"},{"$f":"M3B2z6OtherEdCogDev6Target","v":0},"Number","M3B2z6OtherEdCogDev6Target",null,null,"M3B2FALSE"]
["M3B2z6OtherEdCogDev6ExpectChng","M3B2z6OtherEdCogDev6ExpectChng",{"$f":"\"'='\" & MID(CELL(\"address\",INDIRECT(B142)),$K$2+1,100)","v":"'='CNPIs Education'!$I$35"},{"$f":"M3B2z6OtherEdCogDev6ExpectChng","v":""},"Number","M3B2z6OtherEdCogDev6ExpectChng",null,null,"M3B2FALSE"]
["M3B2z6OtherEdCogDev6Results","M3B2z6OtherEdCogDev6Results",{"$f":"\"'='\" & MID(CELL(\"address\",INDIRECT(B143)),$K$2+1,100)","v":"'='CNPIs Education'!$J$35"},{"$f":"M3B2z6OtherEdCogDev6Results","v":0},"Number","M3B2z6OtherEdCogDev6Results",null,null,"M3B2FALSE"]
["M3B2z6OtherEdCogDev6ActualChng","M3B2z6OtherEdCogDev6ActualChng",{"$f":"\"'='\" & MID(CELL(\"address\",INDIRECT(B144)),$K$2+1,100)","v":"'='CNPIs Education'!$K$35"},{"$f":"M3B2z6OtherEdCogDev6ActualChng","v":""},"Number","M3B2z6OtherEdCogDev6ActualChng",null,null,"M3B2FALSE"]
["M3B2z6OtherEdCogDev6Accuracy","M3B2z6OtherEdCogDev6Accuracy",{"$f":"\"'='\" & MID(CELL(\"address\",INDIRECT(B145)),$K$2+1,100)","v":"'='CNPIs Education'!$L$35"},{"$f":"M3B2z6OtherEdCogDev6Accuracy","v":""},"Number","M3B2z6OtherEdCogDev6Accuracy",null,null,"M3B2FALSE"]
["M3B2Comments","M3B2Comments",{"$f":"\"'='\" & MID(CELL(\"address\",INDIRECT(B146)),$K$2+1,100)","v":"'='CNPIs Education'!$B$37"},{"$f":"M3B2Comments","v":0},"Text","M3B2Comments",5000,null,"M3B2FALSE"]
["M3B1aJobIncrOppTarget","M3B1aJobIncrOppTarget",{"$f":"\"'='\" & MID(CELL(\"address\",INDIRECT(B147)),$K$2+1,100)","v":"'='CNPIs Employment'!$J$9"},{"$f":"M3B1aJobIncrOppTarget","v":0},"Number","M3B1aJobIncrOppTarget",null,null,"M3B1FALSE"]
["M3B1aJobIncrOppResults","M3B1aJobIncrOppResults",{"$f":"\"'='\" & MID(CELL(\"address\",INDIRECT(B148)),$K$2+1,100)","v":"'='CNPIs Employment'!$K$9"},{"$f":"M3B1aJobIncrOppResults","v":0},"Number","M3B1aJobIncrOppResults",null,null,"M3B1FALSE"]
["M3B1aJobIncrOppAccuracy","M3B1aJobIncrOppAccuracy",{"$f":"\"'='\" & MID(CELL(\"address\",INDIRECT(B149)),$K$2+1,100)","v":"'='CNPIs Employment'!$L$9"},{"$f":"M3B1aJobIncrOppAccuracy","v":""},"Number","M3B1aJobIncrOppAccuracy",null,null,"M3B1FALSE"]
["M3B1bJobOppMainTarget","M3B1bJobOppMainTarget",{"$f":"\"'='\" & MID(CELL(\"address\",INDIRECT(B150)),$K$2+1,100)","v":"'='CNPIs Employment'!$J$10"},{"$f":"M3B1bJobOppMainTarget","v":0},"Number","M3B1bJobOppMainTarget",null,null,"M3B1FALSE"]
["M3B1bJobOppMainResults","M3B1bJobOppMainResults",{"$f":"\"'='\" & MID(CELL(\"address\",INDIRECT(B151)),$K$2+1,100)","v":"'='CNPIs Employment'!$K$10"},{"$f":"M3B1bJobOppMainResults","v":0},"Number","M3B1bJobOppMainResults",null,null,"M3B1FALSE"]
["M3B1bJobOppMainAccuracy","M3B1bJobOppMainAccuracy",{"$f":"\"'='\" & MID(CELL(\"address\",INDIRECT(B152)),$K$2+1,100)","v":"'='CNPIs Employment'!$L$10"},{"$f":"M3B1bJobOppMainAccuracy","v":""},"Number","M3B1bJobOppMainAccuracy",null,null,"M3B1FALSE"]
["M3B1cLivWageCreateTarget","M3B1cLivWageCreateTarget",{"$f":"\"'='\" & MID(CELL(\"address\",INDIRECT(B153)),$K$2+1,100)","v":"'='CNPIs Employment'!$J$11"},{"$f":"M3B1cLivWageCreateTarget","v":0},"Number","M3B1cLivWageCreateTarget",null,null,"M3B1FALSE"]
["M3B1cLivWageCreateResults","M3B1cLivWageCreateResults",{"$f":"\"'='\" & MID(CELL(\"address\",INDIRECT(B154)),$K$2+1,100)","v":"'='CNPIs Employment'!$K$11"},{"$f":"M3B1cLivWageCreateResults","v":0},"Number","M3B1cLivWageCreateResults",null,null,"M3B1FALSE"]
["M3B1cLivWageCreateAccuracy","M3B1cLivWageCreateAccuracy",{"$f":"\"'='\" & MID(CELL(\"address\",INDIRECT(B155)),$K$2+1,100)","v":"'='CNPIs Employment'!$L$11"},{"$f":"M3B1cLivWageCreateAccuracy","v":""},"Number","M3B1cLivWageCreateAccuracy",null,null,"M3B1FALSE"]
["M3B1dLivWageMainTarget","M3B1dLivWageMainTarget",{"$f":"\"'='\" & MID(CELL(\"address\",INDIRECT(B156)),$K$2+1,100)","v":"'='CNPIs Employment'!$J$12"},{"$f":"M3B1dLivWageMainTarget","v":0},"Number","M3B1dLivWageMainTarget",null,null,"M3B1FALSE"]
["M3B1dLivWageMainResults","M3B1dLivWageMainResults",{"$f":"\"'='\" & MID(CELL(\"address\",INDIRECT(B157)),$K$2+1,100)","v":"'='CNPIs Employment'!$K$12"},{"$f":"M3B1dLivWageMainResults","v":0},"Number","M3B1dLivWageMainResults",null,null,"M3B1FALSE"]
["M3B1dLivWageMainAccuracy","M3B1dLivWageMainAccuracy",{"$f":"\"'='\" & MID(CELL(\"address\",INDIRECT(B158)),$K$2+1,100)","v":"'='CNPIs Employment'!$L$12"},{"$f":"M3B1dLivWageMainAccuracy","v":""},"Number","M3B1dLivWageMainAccuracy",null,null,"M3B1FALSE"]
["M3B1eBenPackTarget","M3B1eBenPackTarget",{"$f":"\"'='\" & MID(CELL(\"address\",INDIRECT(B159)),$K$2+1,100)","v":"'='CNPIs Employment'!$J$13"},{"$f":"M3B1eBenPackTarget","v":0},"Number","M3B1eBenPackTarget",null,null,"M3B1FALSE"]
["M3B1eBenPackResults","M3B1eBenPackResults",{"$f":"\"'='\" & MID(CELL(\"address\",INDIRECT(B160)),$K$2+1,100)","v":"'='CNPIs Employment'!$K$13"},{"$f":"M3B1eBenPackResults","v":0},"Number","M3B1eBenPackResults",null,null,"M3B1FALSE"]
["M3B1eBenPackAccuracy","M3B1eBenPackAccuracy",{"$f":"\"'='\" & MID(CELL(\"address\",INDIRECT(B161)),$K$2+1,100)","v":"'='CNPIs Employment'!$L$13"},{"$f":"M3B1eBenPackAccuracy","v":""},"Number","M3B1eBenPackAccuracy",null,null,"M3B1FALSE"]
["M3B1z1OtherEmploy1Name","M3B1z1OtherEmploy1Name",{"$f":"\"'='\" & MID(CELL(\"address\",INDIRECT(B162)),$K$2+1,100)","v":"'='CNPIs Employment'!$C$17"},{"$f":"M3B1z1OtherEmploy1Name","v":0},"Text","M3B1z1OtherEmploy1Name",1000,null,"M3B1FALSE"]
["M3B1z1OtherEmploy1Target","M3B1z1OtherEmploy1Target",{"$f":"\"'='\" & MID(CELL(\"address\",INDIRECT(B163)),$K$2+1,100)","v":"'='CNPIs Employment'!$J$17"},{"$f":"M3B1z1OtherEmploy1Target","v":0},"Number","M3B1z1OtherEmploy1Target",null,null,"M3B1FALSE"]
["M3B1z1OtherEmploy1Results","M3B1z1OtherEmploy1Results",{"$f":"\"'='\" & MID(CELL(\"address\",INDIRECT(B164)),$K$2+1,100)","v":"'='CNPIs Employment'!$K$17"},{"$f":"M3B1z1OtherEmploy1Results","v":0},"Number","M3B1z1OtherEmploy1Results",null,null,"M3B1FALSE"]
["M3B1z1OtherEmploy1Accuracy","M3B1z1OtherEmploy1Accuracy",{"$f":"\"'='\" & MID(CELL(\"address\",INDIRECT(B165)),$K$2+1,100)","v":"'='CNPIs Employment'!$L$17"},{"$f":"M3B1z1OtherEmploy1Accuracy","v":""},"Number","M3B1z1OtherEmploy1Accuracy",null,null,"M3B1FALSE"]
["M3B1z2OtherEmploy2Name","M3B1z2OtherEmploy2Name",{"$f":"\"'='\" & MID(CELL(\"address\",INDIRECT(B166)),$K$2+1,100)","v":"'='CNPIs Employment'!$C$18"},{"$f":"M3B1z2OtherEmploy2Name","v":0},"Text","M3B1z2OtherEmploy2Name",1000,null,"M3B1FALSE"]
["M3B1z2OtherEmploy2Target","M3B1z2OtherEmploy2Target",{"$f":"\"'='\" & MID(CELL(\"address\",INDIRECT(B167)),$K$2+1,100)","v":"'='CNPIs Employment'!$J$18"},{"$f":"M3B1z2OtherEmploy2Target","v":0},"Number","M3B1z2OtherEmploy2Target",null,null,"M3B1FALSE"]
["M3B1z2OtherEmploy2Results","M3B1z2OtherEmploy2Results",{"$f":"\"'='\" & MID(CELL(\"address\",INDIRECT(B168)),$K$2+1,100)","v":"'='CNPIs Employment'!$K$18"},{"$f":"M3B1z2OtherEmploy2Results","v":0},"Number","M3B1z2OtherEmploy2Results",null,null,"M3B1FALSE"]
["M3B1z2OtherEmploy2Accuracy","M3B1z2OtherEmploy2Accuracy",{"$f":"\"'='\" & MID(CELL(\"address\",INDIRECT(B169)),$K$2+1,100)","v":"'='CNPIs Employment'!$L$18"},{"$f":"M3B1z2OtherEmploy2Accuracy","v":""},"Number","M3B1z2OtherEmploy2Accuracy",null,null,"M3B1FALSE"]
["M3B1z3OtherEmploy3Name","M3B1z3OtherEmploy3Name",{"$f":"\"'='\" & MID(CELL(\"address\",INDIRECT(B170)),$K$2+1,100)","v":"'='CNPIs Employment'!$C$19"},{"$f":"M3B1z3OtherEmploy3Name","v":0},"Text","M3B1z3OtherEmploy3Name",1000,null,{"$f":"LEFT(A170,4) & AND(D170<>\"\",D170<>0)","v":"M3B1FALSE"}]
["M3B1z3OtherEmploy3Target","M3B1z3OtherEmploy3Target",{"$f":"\"'='\" & MID(CELL(\"address\",INDIRECT(B171)),$K$2+1,100)","v":"'='CNPIs Employment'!$J$19"},{"$f":"M3B1z3OtherEmploy3Target","v":0},"Number","M3B1z3OtherEmploy3Target",null,null,"M3B1FALSE"]
["M3B1z3OtherEmploy3Results","M3B1z3OtherEmploy3Results",{"$f":"\"'='\" & MID(CELL(\"address\",INDIRECT(B172)),$K$2+1,100)","v":"'='CNPIs Employment'!$K$19"},{"$f":"M3B1z3OtherEmploy3Results","v":0},"Number","M3B1z3OtherEmploy3Results",null,null,"M3B1FALSE"]
["M3B1z3OtherEmploy3Accuracy","M3B1z3OtherEmploy3Accuracy",{"$f":"\"'='\" & MID(CELL(\"address\",INDIRECT(B173)),$K$2+1,100)","v":"'='CNPIs Employment'!$L$19"},{"$f":"M3B1z3OtherEmploy3Accuracy","v":""},"Number","M3B1z3OtherEmploy3Accuracy",null,null,"M3B1FALSE"]
["M3B1fUnemployRateBaseline","M3B1fUnemployRateBaseline",{"$f":"\"'='\" & MID(CELL(\"address\",INDIRECT(B174)),$K$2+1,100)","v":"'='CNPIs Employment'!$G$22"},{"$f":"M3B1fUnemployRateBaseline","v":0},"Number","M3B1fUnemployRateBaseline",null,null,"M3B1FALSE"]
["M3B1fUnemployRateTarget","M3B1fUnemployRateTarget",{"$f":"\"'='\" & MID(CELL(\"address\",INDIRECT(B175)),$K$2+1,100)","v":"'='CNPIs Employment'!$H$22"},{"$f":"M3B1fUnemployRateTarget","v":0},"Number","M3B1fUnemployRateTarget",null,null,"M3B1FALSE"]
["M3B1fUnemployRateExpectChng","M3B1fUnemployRateExpectChng",{"$f":"\"'='\" & MID(CELL(\"address\",INDIRECT(B176)),$K$2+1,100)","v":"'='CNPIs Employment'!$I$22"},{"$f":"M3B1fUnemployRateExpectChng","v":""},"Number","M3B1fUnemployRateExpectChng",null,null,"M3B1FALSE"]
["M3B1fUnemployRateResults","M3B1fUnemployRateResults",{"$f":"\"'='\" & MID(CELL(\"address\",INDIRECT(B177)),$K$2+1,100)","v":"'='CNPIs Employment'!$J$22"},{"$f":"M3B1fUnemployRateResults","v":0},"Number","M3B1fUnemployRateResults",null,null,"M3B1FALSE"]
["M3B1fUnemployRateActualChng","M3B1fUnemployRateActualChng",{"$f":"\"'='\" & MID(CELL(\"address\",INDIRECT(B178)),$K$2+1,100)","v":"'='CNPIs Employment'!$K$22"},{"$f":"M3B1fUnemployRateActualChng","v":""},"Number","M3B1fUnemployRateActualChng",null,null,"M3B1FALSE"]
["M3B1fUnemployRateAccuracy","M3B1fUnemployRateAccuracy",{"$f":"\"'='\" & MID(CELL(\"address\",INDIRECT(B179)),$K$2+1,100)","v":"'='CNPIs Employment'!$L$22"},{"$f":"M3B1fUnemployRateAccuracy","v":""},"Number","M3B1fUnemployRateAccuracy",null,null,"M3B1FALSE"]
["M3B1gYouthUnemployRateBaseline","M3B1gYouthUnemployRateBaseline",{"$f":"\"'='\" & MID(CELL(\"address\",INDIRECT(B180)),$K$2+1,100)","v":"'='CNPIs Employment'!$G$23"},{"$f":"M3B1gYouthUnemployRateBaseline","v":0},"Number","M3B1gYouthUnemployRateBaseline",null,null,"M3B1FALSE"]
["M3B1gYouthUnemployRateTarget","M3B1gYouthUnemployRateTarget",{"$f":"\"'='\" & MID(CELL(\"address\",INDIRECT(B181)),$K$2+1,100)","v":"'='CNPIs Employment'!$H$23"},{"$f":"M3B1gYouthUnemployRateTarget","v":0},"Number","M3B1gYouthUnemployRateTarget",null,null,"M3B1FALSE"]
["M3B1gYouthUnemployRateExpectChng","M3B1gYouthUnemployRateExpectChng",{"$f":"\"'='\" & MID(CELL(\"address\",INDIRECT(B182)),$K$2+1,100)","v":"'='CNPIs Employment'!$I$23"},{"$f":"M3B1gYouthUnemployRateExpectChng","v":""},"Number","M3B1gYouthUnemployRateExpectChng",null,null,"M3B1FALSE"]
["M3B1gYouthUnemployRateResults","M3B1gYouthUnemployRateResults",{"$f":"\"'='\" & MID(CELL(\"address\",INDIRECT(B183)),$K$2+1,100)","v":"'='CNPIs Employment'!$J$23"},{"$f":"M3B1gYouthUnemployRateResults","v":0},"Number","M3B1gYouthUnemployRateResults",null,null,"M3B1FALSE"]
["M3B1gYouthUnemployRateActualChng","M3B1gYouthUnemployRateActualChng",{"$f":"\"'='\" & MID(CELL(\"address\",INDIRECT(B184)),$K$2+1,100)","v":"'='CNPIs Employment'!$K$23"},{"$f":"M3B1gYouthUnemployRateActualChng","v":""},"Number","M3B1gYouthUnemployRateActualChng",null,null,"M3B1FALSE"]
["M3B1gYouthUnemployRateAccuracy","M3B1gYouthUnemployRateAccuracy",{"$f":"\"'='\" & MID(CELL(\"address\",INDIRECT(B185)),$K$2+1,100)","v":"'='CNPIs Employment'!$L$23"},{"$f":"M3B1gYouthUnemployRateAccuracy","v":""},"Number","M3B1gYouthUnemployRateAccuracy",null,null,"M3B1FALSE"]
["M3B1hUnderemployRateBaseline","M3B1hUnderemployRateBaseline",{"$f":"\"'='\" & MID(CELL(\"address\",INDIRECT(B186)),$K$2+1,100)","v":"'='CNPIs Employment'!$G$24"},{"$f":"M3B1hUnderemployRateBaseline","v":0},"Number","M3B1hUnderemployRateBaseline",null,null,"M3B1FALSE"]
["M3B1hUnderemployRateTarget","M3B1hUnderemployRateTarget",{"$f":"\"'='\" & MID(CELL(\"address\",INDIRECT(B187)),$K$2+1,100)","v":"'='CNPIs Employment'!$H$24"},{"$f":"M3B1hUnderemployRateTarget","v":0},"Number","M3B1hUnderemployRateTarget",null,null,"M3B1FALSE"]
["M3B1hUnderemployRateExpectChng","M3B1hUnderemployRateExpectChng",{"$f":"\"'='\" & MID(CELL(\"address\",INDIRECT(B188)),$K$2+1,100)","v":"'='CNPIs Employment'!$I$24"},{"$f":"M3B1hUnderemployRateExpectChng","v":""},"Number","M3B1hUnderemployRateExpectChng",null,null,"M3B1FALSE"]
["M3B1hUnderemployRateResults","M3B1hUnderemployRateResults",{"$f":"\"'='\" & MID(CELL(\"address\",INDIRECT(B189)),$K$2+1,100)","v":"'='CNPIs Employment'!$J$24"},{"$f":"M3B1hUnderemployRateResults","v":0},"Number","M3B1hUnderemployRateResults",null,null,"M3B1FALSE"]
["M3B1hUnderemployRateActualChng","M3B1hUnderemployRateActualChng",{"$f":"\"'='\" & MID(CELL(\"address\",INDIRECT(B190)),$K$2+1,100)","v":"'='CNPIs Employment'!$K$24"},{"$f":"M3B1hUnderemployRateActualChng","v":""},"Number","M3B1hUnderemployRateActualChng",null,null,"M3B1FALSE"]
["M3B1hUnderemployRateAccuracy","M3B1hUnderemployRateAccuracy",{"$f":"\"'='\" & MID(CELL(\"address\",INDIRECT(B191)),$K$2+1,100)","v":"'='CNPIs Employment'!$L$24"},{"$f":"M3B1hUnderemployRateAccuracy","v":""},"Number","M3B1hUnderemployRateAccuracy",null,null,"M3B1FALSE"]
["M3B1z4OtherEmploy4Name","M3B1z4OtherEmploy4Name",{"$f":"\"'='\" & MID(CELL(\"address\",INDIRECT(B192)),$K$2+1,100)","v":"'='CNPIs Employment'!$C$27"},{"$f":"M3B1z4OtherEmploy4Name","v":0},"Text","M3B1z4OtherEmploy4Name",1000,null,"M3B1FALSE"]
["M3B1z4OtherEmploy4Baseline","M3B1z4OtherEmploy4Baseline",{"$f":"\"'='\" & MID(CELL(\"address\",INDIRECT(B193)),$K$2+1,100)","v":"'='CNPIs Employment'!$G$27"},{"$f":"M3B1z4OtherEmploy4Baseline","v":0},"Number","M3B1z4OtherEmploy4Baseline",null,null,"M3B1FALSE"]
["M3B1z4OtherEmploy4Target","M3B1z4OtherEmploy4Target",{"$f":"\"'='\" & MID(CELL(\"address\",INDIRECT(B194)),$K$2+1,100)","v":"'='CNPIs Employment'!$H$27"},{"$f":"M3B1z4OtherEmploy4Target","v":0},"Number","M3B1z4OtherEmploy4Target",null,null,"M3B1FALSE"]
["M3B1z4OtherEmploy4ExpectChng","M3B1z4OtherEmploy4ExpectChng",{"$f":"\"'='\" & MID(CELL(\"address\",INDIRECT(B195)),$K$2+1,100)","v":"'='CNPIs Employment'!$I$27"},{"$f":"M3B1z4OtherEmploy4ExpectChng","v":""},"Number","M3B1z4OtherEmploy4ExpectChng",null,null,"M3B1FALSE"]
["M3B1z4OtherEmploy4Results","M3B1z4OtherEmploy4Results",{"$f":"\"'='\" & MID(CELL(\"address\",INDIRECT(B196)),$K$2+1,100)","v":"'='CNPIs Employment'!$J$27"},{"$f":"M3B1z4OtherEmploy4Results","v":0},"Number","M3B1z4OtherEmploy4Results",null,null,"M3B1FALSE"]
["M3B1z4OtherEmploy4ActualChng","M3B1z4OtherEmploy4ActualChng",{"$f":"\"'='\" & MID(CELL(\"address\",INDIRECT(B197)),$K$2+1,100)","v":"'='CNPIs Employment'!$K$27"},{"$f":"M3B1z4OtherEmploy4ActualChng","v":""},"Number","M3B1z4OtherEmploy4ActualChng",null,null,"M3B1FALSE"]
["M3B1z4OtherEmploy4Accuracy","M3B1z4OtherEmploy4Accuracy",{"$f":"\"'='\" & MID(CELL(\"address\",INDIRECT(B198)),$K$2+1,100)","v":"'='CNPIs Employment'!$L$27"},{"$f":"M3B1z4OtherEmploy4Accuracy","v":""},"Number","M3B1z4OtherEmploy4Accuracy",null,null,"M3B1FALSE"]
["M3B1z5OtherEmploy5Name","M3B1z5OtherEmploy5Name",{"$f":"\"'='\" & MID(CELL(\"address\",INDIRECT(B199)),$K$2+1,100)","v":"'='CNPIs Employment'!$C$28"},{"$f":"M3B1z5OtherEmploy5Name","v":0},"Text","M3B1z5OtherEmploy5Name",1000,null,"M3B1FALSE"]
["M3B1z5OtherEmploy5Baseline","M3B1z5OtherEmploy5Baseline",{"$f":"\"'='\" & MID(CELL(\"address\",INDIRECT(B200)),$K$2+1,100)","v":"'='CNPIs Employment'!$G$28"},{"$f":"M3B1z5OtherEmploy5Baseline","v":0},"Number","M3B1z5OtherEmploy5Baseline",null,null,"M3B1FALSE"]
["M3B1z5OtherEmploy5Target","M3B1z5OtherEmploy5Target",{"$f":"\"'='\" & MID(CELL(\"address\",INDIRECT(B201)),$K$2+1,100)","v":"'='CNPIs Employment'!$H$28"},{"$f":"M3B1z5OtherEmploy5Target","v":0},"Number","M3B1z5OtherEmploy5Target",null,null,"M3B1FALSE"]
["M3B1z5OtherEmploy5ExpectChng","M3B1z5OtherEmploy5ExpectChng",{"$f":"\"'='\" & MID(CELL(\"address\",INDIRECT(B202)),$K$2+1,100)","v":"'='CNPIs Employment'!$I$28"},{"$f":"M3B1z5OtherEmploy5ExpectChng","v":""},"Number","M3B1z5OtherEmploy5ExpectChng",null,null,"M3B1FALSE"]
["M3B1z5OtherEmploy5Results","M3B1z5OtherEmploy5Results",{"$f":"\"'='\" & MID(CELL(\"address\",INDIRECT(B203)),$K$2+1,100)","v":"'='CNPIs Employment'!$J$28"},{"$f":"M3B1z5OtherEmploy5Results","v":0},"Number","M3B1z5OtherEmploy5Results",null,null,"M3B1FALSE"]
["M3B1z5OtherEmploy5ActualChng","M3B1z5OtherEmploy5ActualChng",{"$f":"\"'='\" & MID(CELL(\"address\",INDIRECT(B204)),$K$2+1,100)","v":"'='CNPIs Employment'!$K$28"},{"$f":"M3B1z5OtherEmploy5ActualChng","v":""},"Number","M3B1z5OtherEmploy5ActualChng",null,null,"M3B1FALSE"]
["M3B1z5OtherEmploy5Accuracy","M3B1z5OtherEmploy5Accuracy",{"$f":"\"'='\" & MID(CELL(\"address\",INDIRECT(B205)),$K$2+1,100)","v":"'='CNPIs Employment'!$L$28"},{"$f":"M3B1z5OtherEmploy5Accuracy","v":""},"Number","M3B1z5OtherEmploy5Accuracy",null,null,"M3B1FALSE"]
["M3B1z6OtherEmploy6Name","M3B1z6OtherEmploy6Name",{"$f":"\"'='\" & MID(CELL(\"address\",INDIRECT(B206)),$K$2+1,100)","v":"'='CNPIs Employment'!$C$29"},{"$f":"M3B1z6OtherEmploy6Name","v":0},"Text","M3B1z6OtherEmploy6Name",1000,null,"M3B1FALSE"]
["M3B1z6OtherEmploy6Baseline","M3B1z6OtherEmploy6Baseline",{"$f":"\"'='\" & MID(CELL(\"address\",INDIRECT(B207)),$K$2+1,100)","v":"'='CNPIs Employment'!$G$29"},{"$f":"M3B1z6OtherEmploy6Baseline","v":0},"Number","M3B1z6OtherEmploy6Baseline",null,null,"M3B1FALSE"]
["M3B1z6OtherEmploy6Target","M3B1z6OtherEmploy6Target",{"$f":"\"'='\" & MID(CELL(\"address\",INDIRECT(B208)),$K$2+1,100)","v":"'='CNPIs Employment'!$H$29"},{"$f":"M3B1z6OtherEmploy6Target","v":0},"Number","M3B1z6OtherEmploy6Target",null,null,"M3B1FALSE"]
["M3B1z6OtherEmploy6ExpectChng","M3B1z6OtherEmploy6ExpectChng",{"$f":"\"'='\" & MID(CELL(\"address\",INDIRECT(B209)),$K$2+1,100)","v":"'='CNPIs Employment'!$I$29"},{"$f":"M3B1z6OtherEmploy6ExpectChng","v":""},"Number","M3B1z6OtherEmploy6ExpectChng",null,null,"M3B1FALSE"]
["M3B1z6OtherEmploy6Results","M3B1z6OtherEmploy6Results",{"$f":"\"'='\" & MID(CELL(\"address\",INDIRECT(B210)),$K$2+1,100)","v":"'='CNPIs Employment'!$J$29"},{"$f":"M3B1z6OtherEmploy6Results","v":0},"Number","M3B1z6OtherEmploy6Results",null,null,"M3B1FALSE"]
["M3B1z6OtherEmploy6ActualChng","M3B1z6OtherEmploy6ActualChng",{"$f":"\"'='\" & MID(CELL(\"address\",INDIRECT(B211)),$K$2+1,100)","v":"'='CNPIs Employment'!$K$29"},{"$f":"M3B1z6OtherEmploy6ActualChng","v":""},"Number","M3B1z6OtherEmploy6ActualChng",null,null,"M3B1FALSE"]
["M3B1z6OtherEmploy6Accuracy","M3B1z6OtherEmploy6Accuracy",{"$f":"\"'='\" & MID(CELL(\"address\",INDIRECT(B212)),$K$2+1,100)","v":"'='CNPIs Employment'!$L$29"},{"$f":"M3B1z6OtherEmploy6Accuracy","v":""},"Number","M3B1z6OtherEmploy6Accuracy",null,null,"M3B1FALSE"]
["M3B1Comments","M3B1Comments",{"$f":"\"'='\" & MID(CELL(\"address\",INDIRECT(B213)),$K$2+1,100)","v":"'='CNPIs Employment'!$B$32"},{"$f":"M3B1Comments","v":0},"Text","M3B1Comments",5000,null,"M3B1FALSE"]
["M3B6G2aDonatedTimeBaseline","M3B6G2aDonatedTimeBaseline",{"$f":"\"'='\" & MID(CELL(\"address\",INDIRECT(B214)),$K$2+1,100)","v":"'='CNPIs G2 Civic Engagement'!$G$10"},{"$f":"M3B6G2aDonatedTimeBaseline","v":0},"Number","M3B6G2aDonatedTimeBaseline",null,null,"M3B6FALSE"]
["M3B6G2aDonatedTimeTarget","M3B6G2aDonatedTimeTarget",{"$f":"\"'='\" & MID(CELL(\"address\",INDIRECT(B215)),$K$2+1,100)","v":"'='CNPIs G2 Civic Engagement'!$H$10"},{"$f":"M3B6G2aDonatedTimeTarget","v":0},"Number","M3B6G2aDonatedTimeTarget",null,null,"M3B6FALSE"]
["M3B6G2aDonatedTimeExpectChng","M3B6G2aDonatedTimeExpectChng",{"$f":"\"'='\" & MID(CELL(\"address\",INDIRECT(B216)),$K$2+1,100)","v":"'='CNPIs G2 Civic Engagement'!$I$10"},{"$f":"M3B6G2aDonatedTimeExpectChng","v":""},"Number","M3B6G2aDonatedTimeExpectChng",null,null,"M3B6FALSE"]
["M3B6G2aDonatedTimeResults","M3B6G2aDonatedTimeResults",{"$f":"\"'='\" & MID(CELL(\"address\",INDIRECT(B217)),$K$2+1,100)","v":"'='CNPIs G2 Civic Engagement'!$J$10"},{"$f":"M3B6G2aDonatedTimeResults","v":0},"Number","M3B6G2aDonatedTimeResults",null,null,"M3B6FALSE"]
["M3B6G2aDonatedTimeActualChng","M3B6G2aDonatedTimeActualChng",{"$f":"\"'='\" & MID(CELL(\"address\",INDIRECT(B218)),$K$2+1,100)","v":"'='CNPIs G2 Civic Engagement'!$K$10"},{"$f":"M3B6G2aDonatedTimeActualChng","v":""},"Number","M3B6G2aDonatedTimeActualChng",null,null,"M3B6FALSE"]
["M3B6G2aDonatedTimeAccuracy","M3B6G2aDonatedTimeAccuracy",{"$f":"\"'='\" & MID(CELL(\"address\",INDIRECT(B219)),$K$2+1,100)","v":"'='CNPIs G2 Civic Engagement'!$L$10"},{"$f":"M3B6G2aDonatedTimeAccuracy","v":""},"Number","M3B6G2aDonatedTimeAccuracy",null,null,"M3B6FALSE"]
["M3B6G2bDonatedResourcesBaseline","M3B6G2bDonatedResourcesBaseline",{"$f":"\"'='\" & MID(CELL(\"address\",INDIRECT(B220)),$K$2+1,100)","v":"'='CNPIs G2 Civic Engagement'!$G$11"},{"$f":"M3B6G2bDonatedResourcesBaseline","v":0},"Number","M3B6G2bDonatedResourcesBaseline",null,null,"M3B6FALSE"]
["M3B6G2bDonatedResourcesTarget","M3B6G2bDonatedResourcesTarget",{"$f":"\"'='\" & MID(CELL(\"address\",INDIRECT(B221)),$K$2+1,100)","v":"'='CNPIs G2 Civic Engagement'!$H$11"},{"$f":"M3B6G2bDonatedResourcesTarget","v":0},"Number","M3B6G2bDonatedResourcesTarget",null,null,"M3B6FALSE"]
["M3B6G2bDonatedResourcesExpectChng","M3B6G2bDonatedResourcesExpectChng",{"$f":"\"'='\" & MID(CELL(\"address\",INDIRECT(B222)),$K$2+1,100)","v":"'='CNPIs G2 Civic Engagement'!$I$11"},{"$f":"M3B6G2bDonatedResourcesExpectChng","v":""},"Number","M3B6G2bDonatedResourcesExpectChng",null,null,"M3B6FALSE"]
["M3B6G2bDonatedResourcesResults","M3B6G2bDonatedResourcesResults",{"$f":"\"'='\" & MID(CELL(\"address\",INDIRECT(B223)),$K$2+1,100)","v":"'='CNPIs G2 Civic Engagement'!$J$11"},{"$f":"M3B6G2bDonatedResourcesResults","v":0},"Number","M3B6G2bDonatedResourcesResults",null,null,"M3B6FALSE"]
["M3B6G2bDonatedResourcesActualChng","M3B6G2bDonatedResourcesActualChng",{"$f":"\"'='\" & MID(CELL(\"address\",INDIRECT(B224)),$K$2+1,100)","v":"'='CNPIs G2 Civic Engagement'!$K$11"},{"$f":"M3B6G2bDonatedResourcesActualChng","v":""},"Number","M3B6G2bDonatedResourcesActualChng",null,null,"M3B6FALSE"]
["M3B6G2bDonatedResourcesAccuracy","M3B6G2bDonatedResourcesAccuracy",{"$f":"\"'='\" & MID(CELL(\"address\",INDIRECT(B225)),$K$2+1,100)","v":"'='CNPIs G2 Civic Engagement'!$L$11"},{"$f":"M3B6G2bDonatedResourcesAccuracy","v":""},"Number","M3B6G2bDonatedResourcesAccuracy",null,null,"M3B6FALSE"]
["M3B6G2cPeoplePartBaseline","M3B6G2cPeoplePartBaseline",{"$f":"\"'='\" & MID(CELL(\"address\",INDIRECT(B226)),$K$2+1,100)","v":"'='CNPIs G2 Civic Engagement'!$G$12"},{"$f":"M3B6G2cPeoplePartBaseline","v":0},"Number","M3B6G2cPeoplePartBaseline",null,null,"M3B6FALSE"]
["M3B6G2cPeoplePartTarget","M3B6G2cPeoplePartTarget",{"$f":"\"'='\" & MID(CELL(\"address\",INDIRECT(B227)),$K$2+1,100)","v":"'='CNPIs G2 Civic Engagement'!$H$12"},{"$f":"M3B6G2cPeoplePartTarget","v":0},"Number","M3B6G2cPeoplePartTarget",null,null,"M3B6FALSE"]
["M3B6G2cPeoplePartExpectChng","M3B6G2cPeoplePartExpectChng",{"$f":"\"'='\" & MID(CELL(\"address\",INDIRECT(B228)),$K$2+1,100)","v":"'='CNPIs G2 Civic Engagement'!$I$12"},{"$f":"M3B6G2cPeoplePartExpectChng","v":""},"Number","M3B6G2cPeoplePartExpectChng",null,null,"M3B6FALSE"]
["M3B6G2cPeoplePartResults","M3B6G2cPeoplePartResults",{"$f":"\"'='\" & MID(CELL(\"address\",INDIRECT(B229)),$K$2+1,100)","v":"'='CNPIs G2 Civic Engagement'!$J$12"},{"$f":"M3B6G2cPeoplePartResults","v":0},"Number","M3B6G2cPeoplePartResults",null,null,"M3B6FALSE"]
["M3B6G2cPeoplePartActualChng","M3B6G2cPeoplePartActualChng",{"$f":"\"'='\" & MID(CELL(\"address\",INDIRECT(B230)),$K$2+1,100)","v":"'='CNPIs G2 Civic Engagement'!$K$12"},{"$f":"M3B6G2cPeoplePartActualChng","v":""},"Number","M3B6G2cPeoplePartActualChng",null,null,"M3B6FALSE"]
["M3B6G2cPeoplePartAccuracy","M3B6G2cPeoplePartAccuracy",{"$f":"\"'='\" & MID(CELL(\"address\",INDIRECT(B231)),$K$2+1,100)","v":"'='CNPIs G2 Civic Engagement'!$L$12"},{"$f":"M3B6G2cPeoplePartAccuracy","v":""},"Number","M3B6G2cPeoplePartAccuracy",null,null,"M3B6FALSE"]
["M3B6G2z1OtherCivicEngG21Name","M3B6G2z1OtherCivicEngG21Name",{"$f":"\"'='\" & MID(CELL(\"address\",INDIRECT(B232)),$K$2+1,100)","v":"'='CNPIs G2 Civic Engagement'!$C$15"},{"$f":"M3B6G2z1OtherCivicEngG21Name","v":0},"Text","M3B6G2z1OtherCivicEngG21Name",1000,null,"M3B6FALSE"]
["M3B6G2z1OtherCivicEngG21Baseline","M3B6G2z1OtherCivicEngG21Baseline",{"$f":"\"'='\" & MID(CELL(\"address\",INDIRECT(B233)),$K$2+1,100)","v":"'='CNPIs G2 Civic Engagement'!$G$15"},{"$f":"M3B6G2z1OtherCivicEngG21Baseline","v":0},"Number","M3B6G2z1OtherCivicEngG21Baseline",null,null,"M3B6FALSE"]
["M3B6G2z1OtherCivicEngG21Target","M3B6G2z1OtherCivicEngG21Target",{"$f":"\"'='\" & MID(CELL(\"address\",INDIRECT(B234)),$K$2+1,100)","v":"'='CNPIs G2 Civic Engagement'!$H$15"},{"$f":"M3B6G2z1OtherCivicEngG21Target","v":0},"Number","M3B6G2z1OtherCivicEngG21Target",null,null,{"$f":"LEFT(A234,4) & AND(D234<>\"\",D234<>0)","v":"M3B6FALSE"}]
["M3B6G2z1OtherCivicEngG21ExpectChng","M3B6G2z1OtherCivicEngG21ExpectChng",{"$f":"\"'='\" & MID(CELL(\"address\",INDIRECT(B235)),$K$2+1,100)","v":"'='CNPIs G2 Civic Engagement'!$I$15"},{"$f":"M3B6G2z1OtherCivicEngG21ExpectChng","v":""},"Number","M3B6G2z1OtherCivicEngG21ExpectChng",null,null,"M3B6FALSE"]
["M3B6G2z1OtherCivicEngG21Results","M3B6G2z1OtherCivicEngG21Results",{"$f":"\"'='\" & MID(CELL(\"address\",INDIRECT(B236)),$K$2+1,100)","v":"'='CNPIs G2 Civic Engagement'!$J$15"},{"$f":"M3B6G2z1OtherCivicEngG21Results","v":0},"Number","M3B6G2z1OtherCivicEngG21Results",null,null,"M3B6FALSE"]
["M3B6G2z1OtherCivicEngG21ActualChng","M3B6G2z1OtherCivicEngG21ActualChng",{"$f":"\"'='\" & MID(CELL(\"address\",INDIRECT(B237)),$K$2+1,100)","v":"'='CNPIs G2 Civic Engagement'!$K$15"},{"$f":"M3B6G2z1OtherCivicEngG21ActualChng","v":""},"Number","M3B6G2z1OtherCivicEngG21ActualChng",null,null,"M3B6FALSE"]
["M3B6G2z1OtherCivicEngG21Accuracy","M3B6G2z1OtherCivicEngG21Accuracy",{"$f":"\"'='\" & MID(CELL(\"address\",INDIRECT(B238)),$K$2+1,100)","v":"'='CNPIs G2 Civic Engagement'!$L$15"},{"$f":"M3B6G2z1OtherCivicEngG21Accuracy","v":""},"Number","M3B6G2z1OtherCivicEngG21Accuracy",null,null,"M3B6FALSE"]
["M3B6G2z2OtherCivicEngG22Name","M3B6G2z2OtherCivicEngG22Name",{"$f":"\"'='\" & MID(CELL(\"address\",INDIRECT(B239)),$K$2+1,100)","v":"'='CNPIs G2 Civic Engagement'!$C$16"},{"$f":"M3B6G2z2OtherCivicEngG22Name","v":0},"Text","M3B6G2z2OtherCivicEngG22Name",1000,null,"M3B6FALSE"]
["M3B6G2z2OtherCivicEngG22Baseline","M3B6G2z2OtherCivicEngG22Baseline",{"$f":"\"'='\" & MID(CELL(\"address\",INDIRECT(B240)),$K$2+1,100)","v":"'='CNPIs G2 Civic Engagement'!$G$16"},{"$f":"M3B6G2z2OtherCivicEngG22Baseline","v":0},"Number","M3B6G2z2OtherCivicEngG22Baseline",null,null,"M3B6FALSE"]
["M3B6G2z2OtherCivicEngG22Target","M3B6G2z2OtherCivicEngG22Target",{"$f":"\"'='\" & MID(CELL(\"address\",INDIRECT(B241)),$K$2+1,100)","v":"'='CNPIs G2 Civic Engagement'!$H$16"},{"$f":"M3B6G2z2OtherCivicEngG22Target","v":0},"Number","M3B6G2z2OtherCivicEngG22Target",null,null,"M3B6FALSE"]
["M3B6G2z2OtherCivicEngG22ExpectChng","M3B6G2z2OtherCivicEngG22ExpectChng",{"$f":"\"'='\" & MID(CELL(\"address\",INDIRECT(B242)),$K$2+1,100)","v":"'='CNPIs G2 Civic Engagement'!$I$16"},{"$f":"M3B6G2z2OtherCivicEngG22ExpectChng","v":""},"Number","M3B6G2z2OtherCivicEngG22ExpectChng",null,null,"M3B6FALSE"]
["M3B6G2z2OtherCivicEngG22Results","M3B6G2z2OtherCivicEngG22Results",{"$f":"\"'='\" & MID(CELL(\"address\",INDIRECT(B243)),$K$2+1,100)","v":"'='CNPIs G2 Civic Engagement'!$J$16"},{"$f":"M3B6G2z2OtherCivicEngG22Results","v":0},"Number","M3B6G2z2OtherCivicEngG22Results",null,null,"M3B6FALSE"]
["M3B6G2z2OtherCivicEngG22ActualChng","M3B6G2z2OtherCivicEngG22ActualChng",{"$f":"\"'='\" & MID(CELL(\"address\",INDIRECT(B244)),$K$2+1,100)","v":"'='CNPIs G2 Civic Engagement'!$K$16"},{"$f":"M3B6G2z2OtherCivicEngG22ActualChng","v":""},"Number","M3B6G2z2OtherCivicEngG22ActualChng",null,null,"M3B6FALSE"]
["M3B6G2z2OtherCivicEngG22Accuracy","M3B6G2z2OtherCivicEngG22Accuracy",{"$f":"\"'='\" & MID(CELL(\"address\",INDIRECT(B245)),$K$2+1,100)","v":"'='CNPIs G2 Civic Engagement'!$L$16"},{"$f":"M3B6G2z2OtherCivicEngG22Accuracy","v":""},"Number","M3B6G2z2OtherCivicEngG22Accuracy",null,null,"M3B6FALSE"]
["M3B6G2z3OtherCivicEngG23Name","M3B6G2z3OtherCivicEngG23Name",{"$f":"\"'='\" & MID(CELL(\"address\",INDIRECT(B246)),$K$2+1,100)","v":"'='CNPIs G2 Civic Engagement'!$C$17"},{"$f":"M3B6G2z3OtherCivicEngG23Name","v":0},"Text","M3B6G2z3OtherCivicEngG23Name",1000,null,"M3B6FALSE"]
["M3B6G2z3OtherCivicEngG23Baseline","M3B6G2z3OtherCivicEngG23Baseline",{"$f":"\"'='\" & MID(CELL(\"address\",INDIRECT(B247)),$K$2+1,100)","v":"'='CNPIs G2 Civic Engagement'!$G$17"},{"$f":"M3B6G2z3OtherCivicEngG23Baseline","v":0},"Number","M3B6G2z3OtherCivicEngG23Baseline",null,null,"M3B6FALSE"]
["M3B6G2z3OtherCivicEngG23Target","M3B6G2z3OtherCivicEngG23Target",{"$f":"\"'='\" & MID(CELL(\"address\",INDIRECT(B248)),$K$2+1,100)","v":"'='CNPIs G2 Civic Engagement'!$H$17"},{"$f":"M3B6G2z3OtherCivicEngG23Target","v":0},"Number","M3B6G2z3OtherCivicEngG23Target",null,null,"M3B6FALSE"]
["M3B6G2z3OtherCivicEngG23ExpectChng","M3B6G2z3OtherCivicEngG23ExpectChng",{"$f":"\"'='\" & MID(CELL(\"address\",INDIRECT(B249)),$K$2+1,100)","v":"'='CNPIs G2 Civic Engagement'!$I$17"},{"$f":"M3B6G2z3OtherCivicEngG23ExpectChng","v":""},"Number","M3B6G2z3OtherCivicEngG23ExpectChng",null,null,"M3B6FALSE"]
["M3B6G2z3OtherCivicEngG23Results","M3B6G2z3OtherCivicEngG23Results",{"$f":"\"'='\" & MID(CELL(\"address\",INDIRECT(B250)),$K$2+1,100)","v":"'='CNPIs G2 Civic Engagement'!$J$17"},{"$f":"M3B6G2z3OtherCivicEngG23Results","v":0},"Number","M3B6G2z3OtherCivicEngG23Results",null,null,"M3B6FALSE"]
["M3B6G2z3OtherCivicEngG23ActualChng","M3B6G2z3OtherCivicEngG23ActualChng",{"$f":"\"'='\" & MID(CELL(\"address\",INDIRECT(B251)),$K$2+1,100)","v":"'='CNPIs G2 Civic Engagement'!$K$17"},{"$f":"M3B6G2z3OtherCivicEngG23ActualChng","v":""},"Number","M3B6G2z3OtherCivicEngG23ActualChng",null,null,"M3B6FALSE"]
["M3B6G2z3OtherCivicEngG23Accuracy","M3B6G2z3OtherCivicEngG23Accuracy",{"$f":"\"'='\" & MID(CELL(\"address\",INDIRECT(B252)),$K$2+1,100)","v":"'='CNPIs G2 Civic Engagement'!$L$17"},{"$f":"M3B6G2z3OtherCivicEngG23Accuracy","v":""},"Number","M3B6G2z3OtherCivicEngG23Accuracy",null,null,"M3B6FALSE"]
["M3B6G2z4OtherCivicEngG24Name","M3B6G2z4OtherCivicEngG24Name",{"$f":"\"'='\" & MID(CELL(\"address\",INDIRECT(B253)),$K$2+1,100)","v":"'='CNPIs G2 Civic Engagement'!$C$20"},{"$f":"M3B6G2z4OtherCivicEngG24Name","v":0},"Text","M3B6G2z4OtherCivicEngG24Name",1000,null,"M3B6FALSE"]
["M3B6G2z4OtherCivicEngG24Target","M3B6G2z4OtherCivicEngG24Target",{"$f":"\"'='\" & MID(CELL(\"address\",INDIRECT(B254)),$K$2+1,100)","v":"'='CNPIs G2 Civic Engagement'!$J$20"},{"$f":"M3B6G2z4OtherCivicEngG24Target","v":0},"Number","M3B6G2z4OtherCivicEngG24Target",null,null,"M3B6FALSE"]
["M3B6G2z4OtherCivicEngG24Results","M3B6G2z4OtherCivicEngG24Results",{"$f":"\"'='\" & MID(CELL(\"address\",INDIRECT(B255)),$K$2+1,100)","v":"'='CNPIs G2 Civic Engagement'!$K$20"},{"$f":"M3B6G2z4OtherCivicEngG24Results","v":0},"Number","M3B6G2z4OtherCivicEngG24Results",null,null,"M3B6FALSE"]
["M3B6G2z4OtherCivicEngG24Accuracy","M3B6G2z4OtherCivicEngG24Accuracy",{"$f":"\"'='\" & MID(CELL(\"address\",INDIRECT(B256)),$K$2+1,100)","v":"'='CNPIs G2 Civic Engagement'!$L$20"},{"$f":"M3B6G2z4OtherCivicEngG24Accuracy","v":""},"Number","M3B6G2z4OtherCivicEngG24Accuracy",null,null,"M3B6FALSE"]
["M3B6G2z5OtherCivicEngG25Name","M3B6G2z5OtherCivicEngG25Name",{"$f":"\"'='\" & MID(CELL(\"address\",INDIRECT(B257)),$K$2+1,100)","v":"'='CNPIs G2 Civic Engagement'!$C$21"},{"$f":"M3B6G2z5OtherCivicEngG25Name","v":0},"Text","M3B6G2z5OtherCivicEngG25Name",1000,null,"M3B6FALSE"]
["M3B6G2z5OtherCivicEngG25Target","M3B6G2z5OtherCivicEngG25Target",{"$f":"\"'='\" & MID(CELL(\"address\",INDIRECT(B258)),$K$2+1,100)","v":"'='CNPIs G2 Civic Engagement'!$J$21"},{"$f":"M3B6G2z5OtherCivicEngG25Target","v":0},"Number","M3B6G2z5OtherCivicEngG25Target",null,null,"M3B6FALSE"]
["M3B6G2z5OtherCivicEngG25Results","M3B6G2z5OtherCivicEngG25Results",{"$f":"\"'='\" & MID(CELL(\"address\",INDIRECT(B259)),$K$2+1,100)","v":"'='CNPIs G2 Civic Engagement'!$K$21"},{"$f":"M3B6G2z5OtherCivicEngG25Results","v":0},"Number","M3B6G2z5OtherCivicEngG25Results",null,null,"M3B6FALSE"]
["M3B6G2z5OtherCivicEngG25Accuracy","M3B6G2z5OtherCivicEngG25Accuracy",{"$f":"\"'='\" & MID(CELL(\"address\",INDIRECT(B260)),$K$2+1,100)","v":"'='CNPIs G2 Civic Engagement'!$L$21"},{"$f":"M3B6G2z5OtherCivicEngG25Accuracy","v":""},"Number","M3B6G2z5OtherCivicEngG25Accuracy",null,null,"M3B6FALSE"]
["M3B6G2z6OtherCivicEngG26Name","M3B6G2z6OtherCivicEngG26Name",{"$f":"\"'='\" & MID(CELL(\"address\",INDIRECT(B261)),$K$2+1,100)","v":"'='CNPIs G2 Civic Engagement'!$C$22"},{"$f":"M3B6G2z6OtherCivicEngG26Name","v":0},"Text","M3B6G2z6OtherCivicEngG26Name",1000,null,"M3B6FALSE"]
["M3B6G2z6OtherCivicEngG26Target","M3B6G2z6OtherCivicEngG26Target",{"$f":"\"'='\" & MID(CELL(\"address\",INDIRECT(B262)),$K$2+1,100)","v":"'='CNPIs G2 Civic Engagement'!$J$22"},{"$f":"M3B6G2z6OtherCivicEngG26Target","v":0},"Number","M3B6G2z6OtherCivicEngG26Target",null,null,"M3B6FALSE"]
["M3B6G2z6OtherCivicEngG26Results","M3B6G2z6OtherCivicEngG26Results",{"$f":"\"'='\" & MID(CELL(\"address\",INDIRECT(B263)),$K$2+1,100)","v":"'='CNPIs G2 Civic Engagement'!$K$22"},{"$f":"M3B6G2z6OtherCivicEngG26Results","v":0},"Number","M3B6G2z6OtherCivicEngG26Results",null,null,"M3B6FALSE"]
["M3B6G2z6OtherCivicEngG26Accuracy","M3B6G2z6OtherCivicEngG26Accuracy",{"$f":"\"'='\" & MID(CELL(\"address\",INDIRECT(B264)),$K$2+1,100)","v":"'='CNPIs G2 Civic Engagement'!$L$22"},{"$f":"M3B6G2z6OtherCivicEngG26Accuracy","v":""},"Number","M3B6G2z6OtherCivicEngG26Accuracy",null,null,"M3B6FALSE"]
["M3B5G2Comments","M3B5G2Comments",{"$f":"\"'='\" & MID(CELL(\"address\",INDIRECT(B265)),$K$2+1,100)","v":"'='CNPIs G2 Civic Engagement'!$B$24"},{"$f":"M3B5G2Comments","v":0},"Text","M3B5G2Comments",5000,null,"M3B5FALSE"]
["M3B6G3aSuppImplBaseline","M3B6G3aSuppImplBaseline",{"$f":"\"'='\" & MID(CELL(\"address\",INDIRECT(B266)),$K$2+1,100)","v":"'='CNPIs G3 Civic Engagement'!$G$10"},{"$f":"M3B6G3aSuppImplBaseline","v":0},"Number","M3B6G3aSuppImplBaseline",null,null,"M3B6FALSE"]
["M3B6G3aSuppImplTarget","M3B6G3aSuppImplTarget",{"$f":"\"'='\" & MID(CELL(\"address\",INDIRECT(B267)),$K$2+1,100)","v":"'='CNPIs G3 Civic Engagement'!$H$10"},{"$f":"M3B6G3aSuppImplTarget","v":0},"Number","M3B6G3aSuppImplTarget",null,null,"M3B6FALSE"]
["M3B6G3aSuppImplExpectChng","M3B6G3aSuppImplExpectChng",{"$f":"\"'='\" & MID(CELL(\"address\",INDIRECT(B268)),$K$2+1,100)","v":"'='CNPIs G3 Civic Engagement'!$I$10"},{"$f":"M3B6G3aSuppImplExpectChng","v":""},"Number","M3B6G3aSuppImplExpectChng",null,null,"M3B6FALSE"]
["M3B6G3aSuppImplResults","M3B6G3aSuppImplResults",{"$f":"\"'='\" & MID(CELL(\"address\",INDIRECT(B269)),$K$2+1,100)","v":"'='CNPIs G3 Civic Engagement'!$J$10"},{"$f":"M3B6G3aSuppImplResults","v":0},"Number","M3B6G3aSuppImplResults",null,null,"M3B6FALSE"]
["M3B6G3aSuppImplActualChng","M3B6G3aSuppImplActualChng",{"$f":"\"'='\" & MID(CELL(\"address\",INDIRECT(B270)),$K$2+1,100)","v":"'='CNPIs G3 Civic Engagement'!$K$10"},{"$f":"M3B6G3aSuppImplActualChng","v":""},"Number","M3B6G3aSuppImplActualChng",null,null,"M3B6FALSE"]
["M3B6G3aSuppImplAccuracy","M3B6G3aSuppImplAccuracy",{"$f":"\"'='\" & MID(CELL(\"address\",INDIRECT(B271)),$K$2+1,100)","v":"'='CNPIs G3 Civic Engagement'!$L$10"},{"$f":"M3B6G3aSuppImplAccuracy","v":""},"Number","M3B6G3aSuppImplAccuracy",null,null,"M3B6FALSE"]
["M3B6G3bLeadRoleBaseline","M3B6G3bLeadRoleBaseline",{"$f":"\"'='\" & MID(CELL(\"address\",INDIRECT(B272)),$K$2+1,100)","v":"'='CNPIs G3 Civic Engagement'!$G$11"},{"$f":"M3B6G3bLeadRoleBaseline","v":0},"Number","M3B6G3bLeadRoleBaseline",null,null,"M3B6FALSE"]
["M3B6G3bLeadRoleTarget","M3B6G3bLeadRoleTarget",{"$f":"\"'='\" & MID(CELL(\"address\",INDIRECT(B273)),$K$2+1,100)","v":"'='CNPIs G3 Civic Engagement'!$H$11"},{"$f":"M3B6G3bLeadRoleTarget","v":0},"Number","M3B6G3bLeadRoleTarget",null,null,"M3B6FALSE"]
["M3B6G3bLeadRoleExpectChng","M3B6G3bLeadRoleExpectChng",{"$f":"\"'='\" & MID(CELL(\"address\",INDIRECT(B274)),$K$2+1,100)","v":"'='CNPIs G3 Civic Engagement'!$I$11"},{"$f":"M3B6G3bLeadRoleExpectChng","v":""},"Number","M3B6G3bLeadRoleExpectChng",null,null,"M3B6FALSE"]
["M3B6G3bLeadRoleResults","M3B6G3bLeadRoleResults",{"$f":"\"'='\" & MID(CELL(\"address\",INDIRECT(B275)),$K$2+1,100)","v":"'='CNPIs G3 Civic Engagement'!$J$11"},{"$f":"M3B6G3bLeadRoleResults","v":0},"Number","M3B6G3bLeadRoleResults",null,null,"M3B6FALSE"]
["M3B6G3bLeadRoleActualChng","M3B6G3bLeadRoleActualChng",{"$f":"\"'='\" & MID(CELL(\"address\",INDIRECT(B276)),$K$2+1,100)","v":"'='CNPIs G3 Civic Engagement'!$K$11"},{"$f":"M3B6G3bLeadRoleActualChng","v":""},"Number","M3B6G3bLeadRoleActualChng",null,null,"M3B6FALSE"]
["M3B6G3bLeadRoleAccuracy","M3B6G3bLeadRoleAccuracy",{"$f":"\"'='\" & MID(CELL(\"address\",INDIRECT(B277)),$K$2+1,100)","v":"'='CNPIs G3 Civic Engagement'!$L$11"},{"$f":"M3B6G3bLeadRoleAccuracy","v":""},"Number","M3B6G3bLeadRoleAccuracy",null,null,"M3B6FALSE"]
["M3B6G3z1OtherCivicEngG31Name","M3B6G3z1OtherCivicEngG31Name",{"$f":"\"'='\" & MID(CELL(\"address\",INDIRECT(B278)),$K$2+1,100)","v":"'='CNPIs G3 Civic Engagement'!$C$14"},{"$f":"M3B6G3z1OtherCivicEngG31Name","v":0},"Text","M3B6G3z1OtherCivicEngG31Name",1000,null,"M3B6FALSE"]
["M3B6G3z1OtherCivicEngG31Baseline","M3B6G3z1OtherCivicEngG31Baseline",{"$f":"\"'='\" & MID(CELL(\"address\",INDIRECT(B279)),$K$2+1,100)","v":"'='CNPIs G3 Civic Engagement'!$G$14"},{"$f":"M3B6G3z1OtherCivicEngG31Baseline","v":0},"Number","M3B6G3z1OtherCivicEngG31Baseline",null,null,"M3B6FALSE"]
["M3B6G3z1OtherCivicEngG31Target","M3B6G3z1OtherCivicEngG31Target",{"$f":"\"'='\" & MID(CELL(\"address\",INDIRECT(B280)),$K$2+1,100)","v":"'='CNPIs G3 Civic Engagement'!$H$14"},{"$f":"M3B6G3z1OtherCivicEngG31Target","v":0},"Number","M3B6G3z1OtherCivicEngG31Target",null,null,"M3B6FALSE"]
["M3B6G3z1OtherCivicEngG31ExpectChng","M3B6G3z1OtherCivicEngG31ExpectChng",{"$f":"\"'='\" & MID(CELL(\"address\",INDIRECT(B281)),$K$2+1,100)","v":"'='CNPIs G3 Civic Engagement'!$I$14"},{"$f":"M3B6G3z1OtherCivicEngG31ExpectChng","v":""},"Number","M3B6G3z1OtherCivicEngG31ExpectChng",null,null,"M3B6FALSE"]
["M3B6G3z1OtherCivicEngG31Results","M3B6G3z1OtherCivicEngG31Results",{"$f":"\"'='\" & MID(CELL(\"address\",INDIRECT(B282)),$K$2+1,100)","v":"'='CNPIs G3 Civic Engagement'!$J$14"},{"$f":"M3B6G3z1OtherCivicEngG31Results","v":0},"Number","M3B6G3z1OtherCivicEngG31Results",null,null,"M3B6FALSE"]
["M3B6G3z1OtherCivicEngG31ActualChng","M3B6G3z1OtherCivicEngG31ActualChng",{"$f":"\"'='\" & MID(CELL(\"address\",INDIRECT(B283)),$K$2+1,100)","v":"'='CNPIs G3 Civic Engagement'!$K$14"},{"$f":"M3B6G3z1OtherCivicEngG31ActualChng","v":""},"Number","M3B6G3z1OtherCivicEngG31ActualChng",null,null,"M3B6FALSE"]
["M3B6G3z1OtherCivicEngG31Accuracy","M3B6G3z1OtherCivicEngG31Accuracy",{"$f":"\"'='\" & MID(CELL(\"address\",INDIRECT(B284)),$K$2+1,100)","v":"'='CNPIs G3 Civic Engagement'!$L$14"},{"$f":"M3B6G3z1OtherCivicEngG31Accuracy","v":""},"Number","M3B6G3z1OtherCivicEngG31Accuracy",null,null,"M3B6FALSE"]
["M3B6G3z2OtherCivicEngG32Name","M3B6G3z2OtherCivicEngG32Name",{"$f":"\"'='\" & MID(CELL(\"address\",INDIRECT(B285)),$K$2+1,100)","v":"'='CNPIs G3 Civic Engagement'!$C$15"},{"$f":"M3B6G3z2OtherCivicEngG32Name","v":0},"Text","M3B6G3z2OtherCivicEngG32Name",1000,null,"M3B6FALSE"]
["M3B6G3z2OtherCivicEngG32Baseline","M3B6G3z2OtherCivicEngG32Baseline",{"$f":"\"'='\" & MID(CELL(\"address\",INDIRECT(B286)),$K$2+1,100)","v":"'='CNPIs G3 Civic Engagement'!$G$15"},{"$f":"M3B6G3z2OtherCivicEngG32Baseline","v":0},"Number","M3B6G3z2OtherCivicEngG32Baseline",null,null,"M3B6FALSE"]
["M3B6G3z2OtherCivicEngG32Target","M3B6G3z2OtherCivicEngG32Target",{"$f":"\"'='\" & MID(CELL(\"address\",INDIRECT(B287)),$K$2+1,100)","v":"'='CNPIs G3 Civic Engagement'!$H$15"},{"$f":"M3B6G3z2OtherCivicEngG32Target","v":0},"Number","M3B6G3z2OtherCivicEngG32Target",null,null,"M3B6FALSE"]
["M3B6G3z2OtherCivicEngG32ExpectChng","M3B6G3z2OtherCivicEngG32ExpectChng",{"$f":"\"'='\" & MID(CELL(\"address\",INDIRECT(B288)),$K$2+1,100)","v":"'='CNPIs G3 Civic Engagement'!$I$15"},{"$f":"M3B6G3z2OtherCivicEngG32ExpectChng","v":""},"Number","M3B6G3z2OtherCivicEngG32ExpectChng",null,null,"M3B6FALSE"]
["M3B6G3z2OtherCivicEngG32Results","M3B6G3z2OtherCivicEngG32Results",{"$f":"\"'='\" & MID(CELL(\"address\",INDIRECT(B289)),$K$2+1,100)","v":"'='CNPIs G3 Civic Engagement'!$J$15"},{"$f":"M3B6G3z2OtherCivicEngG32Results","v":0},"Number","M3B6G3z2OtherCivicEngG32Results",null,null,"M3B6FALSE"]
["M3B6G3z2OtherCivicEngG32ActualChng","M3B6G3z2OtherCivicEngG32ActualChng",{"$f":"\"'='\" & MID(CELL(\"address\",INDIRECT(B290)),$K$2+1,100)","v":"'='CNPIs G3 Civic Engagement'!$K$15"},{"$f":"M3B6G3z2OtherCivicEngG32ActualChng","v":""},"Number","M3B6G3z2OtherCivicEngG32ActualChng",null,null,"M3B6FALSE"]
["M3B6G3z2OtherCivicEngG32Accuracy","M3B6G3z2OtherCivicEngG32Accuracy",{"$f":"\"'='\" & MID(CELL(\"address\",INDIRECT(B291)),$K$2+1,100)","v":"'='CNPIs G3 Civic Engagement'!$L$15"},{"$f":"M3B6G3z2OtherCivicEngG32Accuracy","v":""},"Number","M3B6G3z2OtherCivicEngG32Accuracy",null,null,"M3B6FALSE"]
["M3B6G3z3OtherCivicEngG33Name","M3B6G3z3OtherCivicEngG33Name",{"$f":"\"'='\" & MID(CELL(\"address\",INDIRECT(B292)),$K$2+1,100)","v":"'='CNPIs G3 Civic Engagement'!$C$16"},{"$f":"M3B6G3z3OtherCivicEngG33Name","v":0},"Text","M3B6G3z3OtherCivicEngG33Name",1000,null,"M3B6FALSE"]
["M3B6G3z3OtherCivicEngG33Baseline","M3B6G3z3OtherCivicEngG33Baseline",{"$f":"\"'='\" & MID(CELL(\"address\",INDIRECT(B293)),$K$2+1,100)","v":"'='CNPIs G3 Civic Engagement'!$G$16"},{"$f":"M3B6G3z3OtherCivicEngG33Baseline","v":0},"Number","M3B6G3z3OtherCivicEngG33Baseline",null,null,"M3B6FALSE"]
["M3B6G3z3OtherCivicEngG33Target","M3B6G3z3OtherCivicEngG33Target",{"$f":"\"'='\" & MID(CELL(\"address\",INDIRECT(B294)),$K$2+1,100)","v":"'='CNPIs G3 Civic Engagement'!$H$16"},{"$f":"M3B6G3z3OtherCivicEngG33Target","v":0},"Number","M3B6G3z3OtherCivicEngG33Target",null,null,"M3B6FALSE"]
["M3B6G3z3OtherCivicEngG33ExpectChng","M3B6G3z3OtherCivicEngG33ExpectChng",{"$f":"\"'='\" & MID(CELL(\"address\",INDIRECT(B295)),$K$2+1,100)","v":"'='CNPIs G3 Civic Engagement'!$I$16"},{"$f":"M3B6G3z3OtherCivicEngG33ExpectChng","v":""},"Number","M3B6G3z3OtherCivicEngG33ExpectChng",null,null,"M3B6FALSE"]
["M3B6G3z3OtherCivicEngG33Results","M3B6G3z3OtherCivicEngG33Results",{"$f":"\"'='\" & MID(CELL(\"address\",INDIRECT(B296)),$K$2+1,100)","v":"'='CNPIs G3 Civic Engagement'!$J$16"},{"$f":"M3B6G3z3OtherCivicEngG33Results","v":0},"Number","M3B6G3z3OtherCivicEngG33Results",null,null,"M3B6FALSE"]
["M3B6G3z3OtherCivicEngG33ActualChng","M3B6G3z3OtherCivicEngG33ActualChng",{"$f":"\"'='\" & MID(CELL(\"address\",INDIRECT(B297)),$K$2+1,100)","v":"'='CNPIs G3 Civic Engagement'!$K$16"},{"$f":"M3B6G3z3OtherCivicEngG33ActualChng","v":""},"Number","M3B6G3z3OtherCivicEngG33ActualChng",null,null,"M3B6FALSE"]
["M3B6G3z3OtherCivicEngG33Accuracy","M3B6G3z3OtherCivicEngG33Accuracy",{"$f":"\"'='\" & MID(CELL(\"address\",INDIRECT(B298)),$K$2+1,100)","v":"'='CNPIs G3 Civic Engagement'!$L$16"},{"$f":"M3B6G3z3OtherCivicEngG33Accuracy","v":""},"Number","M3B6G3z3OtherCivicEngG33Accuracy",null,null,{"$f":"LEFT(A298,4) & AND(D298<>\"\",D298<>0)","v":"M3B6FALSE"}]
["M3B6G3z4OtherCivicEngG34Name","M3B6G3z4OtherCivicEngG34Name",{"$f":"\"'='\" & MID(CELL(\"address\",INDIRECT(B299)),$K$2+1,100)","v":"'='CNPIs G3 Civic Engagement'!$C$19"},{"$f":"M3B6G3z4OtherCivicEngG34Name","v":0},"Text","M3B6G3z4OtherCivicEngG34Name",1000,null,"M3B6FALSE"]
["M3B6G3z4OtherCivicEngG34Target","M3B6G3z4OtherCivicEngG34Target",{"$f":"\"'='\" & MID(CELL(\"address\",INDIRECT(B300)),$K$2+1,100)","v":"'='CNPIs G3 Civic Engagement'!$J$19"},{"$f":"M3B6G3z4OtherCivicEngG34Target","v":0},"Number","M3B6G3z4OtherCivicEngG34Target",null,null,"M3B6FALSE"]
["M3B6G3z4OtherCivicEngG34Results","M3B6G3z4OtherCivicEngG34Results",{"$f":"\"'='\" & MID(CELL(\"address\",INDIRECT(B301)),$K$2+1,100)","v":"'='CNPIs G3 Civic Engagement'!$K$19"},{"$f":"M3B6G3z4OtherCivicEngG34Results","v":0},"Number","M3B6G3z4OtherCivicEngG34Results",null,null,"M3B6FALSE"]
["M3B6G3z4OtherCivicEngG34Accuracy","M3B6G3z4OtherCivicEngG34Accuracy",{"$f":"\"'='\" & MID(CELL(\"address\",INDIRECT(B302)),$K$2+1,100)","v":"'='CNPIs G3 Civic Engagement'!$L$19"},{"$f":"M3B6G3z4OtherCivicEngG34Accuracy","v":""},"Number","M3B6G3z4OtherCivicEngG34Accuracy",null,null,"M3B6FALSE"]
["M3B6G3z5OtherCivicEngG35Name","M3B6G3z5OtherCivicEngG35Name",{"$f":"\"'='\" & MID(CELL(\"address\",INDIRECT(B303)),$K$2+1,100)","v":"'='CNPIs G3 Civic Engagement'!$C$20"},{"$f":"M3B6G3z5OtherCivicEngG35Name","v":0},"Text","M3B6G3z5OtherCivicEngG35Name",1000,null,"M3B6FALSE"]
["M3B6G3z5OtherCivicEngG35Target","M3B6G3z5OtherCivicEngG35Target",{"$f":"\"'='\" & MID(CELL(\"address\",INDIRECT(B304)),$K$2+1,100)","v":"'='CNPIs G3 Civic Engagement'!$J$20"},{"$f":"M3B6G3z5OtherCivicEngG35Target","v":0},"Number","M3B6G3z5OtherCivicEngG35Target",null,null,"M3B6FALSE"]
["M3B6G3z5OtherCivicEngG35Results","M3B6G3z5OtherCivicEngG35Results",{"$f":"\"'='\" & MID(CELL(\"address\",INDIRECT(B305)),$K$2+1,100)","v":"'='CNPIs G3 Civic Engagement'!$K$20"},{"$f":"M3B6G3z5OtherCivicEngG35Results","v":0},"Number","M3B6G3z5OtherCivicEngG35Results",null,null,"M3B6FALSE"]
["M3B6G3z5OtherCivicEngG35Accuracy","M3B6G3z5OtherCivicEngG35Accuracy",{"$f":"\"'='\" & MID(CELL(\"address\",INDIRECT(B306)),$K$2+1,100)","v":"'='CNPIs G3 Civic Engagement'!$L$20"},{"$f":"M3B6G3z5OtherCivicEngG35Accuracy","v":""},"Number","M3B6G3z5OtherCivicEngG35Accuracy",null,null,"M3B6FALSE"]
["M3B6G3z6OtherCivicEngG36Name","M3B6G3z6OtherCivicEngG36Name",{"$f":"\"'='\" & MID(CELL(\"address\",INDIRECT(B307)),$K$2+1,100)","v":"'='CNPIs G3 Civic Engagement'!$C$21"},{"$f":"M3B6G3z6OtherCivicEngG36Name","v":0},"Text","M3B6G3z6OtherCivicEngG36Name",1000,null,"M3B6FALSE"]
["M3B6G3z6OtherCivicEngG36Target","M3B6G3z6OtherCivicEngG36Target",{"$f":"\"'='\" & MID(CELL(\"address\",INDIRECT(B308)),$K$2+1,100)","v":"'='CNPIs G3 Civic Engagement'!$J$21"},{"$f":"M3B6G3z6OtherCivicEngG36Target","v":0},"Number","M3B6G3z6OtherCivicEngG36Target",null,null,"M3B6FALSE"]
["M3B6G3z6OtherCivicEngG36Results","M3B6G3z6OtherCivicEngG36Results",{"$f":"\"'='\" & MID(CELL(\"address\",INDIRECT(B309)),$K$2+1,100)","v":"'='CNPIs G3 Civic Engagement'!$K$21"},{"$f":"M3B6G3z6OtherCivicEngG36Results","v":0},"Number","M3B6G3z6OtherCivicEngG36Results",null,null,"M3B6FALSE"]
["M3B6G3z6OtherCivicEngG36Accuracy","M3B6G3z6OtherCivicEngG36Accuracy",{"$f":"\"'='\" & MID(CELL(\"address\",INDIRECT(B310)),$K$2+1,100)","v":"'='CNPIs G3 Civic Engagement'!$L$21"},{"$f":"M3B6G3z6OtherCivicEngG36Accuracy","v":""},"Number","M3B6G3z6OtherCivicEngG36Accuracy",null,null,"M3B6FALSE"]
["M3B6G3Comments","M3B6G3Comments",{"$f":"\"'='\" & MID(CELL(\"address\",INDIRECT(B311)),$K$2+1,100)","v":"'='CNPIs G3 Civic Engagement'!$B$23"},{"$f":"M3B6G3Comments","v":0},"Text","M3B6G3Comments",5000,null,"M3B6FALSE"]
["M3B5aPhysHealthTarget","M3B5aPhysHealthTarget",{"$f":"\"'='\" & MID(CELL(\"address\",INDIRECT(B312)),$K$2+1,100)","v":"'='CNPIs Health and Social'!$J$9"},{"$f":"M3B5aPhysHealthTarget","v":0},"Number","M3B5aPhysHealthTarget",null,null,"M3B5FALSE"]
["M3B5aPhysHealthResults","M3B5aPhysHealthResults",{"$f":"\"'='\" & MID(CELL(\"address\",INDIRECT(B313)),$K$2+1,100)","v":"'='CNPIs Health and Social'!$K$9"},{"$f":"M3B5aPhysHealthResults","v":0},"Number","M3B5aPhysHealthResults",null,null,"M3B5FALSE"]
["M3B5aPhysHealthAccuracy","M3B5aPhysHealthAccuracy",{"$f":"\"'='\" & MID(CELL(\"address\",INDIRECT(B314)),$K$2+1,100)","v":"'='CNPIs Health and Social'!$L$9"},{"$f":"M3B5aPhysHealthAccuracy","v":""},"Number","M3B5aPhysHealthAccuracy",null,null,"M3B5FALSE"]
["M3B5bMentHealthTarget","M3B5bMentHealthTarget",{"$f":"\"'='\" & MID(CELL(\"address\",INDIRECT(B315)),$K$2+1,100)","v":"'='CNPIs Health and Social'!$J$10"},{"$f":"M3B5bMentHealthTarget","v":0},"Number","M3B5bMentHealthTarget",null,null,"M3B5FALSE"]
["M3B5bMentHealthResults","M3B5bMentHealthResults",{"$f":"\"'='\" & MID(CELL(\"address\",INDIRECT(B316)),$K$2+1,100)","v":"'='CNPIs Health and Social'!$K$10"},{"$f":"M3B5bMentHealthResults","v":0},"Number","M3B5bMentHealthResults",null,null,"M3B5FALSE"]
["M3B5bMentHealthAccuracy","M3B5bMentHealthAccuracy",{"$f":"\"'='\" & MID(CELL(\"address\",INDIRECT(B317)),$K$2+1,100)","v":"'='CNPIs Health and Social'!$L$10"},{"$f":"M3B5bMentHealthAccuracy","v":""},"Number","M3B5bMentHealthAccuracy",null,null,"M3B5FALSE"]
["M3B5cPubSafeTarget","M3B5cPubSafeTarget",{"$f":"\"'='\" & MID(CELL(\"address\",INDIRECT(B318)),$K$2+1,100)","v":"'='CNPIs Health and Social'!$J$11"},{"$f":"M3B5cPubSafeTarget","v":0},"Number","M3B5cPubSafeTarget",null,null,"M3B5FALSE"]
["M3B5cPubSafeResults","M3B5cPubSafeResults",{"$f":"\"'='\" & MID(CELL(\"address\",INDIRECT(B319)),$K$2+1,100)","v":"'='CNPIs Health and Social'!$K$11"},{"$f":"M3B5cPubSafeResults","v":0},"Number","M3B5cPubSafeResults",null,null,"M3B5FALSE"]
["M3B5cPubSafeAccuracy","M3B5cPubSafeAccuracy",{"$f":"\"'='\" & MID(CELL(\"address\",INDIRECT(B320)),$K$2+1,100)","v":"'='CNPIs Health and Social'!$L$11"},{"$f":"M3B5cPubSafeAccuracy","v":""},"Number","M3B5cPubSafeAccuracy",null,null,"M3B5FALSE"]
["M3B5dFoodResourceTarget","M3B5dFoodResourceTarget",{"$f":"\"'='\" & MID(CELL(\"address\",INDIRECT(B321)),$K$2+1,100)","v":"'='CNPIs Health and Social'!$J$12"},{"$f":"M3B5dFoodResourceTarget","v":0},"Number","M3B5dFoodResourceTarget",null,null,"M3B5FALSE"]
["M3B5dFoodResourceResults","M3B5dFoodResourceResults",{"$f":"\"'='\" & MID(CELL(\"address\",INDIRECT(B322)),$K$2+1,100)","v":"'='CNPIs Health and Social'!$K$12"},{"$f":"M3B5dFoodResourceResults","v":0},"Number","M3B5dFoodResourceResults",null,null,"M3B5FALSE"]
["M3B5dFoodResourceAccuracy","M3B5dFoodResourceAccuracy",{"$f":"\"'='\" & MID(CELL(\"address\",INDIRECT(B323)),$K$2+1,100)","v":"'='CNPIs Health and Social'!$L$12"},{"$f":"M3B5dFoodResourceAccuracy","v":""},"Number","M3B5dFoodResourceAccuracy",null,null,"M3B5FALSE"]
["M3B5eCommRelTarget","M3B5eCommRelTarget",{"$f":"\"'='\" & MID(CELL(\"address\",INDIRECT(B324)),$K$2+1,100)","v":"'='CNPIs Health and Social'!$J$13"},{"$f":"M3B5eCommRelTarget","v":0},"Number","M3B5eCommRelTarget",null,null,"M3B5FALSE"]
["M3B5eCommRelResults","M3B5eCommRelResults",{"$f":"\"'='\" & MID(CELL(\"address\",INDIRECT(B325)),$K$2+1,100)","v":"'='CNPIs Health and Social'!$K$13"},{"$f":"M3B5eCommRelResults","v":0},"Number","M3B5eCommRelResults",null,null,"M3B5FALSE"]
["M3B5eCommRelAccuracy","M3B5eCommRelAccuracy",{"$f":"\"'='\" & MID(CELL(\"address\",INDIRECT(B326)),$K$2+1,100)","v":"'='CNPIs Health and Social'!$L$13"},{"$f":"M3B5eCommRelAccuracy","v":""},"Number","M3B5eCommRelAccuracy",null,null,"M3B5FALSE"]
["M3B5z1OtherHealthSoc1Name","M3B5z1OtherHealthSoc1Name",{"$f":"\"'='\" & MID(CELL(\"address\",INDIRECT(B327)),$K$2+1,100)","v":"'='CNPIs Health and Social'!$C$16"},{"$f":"M3B5z1OtherHealthSoc1Name","v":0},"Text","M3B5z1OtherHealthSoc1Name",1000,null,"M3B5FALSE"]
["M3B5z1OtherHealthSoc1Target","M3B5z1OtherHealthSoc1Target",{"$f":"\"'='\" & MID(CELL(\"address\",INDIRECT(B328)),$K$2+1,100)","v":"'='CNPIs Health and Social'!$J$16"},{"$f":"M3B5z1OtherHealthSoc1Target","v":0},"Number","M3B5z1OtherHealthSoc1Target",null,null,"M3B5FALSE"]
["M3B5z1OtherHealthSoc1Results","M3B5z1OtherHealthSoc1Results",{"$f":"\"'='\" & MID(CELL(\"address\",INDIRECT(B329)),$K$2+1,100)","v":"'='CNPIs Health and Social'!$K$16"},{"$f":"M3B5z1OtherHealthSoc1Results","v":0},"Number","M3B5z1OtherHealthSoc1Results",null,null,"M3B5FALSE"]
["M3B5z1OtherHealthSoc1Accuracy","M3B5z1OtherHealthSoc1Accuracy",{"$f":"\"'='\" & MID(CELL(\"address\",INDIRECT(B330)),$K$2+1,100)","v":"'='CNPIs Health and Social'!$L$16"},{"$f":"M3B5z1OtherHealthSoc1Accuracy","v":""},"Number","M3B5z1OtherHealthSoc1Accuracy",null,null,"M3B5FALSE"]
["M3B5z2OtherHealthSoc2Name","M3B5z2OtherHealthSoc2Name",{"$f":"\"'='\" & MID(CELL(\"address\",INDIRECT(B331)),$K$2+1,100)","v":"'='CNPIs Health and Social'!$C$17"},{"$f":"M3B5z2OtherHealthSoc2Name","v":0},"Text","M3B5z2OtherHealthSoc2Name",1000,null,"M3B5FALSE"]
["M3B5z2OtherHealthSoc2Target","M3B5z2OtherHealthSoc2Target",{"$f":"\"'='\" & MID(CELL(\"address\",INDIRECT(B332)),$K$2+1,100)","v":"'='CNPIs Health and Social'!$J$17"},{"$f":"M3B5z2OtherHealthSoc2Target","v":0},"Number","M3B5z2OtherHealthSoc2Target",null,null,"M3B5FALSE"]
["M3B5z2OtherHealthSoc2Results","M3B5z2OtherHealthSoc2Results",{"$f":"\"'='\" & MID(CELL(\"address\",INDIRECT(B333)),$K$2+1,100)","v":"'='CNPIs Health and Social'!$K$17"},{"$f":"M3B5z2OtherHealthSoc2Results","v":0},"Number","M3B5z2OtherHealthSoc2Results",null,null,"M3B5FALSE"]
["M3B5z2OtherHealthSoc2Accuracy","M3B5z2OtherHealthSoc2Accuracy",{"$f":"\"'='\" & MID(CELL(\"address\",INDIRECT(B334)),$K$2+1,100)","v":"'='CNPIs Health and Social'!$L$17"},{"$f":"M3B5z2OtherHealthSoc2Accuracy","v":""},"Number","M3B5z2OtherHealthSoc2Accuracy",null,null,"M3B5FALSE"]
["M3B5z3OtherHealthSoc3Name","M3B5z3OtherHealthSoc3Name",{"$f":"\"'='\" & MID(CELL(\"address\",INDIRECT(B335)),$K$2+1,100)","v":"'='CNPIs Health and Social'!$C$18"},{"$f":"M3B5z3OtherHealthSoc3Name","v":0},"Text","M3B5z3OtherHealthSoc3Name",1000,null,"M3B5FALSE"]
["M3B5z3OtherHealthSoc3Target","M3B5z3OtherHealthSoc3Target",{"$f":"\"'='\" & MID(CELL(\"address\",INDIRECT(B336)),$K$2+1,100)","v":"'='CNPIs Health and Social'!$J$18"},{"$f":"M3B5z3OtherHealthSoc3Target","v":0},"Number","M3B5z3OtherHealthSoc3Target",null,null,"M3B5FALSE"]
["M3B5z3OtherHealthSoc3Results","M3B5z3OtherHealthSoc3Results",{"$f":"\"'='\" & MID(CELL(\"address\",INDIRECT(B337)),$K$2+1,100)","v":"'='CNPIs Health and Social'!$K$18"},{"$f":"M3B5z3OtherHealthSoc3Results","v":0},"Number","M3B5z3OtherHealthSoc3Results",null,null,"M3B5FALSE"]
["M3B5z3OtherHealthSoc3Accuracy","M3B5z3OtherHealthSoc3Accuracy",{"$f":"\"'='\" & MID(CELL(\"address\",INDIRECT(B338)),$K$2+1,100)","v":"'='CNPIs Health and Social'!$L$18"},{"$f":"M3B5z3OtherHealthSoc3Accuracy","v":""},"Number","M3B5z3OtherHealthSoc3Accuracy",null,null,"M3B5FALSE"]
["M3B5fMortRateBaseline","M3B5fMortRateBaseline",{"$f":"\"'='\" & MID(CELL(\"address\",INDIRECT(B339)),$K$2+1,100)","v":"'='CNPIs Health and Social'!$G$21"},{"$f":"M3B5fMortRateBaseline","v":0},"Number","M3B5fMortRateBaseline",null,null,"M3B5FALSE"]
["M3B5fMortRateTarget","M3B5fMortRateTarget",{"$f":"\"'='\" & MID(CELL(\"address\",INDIRECT(B340)),$K$2+1,100)","v":"'='CNPIs Health and Social'!$H$21"},{"$f":"M3B5fMortRateTarget","v":0},"Number","M3B5fMortRateTarget",null,null,"M3B5FALSE"]
["M3B5fMortRateExpectChng","M3B5fMortRateExpectChng",{"$f":"\"'='\" & MID(CELL(\"address\",INDIRECT(B341)),$K$2+1,100)","v":"'='CNPIs Health and Social'!$I$21"},{"$f":"M3B5fMortRateExpectChng","v":""},"Number","M3B5fMortRateExpectChng",null,null,"M3B5FALSE"]
["M3B5fMortRateResults","M3B5fMortRateResults",{"$f":"\"'='\" & MID(CELL(\"address\",INDIRECT(B342)),$K$2+1,100)","v":"'='CNPIs Health and Social'!$J$21"},{"$f":"M3B5fMortRateResults","v":0},"Number","M3B5fMortRateResults",null,null,"M3B5FALSE"]
["M3B5fMortRateActualChng","M3B5fMortRateActualChng",{"$f":"\"'='\" & MID(CELL(\"address\",INDIRECT(B343)),$K$2+1,100)","v":"'='CNPIs Health and Social'!$K$21"},{"$f":"M3B5fMortRateActualChng","v":""},"Number","M3B5fMortRateActualChng",null,null,"M3B5FALSE"]
["M3B5fMortRateAccuracy","M3B5fMortRateAccuracy",{"$f":"\"'='\" & MID(CELL(\"address\",INDIRECT(B344)),$K$2+1,100)","v":"'='CNPIs Health and Social'!$L$21"},{"$f":"M3B5fMortRateAccuracy","v":""},"Number","M3B5fMortRateAccuracy",null,null,"M3B5FALSE"]
["M3B5gChildObesRateBaseline","M3B5gChildObesRateBaseline",{"$f":"\"'='\" & MID(CELL(\"address\",INDIRECT(B345)),$K$2+1,100)","v":"'='CNPIs Health and Social'!$G$22"},{"$f":"M3B5gChildObesRateBaseline","v":0},"Number","M3B5gChildObesRateBaseline",null,null,"M3B5FALSE"]
["M3B5gChildObesRateTarget","M3B5gChildObesRateTarget",{"$f":"\"'='\" & MID(CELL(\"address\",INDIRECT(B346)),$K$2+1,100)","v":"'='CNPIs Health and Social'!$H$22"},{"$f":"M3B5gChildObesRateTarget","v":0},"Number","M3B5gChildObesRateTarget",null,null,"M3B5FALSE"]
["M3B5gChildObesRateExpectChng","M3B5gChildObesRateExpectChng",{"$f":"\"'='\" & MID(CELL(\"address\",INDIRECT(B347)),$K$2+1,100)","v":"'='CNPIs Health and Social'!$I$22"},{"$f":"M3B5gChildObesRateExpectChng","v":""},"Number","M3B5gChildObesRateExpectChng",null,null,"M3B5FALSE"]
["M3B5gChildObesRateResults","M3B5gChildObesRateResults",{"$f":"\"'='\" & MID(CELL(\"address\",INDIRECT(B348)),$K$2+1,100)","v":"'='CNPIs Health and Social'!$J$22"},{"$f":"M3B5gChildObesRateResults","v":0},"Number","M3B5gChildObesRateResults",null,null,"M3B5FALSE"]
["M3B5gChildObesRateActualChng","M3B5gChildObesRateActualChng",{"$f":"\"'='\" & MID(CELL(\"address\",INDIRECT(B349)),$K$2+1,100)","v":"'='CNPIs Health and Social'!$K$22"},{"$f":"M3B5gChildObesRateActualChng","v":""},"Number","M3B5gChildObesRateActualChng",null,null,"M3B5FALSE"]
["M3B5gChildObesRateAccuracy","M3B5gChildObesRateAccuracy",{"$f":"\"'='\" & MID(CELL(\"address\",INDIRECT(B350)),$K$2+1,100)","v":"'='CNPIs Health and Social'!$L$22"},{"$f":"M3B5gChildObesRateAccuracy","v":""},"Number","M3B5gChildObesRateAccuracy",null,null,"M3B5FALSE"]
["M3B5hAdultObesRateBaseline","M3B5hAdultObesRateBaseline",{"$f":"\"'='\" & MID(CELL(\"address\",INDIRECT(B351)),$K$2+1,100)","v":"'='CNPIs Health and Social'!$G$23"},{"$f":"M3B5hAdultObesRateBaseline","v":0},"Number","M3B5hAdultObesRateBaseline",null,null,"M3B5FALSE"]
["M3B5hAdultObesRateTarget","M3B5hAdultObesRateTarget",{"$f":"\"'='\" & MID(CELL(\"address\",INDIRECT(B352)),$K$2+1,100)","v":"'='CNPIs Health and Social'!$H$23"},{"$f":"M3B5hAdultObesRateTarget","v":0},"Number","M3B5hAdultObesRateTarget",null,null,"M3B5FALSE"]
["M3B5hAdultObesRateExpectChng","M3B5hAdultObesRateExpectChng",{"$f":"\"'='\" & MID(CELL(\"address\",INDIRECT(B353)),$K$2+1,100)","v":"'='CNPIs Health and Social'!$I$23"},{"$f":"M3B5hAdultObesRateExpectChng","v":""},"Number","M3B5hAdultObesRateExpectChng",null,null,"M3B5FALSE"]
["M3B5hAdultObesRateResults","M3B5hAdultObesRateResults",{"$f":"\"'='\" & MID(CELL(\"address\",INDIRECT(B354)),$K$2+1,100)","v":"'='CNPIs Health and Social'!$J$23"},{"$f":"M3B5hAdultObesRateResults","v":0},"Number","M3B5hAdultObesRateResults",null,null,"M3B5FALSE"]
["M3B5hAdultObesRateActualChng","M3B5hAdultObesRateActualChng",{"$f":"\"'='\" & MID(CELL(\"address\",INDIRECT(B355)),$K$2+1,100)","v":"'='CNPIs Health and Social'!$K$23"},{"$f":"M3B5hAdultObesRateActualChng","v":""},"Number","M3B5hAdultObesRateActualChng",null,null,"M3B5FALSE"]
["M3B5hAdultObesRateAccuracy","M3B5hAdultObesRateAccuracy",{"$f":"\"'='\" & MID(CELL(\"address\",INDIRECT(B356)),$K$2+1,100)","v":"'='CNPIs Health and Social'!$L$23"},{"$f":"M3B5hAdultObesRateAccuracy","v":""},"Number","M3B5hAdultObesRateAccuracy",null,null,"M3B5FALSE"]
["M3B5iImmunRateBaseline","M3B5iImmunRateBaseline",{"$f":"\"'='\" & MID(CELL(\"address\",INDIRECT(B357)),$K$2+1,100)","v":"'='CNPIs Health and Social'!$G$24"},{"$f":"M3B5iImmunRateBaseline","v":0},"Number","M3B5iImmunRateBaseline",null,null,"M3B5FALSE"]
["M3B5iImmunRateTarget","M3B5iImmunRateTarget",{"$f":"\"'='\" & MID(CELL(\"address\",INDIRECT(B358)),$K$2+1,100)","v":"'='CNPIs Health and Social'!$H$24"},{"$f":"M3B5iImmunRateTarget","v":0},"Number","M3B5iImmunRateTarget",null,null,"M3B5FALSE"]
["M3B5iImmunRateExpectChng","M3B5iImmunRateExpectChng",{"$f":"\"'='\" & MID(CELL(\"address\",INDIRECT(B359)),$K$2+1,100)","v":"'='CNPIs Health and Social'!$I$24"},{"$f":"M3B5iImmunRateExpectChng","v":""},"Number","M3B5iImmunRateExpectChng",null,null,"M3B5FALSE"]
["M3B5iImmunRateResults","M3B5iImmunRateResults",{"$f":"\"'='\" & MID(CELL(\"address\",INDIRECT(B360)),$K$2+1,100)","v":"'='CNPIs Health and Social'!$J$24"},{"$f":"M3B5iImmunRateResults","v":0},"Number","M3B5iImmunRateResults",null,null,"M3B5FALSE"]
["M3B5iImmunRateActualChng","M3B5iImmunRateActualChng",{"$f":"\"'='\" & MID(CELL(\"address\",INDIRECT(B361)),$K$2+1,100)","v":"'='CNPIs Health and Social'!$K$24"},{"$f":"M3B5iImmunRateActualChng","v":""},"Number","M3B5iImmunRateActualChng",null,null,"M3B5FALSE"]
["M3B5iImmunRateAccuracy","M3B5iImmunRateAccuracy",{"$f":"\"'='\" & MID(CELL(\"address\",INDIRECT(B362)),$K$2+1,100)","v":"'='CNPIs Health and Social'!$L$24"},{"$f":"M3B5iImmunRateAccuracy","v":""},"Number","M3B5iImmunRateAccuracy",null,null,{"$f":"LEFT(A362,4) & AND(D362<>\"\",D362<>0)","v":"M3B5FALSE"}]
["M3B5jUninsuredFamBaseline","M3B5jUninsuredFamBaseline",{"$f":"\"'='\" & MID(CELL(\"address\",INDIRECT(B363)),$K$2+1,100)","v":"'='CNPIs Health and Social'!$G$25"},{"$f":"M3B5jUninsuredFamBaseline","v":0},"Number","M3B5jUninsuredFamBaseline",null,null,"M3B5FALSE"]
["M3B5jUninsuredFamTarget","M3B5jUninsuredFamTarget",{"$f":"\"'='\" & MID(CELL(\"address\",INDIRECT(B364)),$K$2+1,100)","v":"'='CNPIs Health and Social'!$H$25"},{"$f":"M3B5jUninsuredFamTarget","v":0},"Number","M3B5jUninsuredFamTarget",null,null,"M3B5FALSE"]
["M3B5jUninsuredFamExpectChng","M3B5jUninsuredFamExpectChng",{"$f":"\"'='\" & MID(CELL(\"address\",INDIRECT(B365)),$K$2+1,100)","v":"'='CNPIs Health and Social'!$I$25"},{"$f":"M3B5jUninsuredFamExpectChng","v":""},"Number","M3B5jUninsuredFamExpectChng",null,null,"M3B5FALSE"]
["M3B5jUninsuredFamResults","M3B5jUninsuredFamResults",{"$f":"\"'='\" & MID(CELL(\"address\",INDIRECT(B366)),$K$2+1,100)","v":"'='CNPIs Health and Social'!$J$25"},{"$f":"M3B5jUninsuredFamResults","v":0},"Number","M3B5jUninsuredFamResults",null,null,"M3B5FALSE"]
["M3B5jUninsuredFamActualChng","M3B5jUninsuredFamActualChng",{"$f":"\"'='\" & MID(CELL(\"address\",INDIRECT(B367)),$K$2+1,100)","v":"'='CNPIs Health and Social'!$K$25"},{"$f":"M3B5jUninsuredFamActualChng","v":""},"Number","M3B5jUninsuredFamActualChng",null,null,"M3B5FALSE"]
["M3B5jUninsuredFamAccuracy","M3B5jUninsuredFamAccuracy",{"$f":"\"'='\" & MID(CELL(\"address\",INDIRECT(B368)),$K$2+1,100)","v":"'='CNPIs Health and Social'!$L$25"},{"$f":"M3B5jUninsuredFamAccuracy","v":""},"Number","M3B5jUninsuredFamAccuracy",null,null,"M3B5FALSE"]
["M3B5kTeenPregBaseline","M3B5kTeenPregBaseline",{"$f":"\"'='\" & MID(CELL(\"address\",INDIRECT(B369)),$K$2+1,100)","v":"'='CNPIs Health and Social'!$G$27"},{"$f":"M3B5kTeenPregBaseline","v":0},"Number","M3B5kTeenPregBaseline",null,null,"M3B5FALSE"]
["M3B5kTeenPregTarget","M3B5kTeenPregTarget",{"$f":"\"'='\" & MID(CELL(\"address\",INDIRECT(B370)),$K$2+1,100)","v":"'='CNPIs Health and Social'!$H$27"},{"$f":"M3B5kTeenPregTarget","v":0},"Number","M3B5kTeenPregTarget",null,null,"M3B5FALSE"]
["M3B5kTeenPregExpectChng","M3B5kTeenPregExpectChng",{"$f":"\"'='\" & MID(CELL(\"address\",INDIRECT(B371)),$K$2+1,100)","v":"'='CNPIs Health and Social'!$I$27"},{"$f":"M3B5kTeenPregExpectChng","v":""},"Number","M3B5kTeenPregExpectChng",null,null,"M3B5FALSE"]
["M3B5kTeenPregResults","M3B5kTeenPregResults",{"$f":"\"'='\" & MID(CELL(\"address\",INDIRECT(B372)),$K$2+1,100)","v":"'='CNPIs Health and Social'!$J$27"},{"$f":"M3B5kTeenPregResults","v":0},"Number","M3B5kTeenPregResults",null,null,"M3B5FALSE"]
["M3B5kTeenPregActualChng","M3B5kTeenPregActualChng",{"$f":"\"'='\" & MID(CELL(\"address\",INDIRECT(B373)),$K$2+1,100)","v":"'='CNPIs Health and Social'!$K$27"},{"$f":"M3B5kTeenPregActualChng","v":""},"Number","M3B5kTeenPregActualChng",null,null,"M3B5FALSE"]
["M3B5kTeenPregAccuracy","M3B5kTeenPregAccuracy",{"$f":"\"'='\" & MID(CELL(\"address\",INDIRECT(B374)),$K$2+1,100)","v":"'='CNPIs Health and Social'!$L$27"},{"$f":"M3B5kTeenPregAccuracy","v":""},"Number","M3B5kTeenPregAccuracy",null,null,"M3B5FALSE"]
["M3B5lUnplanPregBaseline","M3B5lUnplanPregBaseline",{"$f":"\"'='\" & MID(CELL(\"address\",INDIRECT(B375)),$K$2+1,100)","v":"'='CNPIs Health and Social'!$G$28"},{"$f":"M3B5lUnplanPregBaseline","v":0},"Number","M3B5lUnplanPregBaseline",null,null,"M3B5FALSE"]
["M3B5lUnplanPregTarget","M3B5lUnplanPregTarget",{"$f":"\"'='\" & MID(CELL(\"address\",INDIRECT(B376)),$K$2+1,100)","v":"'='CNPIs Health and Social'!$H$28"},{"$f":"M3B5lUnplanPregTarget","v":0},"Number","M3B5lUnplanPregTarget",null,null,"M3B5FALSE"]
["M3B5lUnplanPregExpectChng","M3B5lUnplanPregExpectChng",{"$f":"\"'='\" & MID(CELL(\"address\",INDIRECT(B377)),$K$2+1,100)","v":"'='CNPIs Health and Social'!$I$28"},{"$f":"M3B5lUnplanPregExpectChng","v":""},"Number","M3B5lUnplanPregExpectChng",null,null,"M3B5FALSE"]
["M3B5lUnplanPregResults","M3B5lUnplanPregResults",{"$f":"\"'='\" & MID(CELL(\"address\",INDIRECT(B378)),$K$2+1,100)","v":"'='CNPIs Health and Social'!$J$28"},{"$f":"M3B5lUnplanPregResults","v":0},"Number","M3B5lUnplanPregResults",null,null,"M3B5FALSE"]
["M3B5lUnplanPregActualChng","M3B5lUnplanPregActualChng",{"$f":"\"'='\" & MID(CELL(\"address\",INDIRECT(B379)),$K$2+1,100)","v":"'='CNPIs Health and Social'!$K$28"},{"$f":"M3B5lUnplanPregActualChng","v":""},"Number","M3B5lUnplanPregActualChng",null,null,"M3B5FALSE"]
["M3B5lUnplanPregAccuracy","M3B5lUnplanPregAccuracy",{"$f":"\"'='\" & MID(CELL(\"address\",INDIRECT(B380)),$K$2+1,100)","v":"'='CNPIs Health and Social'!$L$28"},{"$f":"M3B5lUnplanPregAccuracy","v":""},"Number","M3B5lUnplanPregAccuracy",null,null,"M3B5FALSE"]
["M3B5mSubAbuseBaseline","M3B5mSubAbuseBaseline",{"$f":"\"'='\" & MID(CELL(\"address\",INDIRECT(B381)),$K$2+1,100)","v":"'='CNPIs Health and Social'!$G$29"},{"$f":"M3B5mSubAbuseBaseline","v":0},"Number","M3B5mSubAbuseBaseline",null,null,"M3B5FALSE"]
["M3B5mSubAbuseTarget","M3B5mSubAbuseTarget",{"$f":"\"'='\" & MID(CELL(\"address\",INDIRECT(B382)),$K$2+1,100)","v":"'='CNPIs Health and Social'!$H$29"},{"$f":"M3B5mSubAbuseTarget","v":0},"Number","M3B5mSubAbuseTarget",null,null,"M3B5FALSE"]
["M3B5mSubAbuseExpectChng","M3B5mSubAbuseExpectChng",{"$f":"\"'='\" & MID(CELL(\"address\",INDIRECT(B383)),$K$2+1,100)","v":"'='CNPIs Health and Social'!$I$29"},{"$f":"M3B5mSubAbuseExpectChng","v":""},"Number","M3B5mSubAbuseExpectChng",null,null,"M3B5FALSE"]
["M3B5mSubAbuseResults","M3B5mSubAbuseResults",{"$f":"\"'='\" & MID(CELL(\"address\",INDIRECT(B384)),$K$2+1,100)","v":"'='CNPIs Health and Social'!$J$29"},{"$f":"M3B5mSubAbuseResults","v":0},"Number","M3B5mSubAbuseResults",null,null,"M3B5FALSE"]
["M3B5mSubAbuseActualChng","M3B5mSubAbuseActualChng",{"$f":"\"'='\" & MID(CELL(\"address\",INDIRECT(B385)),$K$2+1,100)","v":"'='CNPIs Health and Social'!$K$29"},{"$f":"M3B5mSubAbuseActualChng","v":""},"Number","M3B5mSubAbuseActualChng",null,null,"M3B5FALSE"]
["M3B5mSubAbuseAccuracy","M3B5mSubAbuseAccuracy",{"$f":"\"'='\" & MID(CELL(\"address\",INDIRECT(B386)),$K$2+1,100)","v":"'='CNPIs Health and Social'!$L$29"},{"$f":"M3B5mSubAbuseAccuracy","v":""},"Number","M3B5mSubAbuseAccuracy",null,null,"M3B5FALSE"]
["M3B5nDomViolenceBaseline","M3B5nDomViolenceBaseline",{"$f":"\"'='\" & MID(CELL(\"address\",INDIRECT(B387)),$K$2+1,100)","v":"'='CNPIs Health and Social'!$G$30"},{"$f":"M3B5nDomViolenceBaseline","v":0},"Number","M3B5nDomViolenceBaseline",null,null,"M3B5FALSE"]
["M3B5nDomViolenceTarget","M3B5nDomViolenceTarget",{"$f":"\"'='\" & MID(CELL(\"address\",INDIRECT(B388)),$K$2+1,100)","v":"'='CNPIs Health and Social'!$H$30"},{"$f":"M3B5nDomViolenceTarget","v":0},"Number","M3B5nDomViolenceTarget",null,null,"M3B5FALSE"]
["M3B5nDomViolenceExpectChng","M3B5nDomViolenceExpectChng",{"$f":"\"'='\" & MID(CELL(\"address\",INDIRECT(B389)),$K$2+1,100)","v":"'='CNPIs Health and Social'!$I$30"},{"$f":"M3B5nDomViolenceExpectChng","v":""},"Number","M3B5nDomViolenceExpectChng",null,null,"M3B5FALSE"]
["M3B5nDomViolenceResults","M3B5nDomViolenceResults",{"$f":"\"'='\" & MID(CELL(\"address\",INDIRECT(B390)),$K$2+1,100)","v":"'='CNPIs Health and Social'!$J$30"},{"$f":"M3B5nDomViolenceResults","v":0},"Number","M3B5nDomViolenceResults",null,null,"M3B5FALSE"]
["M3B5nDomViolenceActualChng","M3B5nDomViolenceActualChng",{"$f":"\"'='\" & MID(CELL(\"address\",INDIRECT(B391)),$K$2+1,100)","v":"'='CNPIs Health and Social'!$K$30"},{"$f":"M3B5nDomViolenceActualChng","v":""},"Number","M3B5nDomViolenceActualChng",null,null,"M3B5FALSE"]
["M3B5nDomViolenceAccuracy","M3B5nDomViolenceAccuracy",{"$f":"\"'='\" & MID(CELL(\"address\",INDIRECT(B392)),$K$2+1,100)","v":"'='CNPIs Health and Social'!$L$30"},{"$f":"M3B5nDomViolenceAccuracy","v":""},"Number","M3B5nDomViolenceAccuracy",null,null,"M3B5FALSE"]
["M3B5oChildAbuseBaseline","M3B5oChildAbuseBaseline",{"$f":"\"'='\" & MID(CELL(\"address\",INDIRECT(B393)),$K$2+1,100)","v":"'='CNPIs Health and Social'!$G$31"},{"$f":"M3B5oChildAbuseBaseline","v":0},"Number","M3B5oChildAbuseBaseline",null,null,"M3B5FALSE"]
["M3B5oChildAbuseTarget","M3B5oChildAbuseTarget",{"$f":"\"'='\" & MID(CELL(\"address\",INDIRECT(B394)),$K$2+1,100)","v":"'='CNPIs Health and Social'!$H$31"},{"$f":"M3B5oChildAbuseTarget","v":0},"Number","M3B5oChildAbuseTarget",null,null,"M3B5FALSE"]
["M3B5oChildAbuseExpectChng","M3B5oChildAbuseExpectChng",{"$f":"\"'='\" & MID(CELL(\"address\",INDIRECT(B395)),$K$2+1,100)","v":"'='CNPIs Health and Social'!$I$31"},{"$f":"M3B5oChildAbuseExpectChng","v":""},"Number","M3B5oChildAbuseExpectChng",null,null,"M3B5FALSE"]
["M3B5oChildAbuseResults","M3B5oChildAbuseResults",{"$f":"\"'='\" & MID(CELL(\"address\",INDIRECT(B396)),$K$2+1,100)","v":"'='CNPIs Health and Social'!$J$31"},{"$f":"M3B5oChildAbuseResults","v":0},"Number","M3B5oChildAbuseResults",null,null,"M3B5FALSE"]
["M3B5oChildAbuseActualChng","M3B5oChildAbuseActualChng",{"$f":"\"'='\" & MID(CELL(\"address\",INDIRECT(B397)),$K$2+1,100)","v":"'='CNPIs Health and Social'!$K$31"},{"$f":"M3B5oChildAbuseActualChng","v":""},"Number","M3B5oChildAbuseActualChng",null,null,"M3B5FALSE"]
["M3B5oChildAbuseAccuracy","M3B5oChildAbuseAccuracy",{"$f":"\"'='\" & MID(CELL(\"address\",INDIRECT(B398)),$K$2+1,100)","v":"'='CNPIs Health and Social'!$L$31"},{"$f":"M3B5oChildAbuseAccuracy","v":""},"Number","M3B5oChildAbuseAccuracy",null,null,"M3B5FALSE"]
["M3B5pChildNeglectBaseline","M3B5pChildNeglectBaseline",{"$f":"\"'='\" & MID(CELL(\"address\",INDIRECT(B399)),$K$2+1,100)","v":"'='CNPIs Health and Social'!$G$32"},{"$f":"M3B5pChildNeglectBaseline","v":0},"Number","M3B5pChildNeglectBaseline",null,null,"M3B5FALSE"]
["M3B5pChildNeglectTarget","M3B5pChildNeglectTarget",{"$f":"\"'='\" & MID(CELL(\"address\",INDIRECT(B400)),$K$2+1,100)","v":"'='CNPIs Health and Social'!$H$32"},{"$f":"M3B5pChildNeglectTarget","v":0},"Number","M3B5pChildNeglectTarget",null,null,"M3B5FALSE"]
["M3B5pChildNeglectExpectChng","M3B5pChildNeglectExpectChng",{"$f":"\"'='\" & MID(CELL(\"address\",INDIRECT(B401)),$K$2+1,100)","v":"'='CNPIs Health and Social'!$I$32"},{"$f":"M3B5pChildNeglectExpectChng","v":""},"Number","M3B5pChildNeglectExpectChng",null,null,"M3B5FALSE"]
["M3B5pChildNeglectResults","M3B5pChildNeglectResults",{"$f":"\"'='\" & MID(CELL(\"address\",INDIRECT(B402)),$K$2+1,100)","v":"'='CNPIs Health and Social'!$J$32"},{"$f":"M3B5pChildNeglectResults","v":0},"Number","M3B5pChildNeglectResults",null,null,"M3B5FALSE"]
["M3B5pChildNeglectActualChng","M3B5pChildNeglectActualChng",{"$f":"\"'='\" & MID(CELL(\"address\",INDIRECT(B403)),$K$2+1,100)","v":"'='CNPIs Health and Social'!$K$32"},{"$f":"M3B5pChildNeglectActualChng","v":""},"Number","M3B5pChildNeglectActualChng",null,null,"M3B5FALSE"]
["M3B5pChildNeglectAccuracy","M3B5pChildNeglectAccuracy",{"$f":"\"'='\" & MID(CELL(\"address\",INDIRECT(B404)),$K$2+1,100)","v":"'='CNPIs Health and Social'!$L$32"},{"$f":"M3B5pChildNeglectAccuracy","v":""},"Number","M3B5pChildNeglectAccuracy",null,null,"M3B5FALSE"]
["M3B5qElderAbuseBaseline","M3B5qElderAbuseBaseline",{"$f":"\"'='\" & MID(CELL(\"address\",INDIRECT(B405)),$K$2+1,100)","v":"'='CNPIs Health and Social'!$G$33"},{"$f":"M3B5qElderAbuseBaseline","v":0},"Number","M3B5qElderAbuseBaseline",null,null,"M3B5FALSE"]
["M3B5qElderAbuseTarget","M3B5qElderAbuseTarget",{"$f":"\"'='\" & MID(CELL(\"address\",INDIRECT(B406)),$K$2+1,100)","v":"'='CNPIs Health and Social'!$H$33"},{"$f":"M3B5qElderAbuseTarget","v":0},"Number","M3B5qElderAbuseTarget",null,null,"M3B5FALSE"]
["M3B5qElderAbuseExpectChng","M3B5qElderAbuseExpectChng",{"$f":"\"'='\" & MID(CELL(\"address\",INDIRECT(B407)),$K$2+1,100)","v":"'='CNPIs Health and Social'!$I$33"},{"$f":"M3B5qElderAbuseExpectChng","v":""},"Number","M3B5qElderAbuseExpectChng",null,null,"M3B5FALSE"]
["M3B5qElderAbuseResults","M3B5qElderAbuseResults",{"$f":"\"'='\" & MID(CELL(\"address\",INDIRECT(B408)),$K$2+1,100)","v":"'='CNPIs Health and Social'!$J$33"},{"$f":"M3B5qElderAbuseResults","v":0},"Number","M3B5qElderAbuseResults",null,null,"M3B5FALSE"]
["M3B5qElderAbuseActualChng","M3B5qElderAbuseActualChng",{"$f":"\"'='\" & MID(CELL(\"address\",INDIRECT(B409)),$K$2+1,100)","v":"'='CNPIs Health and Social'!$K$33"},{"$f":"M3B5qElderAbuseActualChng","v":""},"Number","M3B5qElderAbuseActualChng",null,null,"M3B5FALSE"]
["M3B5qElderAbuseAccuracy","M3B5qElderAbuseAccuracy",{"$f":"\"'='\" & MID(CELL(\"address\",INDIRECT(B410)),$K$2+1,100)","v":"'='CNPIs Health and Social'!$L$33"},{"$f":"M3B5qElderAbuseAccuracy","v":""},"Number","M3B5qElderAbuseAccuracy",null,null,"M3B5FALSE"]
["M3B5rElderNeglectBaseline","M3B5rElderNeglectBaseline",{"$f":"\"'='\" & MID(CELL(\"address\",INDIRECT(B411)),$K$2+1,100)","v":"'='CNPIs Health and Social'!$G$34"},{"$f":"M3B5rElderNeglectBaseline","v":0},"Number","M3B5rElderNeglectBaseline",null,null,"M3B5FALSE"]
["M3B5rElderNeglectTarget","M3B5rElderNeglectTarget",{"$f":"\"'='\" & MID(CELL(\"address\",INDIRECT(B412)),$K$2+1,100)","v":"'='CNPIs Health and Social'!$H$34"},{"$f":"M3B5rElderNeglectTarget","v":0},"Number","M3B5rElderNeglectTarget",null,null,"M3B5FALSE"]
["M3B5rElderNeglectExpectChng","M3B5rElderNeglectExpectChng",{"$f":"\"'='\" & MID(CELL(\"address\",INDIRECT(B413)),$K$2+1,100)","v":"'='CNPIs Health and Social'!$I$34"},{"$f":"M3B5rElderNeglectExpectChng","v":""},"Number","M3B5rElderNeglectExpectChng",null,null,"M3B5FALSE"]
["M3B5rElderNeglectResults","M3B5rElderNeglectResults",{"$f":"\"'='\" & MID(CELL(\"address\",INDIRECT(B414)),$K$2+1,100)","v":"'='CNPIs Health and Social'!$J$34"},{"$f":"M3B5rElderNeglectResults","v":0},"Number","M3B5rElderNeglectResults",null,null,"M3B5FALSE"]
["M3B5rElderNeglectActualChng","M3B5rElderNeglectActualChng",{"$f":"\"'='\" & MID(CELL(\"address\",INDIRECT(B415)),$K$2+1,100)","v":"'='CNPIs Health and Social'!$K$34"},{"$f":"M3B5rElderNeglectActualChng","v":""},"Number","M3B5rElderNeglectActualChng",null,null,"M3B5FALSE"]
["M3B5rElderNeglectAccuracy","M3B5rElderNeglectAccuracy",{"$f":"\"'='\" & MID(CELL(\"address\",INDIRECT(B416)),$K$2+1,100)","v":"'='CNPIs Health and Social'!$L$34"},{"$f":"M3B5rElderNeglectAccuracy","v":""},"Number","M3B5rElderNeglectAccuracy",null,null,"M3B5FALSE"]
["M3B5sRecidivismBaseline","M3B5sRecidivismBaseline",{"$f":"\"'='\" & MID(CELL(\"address\",INDIRECT(B417)),$K$2+1,100)","v":"'='CNPIs Health and Social'!$G$37"},{"$f":"M3B5sRecidivismBaseline","v":0},"Number","M3B5sRecidivismBaseline",null,null,"M3B5FALSE"]
["M3B5sRecidivismTarget","M3B5sRecidivismTarget",{"$f":"\"'='\" & MID(CELL(\"address\",INDIRECT(B418)),$K$2+1,100)","v":"'='CNPIs Health and Social'!$H$37"},{"$f":"M3B5sRecidivismTarget","v":0},"Number","M3B5sRecidivismTarget",null,null,"M3B5FALSE"]
["M3B5sRecidivismExpectChng","M3B5sRecidivismExpectChng",{"$f":"\"'='\" & MID(CELL(\"address\",INDIRECT(B419)),$K$2+1,100)","v":"'='CNPIs Health and Social'!$I$37"},{"$f":"M3B5sRecidivismExpectChng","v":""},"Number","M3B5sRecidivismExpectChng",null,null,"M3B5FALSE"]
["M3B5sRecidivismResults","M3B5sRecidivismResults",{"$f":"\"'='\" & MID(CELL(\"address\",INDIRECT(B420)),$K$2+1,100)","v":"'='CNPIs Health and Social'!$J$37"},{"$f":"M3B5sRecidivismResults","v":0},"Number","M3B5sRecidivismResults",null,null,"M3B5FALSE"]
["M3B5sRecidivismActualChng","M3B5sRecidivismActualChng",{"$f":"\"'='\" & MID(CELL(\"address\",INDIRECT(B421)),$K$2+1,100)","v":"'='CNPIs Health and Social'!$K$37"},{"$f":"M3B5sRecidivismActualChng","v":""},"Number","M3B5sRecidivismActualChng",null,null,"M3B5FALSE"]
["M3B5sRecidivismAccuracy","M3B5sRecidivismAccuracy",{"$f":"\"'='\" & MID(CELL(\"address\",INDIRECT(B422)),$K$2+1,100)","v":"'='CNPIs Health and Social'!$L$37"},{"$f":"M3B5sRecidivismAccuracy","v":""},"Number","M3B5sRecidivismAccuracy",null,null,"M3B5FALSE"]
["M3B5tNonViolCrimeBaseline","M3B5tNonViolCrimeBaseline",{"$f":"\"'='\" & MID(CELL(\"address\",INDIRECT(B423)),$K$2+1,100)","v":"'='CNPIs Health and Social'!$G$38"},{"$f":"M3B5tNonViolCrimeBaseline","v":0},"Number","M3B5tNonViolCrimeBaseline",null,null,"M3B5FALSE"]
["M3B5tNonViolCrimeTarget","M3B5tNonViolCrimeTarget",{"$f":"\"'='\" & MID(CELL(\"address\",INDIRECT(B424)),$K$2+1,100)","v":"'='CNPIs Health and Social'!$H$38"},{"$f":"M3B5tNonViolCrimeTarget","v":0},"Number","M3B5tNonViolCrimeTarget",null,null,"M3B5FALSE"]
["M3B5tNonViolCrimeExpectChng","M3B5tNonViolCrimeExpectChng",{"$f":"\"'='\" & MID(CELL(\"address\",INDIRECT(B425)),$K$2+1,100)","v":"'='CNPIs Health and Social'!$I$38"},{"$f":"M3B5tNonViolCrimeExpectChng","v":""},"Number","M3B5tNonViolCrimeExpectChng",null,null,"M3B5FALSE"]
["M3B5tNonViolCrimeResults","M3B5tNonViolCrimeResults",{"$f":"\"'='\" & MID(CELL(\"address\",INDIRECT(B426)),$K$2+1,100)","v":"'='CNPIs Health and Social'!$J$38"},{"$f":"M3B5tNonViolCrimeResults","v":0},"Number","M3B5tNonViolCrimeResults",null,null,{"$f":"LEFT(A426,4) & AND(D426<>\"\",D426<>0)","v":"M3B5FALSE"}]
["M3B5tNonViolCrimeActualChng","M3B5tNonViolCrimeActualChng",{"$f":"\"'='\" & MID(CELL(\"address\",INDIRECT(B427)),$K$2+1,100)","v":"'='CNPIs Health and Social'!$K$38"},{"$f":"M3B5tNonViolCrimeActualChng","v":""},"Number","M3B5tNonViolCrimeActualChng",null,null,"M3B5FALSE"]
["M3B5tNonViolCrimeAccuracy","M3B5tNonViolCrimeAccuracy",{"$f":"\"'='\" & MID(CELL(\"address\",INDIRECT(B428)),$K$2+1,100)","v":"'='CNPIs Health and Social'!$L$38"},{"$f":"M3B5tNonViolCrimeAccuracy","v":""},"Number","M3B5tNonViolCrimeAccuracy",null,null,"M3B5FALSE"]
["M3B5uViolCrimeBaseline","M3B5uViolCrimeBaseline",{"$f":"\"'='\" & MID(CELL(\"address\",INDIRECT(B429)),$K$2+1,100)","v":"'='CNPIs Health and Social'!$G$39"},{"$f":"M3B5uViolCrimeBaseline","v":0},"Number","M3B5uViolCrimeBaseline",null,null,"M3B5FALSE"]
["M3B5uViolCrimeTarget","M3B5uViolCrimeTarget",{"$f":"\"'='\" & MID(CELL(\"address\",INDIRECT(B430)),$K$2+1,100)","v":"'='CNPIs Health and Social'!$H$39"},{"$f":"M3B5uViolCrimeTarget","v":0},"Number","M3B5uViolCrimeTarget",null,null,"M3B5FALSE"]
["M3B5uViolCrimeExpectChng","M3B5uViolCrimeExpectChng",{"$f":"\"'='\" & MID(CELL(\"address\",INDIRECT(B431)),$K$2+1,100)","v":"'='CNPIs Health and Social'!$I$39"},{"$f":"M3B5uViolCrimeExpectChng","v":""},"Number","M3B5uViolCrimeExpectChng",null,null,"M3B5FALSE"]
["M3B5uViolCrimeResults","M3B5uViolCrimeResults",{"$f":"\"'='\" & MID(CELL(\"address\",INDIRECT(B432)),$K$2+1,100)","v":"'='CNPIs Health and Social'!$J$39"},{"$f":"M3B5uViolCrimeResults","v":0},"Number","M3B5uViolCrimeResults",null,null,"M3B5FALSE"]
["M3B5uViolCrimeActualChng","M3B5uViolCrimeActualChng",{"$f":"\"'='\" & MID(CELL(\"address\",INDIRECT(B433)),$K$2+1,100)","v":"'='CNPIs Health and Social'!$K$39"},{"$f":"M3B5uViolCrimeActualChng","v":""},"Number","M3B5uViolCrimeActualChng",null,null,"M3B5FALSE"]
["M3B5uViolCrimeAccuracy","M3B5uViolCrimeAccuracy",{"$f":"\"'='\" & MID(CELL(\"address\",INDIRECT(B434)),$K$2+1,100)","v":"'='CNPIs Health and Social'!$L$39"},{"$f":"M3B5uViolCrimeAccuracy","v":""},"Number","M3B5uViolCrimeAccuracy",null,null,"M3B5FALSE"]
["M3B5vJuvenileCourtBaseline","M3B5vJuvenileCourtBaseline",{"$f":"\"'='\" & MID(CELL(\"address\",INDIRECT(B435)),$K$2+1,100)","v":"'='CNPIs Health and Social'!$G$40"},{"$f":"M3B5vJuvenileCourtBaseline","v":0},"Number","M3B5vJuvenileCourtBaseline",null,null,"M3B5FALSE"]
["M3B5vJuvenileCourtTarget","M3B5vJuvenileCourtTarget",{"$f":"\"'='\" & MID(CELL(\"address\",INDIRECT(B436)),$K$2+1,100)","v":"'='CNPIs Health and Social'!$H$40"},{"$f":"M3B5vJuvenileCourtTarget","v":0},"Number","M3B5vJuvenileCourtTarget",null,null,"M3B5FALSE"]
["M3B5vJuvenileCourtExpectChng","M3B5vJuvenileCourtExpectChng",{"$f":"\"'='\" & MID(CELL(\"address\",INDIRECT(B437)),$K$2+1,100)","v":"'='CNPIs Health and Social'!$I$40"},{"$f":"M3B5vJuvenileCourtExpectChng","v":""},"Number","M3B5vJuvenileCourtExpectChng",null,null,"M3B5FALSE"]
["M3B5vJuvenileCourtResults","M3B5vJuvenileCourtResults",{"$f":"\"'='\" & MID(CELL(\"address\",INDIRECT(B438)),$K$2+1,100)","v":"'='CNPIs Health and Social'!$J$40"},{"$f":"M3B5vJuvenileCourtResults","v":0},"Number","M3B5vJuvenileCourtResults",null,null,"M3B5FALSE"]
["M3B5vJuvenileCourtActualChng","M3B5vJuvenileCourtActualChng",{"$f":"\"'='\" & MID(CELL(\"address\",INDIRECT(B439)),$K$2+1,100)","v":"'='CNPIs Health and Social'!$K$40"},{"$f":"M3B5vJuvenileCourtActualChng","v":""},"Number","M3B5vJuvenileCourtActualChng",null,null,"M3B5FALSE"]
["M3B5vJuvenileCourtAccuracy","M3B5vJuvenileCourtAccuracy",{"$f":"\"'='\" & MID(CELL(\"address\",INDIRECT(B440)),$K$2+1,100)","v":"'='CNPIs Health and Social'!$L$40"},{"$f":"M3B5vJuvenileCourtAccuracy","v":""},"Number","M3B5vJuvenileCourtAccuracy",null,null,"M3B5FALSE"]
["M3B5z4OtherHealthSoc4Name","M3B5z4OtherHealthSoc4Name",{"$f":"\"'='\" & MID(CELL(\"address\",INDIRECT(B441)),$K$2+1,100)","v":"'='CNPIs Health and Social'!$C$43"},{"$f":"M3B5z4OtherHealthSoc4Name","v":0},"Text","M3B5z4OtherHealthSoc4Name",1000,null,"M3B5FALSE"]
["M3B5z4OtherHealthSoc4Baseline","M3B5z4OtherHealthSoc4Baseline",{"$f":"\"'='\" & MID(CELL(\"address\",INDIRECT(B442)),$K$2+1,100)","v":"'='CNPIs Health and Social'!$G$43"},{"$f":"M3B5z4OtherHealthSoc4Baseline","v":0},"Number","M3B5z4OtherHealthSoc4Baseline",null,null,"M3B5FALSE"]
["M3B5z4OtherHealthSoc4Target","M3B5z4OtherHealthSoc4Target",{"$f":"\"'='\" & MID(CELL(\"address\",INDIRECT(B443)),$K$2+1,100)","v":"'='CNPIs Health and Social'!$H$43"},{"$f":"M3B5z4OtherHealthSoc4Target","v":0},"Number","M3B5z4OtherHealthSoc4Target",null,null,"M3B5FALSE"]
["M3B5z4OtherHealthSoc4ExpectChng","M3B5z4OtherHealthSoc4ExpectChng",{"$f":"\"'='\" & MID(CELL(\"address\",INDIRECT(B444)),$K$2+1,100)","v":"'='CNPIs Health and Social'!$I$43"},{"$f":"M3B5z4OtherHealthSoc4ExpectChng","v":""},"Number","M3B5z4OtherHealthSoc4ExpectChng",null,null,"M3B5FALSE"]
["M3B5z4OtherHealthSoc4Results","M3B5z4OtherHealthSoc4Results",{"$f":"\"'='\" & MID(CELL(\"address\",INDIRECT(B445)),$K$2+1,100)","v":"'='CNPIs Health and Social'!$J$43"},{"$f":"M3B5z4OtherHealthSoc4Results","v":0},"Number","M3B5z4OtherHealthSoc4Results",null,null,"M3B5FALSE"]
["M3B5z4OtherHealthSoc4ActualChng","M3B5z4OtherHealthSoc4ActualChng",{"$f":"\"'='\" & MID(CELL(\"address\",INDIRECT(B446)),$K$2+1,100)","v":"'='CNPIs Health and Social'!$K$43"},{"$f":"M3B5z4OtherHealthSoc4ActualChng","v":""},"Number","M3B5z4OtherHealthSoc4ActualChng",null,null,"M3B5FALSE"]
["M3B5z4OtherHealthSoc4Accuracy","M3B5z4OtherHealthSoc4Accuracy",{"$f":"\"'='\" & MID(CELL(\"address\",INDIRECT(B447)),$K$2+1,100)","v":"'='CNPIs Health and Social'!$L$43"},{"$f":"M3B5z4OtherHealthSoc4Accuracy","v":""},"Number","M3B5z4OtherHealthSoc4Accuracy",null,null,"M3B5FALSE"]
["M3B5z5OtherHealthSoc5Name","M3B5z5OtherHealthSoc5Name",{"$f":"\"'='\" & MID(CELL(\"address\",INDIRECT(B448)),$K$2+1,100)","v":"'='CNPIs Health and Social'!$C$44"},{"$f":"M3B5z5OtherHealthSoc5Name","v":0},"Text","M3B5z5OtherHealthSoc5Name",1000,null,"M3B5FALSE"]
["M3B5z5OtherHealthSoc5Baseline","M3B5z5OtherHealthSoc5Baseline",{"$f":"\"'='\" & MID(CELL(\"address\",INDIRECT(B449)),$K$2+1,100)","v":"'='CNPIs Health and Social'!$G$44"},{"$f":"M3B5z5OtherHealthSoc5Baseline","v":0},"Number","M3B5z5OtherHealthSoc5Baseline",null,null,"M3B5FALSE"]
["M3B5z5OtherHealthSoc5Target","M3B5z5OtherHealthSoc5Target",{"$f":"\"'='\" & MID(CELL(\"address\",INDIRECT(B450)),$K$2+1,100)","v":"'='CNPIs Health and Social'!$H$44"},{"$f":"M3B5z5OtherHealthSoc5Target","v":0},"Number","M3B5z5OtherHealthSoc5Target",null,null,"M3B5FALSE"]
["M3B5z5OtherHealthSoc5ExpectChng","M3B5z5OtherHealthSoc5ExpectChng",{"$f":"\"'='\" & MID(CELL(\"address\",INDIRECT(B451)),$K$2+1,100)","v":"'='CNPIs Health and Social'!$I$44"},{"$f":"M3B5z5OtherHealthSoc5ExpectChng","v":""},"Number","M3B5z5OtherHealthSoc5ExpectChng",null,null,"M3B5FALSE"]
["M3B5z5OtherHealthSoc5Results","M3B5z5OtherHealthSoc5Results",{"$f":"\"'='\" & MID(CELL(\"address\",INDIRECT(B452)),$K$2+1,100)","v":"'='CNPIs Health and Social'!$J$44"},{"$f":"M3B5z5OtherHealthSoc5Results","v":0},"Number","M3B5z5OtherHealthSoc5Results",null,null,"M3B5FALSE"]
["M3B5z5OtherHealthSoc5ActualChng","M3B5z5OtherHealthSoc5ActualChng",{"$f":"\"'='\" & MID(CELL(\"address\",INDIRECT(B453)),$K$2+1,100)","v":"'='CNPIs Health and Social'!$K$44"},{"$f":"M3B5z5OtherHealthSoc5ActualChng","v":""},"Number","M3B5z5OtherHealthSoc5ActualChng",null,null,"M3B5FALSE"]
["M3B5z5OtherHealthSoc5Accuracy","M3B5z5OtherHealthSoc5Accuracy",{"$f":"\"'='\" & MID(CELL(\"address\",INDIRECT(B454)),$K$2+1,100)","v":"'='CNPIs Health and Social'!$L$44"},{"$f":"M3B5z5OtherHealthSoc5Accuracy","v":""},"Number","M3B5z5OtherHealthSoc5Accuracy",null,null,"M3B5FALSE"]
["M3B5z6OtherHealthSoc6Name","M3B5z6OtherHealthSoc6Name",{"$f":"\"'='\" & MID(CELL(\"address\",INDIRECT(B455)),$K$2+1,100)","v":"'='CNPIs Health and Social'!$C$45"},{"$f":"M3B5z6OtherHealthSoc6Name","v":0},"Text","M3B5z6OtherHealthSoc6Name",1000,null,"M3B5FALSE"]
["M3B5z6OtherHealthSoc6Baseline","M3B5z6OtherHealthSoc6Baseline",{"$f":"\"'='\" & MID(CELL(\"address\",INDIRECT(B456)),$K$2+1,100)","v":"'='CNPIs Health and Social'!$G$45"},{"$f":"M3B5z6OtherHealthSoc6Baseline","v":0},"Number","M3B5z6OtherHealthSoc6Baseline",null,null,"M3B5FALSE"]
["M3B5z6OtherHealthSoc6Target","M3B5z6OtherHealthSoc6Target",{"$f":"\"'='\" & MID(CELL(\"address\",INDIRECT(B457)),$K$2+1,100)","v":"'='CNPIs Health and Social'!$H$45"},{"$f":"M3B5z6OtherHealthSoc6Target","v":0},"Number","M3B5z6OtherHealthSoc6Target",null,null,"M3B5FALSE"]
["M3B5z6OtherHealthSoc6ExpectChng","M3B5z6OtherHealthSoc6ExpectChng",{"$f":"\"'='\" & MID(CELL(\"address\",INDIRECT(B458)),$K$2+1,100)","v":"'='CNPIs Health and Social'!$I$45"},{"$f":"M3B5z6OtherHealthSoc6ExpectChng","v":""},"Number","M3B5z6OtherHealthSoc6ExpectChng",null,null,"M3B5FALSE"]
["M3B5z6OtherHealthSoc6Results","M3B5z6OtherHealthSoc6Results",{"$f":"\"'='\" & MID(CELL(\"address\",INDIRECT(B459)),$K$2+1,100)","v":"'='CNPIs Health and Social'!$J$45"},{"$f":"M3B5z6OtherHealthSoc6Results","v":0},"Number","M3B5z6OtherHealthSoc6Results",null,null,"M3B5FALSE"]
["M3B5z6OtherHealthSoc6ActualChng","M3B5z6OtherHealthSoc6ActualChng",{"$f":"\"'='\" & MID(CELL(\"address\",INDIRECT(B460)),$K$2+1,100)","v":"'='CNPIs Health and Social'!$K$45"},{"$f":"M3B5z6OtherHealthSoc6ActualChng","v":""},"Number","M3B5z6OtherHealthSoc6ActualChng",null,null,"M3B5FALSE"]
["M3B5z6OtherHealthSoc6Accuracy","M3B5z6OtherHealthSoc6Accuracy",{"$f":"\"'='\" & MID(CELL(\"address\",INDIRECT(B461)),$K$2+1,100)","v":"'='CNPIs Health and Social'!$L$45"},{"$f":"M3B5z6OtherHealthSoc6Accuracy","v":""},"Number","M3B5z6OtherHealthSoc6Accuracy",null,null,"M3B5FALSE"]
["M3B5Comments","M3B5Comments",{"$f":"\"'='\" & MID(CELL(\"address\",INDIRECT(B462)),$K$2+1,100)","v":"'='CNPIs Health and Social'!$B$48"},{"$f":"M3B5Comments","v":0},"Text","M3B5Comments",5000,null,"M3B5FALSE"]
["M3B4aSafeHousDevTarget","M3B4aSafeHousDevTarget",{"$f":"\"'='\" & MID(CELL(\"address\",INDIRECT(B463)),$K$2+1,100)","v":"'='CNPIs Housing'!$J$9"},{"$f":"M3B4aSafeHousDevTarget","v":0},"Number","M3B4aSafeHousDevTarget",null,null,"M3B4FALSE"]
["M3B4aSafeHousDevResults","M3B4aSafeHousDevResults",{"$f":"\"'='\" & MID(CELL(\"address\",INDIRECT(B464)),$K$2+1,100)","v":"'='CNPIs Housing'!$K$9"},{"$f":"M3B4aSafeHousDevResults","v":0},"Number","M3B4aSafeHousDevResults",null,null,"M3B4FALSE"]
["M3B4aSafeHousDevAccuracy","M3B4aSafeHousDevAccuracy",{"$f":"\"'='\" & MID(CELL(\"address\",INDIRECT(B465)),$K$2+1,100)","v":"'='CNPIs Housing'!$L$9"},{"$f":"M3B4aSafeHousDevAccuracy","v":""},"Number","M3B4aSafeHousDevAccuracy",null,null,"M3B4FALSE"]
["M3B4bSafeHousMainTarget","M3B4bSafeHousMainTarget",{"$f":"\"'='\" & MID(CELL(\"address\",INDIRECT(B466)),$K$2+1,100)","v":"'='CNPIs Housing'!$J$10"},{"$f":"M3B4bSafeHousMainTarget","v":0},"Number","M3B4bSafeHousMainTarget",null,null,"M3B4FALSE"]
["M3B4bSafeHousMainResults","M3B4bSafeHousMainResults",{"$f":"\"'='\" & MID(CELL(\"address\",INDIRECT(B467)),$K$2+1,100)","v":"'='CNPIs Housing'!$K$10"},{"$f":"M3B4bSafeHousMainResults","v":0},"Number","M3B4bSafeHousMainResults",null,null,"M3B4FALSE"]
["M3B4bSafeHousMainAccuracy","M3B4bSafeHousMainAccuracy",{"$f":"\"'='\" & MID(CELL(\"address\",INDIRECT(B468)),$K$2+1,100)","v":"'='CNPIs Housing'!$L$10"},{"$f":"M3B4bSafeHousMainAccuracy","v":""},"Number","M3B4bSafeHousMainAccuracy",null,null,"M3B4FALSE"]
["M3B4cShelterBedCreateTarget","M3B4cShelterBedCreateTarget",{"$f":"\"'='\" & MID(CELL(\"address\",INDIRECT(B469)),$K$2+1,100)","v":"'='CNPIs Housing'!$J$11"},{"$f":"M3B4cShelterBedCreateTarget","v":0},"Number","M3B4cShelterBedCreateTarget",null,null,"M3B4FALSE"]
["M3B4cShelterBedCreateResults","M3B4cShelterBedCreateResults",{"$f":"\"'='\" & MID(CELL(\"address\",INDIRECT(B470)),$K$2+1,100)","v":"'='CNPIs Housing'!$K$11"},{"$f":"M3B4cShelterBedCreateResults","v":0},"Number","M3B4cShelterBedCreateResults",null,null,"M3B4FALSE"]
["M3B4cShelterBedCreateAccuracy","M3B4cShelterBedCreateAccuracy",{"$f":"\"'='\" & MID(CELL(\"address\",INDIRECT(B471)),$K$2+1,100)","v":"'='CNPIs Housing'!$L$11"},{"$f":"M3B4cShelterBedCreateAccuracy","v":""},"Number","M3B4cShelterBedCreateAccuracy",null,null,"M3B4FALSE"]
["M3B4dShelterBedMainTarget","M3B4dShelterBedMainTarget",{"$f":"\"'='\" & MID(CELL(\"address\",INDIRECT(B472)),$K$2+1,100)","v":"'='CNPIs Housing'!$J$12"},{"$f":"M3B4dShelterBedMainTarget","v":0},"Number","M3B4dShelterBedMainTarget",null,null,"M3B4FALSE"]
["M3B4dShelterBedMainResults","M3B4dShelterBedMainResults",{"$f":"\"'='\" & MID(CELL(\"address\",INDIRECT(B473)),$K$2+1,100)","v":"'='CNPIs Housing'!$K$12"},{"$f":"M3B4dShelterBedMainResults","v":0},"Number","M3B4dShelterBedMainResults",null,null,"M3B4FALSE"]
["M3B4dShelterBedMainAccuracy","M3B4dShelterBedMainAccuracy",{"$f":"\"'='\" & MID(CELL(\"address\",INDIRECT(B474)),$K$2+1,100)","v":"'='CNPIs Housing'!$L$12"},{"$f":"M3B4dShelterBedMainAccuracy","v":""},"Number","M3B4dShelterBedMainAccuracy",null,null,"M3B4FALSE"]
["M3B4z1OtherHousing1Name","M3B4z1OtherHousing1Name",{"$f":"\"'='\" & MID(CELL(\"address\",INDIRECT(B475)),$K$2+1,100)","v":"'='CNPIs Housing'!$C$15"},{"$f":"M3B4z1OtherHousing1Name","v":0},"Text","M3B4z1OtherHousing1Name",1000,null,"M3B4FALSE"]
["M3B4z1OtherHousing1Target","M3B4z1OtherHousing1Target",{"$f":"\"'='\" & MID(CELL(\"address\",INDIRECT(B476)),$K$2+1,100)","v":"'='CNPIs Housing'!$J$15"},{"$f":"M3B4z1OtherHousing1Target","v":0},"Number","M3B4z1OtherHousing1Target",null,null,"M3B4FALSE"]
["M3B4z1OtherHousing1Results","M3B4z1OtherHousing1Results",{"$f":"\"'='\" & MID(CELL(\"address\",INDIRECT(B477)),$K$2+1,100)","v":"'='CNPIs Housing'!$K$15"},{"$f":"M3B4z1OtherHousing1Results","v":0},"Number","M3B4z1OtherHousing1Results",null,null,"M3B4FALSE"]
["M3B4z1OtherHousing1Accuracy","M3B4z1OtherHousing1Accuracy",{"$f":"\"'='\" & MID(CELL(\"address\",INDIRECT(B478)),$K$2+1,100)","v":"'='CNPIs Housing'!$L$15"},{"$f":"M3B4z1OtherHousing1Accuracy","v":""},"Number","M3B4z1OtherHousing1Accuracy",null,null,"M3B4FALSE"]
["M3B4z2OtherHousing2Name","M3B4z2OtherHousing2Name",{"$f":"\"'='\" & MID(CELL(\"address\",INDIRECT(B479)),$K$2+1,100)","v":"'='CNPIs Housing'!$C$16"},{"$f":"M3B4z2OtherHousing2Name","v":0},"Text","M3B4z2OtherHousing2Name",1000,null,"M3B4FALSE"]
["M3B4z2OtherHousing2Target","M3B4z2OtherHousing2Target",{"$f":"\"'='\" & MID(CELL(\"address\",INDIRECT(B480)),$K$2+1,100)","v":"'='CNPIs Housing'!$J$16"},{"$f":"M3B4z2OtherHousing2Target","v":0},"Number","M3B4z2OtherHousing2Target",null,null,"M3B4FALSE"]
["M3B4z2OtherHousing2Results","M3B4z2OtherHousing2Results",{"$f":"\"'='\" & MID(CELL(\"address\",INDIRECT(B481)),$K$2+1,100)","v":"'='CNPIs Housing'!$K$16"},{"$f":"M3B4z2OtherHousing2Results","v":0},"Number","M3B4z2OtherHousing2Results",null,null,"M3B4FALSE"]
["M3B4z2OtherHousing2Accuracy","M3B4z2OtherHousing2Accuracy",{"$f":"\"'='\" & MID(CELL(\"address\",INDIRECT(B482)),$K$2+1,100)","v":"'='CNPIs Housing'!$L$16"},{"$f":"M3B4z2OtherHousing2Accuracy","v":""},"Number","M3B4z2OtherHousing2Accuracy",null,null,"M3B4FALSE"]
["M3B4z3OtherHousing3Name","M3B4z3OtherHousing3Name",{"$f":"\"'='\" & MID(CELL(\"address\",INDIRECT(B483)),$K$2+1,100)","v":"'='CNPIs Housing'!$C$17"},{"$f":"M3B4z3OtherHousing3Name","v":0},"Text","M3B4z3OtherHousing3Name",1000,null,"M3B4FALSE"]
["M3B4z3OtherHousing3Target","M3B4z3OtherHousing3Target",{"$f":"\"'='\" & MID(CELL(\"address\",INDIRECT(B484)),$K$2+1,100)","v":"'='CNPIs Housing'!$J$17"},{"$f":"M3B4z3OtherHousing3Target","v":0},"Number","M3B4z3OtherHousing3Target",null,null,"M3B4FALSE"]
["M3B4z3OtherHousing3Results","M3B4z3OtherHousing3Results",{"$f":"\"'='\" & MID(CELL(\"address\",INDIRECT(B485)),$K$2+1,100)","v":"'='CNPIs Housing'!$K$17"},{"$f":"M3B4z3OtherHousing3Results","v":0},"Number","M3B4z3OtherHousing3Results",null,null,"M3B4FALSE"]
["M3B4z3OtherHousing3Accuracy","M3B4z3OtherHousing3Accuracy",{"$f":"\"'='\" & MID(CELL(\"address\",INDIRECT(B486)),$K$2+1,100)","v":"'='CNPIs Housing'!$L$17"},{"$f":"M3B4z3OtherHousing3Accuracy","v":""},"Number","M3B4z3OtherHousing3Accuracy",null,null,"M3B4FALSE"]
["M3B4eHomelessBaseline","M3B4eHomelessBaseline",{"$f":"\"'='\" & MID(CELL(\"address\",INDIRECT(B487)),$K$2+1,100)","v":"'='CNPIs Housing'!$G$20"},{"$f":"M3B4eHomelessBaseline","v":0},"Number","M3B4eHomelessBaseline",null,null,"M3B4FALSE"]
["M3B4eHomelessTarget","M3B4eHomelessTarget",{"$f":"\"'='\" & MID(CELL(\"address\",INDIRECT(B488)),$K$2+1,100)","v":"'='CNPIs Housing'!$H$20"},{"$f":"M3B4eHomelessTarget","v":0},"Number","M3B4eHomelessTarget",null,null,"M3B4FALSE"]
["M3B4eHomelessExpectChng","M3B4eHomelessExpectChng",{"$f":"\"'='\" & MID(CELL(\"address\",INDIRECT(B489)),$K$2+1,100)","v":"'='CNPIs Housing'!$I$20"},{"$f":"M3B4eHomelessExpectChng","v":""},"Number","M3B4eHomelessExpectChng",null,null,"M3B4FALSE"]
["M3B4eHomelessResults","M3B4eHomelessResults",{"$f":"\"'='\" & MID(CELL(\"address\",INDIRECT(B490)),$K$2+1,100)","v":"'='CNPIs Housing'!$J$20"},{"$f":"M3B4eHomelessResults","v":0},"Number","M3B4eHomelessResults",null,null,{"$f":"LEFT(A490,4) & AND(D490<>\"\",D490<>0)","v":"M3B4FALSE"}]
["M3B4eHomelessActualChng","M3B4eHomelessActualChng",{"$f":"\"'='\" & MID(CELL(\"address\",INDIRECT(B491)),$K$2+1,100)","v":"'='CNPIs Housing'!$K$20"},{"$f":"M3B4eHomelessActualChng","v":""},"Number","M3B4eHomelessActualChng",null,null,"M3B4FALSE"]
["M3B4eHomelessAccuracy","M3B4eHomelessAccuracy",{"$f":"\"'='\" & MID(CELL(\"address\",INDIRECT(B492)),$K$2+1,100)","v":"'='CNPIs Housing'!$L$20"},{"$f":"M3B4eHomelessAccuracy","v":""},"Number","M3B4eHomelessAccuracy",null,null,"M3B4FALSE"]
["M3B4fForecloseRateBaseline","M3B4fForecloseRateBaseline",{"$f":"\"'='\" & MID(CELL(\"address\",INDIRECT(B493)),$K$2+1,100)","v":"'='CNPIs Housing'!$G$21"},{"$f":"M3B4fForecloseRateBaseline","v":0},"Number","M3B4fForecloseRateBaseline",null,null,"M3B4FALSE"]
["M3B4fForecloseRateTarget","M3B4fForecloseRateTarget",{"$f":"\"'='\" & MID(CELL(\"address\",INDIRECT(B494)),$K$2+1,100)","v":"'='CNPIs Housing'!$H$21"},{"$f":"M3B4fForecloseRateTarget","v":0},"Number","M3B4fForecloseRateTarget",null,null,"M3B4FALSE"]
["M3B4fForecloseRateExpectChng","M3B4fForecloseRateExpectChng",{"$f":"\"'='\" & MID(CELL(\"address\",INDIRECT(B495)),$K$2+1,100)","v":"'='CNPIs Housing'!$I$21"},{"$f":"M3B4fForecloseRateExpectChng","v":""},"Number","M3B4fForecloseRateExpectChng",null,null,"M3B4FALSE"]
["M3B4fForecloseRateResults","M3B4fForecloseRateResults",{"$f":"\"'='\" & MID(CELL(\"address\",INDIRECT(B496)),$K$2+1,100)","v":"'='CNPIs Housing'!$J$21"},{"$f":"M3B4fForecloseRateResults","v":0},"Number","M3B4fForecloseRateResults",null,null,"M3B4FALSE"]
["M3B4fForecloseRateActualChng","M3B4fForecloseRateActualChng",{"$f":"\"'='\" & MID(CELL(\"address\",INDIRECT(B497)),$K$2+1,100)","v":"'='CNPIs Housing'!$K$21"},{"$f":"M3B4fForecloseRateActualChng","v":""},"Number","M3B4fForecloseRateActualChng",null,null,"M3B4FALSE"]
["M3B4fForecloseRateAccuracy","M3B4fForecloseRateAccuracy",{"$f":"\"'='\" & MID(CELL(\"address\",INDIRECT(B498)),$K$2+1,100)","v":"'='CNPIs Housing'!$L$21"},{"$f":"M3B4fForecloseRateAccuracy","v":""},"Number","M3B4fForecloseRateAccuracy",null,null,"M3B4FALSE"]
["M3B4gHomeOwnBaseline","M3B4gHomeOwnBaseline",{"$f":"\"'='\" & MID(CELL(\"address\",INDIRECT(B499)),$K$2+1,100)","v":"'='CNPIs Housing'!$G$22"},{"$f":"M3B4gHomeOwnBaseline","v":0},"Number","M3B4gHomeOwnBaseline",null,null,"M3B4FALSE"]
["M3B4gHomeOwnTarget","M3B4gHomeOwnTarget",{"$f":"\"'='\" & MID(CELL(\"address\",INDIRECT(B500)),$K$2+1,100)","v":"'='CNPIs Housing'!$H$22"},{"$f":"M3B4gHomeOwnTarget","v":0},"Number","M3B4gHomeOwnTarget",null,null,"M3B4FALSE"]
["M3B4gHomeOwnExpectChng","M3B4gHomeOwnExpectChng",{"$f":"\"'='\" & MID(CELL(\"address\",INDIRECT(B501)),$K$2+1,100)","v":"'='CNPIs Housing'!$I$22"},{"$f":"M3B4gHomeOwnExpectChng","v":""},"Number","M3B4gHomeOwnExpectChng",null,null,"M3B4FALSE"]
["M3B4gHomeOwnResults","M3B4gHomeOwnResults",{"$f":"\"'='\" & MID(CELL(\"address\",INDIRECT(B502)),$K$2+1,100)","v":"'='CNPIs Housing'!$J$22"},{"$f":"M3B4gHomeOwnResults","v":0},"Number","M3B4gHomeOwnResults",null,null,"M3B4FALSE"]
["M3B4gHomeOwnActualChng","M3B4gHomeOwnActualChng",{"$f":"\"'='\" & MID(CELL(\"address\",INDIRECT(B503)),$K$2+1,100)","v":"'='CNPIs Housing'!$K$22"},{"$f":"M3B4gHomeOwnActualChng","v":""},"Number","M3B4gHomeOwnActualChng",null,null,"M3B4FALSE"]
["M3B4gHomeOwnAccuracy","M3B4gHomeOwnAccuracy",{"$f":"\"'='\" & MID(CELL(\"address\",INDIRECT(B504)),$K$2+1,100)","v":"'='CNPIs Housing'!$L$22"},{"$f":"M3B4gHomeOwnAccuracy","v":""},"Number","M3B4gHomeOwnAccuracy",null,null,"M3B4FALSE"]
["M3B4hAffordHouseBaseline","M3B4hAffordHouseBaseline",{"$f":"\"'='\" & MID(CELL(\"address\",INDIRECT(B505)),$K$2+1,100)","v":"'='CNPIs Housing'!$G$23"},{"$f":"M3B4hAffordHouseBaseline","v":0},"Number","M3B4hAffordHouseBaseline",null,null,"M3B4FALSE"]
["M3B4hAffordHouseTarget","M3B4hAffordHouseTarget",{"$f":"\"'='\" & MID(CELL(\"address\",INDIRECT(B506)),$K$2+1,100)","v":"'='CNPIs Housing'!$H$23"},{"$f":"M3B4hAffordHouseTarget","v":0},"Number","M3B4hAffordHouseTarget",null,null,"M3B4FALSE"]
["M3B4hAffordHouseExpectChng","M3B4hAffordHouseExpectChng",{"$f":"\"'='\" & MID(CELL(\"address\",INDIRECT(B507)),$K$2+1,100)","v":"'='CNPIs Housing'!$I$23"},{"$f":"M3B4hAffordHouseExpectChng","v":""},"Number","M3B4hAffordHouseExpectChng",null,null,"M3B4FALSE"]
["M3B4hAffordHouseResults","M3B4hAffordHouseResults",{"$f":"\"'='\" & MID(CELL(\"address\",INDIRECT(B508)),$K$2+1,100)","v":"'='CNPIs Housing'!$J$23"},{"$f":"M3B4hAffordHouseResults","v":0},"Number","M3B4hAffordHouseResults",null,null,"M3B4FALSE"]
["M3B4hAffordHouseActualChng","M3B4hAffordHouseActualChng",{"$f":"\"'='\" & MID(CELL(\"address\",INDIRECT(B509)),$K$2+1,100)","v":"'='CNPIs Housing'!$K$23"},{"$f":"M3B4hAffordHouseActualChng","v":""},"Number","M3B4hAffordHouseActualChng",null,null,"M3B4FALSE"]
["M3B4hAffordHouseAccuracy","M3B4hAffordHouseAccuracy",{"$f":"\"'='\" & MID(CELL(\"address\",INDIRECT(B510)),$K$2+1,100)","v":"'='CNPIs Housing'!$L$23"},{"$f":"M3B4hAffordHouseAccuracy","v":""},"Number","M3B4hAffordHouseAccuracy",null,null,"M3B4FALSE"]
["M3B4iShelterBedBaseline","M3B4iShelterBedBaseline",{"$f":"\"'='\" & MID(CELL(\"address\",INDIRECT(B511)),$K$2+1,100)","v":"'='CNPIs Housing'!$G$24"},{"$f":"M3B4iShelterBedBaseline","v":0},"Number","M3B4iShelterBedBaseline",null,null,"M3B4FALSE"]
["M3B4iShelterBedTarget","M3B4iShelterBedTarget",{"$f":"\"'='\" & MID(CELL(\"address\",INDIRECT(B512)),$K$2+1,100)","v":"'='CNPIs Housing'!$H$24"},{"$f":"M3B4iShelterBedTarget","v":0},"Number","M3B4iShelterBedTarget",null,null,"M3B4FALSE"]
["M3B4iShelterBedExpectChng","M3B4iShelterBedExpectChng",{"$f":"\"'='\" & MID(CELL(\"address\",INDIRECT(B513)),$K$2+1,100)","v":"'='CNPIs Housing'!$I$24"},{"$f":"M3B4iShelterBedExpectChng","v":""},"Number","M3B4iShelterBedExpectChng",null,null,"M3B4FALSE"]
["M3B4iShelterBedResults","M3B4iShelterBedResults",{"$f":"\"'='\" & MID(CELL(\"address\",INDIRECT(B514)),$K$2+1,100)","v":"'='CNPIs Housing'!$J$24"},{"$f":"M3B4iShelterBedResults","v":0},"Number","M3B4iShelterBedResults",null,null,"M3B4FALSE"]
["M3B4iShelterBedActualChng","M3B4iShelterBedActualChng",{"$f":"\"'='\" & MID(CELL(\"address\",INDIRECT(B515)),$K$2+1,100)","v":"'='CNPIs Housing'!$K$24"},{"$f":"M3B4iShelterBedActualChng","v":""},"Number","M3B4iShelterBedActualChng",null,null,"M3B4FALSE"]
["M3B4iShelterBedAccuracy","M3B4iShelterBedAccuracy",{"$f":"\"'='\" & MID(CELL(\"address\",INDIRECT(B516)),$K$2+1,100)","v":"'='CNPIs Housing'!$L$24"},{"$f":"M3B4iShelterBedAccuracy","v":""},"Number","M3B4iShelterBedAccuracy",null,null,"M3B4FALSE"]
["M3B4z4OtherHousing4Name","M3B4z4OtherHousing4Name",{"$f":"\"'='\" & MID(CELL(\"address\",INDIRECT(B517)),$K$2+1,100)","v":"'='CNPIs Housing'!$C$27"},{"$f":"M3B4z4OtherHousing4Name","v":0},"Text","M3B4z4OtherHousing4Name",1000,null,"M3B4FALSE"]
["M3B4z4OtherHousing4Baseline","M3B4z4OtherHousing4Baseline",{"$f":"\"'='\" & MID(CELL(\"address\",INDIRECT(B518)),$K$2+1,100)","v":"'='CNPIs Housing'!$G$27"},{"$f":"M3B4z4OtherHousing4Baseline","v":0},"Number","M3B4z4OtherHousing4Baseline",null,null,"M3B4FALSE"]
["M3B4z4OtherHousing4Target","M3B4z4OtherHousing4Target",{"$f":"\"'='\" & MID(CELL(\"address\",INDIRECT(B519)),$K$2+1,100)","v":"'='CNPIs Housing'!$H$27"},{"$f":"M3B4z4OtherHousing4Target","v":0},"Number","M3B4z4OtherHousing4Target",null,null,"M3B4FALSE"]
["M3B4z4OtherHousing4ExpectChng","M3B4z4OtherHousing4ExpectChng",{"$f":"\"'='\" & MID(CELL(\"address\",INDIRECT(B520)),$K$2+1,100)","v":"'='CNPIs Housing'!$I$27"},{"$f":"M3B4z4OtherHousing4ExpectChng","v":""},"Number","M3B4z4OtherHousing4ExpectChng",null,null,"M3B4FALSE"]
["M3B4z4OtherHousing4Results","M3B4z4OtherHousing4Results",{"$f":"\"'='\" & MID(CELL(\"address\",INDIRECT(B521)),$K$2+1,100)","v":"'='CNPIs Housing'!$J$27"},{"$f":"M3B4z4OtherHousing4Results","v":0},"Number","M3B4z4OtherHousing4Results",null,null,"M3B4FALSE"]
["M3B4z4OtherHousing4ActualChng","M3B4z4OtherHousing4ActualChng",{"$f":"\"'='\" & MID(CELL(\"address\",INDIRECT(B522)),$K$2+1,100)","v":"'='CNPIs Housing'!$K$27"},{"$f":"M3B4z4OtherHousing4ActualChng","v":""},"Number","M3B4z4OtherHousing4ActualChng",null,null,"M3B4FALSE"]
["M3B4z4OtherHousing4Accuracy","M3B4z4OtherHousing4Accuracy",{"$f":"\"'='\" & MID(CELL(\"address\",INDIRECT(B523)),$K$2+1,100)","v":"'='CNPIs Housing'!$L$27"},{"$f":"M3B4z4OtherHousing4Accuracy","v":""},"Number","M3B4z4OtherHousing4Accuracy",null,null,"M3B4FALSE"]
["M3B4z5OtherHousing5Name","M3B4z5OtherHousing5Name",{"$f":"\"'='\" & MID(CELL(\"address\",INDIRECT(B524)),$K$2+1,100)","v":"'='CNPIs Housing'!$C$28"},{"$f":"M3B4z5OtherHousing5Name","v":0},"Text","M3B4z5OtherHousing5Name",1000,null,"M3B4FALSE"]
["M3B4z5OtherHousing5Baseline","M3B4z5OtherHousing5Baseline",{"$f":"\"'='\" & MID(CELL(\"address\",INDIRECT(B525)),$K$2+1,100)","v":"'='CNPIs Housing'!$G$28"},{"$f":"M3B4z5OtherHousing5Baseline","v":0},"Number","M3B4z5OtherHousing5Baseline",null,null,"M3B4FALSE"]
["M3B4z5OtherHousing5Target","M3B4z5OtherHousing5Target",{"$f":"\"'='\" & MID(CELL(\"address\",INDIRECT(B526)),$K$2+1,100)","v":"'='CNPIs Housing'!$H$28"},{"$f":"M3B4z5OtherHousing5Target","v":0},"Number","M3B4z5OtherHousing5Target",null,null,"M3B4FALSE"]
["M3B4z5OtherHousing5ExpectChng","M3B4z5OtherHousing5ExpectChng",{"$f":"\"'='\" & MID(CELL(\"address\",INDIRECT(B527)),$K$2+1,100)","v":"'='CNPIs Housing'!$I$28"},{"$f":"M3B4z5OtherHousing5ExpectChng","v":""},"Number","M3B4z5OtherHousing5ExpectChng",null,null,"M3B4FALSE"]
["M3B4z5OtherHousing5Results","M3B4z5OtherHousing5Results",{"$f":"\"'='\" & MID(CELL(\"address\",INDIRECT(B528)),$K$2+1,100)","v":"'='CNPIs Housing'!$J$28"},{"$f":"M3B4z5OtherHousing5Results","v":0},"Number","M3B4z5OtherHousing5Results",null,null,"M3B4FALSE"]
["M3B4z5OtherHousing5ActualChng","M3B4z5OtherHousing5ActualChng",{"$f":"\"'='\" & MID(CELL(\"address\",INDIRECT(B529)),$K$2+1,100)","v":"'='CNPIs Housing'!$K$28"},{"$f":"M3B4z5OtherHousing5ActualChng","v":""},"Number","M3B4z5OtherHousing5ActualChng",null,null,"M3B4FALSE"]
["M3B4z5OtherHousing5Accuracy","M3B4z5OtherHousing5Accuracy",{"$f":"\"'='\" & MID(CELL(\"address\",INDIRECT(B530)),$K$2+1,100)","v":"'='CNPIs Housing'!$L$28"},{"$f":"M3B4z5OtherHousing5Accuracy","v":""},"Number","M3B4z5OtherHousing5Accuracy",null,null,"M3B4FALSE"]
["M3B4z6OtherHousing6Name","M3B4z6OtherHousing6Name",{"$f":"\"'='\" & MID(CELL(\"address\",INDIRECT(B531)),$K$2+1,100)","v":"'='CNPIs Housing'!$C$29"},{"$f":"M3B4z6OtherHousing6Name","v":0},"Text","M3B4z6OtherHousing6Name",1000,null,"M3B4FALSE"]
["M3B4z6OtherHousing6Baseline","M3B4z6OtherHousing6Baseline",{"$f":"\"'='\" & MID(CELL(\"address\",INDIRECT(B532)),$K$2+1,100)","v":"'='CNPIs Housing'!$G$29"},{"$f":"M3B4z6OtherHousing6Baseline","v":0},"Number","M3B4z6OtherHousing6Baseline",null,null,"M3B4FALSE"]
["M3B4z6OtherHousing6Target","M3B4z6OtherHousing6Target",{"$f":"\"'='\" & MID(CELL(\"address\",INDIRECT(B533)),$K$2+1,100)","v":"'='CNPIs Housing'!$H$29"},{"$f":"M3B4z6OtherHousing6Target","v":0},"Number","M3B4z6OtherHousing6Target",null,null,"M3B4FALSE"]
["M3B4z6OtherHousing6ExpectChng","M3B4z6OtherHousing6ExpectChng",{"$f":"\"'='\" & MID(CELL(\"address\",INDIRECT(B534)),$K$2+1,100)","v":"'='CNPIs Housing'!$I$29"},{"$f":"M3B4z6OtherHousing6ExpectChng","v":""},"Number","M3B4z6OtherHousing6ExpectChng",null,null,"M3B4FALSE"]
["M3B4z6OtherHousing6Results","M3B4z6OtherHousing6Results",{"$f":"\"'='\" & MID(CELL(\"address\",INDIRECT(B535)),$K$2+1,100)","v":"'='CNPIs Housing'!$J$29"},{"$f":"M3B4z6OtherHousing6Results","v":0},"Number","M3B4z6OtherHousing6Results",null,null,"M3B4FALSE"]
["M3B4z6OtherHousing6ActualChng","M3B4z6OtherHousing6ActualChng",{"$f":"\"'='\" & MID(CELL(\"address\",INDIRECT(B536)),$K$2+1,100)","v":"'='CNPIs Housing'!$K$29"},{"$f":"M3B4z6OtherHousing6ActualChng","v":""},"Number","M3B4z6OtherHousing6ActualChng",null,null,"M3B4FALSE"]
["M3B4z6OtherHousing6Accuracy","M3B4z6OtherHousing6Accuracy",{"$f":"\"'='\" & MID(CELL(\"address\",INDIRECT(B537)),$K$2+1,100)","v":"'='CNPIs Housing'!$L$29"},{"$f":"M3B4z6OtherHousing6Accuracy","v":""},"Number","M3B4z6OtherHousing6Accuracy",null,null,"M3B4FALSE"]
["M3B4Comments","M3B4Comments",{"$f":"\"'='\" & MID(CELL(\"address\",INDIRECT(B538)),$K$2+1,100)","v":"'='CNPIs Housing'!$B$32"},{"$f":"M3B4Comments","v":0},"Text","M3B4Comments",5000,null,"M3B4FALSE"]
["M3B3a1CommercialTarget","M3B3a1CommercialTarget",{"$f":"\"'='\" & MID(CELL(\"address\",INDIRECT(B539)),$K$2+1,100)","v":"'='CNPIs Infrastructure Asset'!$H$10"},{"$f":"M3B3a1CommercialTarget","v":0},"Number","M3B3a1CommercialTarget",null,null,"M3B3FALSE"]
["M3B3a1CommercialResults","M3B3a1CommercialResults",{"$f":"\"'='\" & MID(CELL(\"address\",INDIRECT(B540)),$K$2+1,100)","v":"'='CNPIs Infrastructure Asset'!$I$10"},{"$f":"M3B3a1CommercialResults","v":0},"Number","M3B3a1CommercialResults",null,null,"M3B3FALSE"]
["M3B3a1CommercialAccuracy","M3B3a1CommercialAccuracy",{"$f":"\"'='\" & MID(CELL(\"address\",INDIRECT(B541)),$K$2+1,100)","v":"'='CNPIs Infrastructure Asset'!$J$10"},{"$f":"M3B3a1CommercialAccuracy","v":""},"Number","M3B3a1CommercialAccuracy",null,null,"M3B3FALSE"]
["M3B3a2FinancialTarget","M3B3a2FinancialTarget",{"$f":"\"'='\" & MID(CELL(\"address\",INDIRECT(B542)),$K$2+1,100)","v":"'='CNPIs Infrastructure Asset'!$H$11"},{"$f":"M3B3a2FinancialTarget","v":0},"Number","M3B3a2FinancialTarget",null,null,"M3B3FALSE"]
["M3B3a2FinancialResults","M3B3a2FinancialResults",{"$f":"\"'='\" & MID(CELL(\"address\",INDIRECT(B543)),$K$2+1,100)","v":"'='CNPIs Infrastructure Asset'!$I$11"},{"$f":"M3B3a2FinancialResults","v":0},"Number","M3B3a2FinancialResults",null,null,"M3B3FALSE"]
["M3B3a2FinancialAccuracy","M3B3a2FinancialAccuracy",{"$f":"\"'='\" & MID(CELL(\"address\",INDIRECT(B544)),$K$2+1,100)","v":"'='CNPIs Infrastructure Asset'!$J$11"},{"$f":"M3B3a2FinancialAccuracy","v":""},"Number","M3B3a2FinancialAccuracy",null,null,"M3B3FALSE"]
["M3B3a3TechCommTarget","M3B3a3TechCommTarget",{"$f":"\"'='\" & MID(CELL(\"address\",INDIRECT(B545)),$K$2+1,100)","v":"'='CNPIs Infrastructure Asset'!$H$12"},{"$f":"M3B3a3TechCommTarget","v":0},"Number","M3B3a3TechCommTarget",null,null,"M3B3FALSE"]
["M3B3a3TechCommResults","M3B3a3TechCommResults",{"$f":"\"'='\" & MID(CELL(\"address\",INDIRECT(B546)),$K$2+1,100)","v":"'='CNPIs Infrastructure Asset'!$I$12"},{"$f":"M3B3a3TechCommResults","v":0},"Number","M3B3a3TechCommResults",null,null,"M3B3FALSE"]
["M3B3a3TechCommAccuracy","M3B3a3TechCommAccuracy",{"$f":"\"'='\" & MID(CELL(\"address\",INDIRECT(B547)),$K$2+1,100)","v":"'='CNPIs Infrastructure Asset'!$J$12"},{"$f":"M3B3a3TechCommAccuracy","v":""},"Number","M3B3a3TechCommAccuracy",null,null,"M3B3FALSE"]
["M3B3a4TransportationTarget","M3B3a4TransportationTarget",{"$f":"\"'='\" & MID(CELL(\"address\",INDIRECT(B548)),$K$2+1,100)","v":"'='CNPIs Infrastructure Asset'!$H$13"},{"$f":"M3B3a4TransportationTarget","v":0},"Number","M3B3a4TransportationTarget",null,null,"M3B3FALSE"]
["M3B3a4TransportationResults","M3B3a4TransportationResults",{"$f":"\"'='\" & MID(CELL(\"address\",INDIRECT(B549)),$K$2+1,100)","v":"'='CNPIs Infrastructure Asset'!$I$13"},{"$f":"M3B3a4TransportationResults","v":0},"Number","M3B3a4TransportationResults",null,null,"M3B3FALSE"]
["M3B3a4TransportationAccuracy","M3B3a4TransportationAccuracy",{"$f":"\"'='\" & MID(CELL(\"address\",INDIRECT(B550)),$K$2+1,100)","v":"'='CNPIs Infrastructure Asset'!$J$13"},{"$f":"M3B3a4TransportationAccuracy","v":""},"Number","M3B3a4TransportationAccuracy",null,null,"M3B3FALSE"]
["M3B3a5RecreationalTarget","M3B3a5RecreationalTarget",{"$f":"\"'='\" & MID(CELL(\"address\",INDIRECT(B551)),$K$2+1,100)","v":"'='CNPIs Infrastructure Asset'!$H$14"},{"$f":"M3B3a5RecreationalTarget","v":0},"Number","M3B3a5RecreationalTarget",null,null,"M3B3FALSE"]
["M3B3a5RecreationalResults","M3B3a5RecreationalResults",{"$f":"\"'='\" & MID(CELL(\"address\",INDIRECT(B552)),$K$2+1,100)","v":"'='CNPIs Infrastructure Asset'!$I$14"},{"$f":"M3B3a5RecreationalResults","v":0},"Number","M3B3a5RecreationalResults",null,null,"M3B3FALSE"]
["M3B3a5RecreationalAccuracy","M3B3a5RecreationalAccuracy",{"$f":"\"'='\" & MID(CELL(\"address\",INDIRECT(B553)),$K$2+1,100)","v":"'='CNPIs Infrastructure Asset'!$J$14"},{"$f":"M3B3a5RecreationalAccuracy","v":""},"Number","M3B3a5RecreationalAccuracy",null,null,"M3B3FALSE"]
["M3B3a6OtherPublicTarget","M3B3a6OtherPublicTarget",{"$f":"\"'='\" & MID(CELL(\"address\",INDIRECT(B554)),$K$2+1,100)","v":"'='CNPIs Infrastructure Asset'!$H$15"},{"$f":"M3B3a6OtherPublicTarget","v":0},"Number","M3B3a6OtherPublicTarget",null,null,{"$f":"LEFT(A554,4) & AND(D554<>\"\",D554<>0)","v":"M3B3FALSE"}]
["M3B3a6OtherPublicResults","M3B3a6OtherPublicResults",{"$f":"\"'='\" & MID(CELL(\"address\",INDIRECT(B555)),$K$2+1,100)","v":"'='CNPIs Infrastructure Asset'!$I$15"},{"$f":"M3B3a6OtherPublicResults","v":0},"Number","M3B3a6OtherPublicResults",null,null,"M3B3FALSE"]
["M3B3a6OtherPublicAccuracy","M3B3a6OtherPublicAccuracy",{"$f":"\"'='\" & MID(CELL(\"address\",INDIRECT(B556)),$K$2+1,100)","v":"'='CNPIs Infrastructure Asset'!$J$15"},{"$f":"M3B3a6OtherPublicAccuracy","v":""},"Number","M3B3a6OtherPublicAccuracy",null,null,"M3B3FALSE"]
["M3B3b1CommercialTarget","M3B3b1CommercialTarget",{"$f":"\"'='\" & MID(CELL(\"address\",INDIRECT(B557)),$K$2+1,100)","v":"'='CNPIs Infrastructure Asset'!$H$17"},{"$f":"M3B3b1CommercialTarget","v":0},"Number","M3B3b1CommercialTarget",null,null,"M3B3FALSE"]
["M3B3b1CommercialResults","M3B3b1CommercialResults",{"$f":"\"'='\" & MID(CELL(\"address\",INDIRECT(B558)),$K$2+1,100)","v":"'='CNPIs Infrastructure Asset'!$I$17"},{"$f":"M3B3b1CommercialResults","v":0},"Number","M3B3b1CommercialResults",null,null,"M3B3FALSE"]
["M3B3b1CommercialAccuracy","M3B3b1CommercialAccuracy",{"$f":"\"'='\" & MID(CELL(\"address\",INDIRECT(B559)),$K$2+1,100)","v":"'='CNPIs Infrastructure Asset'!$J$17"},{"$f":"M3B3b1CommercialAccuracy","v":""},"Number","M3B3b1CommercialAccuracy",null,null,"M3B3FALSE"]
["M3B3b2FinancialTarget","M3B3b2FinancialTarget",{"$f":"\"'='\" & MID(CELL(\"address\",INDIRECT(B560)),$K$2+1,100)","v":"'='CNPIs Infrastructure Asset'!$H$18"},{"$f":"M3B3b2FinancialTarget","v":0},"Number","M3B3b2FinancialTarget",null,null,"M3B3FALSE"]
["M3B3b2FinancialResults","M3B3b2FinancialResults",{"$f":"\"'='\" & MID(CELL(\"address\",INDIRECT(B561)),$K$2+1,100)","v":"'='CNPIs Infrastructure Asset'!$I$18"},{"$f":"M3B3b2FinancialResults","v":0},"Number","M3B3b2FinancialResults",null,null,"M3B3FALSE"]
["M3B3b2FinancialAccuracy","M3B3b2FinancialAccuracy",{"$f":"\"'='\" & MID(CELL(\"address\",INDIRECT(B562)),$K$2+1,100)","v":"'='CNPIs Infrastructure Asset'!$J$18"},{"$f":"M3B3b2FinancialAccuracy","v":""},"Number","M3B3b2FinancialAccuracy",null,null,"M3B3FALSE"]
["M3B3b3TechCommTarget","M3B3b3TechCommTarget",{"$f":"\"'='\" & MID(CELL(\"address\",INDIRECT(B563)),$K$2+1,100)","v":"'='CNPIs Infrastructure Asset'!$H$19"},{"$f":"M3B3b3TechCommTarget","v":0},"Number","M3B3b3TechCommTarget",null,null,"M3B3FALSE"]
["M3B3b3TechCommResults","M3B3b3TechCommResults",{"$f":"\"'='\" & MID(CELL(\"address\",INDIRECT(B564)),$K$2+1,100)","v":"'='CNPIs Infrastructure Asset'!$I$19"},{"$f":"M3B3b3TechCommResults","v":0},"Number","M3B3b3TechCommResults",null,null,"M3B3FALSE"]
["M3B3b3TechCommAccuracy","M3B3b3TechCommAccuracy",{"$f":"\"'='\" & MID(CELL(\"address\",INDIRECT(B565)),$K$2+1,100)","v":"'='CNPIs Infrastructure Asset'!$J$19"},{"$f":"M3B3b3TechCommAccuracy","v":""},"Number","M3B3b3TechCommAccuracy",null,null,"M3B3FALSE"]
["M3B3b4TransportationTarget","M3B3b4TransportationTarget",{"$f":"\"'='\" & MID(CELL(\"address\",INDIRECT(B566)),$K$2+1,100)","v":"'='CNPIs Infrastructure Asset'!$H$20"},{"$f":"M3B3b4TransportationTarget","v":0},"Number","M3B3b4TransportationTarget",null,null,"M3B3FALSE"]
["M3B3b4TransportationResults","M3B3b4TransportationResults",{"$f":"\"'='\" & MID(CELL(\"address\",INDIRECT(B567)),$K$2+1,100)","v":"'='CNPIs Infrastructure Asset'!$I$20"},{"$f":"M3B3b4TransportationResults","v":0},"Number","M3B3b4TransportationResults",null,null,"M3B3FALSE"]
["M3B3b4TransportationAccuracy","M3B3b4TransportationAccuracy",{"$f":"\"'='\" & MID(CELL(\"address\",INDIRECT(B568)),$K$2+1,100)","v":"'='CNPIs Infrastructure Asset'!$J$20"},{"$f":"M3B3b4TransportationAccuracy","v":""},"Number","M3B3b4TransportationAccuracy",null,null,"M3B3FALSE"]
["M3B3b5RecreationalTarget","M3B3b5RecreationalTarget",{"$f":"\"'='\" & MID(CELL(\"address\",INDIRECT(B569)),$K$2+1,100)","v":"'='CNPIs Infrastructure Asset'!$H$21"},{"$f":"M3B3b5RecreationalTarget","v":0},"Number","M3B3b5RecreationalTarget",null,null,"M3B3FALSE"]
["M3B3b5RecreationalResults","M3B3b5RecreationalResults",{"$f":"\"'='\" & MID(CELL(\"address\",INDIRECT(B570)),$K$2+1,100)","v":"'='CNPIs Infrastructure Asset'!$I$21"},{"$f":"M3B3b5RecreationalResults","v":0},"Number","M3B3b5RecreationalResults",null,null,"M3B3FALSE"]
["M3B3b5RecreationalAccuracy","M3B3b5RecreationalAccuracy",{"$f":"\"'='\" & MID(CELL(\"address\",INDIRECT(B571)),$K$2+1,100)","v":"'='CNPIs Infrastructure Asset'!$J$21"},{"$f":"M3B3b5RecreationalAccuracy","v":""},"Number","M3B3b5RecreationalAccuracy",null,null,"M3B3FALSE"]
["M3B3b6OtherPublicTarget","M3B3b6OtherPublicTarget",{"$f":"\"'='\" & MID(CELL(\"address\",INDIRECT(B572)),$K$2+1,100)","v":"'='CNPIs Infrastructure Asset'!$H$22"},{"$f":"M3B3b6OtherPublicTarget","v":0},"Number","M3B3b6OtherPublicTarget",null,null,"M3B3FALSE"]
["M3B3b6OtherPublicResults","M3B3b6OtherPublicResults",{"$f":"\"'='\" & MID(CELL(\"address\",INDIRECT(B573)),$K$2+1,100)","v":"'='CNPIs Infrastructure Asset'!$I$22"},{"$f":"M3B3b6OtherPublicResults","v":0},"Number","M3B3b6OtherPublicResults",null,null,"M3B3FALSE"]
["M3B3b6OtherPublicAccuracy","M3B3b6OtherPublicAccuracy",{"$f":"\"'='\" & MID(CELL(\"address\",INDIRECT(B574)),$K$2+1,100)","v":"'='CNPIs Infrastructure Asset'!$J$22"},{"$f":"M3B3b6OtherPublicAccuracy","v":""},"Number","M3B3b6OtherPublicAccuracy",null,null,"M3B3FALSE"]
["M3B3z1OtherInfraAsset1Name","M3B3z1OtherInfraAsset1Name",{"$f":"\"'='\" & MID(CELL(\"address\",INDIRECT(B575)),$K$2+1,100)","v":"'='CNPIs Infrastructure Asset'!$C$25"},{"$f":"M3B3z1OtherInfraAsset1Name","v":0},"Text","M3B3z1OtherInfraAsset1Name",1000,null,"M3B3FALSE"]
["M3B3z1OtherInfraAsset1Target","M3B3z1OtherInfraAsset1Target",{"$f":"\"'='\" & MID(CELL(\"address\",INDIRECT(B576)),$K$2+1,100)","v":"'='CNPIs Infrastructure Asset'!$H$25"},{"$f":"M3B3z1OtherInfraAsset1Target","v":0},"Number","M3B3z1OtherInfraAsset1Target",null,null,"M3B3FALSE"]
["M3B3z1OtherInfraAsset1Results","M3B3z1OtherInfraAsset1Results",{"$f":"\"'='\" & MID(CELL(\"address\",INDIRECT(B577)),$K$2+1,100)","v":"'='CNPIs Infrastructure Asset'!$I$25"},{"$f":"M3B3z1OtherInfraAsset1Results","v":0},"Number","M3B3z1OtherInfraAsset1Results",null,null,"M3B3FALSE"]
["M3B3z1OtherInfraAsset1Accuracy","M3B3z1OtherInfraAsset1Accuracy",{"$f":"\"'='\" & MID(CELL(\"address\",INDIRECT(B578)),$K$2+1,100)","v":"'='CNPIs Infrastructure Asset'!$J$25"},{"$f":"M3B3z1OtherInfraAsset1Accuracy","v":""},"Number","M3B3z1OtherInfraAsset1Accuracy",null,null,"M3B3FALSE"]
["M3B3z2OtherInfraAsset2Name","M3B3z2OtherInfraAsset2Name",{"$f":"\"'='\" & MID(CELL(\"address\",INDIRECT(B579)),$K$2+1,100)","v":"'='CNPIs Infrastructure Asset'!$C$26"},{"$f":"M3B3z2OtherInfraAsset2Name","v":0},"Text","M3B3z2OtherInfraAsset2Name",1000,null,"M3B3FALSE"]
["M3B3z2OtherInfraAsset2Target","M3B3z2OtherInfraAsset2Target",{"$f":"\"'='\" & MID(CELL(\"address\",INDIRECT(B580)),$K$2+1,100)","v":"'='CNPIs Infrastructure Asset'!$H$26"},{"$f":"M3B3z2OtherInfraAsset2Target","v":0},"Number","M3B3z2OtherInfraAsset2Target",null,null,"M3B3FALSE"]
["M3B3z2OtherInfraAsset2Results","M3B3z2OtherInfraAsset2Results",{"$f":"\"'='\" & MID(CELL(\"address\",INDIRECT(B581)),$K$2+1,100)","v":"'='CNPIs Infrastructure Asset'!$I$26"},{"$f":"M3B3z2OtherInfraAsset2Results","v":0},"Number","M3B3z2OtherInfraAsset2Results",null,null,"M3B3FALSE"]
["M3B3z2OtherInfraAsset2Accuracy","M3B3z2OtherInfraAsset2Accuracy",{"$f":"\"'='\" & MID(CELL(\"address\",INDIRECT(B582)),$K$2+1,100)","v":"'='CNPIs Infrastructure Asset'!$J$26"},{"$f":"M3B3z2OtherInfraAsset2Accuracy","v":""},"Number","M3B3z2OtherInfraAsset2Accuracy",null,null,"M3B3FALSE"]
["M3B3z3OtherInfraAsset3Name","M3B3z3OtherInfraAsset3Name",{"$f":"\"'='\" & MID(CELL(\"address\",INDIRECT(B583)),$K$2+1,100)","v":"'='CNPIs Infrastructure Asset'!$C$27"},{"$f":"M3B3z3OtherInfraAsset3Name","v":0},"Text","M3B3z3OtherInfraAsset3Name",1000,null,"M3B3FALSE"]
["M3B3z3OtherInfraAsset3Target","M3B3z3OtherInfraAsset3Target",{"$f":"\"'='\" & MID(CELL(\"address\",INDIRECT(B584)),$K$2+1,100)","v":"'='CNPIs Infrastructure Asset'!$H$27"},{"$f":"M3B3z3OtherInfraAsset3Target","v":0},"Number","M3B3z3OtherInfraAsset3Target",null,null,"M3B3FALSE"]
["M3B3z3OtherInfraAsset3Results","M3B3z3OtherInfraAsset3Results",{"$f":"\"'='\" & MID(CELL(\"address\",INDIRECT(B585)),$K$2+1,100)","v":"'='CNPIs Infrastructure Asset'!$I$27"},{"$f":"M3B3z3OtherInfraAsset3Results","v":0},"Number","M3B3z3OtherInfraAsset3Results",null,null,"M3B3FALSE"]
["M3B3z3OtherInfraAsset3Accuracy","M3B3z3OtherInfraAsset3Accuracy",{"$f":"\"'='\" & MID(CELL(\"address\",INDIRECT(B586)),$K$2+1,100)","v":"'='CNPIs Infrastructure Asset'!$J$27"},{"$f":"M3B3z3OtherInfraAsset3Accuracy","v":""},"Number","M3B3z3OtherInfraAsset3Accuracy",null,null,"M3B3FALSE"]
["M3B3cAbandonBuildBaseline","M3B3cAbandonBuildBaseline",{"$f":"\"'='\" & MID(CELL(\"address\",INDIRECT(B587)),$K$2+1,100)","v":"'='CNPIs Infrastructure Asset'!$H$30"},{"$f":"M3B3cAbandonBuildBaseline","v":0},"Number","M3B3cAbandonBuildBaseline",null,null,"M3B3FALSE"]
["M3B3cAbandonBuildTarget","M3B3cAbandonBuildTarget",{"$f":"\"'='\" & MID(CELL(\"address\",INDIRECT(B588)),$K$2+1,100)","v":"'='CNPIs Infrastructure Asset'!$I$30"},{"$f":"M3B3cAbandonBuildTarget","v":0},"Number","M3B3cAbandonBuildTarget",null,null,"M3B3FALSE"]
["M3B3cAbandonBuildExpectChng","M3B3cAbandonBuildExpectChng",{"$f":"\"'='\" & MID(CELL(\"address\",INDIRECT(B589)),$K$2+1,100)","v":"'='CNPIs Infrastructure Asset'!$J$30"},{"$f":"M3B3cAbandonBuildExpectChng","v":""},"Number","M3B3cAbandonBuildExpectChng",null,null,"M3B3FALSE"]
["M3B3cAbandonBuildResults","M3B3cAbandonBuildResults",{"$f":"\"'='\" & MID(CELL(\"address\",INDIRECT(B590)),$K$2+1,100)","v":"'='CNPIs Infrastructure Asset'!$K$30"},{"$f":"M3B3cAbandonBuildResults","v":0},"Number","M3B3cAbandonBuildResults",null,null,"M3B3FALSE"]
["M3B3cAbandonBuildActualChng","M3B3cAbandonBuildActualChng",{"$f":"\"'='\" & MID(CELL(\"address\",INDIRECT(B591)),$K$2+1,100)","v":"'='CNPIs Infrastructure Asset'!$L$30"},{"$f":"M3B3cAbandonBuildActualChng","v":""},"Number","M3B3cAbandonBuildActualChng",null,null,"M3B3FALSE"]
["M3B3cAbandonBuildAccuracy","M3B3cAbandonBuildAccuracy",{"$f":"\"'='\" & MID(CELL(\"address\",INDIRECT(B592)),$K$2+1,100)","v":"'='CNPIs Infrastructure Asset'!$M$30"},{"$f":"M3B3cAbandonBuildAccuracy","v":""},"Number","M3B3cAbandonBuildAccuracy",null,null,"M3B3FALSE"]
["M3B3dEmerRespTimeBaseline","M3B3dEmerRespTimeBaseline",{"$f":"\"'='\" & MID(CELL(\"address\",INDIRECT(B593)),$K$2+1,100)","v":"'='CNPIs Infrastructure Asset'!$H$31"},{"$f":"M3B3dEmerRespTimeBaseline","v":0},"Number","M3B3dEmerRespTimeBaseline",null,null,"M3B3FALSE"]
["M3B3dEmerRespTimeTarget","M3B3dEmerRespTimeTarget",{"$f":"\"'='\" & MID(CELL(\"address\",INDIRECT(B594)),$K$2+1,100)","v":"'='CNPIs Infrastructure Asset'!$I$31"},{"$f":"M3B3dEmerRespTimeTarget","v":0},"Number","M3B3dEmerRespTimeTarget",null,null,"M3B3FALSE"]
["M3B3dEmerRespTimeExpectChng","M3B3dEmerRespTimeExpectChng",{"$f":"\"'='\" & MID(CELL(\"address\",INDIRECT(B595)),$K$2+1,100)","v":"'='CNPIs Infrastructure Asset'!$J$31"},{"$f":"M3B3dEmerRespTimeExpectChng","v":""},"Number","M3B3dEmerRespTimeExpectChng",null,null,"M3B3FALSE"]
["M3B3dEmerRespTimeResults","M3B3dEmerRespTimeResults",{"$f":"\"'='\" & MID(CELL(\"address\",INDIRECT(B596)),$K$2+1,100)","v":"'='CNPIs Infrastructure Asset'!$K$31"},{"$f":"M3B3dEmerRespTimeResults","v":0},"Number","M3B3dEmerRespTimeResults",null,null,"M3B3FALSE"]
["M3B3dEmerRespTimeActualChng","M3B3dEmerRespTimeActualChng",{"$f":"\"'='\" & MID(CELL(\"address\",INDIRECT(B597)),$K$2+1,100)","v":"'='CNPIs Infrastructure Asset'!$L$31"},{"$f":"M3B3dEmerRespTimeActualChng","v":""},"Number","M3B3dEmerRespTimeActualChng",null,null,"M3B3FALSE"]
["M3B3dEmerRespTimeAccuracy","M3B3dEmerRespTimeAccuracy",{"$f":"\"'='\" & MID(CELL(\"address\",INDIRECT(B598)),$K$2+1,100)","v":"'='CNPIs Infrastructure Asset'!$M$31"},{"$f":"M3B3dEmerRespTimeAccuracy","v":""},"Number","M3B3dEmerRespTimeAccuracy",null,null,"M3B3FALSE"]
["M3B3ePredLendBaseline","M3B3ePredLendBaseline",{"$f":"\"'='\" & MID(CELL(\"address\",INDIRECT(B599)),$K$2+1,100)","v":"'='CNPIs Infrastructure Asset'!$H$32"},{"$f":"M3B3ePredLendBaseline","v":0},"Number","M3B3ePredLendBaseline",null,null,"M3B3FALSE",{"$nulls":10},{"$f":"LEFT(L599,4)","v":""}]
["M3B3ePredLendTarget","M3B3ePredLendTarget",{"$f":"\"'='\" & MID(CELL(\"address\",INDIRECT(B600)),$K$2+1,100)","v":"'='CNPIs Infrastructure Asset'!$I$32"},{"$f":"M3B3ePredLendTarget","v":0},"Number","M3B3ePredLendTarget",null,null,"M3B3FALSE",{"$nulls":10},""]
["M3B3ePredLendExpectChng","M3B3ePredLendExpectChng",{"$f":"\"'='\" & MID(CELL(\"address\",INDIRECT(B601)),$K$2+1,100)","v":"'='CNPIs Infrastructure Asset'!$J$32"},{"$f":"M3B3ePredLendExpectChng","v":""},"Number","M3B3ePredLendExpectChng",null,null,"M3B3FALSE",{"$nulls":10},""]
["M3B3ePredLendResults","M3B3ePredLendResults",{"$f":"\"'='\" & MID(CELL(\"address\",INDIRECT(B602)),$K$2+1,100)","v":"'='CNPIs Infrastructure Asset'!$K$32"},{"$f":"M3B3ePredLendResults","v":0},"Number","M3B3ePredLendResults",null,null,"M3B3FALSE",{"$nulls":10},""]
["M3B3ePredLendActualChng","M3B3ePredLendActualChng",{"$f":"\"'='\" & MID(CELL(\"address\",INDIRECT(B603)),$K$2+1,100)","v":"'='CNPIs Infrastructure Asset'!$L$32"},{"$f":"M3B3ePredLendActualChng","v":""},"Number","M3B3ePredLendActualChng",null,null,"M3B3FALSE",{"$nulls":10},""]
["M3B3ePredLendAccuracy","M3B3ePredLendAccuracy",{"$f":"\"'='\" & MID(CELL(\"address\",INDIRECT(B604)),$K$2+1,100)","v":"'='CNPIs Infrastructure Asset'!$M$32"},{"$f":"M3B3ePredLendAccuracy","v":""},"Number","M3B3ePredLendAccuracy",null,null,"M3B3FALSE",{"$nulls":10},""]
["M3B3fEnvirThreatBaseline","M3B3fEnvirThreatBaseline",{"$f":"\"'='\" & MID(CELL(\"address\",INDIRECT(B605)),$K$2+1,100)","v":"'='CNPIs Infrastructure Asset'!$H$33"},{"$f":"M3B3fEnvirThreatBaseline","v":0},"Number","M3B3fEnvirThreatBaseline",null,null,"M3B3FALSE",{"$nulls":10},""]
["M3B3fEnvirThreatTarget","M3B3fEnvirThreatTarget",{"$f":"\"'='\" & MID(CELL(\"address\",INDIRECT(B606)),$K$2+1,100)","v":"'='CNPIs Infrastructure Asset'!$I$33"},{"$f":"M3B3fEnvirThreatTarget","v":0},"Number","M3B3fEnvirThreatTarget",null,null,"M3B3FALSE",{"$nulls":10},""]
["M3B3fEnvirThreatExpectChng","M3B3fEnvirThreatExpectChng",{"$f":"\"'='\" & MID(CELL(\"address\",INDIRECT(B607)),$K$2+1,100)","v":"'='CNPIs Infrastructure Asset'!$J$33"},{"$f":"M3B3fEnvirThreatExpectChng","v":""},"Number","M3B3fEnvirThreatExpectChng",null,null,"M3B3FALSE",{"$nulls":10},""]
["M3B3fEnvirThreatResults","M3B3fEnvirThreatResults",{"$f":"\"'='\" & MID(CELL(\"address\",INDIRECT(B608)),$K$2+1,100)","v":"'='CNPIs Infrastructure Asset'!$K$33"},{"$f":"M3B3fEnvirThreatResults","v":0},"Number","M3B3fEnvirThreatResults",null,null,"M3B3FALSE",{"$nulls":10},""]
["M3B3fEnvirThreatActualChng","M3B3fEnvirThreatActualChng",{"$f":"\"'='\" & MID(CELL(\"address\",INDIRECT(B609)),$K$2+1,100)","v":"'='CNPIs Infrastructure Asset'!$L$33"},{"$f":"M3B3fEnvirThreatActualChng","v":""},"Number","M3B3fEnvirThreatActualChng",null,null,"M3B3FALSE",{"$nulls":10},""]
["M3B3fEnvirThreatAccuracy","M3B3fEnvirThreatAccuracy",{"$f":"\"'='\" & MID(CELL(\"address\",INDIRECT(B610)),$K$2+1,100)","v":"'='CNPIs Infrastructure Asset'!$M$33"},{"$f":"M3B3fEnvirThreatAccuracy","v":""},"Number","M3B3fEnvirThreatAccuracy",null,null,"M3B3FALSE",{"$nulls":10},""]
["M3B3gTransportServiceBaseline","M3B3gTransportServiceBaseline",{"$f":"\"'='\" & MID(CELL(\"address\",INDIRECT(B611)),$K$2+1,100)","v":"'='CNPIs Infrastructure Asset'!$H$34"},{"$f":"M3B3gTransportServiceBaseline","v":0},"Number","M3B3gTransportServiceBaseline",null,null,"M3B3FALSE",{"$nulls":10},""]
["M3B3gTransportServiceTarget","M3B3gTransportServiceTarget",{"$f":"\"'='\" & MID(CELL(\"address\",INDIRECT(B612)),$K$2+1,100)","v":"'='CNPIs Infrastructure Asset'!$I$34"},{"$f":"M3B3gTransportServiceTarget","v":0},"Number","M3B3gTransportServiceTarget",null,null,"M3B3FALSE",{"$nulls":10},""]
["M3B3gTransportServiceExpectChng","M3B3gTransportServiceExpectChng",{"$f":"\"'='\" & MID(CELL(\"address\",INDIRECT(B613)),$K$2+1,100)","v":"'='CNPIs Infrastructure Asset'!$J$34"},{"$f":"M3B3gTransportServiceExpectChng","v":""},"Number","M3B3gTransportServiceExpectChng",null,null,"M3B3FALSE",{"$nulls":10},""]
["M3B3gTransportServiceResults","M3B3gTransportServiceResults",{"$f":"\"'='\" & MID(CELL(\"address\",INDIRECT(B614)),$K$2+1,100)","v":"'='CNPIs Infrastructure Asset'!$K$34"},{"$f":"M3B3gTransportServiceResults","v":0},"Number","M3B3gTransportServiceResults",null,null,"M3B3FALSE",{"$nulls":10},""]
["M3B3gTransportServiceActualChng","M3B3gTransportServiceActualChng",{"$f":"\"'='\" & MID(CELL(\"address\",INDIRECT(B615)),$K$2+1,100)","v":"'='CNPIs Infrastructure Asset'!$L$34"},{"$f":"M3B3gTransportServiceActualChng","v":""},"Number","M3B3gTransportServiceActualChng",null,null,"M3B3FALSE",{"$nulls":10},""]
["M3B3gTransportServiceAccuracy","M3B3gTransportServiceAccuracy",{"$f":"\"'='\" & MID(CELL(\"address\",INDIRECT(B616)),$K$2+1,100)","v":"'='CNPIs Infrastructure Asset'!$M$34"},{"$f":"M3B3gTransportServiceAccuracy","v":""},"Number","M3B3gTransportServiceAccuracy",null,null,"M3B3FALSE",{"$nulls":10},""]
["M3B3z4OtherInfraAsset4Name","M3B3z4OtherInfraAsset4Name",{"$f":"\"'='\" & MID(CELL(\"address\",INDIRECT(B617)),$K$2+1,100)","v":"'='CNPIs Infrastructure Asset'!$C$37"},{"$f":"M3B3z4OtherInfraAsset4Name","v":0},"Text","M3B3z4OtherInfraAsset4Name",1000,null,"M3B3FALSE",{"$nulls":10},""]
["M3B3z4OtherInfraAsset4Baseline","M3B3z4OtherInfraAsset4Baseline",{"$f":"\"'='\" & MID(CELL(\"address\",INDIRECT(B618)),$K$2+1,100)","v":"'='CNPIs Infrastructure Asset'!$H$37"},{"$f":"M3B3z4OtherInfraAsset4Baseline","v":0},"Number","M3B3z4OtherInfraAsset4Baseline",null,null,{"$f":"LEFT(A618,4) & AND(D618<>\"\",D618<>0)","v":"M3B3FALSE"},{"$nulls":10},""]
["M3B3z4OtherInfraAsset4Target","M3B3z4OtherInfraAsset4Target",{"$f":"\"'='\" & MID(CELL(\"address\",INDIRECT(B619)),$K$2+1,100)","v":"'='CNPIs Infrastructure Asset'!$I$37"},{"$f":"M3B3z4OtherInfraAsset4Target","v":0},"Number","M3B3z4OtherInfraAsset4Target",null,null,"M3B3FALSE",{"$nulls":10},""]
["M3B3z4OtherInfraAsset4ExpectChng","M3B3z4OtherInfraAsset4ExpectChng",{"$f":"\"'='\" & MID(CELL(\"address\",INDIRECT(B620)),$K$2+1,100)","v":"'='CNPIs Infrastructure Asset'!$J$37"},{"$f":"M3B3z4OtherInfraAsset4ExpectChng","v":""},"Number","M3B3z4OtherInfraAsset4ExpectChng",null,null,"M3B3FALSE",{"$nulls":10},""]
["M3B3z4OtherInfraAsset4Results","M3B3z4OtherInfraAsset4Results",{"$f":"\"'='\" & MID(CELL(\"address\",INDIRECT(B621)),$K$2+1,100)","v":"'='CNPIs Infrastructure Asset'!$K$37"},{"$f":"M3B3z4OtherInfraAsset4Results","v":0},"Number","M3B3z4OtherInfraAsset4Results",null,null,"M3B3FALSE",{"$nulls":10},""]
["M3B3z4OtherInfraAsset4ActualChng","M3B3z4OtherInfraAsset4ActualChng",{"$f":"\"'='\" & MID(CELL(\"address\",INDIRECT(B622)),$K$2+1,100)","v":"'='CNPIs Infrastructure Asset'!$L$37"},{"$f":"M3B3z4OtherInfraAsset4ActualChng","v":""},"Number","M3B3z4OtherInfraAsset4ActualChng",null,null,"M3B3FALSE",{"$nulls":10},""]
["M3B3z4OtherInfraAsset4Accuracy","M3B3z4OtherInfraAsset4Accuracy",{"$f":"\"'='\" & MID(CELL(\"address\",INDIRECT(B623)),$K$2+1,100)","v":"'='CNPIs Infrastructure Asset'!$M$37"},{"$f":"M3B3z4OtherInfraAsset4Accuracy","v":""},"Number","M3B3z4OtherInfraAsset4Accuracy",null,null,"M3B3FALSE",{"$nulls":10},""]
["M3B3z5OtherInfraAsset5Name","M3B3z5OtherInfraAsset5Name",{"$f":"\"'='\" & MID(CELL(\"address\",INDIRECT(B624)),$K$2+1,100)","v":"'='CNPIs Infrastructure Asset'!$C$38"},{"$f":"M3B3z5OtherInfraAsset5Name","v":0},"Text","M3B3z5OtherInfraAsset5Name",1000,null,"M3B3FALSE",{"$nulls":10},""]
["M3B3z5OtherInfraAsset5Baseline","M3B3z5OtherInfraAsset5Baseline",{"$f":"\"'='\" & MID(CELL(\"address\",INDIRECT(B625)),$K$2+1,100)","v":"'='CNPIs Infrastructure Asset'!$H$38"},{"$f":"M3B3z5OtherInfraAsset5Baseline","v":0},"Number","M3B3z5OtherInfraAsset5Baseline",null,null,"M3B3FALSE",{"$nulls":10},""]
["M3B3z5OtherInfraAsset5Target","M3B3z5OtherInfraAsset5Target",{"$f":"\"'='\" & MID(CELL(\"address\",INDIRECT(B626)),$K$2+1,100)","v":"'='CNPIs Infrastructure Asset'!$I$38"},{"$f":"M3B3z5OtherInfraAsset5Target","v":0},"Number","M3B3z5OtherInfraAsset5Target",null,null,"M3B3FALSE",{"$nulls":10},""]
["M3B3z5OtherInfraAsset5ExpectChng","M3B3z5OtherInfraAsset5ExpectChng",{"$f":"\"'='\" & MID(CELL(\"address\",INDIRECT(B627)),$K$2+1,100)","v":"'='CNPIs Infrastructure Asset'!$J$38"},{"$f":"M3B3z5OtherInfraAsset5ExpectChng","v":""},"Number","M3B3z5OtherInfraAsset5ExpectChng",null,null,"M3B3FALSE",{"$nulls":10},""]
["M3B3z5OtherInfraAsset5Results","M3B3z5OtherInfraAsset5Results",{"$f":"\"'='\" & MID(CELL(\"address\",INDIRECT(B628)),$K$2+1,100)","v":"'='CNPIs Infrastructure Asset'!$K$38"},{"$f":"M3B3z5OtherInfraAsset5Results","v":0},"Number","M3B3z5OtherInfraAsset5Results",null,null,"M3B3FALSE",{"$nulls":10},""]
["M3B3z5OtherInfraAsset5ActualChng","M3B3z5OtherInfraAsset5ActualChng",{"$f":"\"'='\" & MID(CELL(\"address\",INDIRECT(B629)),$K$2+1,100)","v":"'='CNPIs Infrastructure Asset'!$L$38"},{"$f":"M3B3z5OtherInfraAsset5ActualChng","v":""},"Number","M3B3z5OtherInfraAsset5ActualChng",null,null,"M3B3FALSE",{"$nulls":10},""]
["M3B3z5OtherInfraAsset5Accuracy","M3B3z5OtherInfraAsset5Accuracy",{"$f":"\"'='\" & MID(CELL(\"address\",INDIRECT(B630)),$K$2+1,100)","v":"'='CNPIs Infrastructure Asset'!$M$38"},{"$f":"M3B3z5OtherInfraAsset5Accuracy","v":""},"Number","M3B3z5OtherInfraAsset5Accuracy",null,null,"M3B3FALSE",{"$nulls":10},""]
["M3B3z6OtherInfraAsset6Name","M3B3z6OtherInfraAsset6Name",{"$f":"\"'='\" & MID(CELL(\"address\",INDIRECT(B631)),$K$2+1,100)","v":"'='CNPIs Infrastructure Asset'!$C$39"},{"$f":"M3B3z6OtherInfraAsset6Name","v":0},"Text","M3B3z6OtherInfraAsset6Name",1000,null,"M3B3FALSE",{"$nulls":10},""]
["M3B3z6OtherInfraAsset6Baseline","M3B3z6OtherInfraAsset6Baseline",{"$f":"\"'='\" & MID(CELL(\"address\",INDIRECT(B632)),$K$2+1,100)","v":"'='CNPIs Infrastructure Asset'!$H$39"},{"$f":"M3B3z6OtherInfraAsset6Baseline","v":0},"Number","M3B3z6OtherInfraAsset6Baseline",null,null,"M3B3FALSE",{"$nulls":10},""]
["M3B3z6OtherInfraAsset6Target","M3B3z6OtherInfraAsset6Target",{"$f":"\"'='\" & MID(CELL(\"address\",INDIRECT(B633)),$K$2+1,100)","v":"'='CNPIs Infrastructure Asset'!$I$39"},{"$f":"M3B3z6OtherInfraAsset6Target","v":0},"Number","M3B3z6OtherInfraAsset6Target",null,null,"M3B3FALSE",{"$nulls":10},""]
["M3B3z6OtherInfraAsset6ExpectChng","M3B3z6OtherInfraAsset6ExpectChng",{"$f":"\"'='\" & MID(CELL(\"address\",INDIRECT(B634)),$K$2+1,100)","v":"'='CNPIs Infrastructure Asset'!$J$39"},{"$f":"M3B3z6OtherInfraAsset6ExpectChng","v":""},"Number","M3B3z6OtherInfraAsset6ExpectChng",null,null,"M3B3FALSE",{"$nulls":10},""]
["M3B3z6OtherInfraAsset6Results","M3B3z6OtherInfraAsset6Results",{"$f":"\"'='\" & MID(CELL(\"address\",INDIRECT(B635)),$K$2+1,100)","v":"'='CNPIs Infrastructure Asset'!$K$39"},{"$f":"M3B3z6OtherInfraAsset6Results","v":0},"Number","M3B3z6OtherInfraAsset6Results",null,null,"M3B3FALSE",{"$nulls":10},""]
["M3B3z6OtherInfraAsset6ActualChng","M3B3z6OtherInfraAsset6ActualChng",{"$f":"\"'='\" & MID(CELL(\"address\",INDIRECT(B636)),$K$2+1,100)","v":"'='CNPIs Infrastructure Asset'!$L$39"},{"$f":"M3B3z6OtherInfraAsset6ActualChng","v":""},"Number","M3B3z6OtherInfraAsset6ActualChng",null,null,"M3B3FALSE",{"$nulls":10},""]
["M3B3z6OtherInfraAsset6Accuracy","M3B3z6OtherInfraAsset6Accuracy",{"$f":"\"'='\" & MID(CELL(\"address\",INDIRECT(B637)),$K$2+1,100)","v":"'='CNPIs Infrastructure Asset'!$M$39"},{"$f":"M3B3z6OtherInfraAsset6Accuracy","v":""},"Number","M3B3z6OtherInfraAsset6Accuracy",null,null,"M3B3FALSE",{"$nulls":10},""]
["M3B3Comments","M3B3Comments",{"$f":"\"'='\" & MID(CELL(\"address\",INDIRECT(B638)),$K$2+1,100)","v":"'='CNPIs Infrastructure Asset'!$B$42"},{"$f":"M3B3Comments","v":0},"Text","M3B3Comments",5000,null,"M3B3FALSE",{"$nulls":10},""]
["NPIs",{"$nulls":5},"Community ID offset"," Results field(s)","Section"]
["Employment (check all CNPIs for which CAA has outcomes to report)","M3_A6_EMP"]
["CNPI 1a Number of jobs created to increase opportunities for people with low incomes in the identified community. ","M3_A6_EMP_1",null,false,"True/False","M3A61aJobIncrOpp",-2,"M3B1aJobIncrOppResults","Counts"]
["CNPI 1b Number of job opportunities maintained in the identified community.            ","M3_A6_EMP_2",null,false,"True/False","M3A61bJobOppMain",-2,"M3B1bJobOppMainResults","Counts"]
["CNPI 1c Number of “living wage” jobs created in the identified community.","M3_A6_EMP_3",null,false,"True/False","M3A61cLivWageCreate",-2,"M3B1cLivWageCreateResults","Counts"]
["CNPI 1d Number of “living wage” jobs maintained in the identified community. ","M3_A6_EMP_4",null,false,"True/False","M3A61dLivWageMain",-2,"M3B1dLivWageMainResults","Counts"]
["CNPI 1e Number of jobs created in the identified community with a benefit package. ","M3_A6_EMP_5",null,false,"True/False","M3A61eBenPack",-2,"M3B1eBenPackResults","Counts"]
["CNPI 1z Other Counts of Change for Employment Indicators.","M3_A6_EMP_6",null,false,"True/False","M3A61z1OtherEmploy",1,"M3B1z1OtherEmploy1Name,M3B1z2OtherEmploy2Name,M3B1z3OtherEmploy3Name","OtherCounts"]
["CNPI 1f Percent decrease of the unemployment rate.","M3_A6_EMP_7",null,false,"True/False","M3A61fUnemployRate",-4,"M3B1fUnemployRateResults","Rates"]
["CNPI 1g Percent decrease of the youth unemployment rate.","M3_A6_EMP_8",null,false,"True/False","M3A61gYouthUnemployRate",-4,"M3B1gYouthUnemployRateResults","Rates"]
["CNPI 1h Percent decrease of the underemployment rate.","M3_A6_EMP_9",null,false,"True/False","M3A61hYouthUnemployRate",-4,"M3B1hUnderemployRateResults","Rates"]
["CNPI 1z Other Rates of Change for Employment Indicators.","M3_A6_EMP_10",null,false,"True/False","M3A61z6OtherEmploy",1,"M3B1z4OtherEmploy4Name,M3B1z5OtherEmploy5Name,M3B1z6OtherEmploy6Name","OtherRates"]
["Education and Cognitive Development (check all CNPIs for which CAA has outcomes to report)","M3_A6_EDU"]
["CNPI 2a Number of accessible and affordable early childhood or pre-school education assets or resources added to the identified community. ","M3_A6_EDU_1",null,false,"True/False","M3A62aPreSchool",-2,"M3B2aPreSchoolResults","Counts"]
["CNPI 2b Number of accredited or licensed affordable child care facilities added in the identified community. ","M3_A6_EDU_2",null,false,"True/False","M3A62bAffordCare",-2,"M3B2bAffordCareResults","Counts"]
["CNPI 2c Number of new Early Childhood Screenings offered to children (ages 0-5) of families with low-incomes in the identified community. ","M3_A6_EDU_3",null,false,"True/False","M3A62cScreenings",-2,"M3B2cScreeningsResults","Counts"]
["CNPI 2d Number of accessible and affordable education assets or resources added for school age children in the identified community.  (e.g., academic, enrichment activities, before/after school care, summer programs)","M3_A6_EDU_4",null,false,"True/False","M3A62dSchoolAge",-2,"M3B2dSchoolAgeResults","Counts"]
["CNPI 2e Number of accessible and affordable post secondary education assets or resources added for newly graduating youth in the identified community.  (e.g. college tuition, scholarships, vocational training, etc.) ","M3_A6_EDU_5",null,false,"True/False","M3A62ePostSecondary",-2,"M3B2ePostSecondaryResults","Counts"]
["CNPI 2f Number of accessible and affordable basic or secondary education assets or resources added for adults in the identified community.  (e.g. literacy, ESL, ABE/GED, etc.) ","M3_A6_EDU_6",null,false,"True/False","M3A62fBasicEd",-2,"M3B2fBasicEdResults","Counts"]
["CNPI 2z Other Counts of Change for Education and Cognitive Development Indicators.","M3_A6_EDU_7",null,false,"True/False","M3A62z1OtherEdCogDev",1,"M3B2z1OtherEdCogDev1Name,M3B2z2OtherEdCogDev2Name,M3B2z3OtherEdCogDev3Name","OtherCounts"]
["CNPI 2g Percent increase of children in the identified community who are kindergarten ready. ","M3_A6_EDU_8",null,false,"True/False","M3A62gKindReady",-4,"M3B2gKindReadyResults","Rates"]
["CNPI 2h Percent increase of children in the identified community at (or above) the basic reading level.","M3_A6_EDU_9",null,false,"True/False","M3A62hBasicReadLvl",-4,"M3B2hBasicReadLvlResults","Rates"]
["CNPI 2i Percent increase of children in the identified community at (or above) the basic math level.","M3_A6_EDU_10",null,false,"True/False","M3A62iBasicMathLvl",-4,"M3B2iBasicMathLvlResults","Rates"]
["CNPI 2j Percent increase in high school (or high school equivalency) graduation rate in the identified community.","M3_A6_EDU_11",null,false,"True/False","M3A62jGradRate",-4,"M3B2jGradRateResults","Rates"]
["CNPI 2k Percent increase of the rate of youth in the identified community who attend post-secondary education.","M3_A6_EDU_12",null,false,"True/False","M3A62kYouthPostSecAttend",-4,"M3B2kYouthPostSecAttendResults","Rates"]
["CNPI 2l Percent increase of the rate of youth in the identified community who graduate from post-secondary education. ","M3_A6_EDU_13",null,false,"True/False","M3A62lYouthPostSecGrad",-4,"M3B2lYouthPostSecGradResults","Rates"]
["CNPI 2m Percent increase of adults in the identified community who attend post-secondary education. ","M3_A6_EDU_14",null,false,"True/False","M3A62mAdultPostSecAttend",-4,"M3B2mAdultPostSecAttendResults","Rates"]
["CNPI 2n Percent increase of adults in the identified community who graduate from post-secondary education.","M3_A6_EDU_15",null,false,"True/False","M3A62nAdultPostSecGrad",-4,"M3B2nAdultPostSecGradResults","Rates"]
["CNPI 2o Percent increase in the adult literacy rate in the identified community. ","M3_A6_EDU_16",null,false,"True/False","M3A62oLitRate",-4,"M3B2oLitRateResults","Rates"]
["CNPI 2z Other Rates of Change for Education and Cognitive Development Indicators.","M3_A6_EDU_17",null,false,"True/False","M3A62z6OtherEdCogDev",1,"M3B2z4OtherEdCogDev4Name,M3B2z5OtherEdCogDev5Name,M3B2z6OtherEdCogDev6Name","OtherRates"]
["Infrastructure and Asset Building (check all CNPIs for which CAA has outcomes to report)","M3_A6_INF"]
["CNPI 3a.1 Commercial","M3_A6_INF_1",null,false,"True/False","M3A63a1Commercial",-2,"M3B3a1CommercialResults","Counts"]
["CNPI 3a.2 Financial","M3_A6_INF_2",null,false,"True/False","M3A63a2Financial",-2,"M3B3a2FinancialResults","Counts"]
["CNPI 3a.3 Technological/Communications (e.g. broadband)","M3_A6_INF_3",null,false,"True/False","M3A63a3TechComm",-2,"M3B3a3TechCommResults","Counts"]
["CNPI 3a.4 Transportation","M3_A6_INF_4",null,false,"True/False","M3A63a4Transportation",-2,"M3B3a4TransportationResults","Counts"]
["CNPI 3a.5 Recreational (e.g. parks, gardens, libraries)","M3_A6_INF_5",null,false,"True/False","M3A63a5Recreational",-2,"M3B3a5RecreationalResults","Counts"]
["CNPI 3a.6 Other Public Assets/Physical Improvements","M3_A6_INF_6",null,false,"True/False","M3A63a6OtherPublic",-2,"M3B3a6OtherPublicResults","Counts"]
["CNPI 3b.1 Commercial","M3_A6_INF_7",null,false,"True/False","M3A63b1Commercial",-2,"M3B3b1CommercialResults","Counts"]
["CNPI 3b.2 Financial","M3_A6_INF_8",null,false,"True/False","M3A63b2Financial",-2,"M3B3b2FinancialResults","Counts"]
["CNPI 3b.3 Technological/Communications (e.g. broadband)","M3_A6_INF_9",null,false,"True/False","M3A63b3TechComm",-2,"M3B3b3TechCommResults","Counts"]
["CNPI 3b.4 Transportation","M3_A6_INF_10",null,false,"True/False","M3A63b4Transportation",-2,"M3B3b4TransportationResults","Counts"]
["CNPI 3b.5 Recreational (e.g. parks, gardens, libraries)","M3_A6_INF_11",null,false,"True/False","M3A63b5Recreational",-2,"M3B3b5RecreationalResults","Counts"]
["CNPI 3b.6 Other Public Assets/Physical Improvements","M3_A6_INF_12",null,false,"True/False","M3A63b6OtherPublic",-2,"M3B3b6OtherPublicResults","Counts"]
["CNPI 3z Other Counts of Change for Infrastructure and Asset Building Indicators.","M3_A6_INF_13",null,false,"True/False","M3A63z1OtherInfraAsset",1,"M3B3z1OtherInfraAsset1Name,M3B3z2OtherInfraAsset2Name,M3B3z3OtherInfraAsset3Name","OtherCounts"]
["CNPI 3c Percent decrease of abandoned or neglected buildings in the identified community.","M3_A6_INF_14",null,false,"True/False","M3A63cAbandonBuild",-4,"M3B3cAbandonBuildResults","Rates"]
["CNPI 3d Percent decrease in emergency response time measured in minutes in the identified community. (EMT, Police, Fire, etc.).","M3_A6_INF_15",null,false,"True/False","M3A63dEmerRespTime",-4,"M3B3dEmerRespTimeResults","Rates"]
["CNPI 3e Percent decrease of predatory lenders and/or lending practices in the identified community.","M3_A6_INF_16",null,false,"True/False","M3A63ePredLend",-4,"M3B3ePredLendResults","Rates"]
["CNPI 3f Percent decrease of environmental threats to households (toxic soil, radon, lead, air quality, quality of drinking water, etc.) in the identified community.","M3_A6_INF_17",null,false,"True/False","M3A63fEnvirThreat",-4,"M3B3fEnvirThreatResults","Rates"]
["CNPI 3g Percent increase of transportation services in the identified community.","M3_A6_INF_18",null,false,"True/False","M3A63gTransportService",-4,"M3B3gTransportServiceResults","Rates"]
["CNPI 3z Other Rates of Change for Infrastructure and Asset Building Indicators.","M3_A6_INF_19",null,false,"True/False","M3A63z6OtherInfraAsset",1,"M3B3z4OtherInfraAsset4Name,M3B3z5OtherInfraAsset5Name,M3B3z6OtherInfraAsset6Name","OtherRates"]
["Housing (check all CNPIs for which CAA has outcomes to report) ","M3_A6_HOU"]
["CNPI 4a Number of safe and affordable housing units developed in the identified community (e.g. built or set aside units for people with low incomes).","M3_A6_HOU_1",null,false,"True/False","M3A64aSafeHousDev",-2,"M3B4aSafeHousDevResults","Counts"]
["CNPI 4b Number of safe and affordable housing units maintained and/or improved through WAP or other rehabilitation efforts in the identified community. ","M3_A6_HOU_2",null,false,"True/False","M3A64bSafeHousMain",-2,"M3B4bSafeHousMainResults","Counts"]
["CNPI 4c Number of shelter beds created in the identified community. ","M3_A6_HOU_3",null,false,"True/False","M3A64cShelterBedCreate",-2,"M3B4cShelterBedCreateResults","Counts"]
["CNPI 4d Number of shelter beds maintained in the identified community. ","M3_A6_HOU_4",null,false,"True/False","M3A64dShelterBedMain",-2,"M3B4dShelterBedMainResults","Counts"]
["CNPI 4z Other Counts of Change for Housing Indicators.","M3_A6_HOU_5",null,false,"True/False","M3A64z1OtherHousing",1,"M3B4z1OtherHousing1Name,M3B4z2OtherHousing2Name,M3B4z3OtherHousing3Name","OtherCounts"]
["CNPI 4e Percent decrease in the rate of homelessness in the identified community. ","M3_A6_HOU_6",null,false,"True/False","M3A64eHomeless",-4,"M3B4eHomelessResults","Rates"]
["CNPI 4f Percent decrease in the foreclosure rate in the identified community.","M3_A6_HOU_7",null,false,"True/False","M3A64fForecloseRate",-4,"M3B4fForecloseRateResults","Rates"]
["CNPI 4g Percent increase in the rate of home ownership of people with low incomes in the identified community.","M3_A6_HOU_8",null,false,"True/False","M3A64gHomeOwn",-4,"M3B4gHomeOwnResults","Rates"]
["CNPI 4h Percent increase of affordable housing in the identified community.","M3_A6_HOU_9",null,false,"True/False","M3A64hAffordHouse",-4,"M3B4hAffordHouseResults","Rates"]
["CNPI 4i Percent increase of shelter beds in the identified community.","M3_A6_HOU_10",null,false,"True/False","M3A64iShelterBed",-4,"M3B4iShelterBedResults","Rates"]
["CNPI 4z Other Rates of Change for Housing Indicators.","M3_A6_HOU_11",null,false,"True/False","M3A64z6OtherHousing",1,"M3B4z4OtherHousing4Name,M3B4z5OtherHousing5Name,M3B4z6OtherHousing6Name","OtherRates"]
["Health and Social/Behavioral (check all CNPIs for which CAA has outcomes to report)","M3_A6_HLTH"]
["CNPI 5a Number of accessible and affordable physical health assets or resources created in the identified community. ","M3_A6_HLTH_1",null,false,"True/False","M3A65aPhysHealth",-2,"M3B5aPhysHealthResults","Counts"]
["CNPI 5b Number of accessible and affordable behavioral and mental health assets or resources created in the identified community.     ","M3_A6_HLTH_2",null,false,"True/False","M3A65bMentHealth",-2,"M3B5bMentHealthResults","Counts"]
["CNPI 5c Number of public safety assets and resources created in the identified community.     ","M3_A6_HLTH_3",null,false,"True/False","M3A65cPubSafe",-2,"M3B5cPubSafeResults","Counts"]
["CNPI 5d Number of accessible and affordable healthy food resources created in the identified community.","M3_A6_HLTH_4",null,false,"True/False","M3A65dFoodResource",-2,"M3B5dFoodResourceResults","Counts"]
["CNPI 5e Number of activities designed to improve police and community relations within the identified community.","M3_A6_HLTH_5",null,false,"True/False","M3A65eCommRel",-2,"M3B5eCommRelResults","Counts"]
["CNPI 5z Other Counts of Change for Health and Social/Behavioral Indicators.","M3_A6_HLTH_6",null,false,"True/False","M3A65z1OtherHealthSoc",1,"M3B5z1OtherHealthSoc1Name,M3B5z2OtherHealthSoc2Name,M3B5z3OtherHealthSoc3Name","OtherCounts"]
["CNPI 5f Percent decrease in infant mortality rate in the identified community.","M3_A6_HLTH_7",null,false,"True/False","M3A65fMortRate",-4,"M3B5fMortRateResults","Rates"]
["CNPI 5g Percent decrease in childhood obesity rate in the identified community. ","M3_A6_HLTH_8",null,false,"True/False","M3A65gChildObesRate",-4,"M3B5gChildObesRateResults","Rates"]
["CNPI 5h Percent decrease in adult obesity rate in the identified community.","M3_A6_HLTH_9",null,false,"True/False","M3A65hAdultObesRate",-4,"M3B5hAdultObesRateResults","Rates"]
["CNPI 5i Percent increase in child immunization rate in the identified community. ","M3_A6_HLTH_10",null,false,"True/False","M3A65iImmunRate",-4,"M3B5iImmunRateResults","Rates"]
["CNPI 5j Percent decrease in uninsured families in the identified community. ","M3_A6_HLTH_11",null,false,"True/False","M3A65jUninsuredFam",-4,"M3B5jUninsuredFamResults","Rates"]
["CNPI 5k Percent decrease in the teen pregnancy rate in the identified community.","M3_A6_HLTH_12",null,false,"True/False","M3A65kTeenPreg",-4,"M3B5kTeenPregResults","Rates"]
["CNPI 5l Percent decrease in unplanned pregnancies in the identified community.","M3_A6_HLTH_13",null,false,"True/False","M3A65lUnplanPreg",-4,"M3B5lUnplanPregResults","Rates"]
["CNPI 5m Percent decrease in substance abuse rate in the identified community (e.g. cigarettes, prescription drugs, narcotics, alcohol). ","M3_A6_HLTH_14",null,false,"True/False","M3A65mSubAbuse",-4,"M3B5mSubAbuseResults","Rates"]
["CNPI 5n Percent decrease in domestic violence rate in the identified community.","M3_A6_HLTH_15",null,false,"True/False","M3A65nDomViolence",-4,"M3B5nDomViolenceResults","Rates"]
["CNPI 5o Percent decrease in the child abuse rate in the identified community.","M3_A6_HLTH_16",null,false,"True/False","M3A65oChildAbuse",-4,"M3B5oChildAbuseResults","Rates"]
["CNPI 5p Percent decrease in the child neglect rate in the identified community.","M3_A6_HLTH_17",null,false,"True/False","M3A65pChildNeglect",-4,"M3B5pChildNeglectResults","Rates"]
["CNPI 5q Percent decrease in the elder abuse rate in the identified community. ","M3_A6_HLTH_18",null,false,"True/False","M3A65qElderAbuse",-4,"M3B5qElderAbuseResults","Rates"]
["CNPI 5r Percent decrease in the elder neglect rate in the identified community. ","M3_A6_HLTH_19",null,false,"True/False","M3A65rElderNeglect",-4,"M3B5rElderNeglectResults","Rates"]
["CNPI 5s Percent decrease in recidivism rate in the identified community.","M3_A6_HLTH_20",null,false,"True/False","M3A65sRecidivism",-4,"M3B5sRecidivismResults","Rates"]
["CNPI 5t Percent decrease in non-violent crime rate in the identified community.","M3_A6_HLTH_21",null,false,"True/False","M3A65tNonViolCrime",-4,"M3B5tNonViolCrimeResults","Rates"]
["CNPI 5u Percent decrease in violent crime rate in the identified community.","M3_A6_HLTH_22",null,false,"True/False","M3A65uViolCrime",-4,"M3B5uViolCrimeResults","Rates"]
["CNPI 5v Percent decrease in teens involved with the juvenile court system in the identified community.","M3_A6_HLTH_23",null,false,"True/False","M3A65vJuvenileCourt",-4,"M3B5vJuvenileCourtResults","Rates"]
["CNPI 5z Other Rates of Change for Health and Social/Behavioral Indicators.","M3_A6_HLTH_24",null,false,"True/False","M3A65z6OtherHealthSoc",1,"M3B5z4OtherHealthSoc4Name,M3B5z5OtherHealthSoc5Name,M3B5z6OtherHealthSoc6Name","OtherRates"]
["Civic Engagement and Community Involvement - Goal 2: Communities where people with low incomes live are healthy and offer economic opportunity.","M3_A6_CIVG2"]
["CNPI 6 G2a Percent increase of donated time to support the CSBG Eligible Entity's delivery of services and/or implementation of strategies to address conditions of poverty in the identified community. ","M3_A6_CIVG2_1",null,false,"True/False","M3A66G2aDonatedTime",-4,"M3B6G2aDonatedTimeResults","Rates"]
["CNPI 6 G2b Percent increase of donated resources to support the CSBG Eligible Entity's delivery of services and/or implementation of strategies to address conditions of poverty in the identified community. ","M3_A6_CIVG2_2",null,false,"True/False","M3A66G2bDonatedResources",-4,"M3B6G2bDonatedResourcesResults","Rates"]
["CNPI 6 G2c Percent increase of people participating in public hearings, policy forums, community planning, or other advisory boards related to the CSBG Eligible Entity's delivery of service and/or implementation of strategies to address conditions of poverty in the identified community.","M3_A6_CIVG2_3",null,false,"True/False","M3A66G2cPeoplePart",-4,"M3B6G2cPeoplePartResults","Rates"]
["CNPI 6 G2z Other Rates of Change for Civic Engagement and Community Involvement Indicators - Goal 2","M3_A6_CIVG2_4",null,false,"True/False","M3A66G2z1OtherCivicEng",1,"M3B6G2z1OtherCivicEngG21Name,M3B6G2z2OtherCivicEngG22Name,M3B6G2z3OtherCivicEngG23Name","OtherRates"]
["CNPI 6 G2z Other Counts of Change for Civic Engagement and Community Involvement Indicators - Goal 2","M3_A6_CIVG2_5",null,false,"True/False","M3A66G2z6OtherCivicEng",1,"M3B6G2z4OtherCivicEngG24Name,M3B6G2z5OtherCivicEngG25Name,M3B6G2z6OtherCivicEngG26Name","OtherCounts"]
["Civic Engagement and Community Involvement - Goal 3: People with low incomes are engaged and active in building opportunities in communities.","M3_A6_CIVG3"]
["CNPI 6 G3a Percent increase of people with low incomes who support the CSBG Eligible Entity's delivery of service and/or implementation of strategies to address conditions of poverty in the identified community. ","M3_A6_CIVG3_1",null,false,"True/False","M3A66G3aSupplImpl",-4,"M3B6G3aSuppImplResults","Rates"]
["CNPI 6 G3b Percent increase of people with low incomes who acquire and maintain leadership roles with the CSBG Eligible Entity or other organizations within the identified community. ","M3_A6_CIVG3_2",null,false,"True/False","M3A66G3bLeadRole",-4,"M3B6G3bLeadRoleResults","Rates"]
["CNPI 6 G3z Other Rates of Change for Civic Engagement and Community Involvement Indicators - Goal 3","M3_A6_CIVG3_3",null,false,"True/False","M3A66G3z1OtherCivicEng",1,"M3B6G3z1OtherCivicEngG31Name,M3B6G3z2OtherCivicEngG32Name,M3B6G3z3OtherCivicEngG33Name","OtherRates"]
["CNPI 6 G3z Other Counts of Change for Civic Engagement and Community Involvement Indicators - Goal 3","M3_A6_CIVG3_4",null,false,"True/False","M3A66G3z6OtherCivicEng",1,"M3B6G3z4OtherCivicEngG34Name,M3B6G3z5OtherCivicEngG35Name,M3B6G3z6OtherCivicEngG36Name","OtherCounts"]
["STRs"]
["Employment Strategies (STR 1)","M3_A11_EMP"]
["STR 1a Minimum/Living Wage Campaign ","M3_A11_EMP_1",null,false,"True/False","M3A111aMinWage"]
["STR 1b Job Creation/Employment Generation ","M3_A11_EMP_2",null,false,"True/False","M3A111bJobCreation"]
["STR 1c Job Fairs","M3_A11_EMP_3",null,false,"True/False","M3A111cJobFairs"]
["STR 1d Earned Income Tax Credit (EITC) Promotion","M3_A11_EMP_4",null,false,"True/False","M3A111dEITC"]
["STR 1e Commercial Space Development","M3_A11_EMP_5",null,false,"True/False","M3A111eCommSpace"]
["STR 1f Employer Education ","M3_A11_EMP_6",null,false,"True/False","M3A111fEmployerEd"]
["STR 1g Employment Policy Changes","M3_A11_EMP_7",null,false,"True/False","M3A111gEmplPolChng"]
["STR 1h Employment Legislative Changes","M3_A11_EMP_8",null,false,"True/False","M3A111hEmplLegChng"]
["STR 1i Other Employment Strategy: (please specify)","M3_A11_EMP_9",null,false,"True/False","M3A111i1EmployOther",null,"M3A111i1EmployOtherText"]
["Other","M3_A11_EMP_9_Other",null,null,"Text","M3A111i1EmployOtherText",true]
["Education and Cognitive Development Strategies (STR 2)","M3_A11_EDU"]
["STR 2a Preschool for All Campaign","M3_A11_EDU_1",null,false,"True/False","M3A112aPreschool"]
["STR 2b Charter School Development","M3_A11_EDU_2",null,false,"True/False","M3A112bCharterSch"]
["STR 2c After School Enrichment Activities Promotion","M3_A11_EDU_3",null,false,"True/False","M3A112cEnrichAct"]
["STR 2d Pre K-College/Community College Support ","M3_A11_EDU_4",null,false,"True/False","M3A112dPreK"]
["STR 2e Children’s Trust Fund Creation","M3_A11_EDU_5",null,false,"True/False","M3A112eTrustFund"]
["STR 2f Scholarship Creation","M3_A11_EDU_6",null,false,"True/False","M3A112fScholarship"]
["STR 2g Child Tax Credit (CTC) Promotion ","M3_A11_EDU_7",null,false,"True/False","M3A112gCTC"]
["STR 2h Adoption Child Care Quality Rating ","M3_A11_EDU_8",null,false,"True/False","M3A112hAdoptChildCare"]
["STR 2i Adult Education Establishment","M3_A11_EDU_9",null,false,"True/False","M3A112iAdultEd"]
["STR 2j Education and Cognitive Development Policy Changes","M3_A11_EDU_10",null,false,"True/False","M3A112jEdCogDevPol"]
["STR 2k Education and Cognitive Development Legislative Changes","M3_A11_EDU_11",null,false,"True/False","M3A112kEdCogDevLeg"]
["STR 2l Other Education and Cognitive Development Strategy: (please specify)","M3_A11_EDU_12",null,false,"True/False","M3A112l1EdCogDevOther",null,"M3A112l1EdCogDevOtherText"]
["Other","M3_A11_EDU_12_Other",null,null,"Text","M3A112l1EdCogDevOtherText",true]
["Infrastructure and Asset Building Strategies (STR 3)","M3_A11_INF"]
["STR 3a Cultural Asset Creation","M3_A11_INF_1",null,false,"True/False","M3A113aCulturalAsset"]
["STR 3b Police/Community Relations Campaign","M3_A11_INF_2",null,false,"True/False","M3A113bPolCommRel"]
["STR 3c Neighborhood Safety Watch Programs","M3_A11_INF_3",null,false,"True/False","M3A113cNeighborhoodWatch"]
["STR 3d Anti-Predatory Lending Campaign","M3_A11_INF_4",null,false,"True/False","M3A113dPredLend"]
["STR 3e Asset Building and Savings Promotion ","M3_A11_INF_5",null,false,"True/False","M3A113eAssetBuild"]
["STR 3f Develop/Build/Rehab Spaces  ","M3_A11_INF_6",null,false,"True/False","M3A113fDevSpaces"]
["STR 3g Maintain or Host Income Tax Preparation Sites","M3_A11_INF_7",null,false,"True/False","M3A113gIncomeTaxPrep"]
["STR 3h Community-wide Data Collection Systems Development","M3_A11_INF_8",null,false,"True/False","M3A113hDataCollSys"]
["STR 3i Local 211 or Resource/Referral System Development","M3_A11_INF_9",null,false,"True/False","M3A113iLocal211"]
["STR 3j Water/Sewer System Development ","M3_A11_INF_10",null,false,"True/False","M3A113jWaterSys"]
["STR 3k Community Financial Institution Creation","M3_A11_INF_11",null,false,"True/False","M3A113kFinInstitution"]
["STR 3l Infrastructure Planning Coalition","M3_A11_INF_12",null,false,"True/False","M3A113lInfrastrucPlan"]
["STR 3m Park or Recreation Creation and Maintenance ","M3_A11_INF_13",null,false,"True/False","M3A113mParkRec"]
["STR 3n Rehabilitation/Weatherization of Housing Stock  ","M3_A11_INF_14",null,false,"True/False","M3A113nWxnHouseStock"]
["STR 3o Community Center/Community Facility Establishment","M3_A11_INF_15",null,false,"True/False","M3A113oCommCenter"]
["STR 3p Asset Limit Barriers for Benefits Policy Changes","M3_A11_INF_16",null,false,"True/False","M3A113pBenPolicyChanges"]
["STR 3q Infrastructure and Asset Building Policy Changes","M3_A11_INF_17",null,false,"True/False","M3A113qPolChanges"]
["STR 3r Infrastructure and Asset Building Legislative Changes","M3_A11_INF_18",null,false,"True/False","M3A113rLegChanges"]
["STR 3s Other Infrastructure and Asset Building Strategy: (please specify)","M3_A11_INF_19",null,false,"True/False","M3A113s1InfrastrAssetOther",null,"M3A113s1InfrastrAssetOtherText"]
["Other","M3_A11_INF_19_Other",null,null,"Text","M3A113s1InfrastrAssetOtherText",true]
["Housing Strategies (STR 4)","M3_A11_HOU"]
["STR 4a End Chronic Homelessness Campaign","M3_A11_HOU_1",null,false,"True/False","M3A114aChronicHomeless"]
["STR 4b New Affordable Single Unit Housing Creation ","M3_A11_HOU_2",null,false,"True/False","M3A114bAffordSingleUnit"]
["STR 4c New Affordable Multi-Unit Housing Creation (Single Resident Occupancy (SRO), temporary housing, transitional housing)","M3_A11_HOU_3",null,false,"True/False","M3A114cAffordMultiUnit"]
["STR 4d Tenants’ Rights Campaign","M3_A11_HOU_4",null,false,"True/False","M3A114dTenantRights"]
["STR 4e New Shelters Creation (including day shelters and domestic violence shelters)","M3_A11_HOU_5",null,false,"True/False","M3A114eShelterCreation"]
["STR 4f Housing or Land Trust Creation","M3_A11_HOU_6",null,false,"True/False","M3A114fLandTrust"]
["STR 4g Building Codes Campaign","M3_A11_HOU_7",null,false,"True/False","M3A114gBuildCodes"]
["STR 4h Housing Policy Changes","M3_A11_HOU_8",null,false,"True/False","M3A114hHousePolChanges"]
["STR 4i Housing Legislative Changes ","M3_A11_HOU_9",null,false,"True/False","M3A114iHouseLegChanges"]
["STR 4j Other Housing Strategy: (please specify)","M3_A11_HOU_10",null,false,"True/False","M3A114j1HousingOther",null,"M3A114j1HousingOtherText"]
["Other","M3_A11_HOU_10_Other",null,null,"Text","M3A114j1HousingOtherText",true]
["Health and Social/Behavioral Development Strategies (STR 5)","M3_A11_HLTH"]
["STR 5a Health Specific Campaign","M3_A11_HLTH_1",null,false,"True/False","M3A115aHealthCampaign"]
["STR 5b Farmers Market or Community Garden Development","M3_A11_HLTH_2",null,false,"True/False","M3A115bFarmMarket"]
["STR 5c Grocery Store Development","M3_A11_HLTH_3",null,false,"True/False","M3A115cGrocStore"]
["STR 5d Gun Safety/Control Campaign","M3_A11_HLTH_4",null,false,"True/False","M3A115dGunSafety"]
["STR 5e Healthy Food Campaign","M3_A11_HLTH_5",null,false,"True/False","M3A115eHealthyFood"]
["STR 5f Nutrition Education Collaborative","M3_A11_HLTH_6",null,false,"True/False","M3A115fNutritionEd"]
["STR 5g Food Bank Development","M3_A11_HLTH_7",null,false,"True/False","M3A115gFoodBank"]
["STR 5h Domestic Violence Court Development","M3_A11_HLTH_8",null,false,"True/False","M3A115hDomViolenceCourt"]
["STR 5i Drug Court Development","M3_A11_HLTH_9",null,false,"True/False","M3A115iDrugCourt"]
["STR 5j Alternative Energy Source Development","M3_A11_HLTH_10",null,false,"True/False","M3A115jAltEnergy"]
["STR 5k Develop or Maintain a Health Clinic","M3_A11_HLTH_11",null,false,"True/False","M3A115kHealthClinic"]
["STR 5l Health and Social/Behavioral Development Policy Changes","M3_A11_HLTH_12",null,false,"True/False","M3A115lHealthPolChanges"]
["STR 5m Health and Social/Behavioral Development Legislative Changes","M3_A11_HLTH_13",null,false,"True/False","M3A115mHealthLegChanges"]
["STR 5n Other Health and Social/Behavioral Development Strategy: (please specify)","M3_A11_HLTH_14",null,false,"True/False","M3A115n1HealthOther",null,"M3A115n1HealthOtherText"]
["Other","M3_A11_HLTH_14_Other",null,null,"Text","M3A115n1HealthOtherText",true]
["Civic Engagement and Community Involvement Strategies - Goal 2 (STR 6 G2)","M3_A11_CIVG2"]
["STR 6 G2a Development of Health and Social Service Provider Partnerships ","M3_A11_CIVG2_1",null,false,"True/False","M3A116G2aHealthSocService"]
["STR 6 G2b Recruiting and Coordinating Community Volunteers","M3_A11_CIVG2_2",null,false,"True/False","M3A116G2bCommVolunteer"]
["STR 6 G2c Poverty Simulations","M3_A11_CIVG2_3",null,false,"True/False","M3A116G2cPovSim"]
["STR 6 G2d Attract Capital Investments","M3_A11_CIVG2_4",null,false,"True/False","M3A116G2dCapInvest"]
["STR 6 G2e Build/Support Increased Equity ","M3_A11_CIVG2_5",null,false,"True/False","M3A116G2eIncrEquity"]
["STR 6 G2f Equity Awareness Campaign ","M3_A11_CIVG2_6",null,false,"True/False","M3A116G2fEquityAware"]
["STR 6 G2e Coordinated Community-wide Needs Assessment","M3_A11_CIVG2_7",null,false,"True/False","M3A116G2gNeedsAssess"]
["STR 6 G2f Civic Engagement and Community Involvement in Advocacy Efforts","M3_A11_CIVG2_8",null,false,"True/False","M3A116G2hAdvocEffort"]
["STR 6 G2g Civic Engagement Policy Changes ","M3_A11_CIVG2_9",null,false,"True/False","M3A116G2iCivicEngPolChanges"]
["STR 6 G2h Civic Engagement Legislative Changes ","M3_A11_CIVG2_10",null,false,"True/False","M3A116G2jCivicEngLegChanges"]
["STR 6 G2i Other Civic Engagement and Community Involvement Strategy: (please specify)","M3_A11_CIVG2_11",null,false,"True/False","M3A116G2k1CivicEngOther",null,"M3A116G2k1CivicEngOtherText"]
["Other","M3_A11_CIVG2_11_Other",null,null,"Text","M3A116G2k1CivicEngOtherText",true]
["Civic Engagement and Community Involvement Strategies - Goal 3 (STR 6 G3)","M3_A11_CIVG3"]
["STR 6 G3a Empowerment of Individuals/Families with Low Incomes ","M3_A11_CIVG3_1",null,false,"True/False","M3A116G3aEmpowerLI"]
["STR 6 G3b Campaign to Ensure Individuals with Low Incomes are Represented on Local Governing Bodies ","M3_A11_CIVG3_2",null,false,"True/False","M3A116G3bLocalGovBodies"]
["STR 6 G3c Social Capital Building Campaign for Individuals/Families with Low Incomes","M3_A11_CIVG3_3",null,false,"True/False","M3A116G3cSocCapBuild"]
["STR 6 G3d Campaign for Volunteer Placement and Coordination ","M3_A11_CIVG3_4",null,false,"True/False","M3A116G3dVolPlacement"]
["STR 6 G3e Civic Engagement Policy Changes ","M3_A11_CIVG3_5",null,false,"True/False","M3A116G3eCivicEngPolChanges"]
["STR 6 G3f Civic Engagement Legislative Changes ","M3_A11_CIVG3_6",null,false,"True/False","M3A116G3fCivicEngLegChanges"]
["STR 6 G3g Other Civic Engagement and Community Involvement Strategy: (please specify)","M3_A11_CIVG3_7",null,false,"True/False","M3A116G3g1CivicEngOther",null,"M3A116G3g1CivicEngOtherText"]
["Other","M3_A11_CIVG3_7_Other",null,null,"Text","M3A116G3g1CivicEngOtherText",true]
["Community Support Strategies (STR 7)","M3_A11_COM"]
["STR 7a Off-Hours (Non-Traditional Hours) Child Care Development","M3_A11_COM_1",null,false,"True/False","M3A117aOffHrChildCare"]
["STR 7b Transportation System Development","M3_A11_COM_2",null,false,"True/False","M3A117bTransportSys"]
["STR 7c Transportation Services Coordination and Support","M3_A11_COM_3",null,false,"True/False","M3A117cTransportServ"]
["STR 7d Community Support Policy Changes","M3_A11_COM_4",null,false,"True/False","M3A117dCommSuppPolChanges"]
["STR 7e Community Support Legislative Changes ","M3_A11_COM_5",null,false,"True/False","M3A117eCommSuppLegChanges"]
["STR 7f Other Community Support Strategy: (please specify)","M3_A11_COM_6",null,false,"True/False","M3A117f1CommSuppOther",null,"M3A117f1CommSuppOtherText"]
["Other","M3_A11_COM_6_Other",null,null,"Text","M3A117f1CommSuppOtherText",true]
["Emergency Management Strategies (STR 8)","M3_A11_EM"]
["STR 8a State or Local Emergency Management Board Enhancement","M3_A11_EM_1",null,false,"True/False","M3A118aEmerMan"]
["STR 8b Community-wide Emergency Disaster Relief Service Creation","M3_A11_EM_2",null,false,"True/False","M3A118bEmerDisRelief"]
["STR 8c Disaster Preparation Planning","M3_A11_EM_3",null,false,"True/False","M3A118cDisPrepPlan"]
["STR 8d Emergency Management Policy Changes","M3_A11_EM_4",null,false,"True/False","M3A118dEmerManPolChanges"]
["STR 8e Emergency Management Legislative Changes ","M3_A11_EM_5",null,false,"True/False","M3A118eEmerManLegChanges"]
["STR 8f Other Emergency Management Strategy: (please specify)","M3_A11_EM_6",null,false,"True/False","M3A118f1EmerManOther",null,"M3A118f1EmerManOtherText"]
["Other","M3_A11_EM_6_Other",null,null,"Text","M3A118f1EmerManOtherText",true]
["Income","M3_A11_INC"]

{"sheet":"Lookups","index":17,"n_rows":35,"n_cols":13,"rows_kept":35,"hidden":true}
[]
[]
["Project_Year",null,"Expected_Duration",null,null,"Domains",null,"Community",null,"Partnership_Type",null,"Memo_Err_Title","Exceeds Maximum Length"]
["Select the Initiative Year",null,"0 years","0 years",null,"Employment",null,"Select the Identified Community",null,"Select the Partnership Type",null,"Memo_Err_Message",{"$f":"\"This field can have a maximum of \" & EditText_MaxLength & \" characters.  It currently has 999999 characters.  Please adjust your entry to be less than the maximum allowed length.\"","v":"This field can have a maximum of 5000 characters.  It currently has 999999 characters.  Please adjust your entry to be less than the maximum allowed length."}]
[1,null,"1 year","2 years",null,"Education and Cognitive Development",null,"Neighborhood",null,"Independent CAA Initiative"]
[2,null,"2 years","3 years",null,"Infrastructure Asset",null,"City",null,"CAA is the core organizer of multi-partner Initiative",null,"OtherText","Enter other description…"]
[3,null,"3 years","4 years",null,"Housing",null,"School District",null,"CAA is one of multiple active investors and partners"]
[4,null,"4 years","5 years",null,"Health and Social/Behavioral Development",null,"Service Area"]
[5,null,"5 years","6 years",null,"Civic Engagement and Community Involvement",null,"County",null,"Reporting_Status"]
[6,null,"6 years","7 years",{"$nulls":3},"State",null,"Select the Reporting Status"]
["7+",null,"7 years","7+ years",{"$nulls":3},"Region",null,"New"]
[{"$nulls":7},"Other",null,"Previously Submitted"]
[]
[null,null,"Yes_No",null,null,"Progress",{"$nulls":3},"Final_Status"]
[null,null,"Yes",null,null,"Select the Progress on Outcomes/Indicators",{"$nulls":3},"Select the Final Status"]
[null,null,"No",null,null,"No Outcomes to Report",{"$nulls":3},"Initiative Active",null,"XML_Filename","D:\\Work\\NASCSP - SmartForms\\SmartForms 2020-21\\CSBG Annual Report Module 3.xml"]
[{"$nulls":5},"Interim Outcomes",{"$nulls":3},"Initiative Ended Early"]
[{"$nulls":5},"Final Outcomes ",{"$nulls":3},"Initiative Ended as Planned"]
[{"$nulls":9},"Completed Still Delivering Value",null,"cbEMP",false]
[]
[{"$nulls":11},"cbEDU",false]
[]
[{"$nulls":11},"cbINF",false]
[]
[{"$nulls":11},"cbHOU",false]
[]
[{"$nulls":11},"cbHLTH",false]
[]
[{"$nulls":11},"cbCIVG",false]
[]
[]
[{"$nulls":12},"Depricated Fields"]
[{"$nulls":12},"M3IncludesCSBGFunds"]
[{"$nulls":12},"M3IncludesCSBGCares"]
[{"$nulls":12},"M3IncludesCSBGDisaster"]